Workbook

Sheet Quantities
T1: Segment 1 | X1: Segment 2 | AB1: Segment 3
A2: 1 | B2: 2 | C2: 3 | D2: 4 | E2: 5 | F2: 6 | G2: 7 | H2: 8 | I2: 9 | J2: 10 | K2: 11 | L2: 12 | M2: 13 | N2: 14 | O2: 15 | P2: 16 | Q2: 17 | R2: 18 | S2: 19 | T2: 20 | U2: 21 | V2: 22 | W2: 23 | X2: 24 | Y2: 25 | Z2: 26 | AA2: 27 | AB2: 28 | AC2: 29 | AD2: 30 | AE2: 31 | AF2: 32 | AG2: 33 | AH2: 34 | AI2: 35 | AJ2: 36 | AK2: 37 | AL2: 38 | AM2: 39 | AN2: 40 | AO2: 41 | AP2: 42
A3: Item | B3: Facility | C3: Sub Area or Destination for Cover Material | D3: Description | E3: Area (sf) | F3: Volume (cy) | G3: Push Distance (ft) Berm Length (ft) or Fence Length (ft) | H3: Current Grade (%) | I3: Coarse Regrading and Fine Grading (%) | J3: One-Way Scraper Haul (ft) | K3: Scraper Grade (%) | L3: Down Drains (ft) | M3: Downdrain ACB (sf) | N3: Downdrain Dissipater (ea) | O3: Bench Channels (ft) | P3: Bench Grading (ft) | Q3: Top Channels (ft) | R3: Top Area (sf) | S3: Outslope Area (sf) | T3: Elevation Start (ft) | U3: Elevation End (ft) | V3: Distance (ft) | W3: Average Grade (%) | X3: Elevation Start (ft) | Y3: Elevation End (ft) | Z3: Distance (ft) | AA3: Average Grade (%) | AB3: Elevation Start (ft) | AC3: Elevation End (ft) | AD3: Distance (ft) | AE3: Average Grade (%) | AF3: Cover Depth (In) | AG3: Swell Factor (%) | AH3: Material Factor for Coarse Regrading | AI3: Material Factor for Fine Grading Cover | AJ3: Material Weight for Coarse Regrading (lb/cy) | AK3: Material Weight for Fine Grading Cover (lb/cy) | AL3: Ripping Length (ft) | AM3: Breach Dams (cy) | AN3: Start of Reclamation Year | AO3: Plug and Abandon Well (ft) | AP3: Replace Well (ft)
A4: 1000 | B4: South Waste Rock Disposal Facility | C4: SWRDF-0 | D4: Entire Stockpile | E4: =SUM(E5:E8) -> 20470494.95
A5: 1001 | B5: South Waste Rock Disposal Facility | C5: SWRDF-1 | D5: Top | E5: =Quantities[[#This Row],[Top Area (sf)]] -> 4787244 | F5: 666680 | G5: 540 | H5: -0.01 | I5: -0.01 | Q5: 3964 | R5: =(85.2+24.7)*43560 -> 4787244 | AH5: 1 | AI5: 1.2 | AJ5: 3300 | AK5: 2900 | AL5: 1000 | AN5: 2024
A6: 1002 | B6: South Waste Rock Disposal Facility | C6: SWRDF-2 | D6: 3:1 Interbench Outslope | E6: =Quantities[[#This Row],[Outslope Area (sf)]] -> 11133936 | F6: =4438079*Quantities[[#This Row],[Area (sf)]]/SUM($E$6:$E$8) -> 3150704.386 | G6: 99 | H6: -0.27 | I6: -0.27 | L6: =4836/(4836+3759)*4770.44 -> 2684.10097 | N6: 2 | O6: 14126 | P6: 14126 | S6: =(255.6*43560)-S8 -> 11133936 | AH6: 1 | AI6: 1.2 | AJ6: 3300 | AK6: 2900 | AL6: 1000 | AN6: 2025
A7: 1003 | B7: South Waste Rock Disposal Facility | C7: SWRDF-3 | D7: 2.5:1 Interbench Outslope | E7: 3638910.95 | F7: 1450500.009 | G7: 98.92 | H7: -0.33 | I7: -0.33 | L7: =3759/(4836+3759)*4770.44 -> 2086.33903 | N7: 2 | O7: 25463 | P7: 25463 | S7: 3638910.95 | AH7: 1 | AI7: 1.2 | AJ7: 3300 | AK7: 2900 | AL7: 1000 | AN7: 2024
A8: 1004 | B8: South Waste Rock Disposal Facility | C8: SWRDF-4 | D8: Laydown Yard N of SWRDF | E8: =20.9*43560 -> 910404 | F8: =Quantities[[#This Row],[Area (sf)]]/27 -> 33718.66667 | G8: 99 | H8: 0.01 | I8: 0.01 | R8: =Quantities[[#This Row],[Area (sf)]] -> 910404 | AH8: 1 | AI8: 1.2 | AJ8: 3300 | AK8: 2900 | AL8: 1000 | AN8: 2024
A9: 1100 | B9: No. 3 Shaft Stockpile | C9: N3SS-0 | D9: Entire Stockpile | E9: =E10+E11 -> 248292 | AH9: 1 | AI9: 1.2 | AJ9: 3300 | AK9: 2900 | AL9: 1000 | AN9: 2026
A10: 1101 | B10: No. 3 Shaft Stockpile | C10: N3SS-1 | D10: Top | E10: =1.3*43560 -> 56628 | F10: 5825.925926 | G10: 60 | H10: -0.01 | I10: -0.01 | L10: 0 | R10: =Quantities[[#This Row],[Area (sf)]] -> 56628 | AH10: 1 | AI10: 1.2 | AJ10: 3300 | AK10: 2900 | AL10: 1000 | AN10: 2026
A11: 1102 | B11: No. 3 Shaft Stockpile | C11: N3SS-2 | D11: Outslope | E11: =4.4*43560 -> 191664 | F11: 19718.51852 | G11: 128 | H11: -0.33 | I11: -0.33 | L11: 0 | S11: =Quantities[[#This Row],[Area (sf)]] -> 191664 | AH11: 1 | AI11: 1.2 | AJ11: 3300 | AK11: 2900 | AL11: 1000 | AN11: 2026
A12: 1200 | B12: Low Grade Ore Waste Rock Facility | C12: LGWRF-0 | D12: Entire Stockpile | E12: =27.83*43560 -> 1212274.8 | AH12: 1 | AI12: 1.2 | AJ12: 3300 | AK12: 2900 | AL12: 1000 | AN12: 2026
A13: 1201 | B13: Low Grade Ore Waste Rock Facility | C13: LGWRF-1 | D13: Top | E13: 242676.8948 | F13: =Quantities[[#This Row],[Area (sf)]]/27 -> 8988.033141 | G13: 92 | H13: -0.01 | I13: -0.01 | R13: =Quantities[[#This Row],[Area (sf)]] -> 242676.8948 | AH13: 1 | AI13: 1.2 | AJ13: 3300 | AK13: 2900 | AL13: 1000 | AN13: 2026
A14: 1202 | B14: Low Grade Ore Waste Rock Facility | C14: LGWRF-2 | D14: Outslope | E14: 969597.9052 | F14: 243350 | G14: 162.9 | H14: -0.27 | I14: -0.33 | S14: =Quantities[[#This Row],[Area (sf)]] -> 969597.9052 | AH14: 1 | AI14: 1.2 | AJ14: 3300 | AK14: 2900 | AL14: 1000 | AN14: 2026
A15: 1300 | B15: Main Tailings Impoundment | C15: MTI-0 | D15: Entire Impoundment | E15: =SUM(E16:E18) -> 7733206.8 | AH15: 1 | AI15: 1.2 | AJ15: 2900 | AK15: 2900 | AL15: 1000 | AN15: 2026
A16: 1301 | B16: Main Tailings Impoundment | C16: MTI-1 | D16: Top | E16: =108.2*43560 -> 4713192 | F16: 50794.5 | G16: 200 | H16: -0.008 | I16: -0.008 | Q16: 2141 | R16: =Quantities[[#This Row],[Area (sf)]] -> 4713192 | AH16: 1 | AI16: 1.2 | AJ16: 2900 | AK16: 2900 | AL16: 1000 | AN16: 2026
A17: 1302 | B17: Main Tailings Impoundment | C17: MTI-2 | D17: Outslope | E17: =36.33*43560 -> 1582534.8 | F17: 170294 | G17: 250 | H17: -0.33 | I17: -0.33 | L17: 460 | N17: 1 | O17: 3894 | P17: 3894 | S17: =Quantities[[#This Row],[Area (sf)]] -> 1582534.8 | AH17: 1 | AI17: 1.2 | AJ17: 2900 | AK17: 2900 | AL17: 1000 | AN17: 2026
A18: 1303 | B18: Main Tailings Impoundment | C18: MTI-3 | D18: Reclaim Pond | E18: =33*43560 -> 1437480 | F18: 67765 | G18: 200 | H18: -0.33 | I18: -0.33 | S18: =Quantities[[#This Row],[Area (sf)]] -> 1437480 | AH18: 1 | AI18: 1.2 | AJ18: 3300 | AK18: 2900 | AL18: 1000 | AN18: 2026
A19: 1304 | B19: Main Tailings Impoundment | C19: MTI-4 | D19: Reclaim Pond Outlet Channel | E19: =50*43560 -> 2178000 | F19: 62226 | V19: 1172 | W19: 0.009 | Z19: 0 | AA19: 0 | AD19: 0 | AE19: 0 | AG19: 0.15 | AH19: 1 | AI19: 1.2 | AJ19: 3600 | AK19: 2900 | AL19: 500 | AN19: 2026
A20: 1400 | B20: Magnetite Tailings Impoundment | C20: MGTI-0 | D20: Entire Impoundment | E20: =E21+E22 -> 2721193.2 | AH20: 1 | AI20: 1.2 | AJ20: 4185 | AK20: 2900 | AL20: 1000 | AN20: 2027
A21: 1401 | B21: Magnetite Tailings Impoundment | C21: MGTI-1 | D21: Top | E21: 2489541.12 | F21: 73481.5 | G21: 300 | H21: -0.035 | I21: -0.035 | R21: =Quantities[[#This Row],[Area (sf)]] -> 2489541.12 | AH21: 1 | AI21: 1.2 | AJ21: 4185 | AK21: 2900 | AL21: 1000 | AN21: 2027
A22: 1402 | B22: Magnetite Tailings Impoundment | C22: MGTI-2 | D22: Outslope | E22: 231652.08 | F22: 69996 | G22: 250 | H22: -0.33 | I22: -0.33 | L22: 420 | N22: 1 | S22: =Quantities[[#This Row],[Area (sf)]] -> 231652.08 | AH22: 1 | AI22: 1.2 | AJ22: 4185 | AK22: 2900 | AL22: 1000 | AN22: 2027
A23: 1500 | B23: Cobre Haul Road | C23: CHR-0 | D23: Entire Road | E23: 4356000 | G23: 120 | H23: -0.01 | AH23: 1 | AI23: 1.2 | AJ23: 3300 | AK23: 2900 | AL23: 1000 | AN23: 2027
A24: 1501 | B24: Cobre Haul Road | C24: CHR-1 | D24: Top | E24: =E23 -> 4356000 | R24: =Quantities[[#This Row],[Area (sf)]] -> 4356000 | AG24: 0 | AH24: 1 | AI24: 1.2 | AJ24: 3300 | AK24: 2900 | AL24: 1000 | AN24: 2027
A25: 1502 | B25: Cobre Haul Road | C25: CHR-2 | D25: Outslope-pushdown | E25: =Quantities[[#This Row],[Top Area (sf)]]/43560 -> 0 | F25: 24255 | G25: 47 | H25: =1/1.7 -> 0.5882352941 | I25: =1/2.5 -> 0.4 | AG25: 0.15 | AH25: 1 | AI25: 1.2 | AJ25: 3300 | AK25: 2900 | AL25: 1000 | AN25: 2027
A26: 1503 | B26: Cobre Haul Road | C26: CHR-3 | D26: Outslope-pullback Ex Only 2.5:1 | E26: =Quantities[[#This Row],[Top Area (sf)]]/43560 -> 0 | F26: 28322 | G26: 100 | H26: =H25 -> 0.5882352941 | I26: 0.4 | V26: 2640 | W26: 0.07 | AG26: 0.15 | AH26: 1 | AI26: 1.2 | AJ26: 3300 | AK26: 2900 | AL26: 1000 | AN26: 2027
A27: 1504 | B27: Cobre Haul Road | C27: CHR-4 | D27: Outslope-pullback LdTk 2.5:1 | E27: =Quantities[[#This Row],[Top Area (sf)]]/43560 -> 0 | F27: 35986 | G27: 100 | H27: =H26 -> 0.5882352941 | I27: 0.4 | V27: 2640 | W27: 0.07 | AG27: 0.15 | AH27: 1 | AI27: 1.2 | AJ27: 3300 | AK27: 2900 | AL27: 1000 | AN27: 2027
A28: 1505 | B28: Cobre Haul Road | C28: CHR-5 | D28: Outslope-pullback LdTk 2:1 | E28: =Quantities[[#This Row],[Top Area (sf)]]/43560 -> 0 | F28: 67453 | G28: 100 | H28: =H26 -> 0.5882352941 | I28: =1/2 -> 0.5 | V28: 2640 | W28: 0.07 | AG28: 0.15 | AH28: 1 | AI28: 1.2 | AJ28: 3300 | AK28: 2900 | AL28: 1000 | AN28: 2027
A29: 1506 | B29: Cobre Haul Road | C29: CHR-6 | D29: Crossings - earth | E29: =Quantities[[#This Row],[Top Area (sf)]]/43560 -> 0 | F29: 5731 | G29: 100 | H29: 0.585 | I29: 0.4 | V29: 5280 | W29: 0.07 | AG29: 0.15 | AH29: 1 | AI29: 1.2 | AJ29: 3300 | AK29: 2900 | AL29: 1000 | AN29: 2027
A30: 1507 | B30: Cobre Haul Road | C30: CHR-7 | D30: Crossings - concrete | E30: =Quantities[[#This Row],[Top Area (sf)]]/43560 -> 0 | F30: 672 | G30: 100 | H30: 0.588 | I30: 0.4 | V30: 5280 | W30: 0.07 | AG30: 0.6 | AH30: 1 | AI30: 1.2 | AJ30: 4045 | AK30: 2900 | AL30: 1000 | AN30: 2027
A31: 1600 | B31: Pearson Barnes Mine Area | C31: PB-0 | D31: Entire Area | E31: 518364 | G31: 200 | H31: -0.27 | AH31: 1 | AI31: 1.2 | AJ31: 2900 | AK31: 2900 | AL31: 1000 | AN31: 2027
A32: 1601 | B32: Pearson Barnes Mine Area | C32: PB-1 | D32: Top | E32: 518364 | G32: 200 | H32: -0.27 | R32: =Quantities[[#This Row],[Area (sf)]] -> 518364 | AH32: 1 | AI32: 1.2 | AJ32: 2900 | AK32: 2900 | AL32: 1000 | AN32: 2027
A33: 1700 | B33: Hanover Mountain Deposit | C33: HMM-0 | D33: Top | E33: =93.3*43560 -> 4064148 | G33: 250 | H33: 0.01 | AH33: 1 | AI33: 1.2 | AJ33: 3300 | AK33: 2900 | AL33: 1000 | AN33: 2027
A34: 1701 | B34: Hanover Mountain Deposit | C34: HMM-1 | D34: Hanover Mountain Perimeter 1 | E34: =Quantities[[#This Row],[Top Area (sf)]]/43560 -> 0 | G34: 6670 | H34: 0.01 | AN34: 2027
A35: 1702 | B35: Hanover Mountain Deposit | C35: HMM-2 | D35: Hanover Mountain Perimeter 2 | E35: =Quantities[[#This Row],[Top Area (sf)]]/43560 -> 0 | G35: 3286 | H35: 0.01 | AN35: 2027
A36: 1800 | B36: Continental Pit | C36: CP-0 | D36: Reclaim Area | E36: =17.6*43560 -> 766656 | F36: 0.1 | G36: 250 | H36: 0.01 | AN36: 2027
A37: 1801 | B37: Continental Pit | C37: CP-1 | D37: Continental Pit Perimeter 1 | E37: 0.1 | F37: 0.1 | G37: 6635 | H37: 0.01 | AN37: 2027
A38: 1802 | B38: Continental Pit | C38: CP-2 | D38: Continental Pit Perimeter 2 | E38: =Quantities[[#This Row],[Top Area (sf)]]/43560 -> 0 | G38: 2453 | H38: 0.01 | AN38: 2027
A39: 2000 | B39: Containments | C39: Cntmnt-01 | D39: All Containments | E39: =SUM(E40:E49) -> 235224
A40: 2001 | B40: Containments | C40: Cntmnt-02 | D40: Blackman's Seep (Pond #2) | E40: 435.6 | G40: 200 | H40: 0.005 | I40: 0.005 | R40: =Quantities[[#This Row],[Area (sf)]] -> 435.6 | AG40: 0 | AH40: 1 | AI40: 1.2 | AJ40: 3300 | AK40: 2900 | AL40: 250 | AN40: 2027
A41: 2002 | B41: Containments | C41: Cntmnt-03 | D41: Decant Pond #4 | E41: 27007.2 | F41: 296 | G41: 200 | H41: 0.005 | I41: 0.005 | R41: =Quantities[[#This Row],[Area (sf)]] -> 27007.2 | AG41: 0 | AH41: 1 | AI41: 1.2 | AJ41: 3300 | AK41: 2900 | AL41: 250 | AM41: 296 | AN41: 2027
A42: 2003 | B42: Containments | C42: Cntmnt-04 | D42: East WRF Containment | E42: 21780 | F42: 40 | G42: 200 | H42: 0.005 | I42: 0.005 | R42: =Quantities[[#This Row],[Area (sf)]] -> 21780 | AG42: 0 | AH42: 1 | AI42: 1.2 | AJ42: 3300 | AK42: 2900 | AL42: 250 | AM42: 40 | AN42: 2027
A43: 2004 | B43: Containments | C43: Cntmnt-05 | D43: Grape Gulch Pond #3 | E43: 16552.8 | F43: 296 | G43: 200 | H43: 0.005 | I43: 0.005 | R43: =Quantities[[#This Row],[Area (sf)]] -> 16552.8 | AG43: 0 | AH43: 1 | AI43: 1.2 | AJ43: 3300 | AK43: 2900 | AL43: 250 | AM43: 296 | AN43: 2027
A44: 2005 | B44: Containments | C44: Cntmnt-06 | D44: Magnetite Seepage Pond | E44: 8712 | F44: 296 | G44: 200 | H44: 0.005 | I44: 0.005 | R44: =Quantities[[#This Row],[Area (sf)]] -> 8712 | AG44: 0 | AH44: 1 | AI44: 1.2 | AJ44: 3300 | AK44: 2900 | AL44: 250 | AM44: 296 | AN44: 2027
A45: 2006 | B45: Containments | C45: Cntmnt-07 | D45: North Tailings Decant Pond | E45: 20037.6 | F45: 296 | G45: 200 | H45: 0.005 | I45: 0.005 | R45: =Quantities[[#This Row],[Area (sf)]] -> 20037.6 | AG45: 0 | AH45: 1 | AI45: 1.2 | AJ45: 3300 | AK45: 2900 | AL45: 250 | AM45: 296 | AN45: 2027
A46: 2007 | B46: Containments | C46: Cntmnt-08 | D46: SWRF Dam 1 | E46: 22651.2 | F46: 54 | G46: 200 | H46: 0.005 | I46: 0.005 | R46: =Quantities[[#This Row],[Area (sf)]] -> 22651.2 | AG46: 0.6 | AH46: 1 | AI46: 1.2 | AJ46: 4045 | AK46: 2900 | AL46: 250 | AM46: 54 | AN46: 2027
A47: 2008 | B47: Containments | C47: Cntmnt-09 | D47: SWRF Dam 2 | E47: 14810.4 | F47: 30.6 | G47: 200 | H47: 0.005 | I47: 0.005 | R47: =Quantities[[#This Row],[Area (sf)]] -> 14810.4 | AG47: 0.6 | AH47: 1 | AI47: 1.2 | AJ47: 4045 | AK47: 2900 | AL47: 250 | AM47: 30.6 | AN47: 2027
A48: 2009 | B48: Containments | C48: Cntmnt-10 | D48: SWRF Dam 3 | E48: 36590.4 | F48: 47 | G48: 200 | H48: 0.005 | I48: 0.005 | R48: =Quantities[[#This Row],[Area (sf)]] -> 36590.4 | AG48: 0.6 | AH48: 1 | AI48: 1.2 | AJ48: 4045 | AK48: 2900 | AL48: 250 | AM48: 47 | AN48: 2027
A49: 2010 | B49: Containments | C49: Cntmnt-11 | D49: Upper Creek Containment Pond 1 | E49: 66646.8 | F49: 296 | G49: 200 | H49: 0.005 | I49: 0.005 | R49: =Quantities[[#This Row],[Area (sf)]] -> 66646.8 | AG49: 0 | AH49: 1 | AI49: 1.2 | AJ49: 3300 | AK49: 2900 | AL49: 250 | AM49: 296 | AN49: 2027
A50: 3000 | B50: Miscellaneous | C50: Misc-0 | D50: All Misc | E50: =SUM(E51:E55) -> 5812907.76
A51: 3001 | B51: Miscellaneous | C51: Misc-1 | D51: Unplanned Future Disturbance Areas | E51: 2178000 | R51: =Quantities[[#This Row],[Area (sf)]] -> 2178000 | AG51: 0.08 | AH51: 1 | AI51: 1.2 | AJ51: 2900 | AK51: 2900 | AN51: 2027
A52: 3002 | B52: Miscellaneous | C52: Misc-2 | D52: Roads-Misc Haul | E52: 1960200 | R52: =Quantities[[#This Row],[Area (sf)]] -> 1960200 | AG52: 0.08 | AH52: 1 | AI52: 1.2 | AJ52: 2900 | AK52: 2900 | AN52: 2027
A53: 3003 | B53: Miscellaneous | C53: Misc-3 | D53: Roads-Exploration | E53: 1611720 | R53: =Quantities[[#This Row],[Area (sf)]] -> 1611720 | AG53: 0.08 | AH53: 1 | AI53: 1.2 | AJ53: 2900 | AK53: 2900 | AN53: 2027
A54: 3004 | B54: Miscellaneous | C54: Misc-4 | D54: Tailings Pipeline Corridor | E54: 62987.76 | R54: =Quantities[[#This Row],[Area (sf)]] -> 62987.76 | AG54: 0.08 | AH54: 1 | AI54: 1.2 | AJ54: 2900 | AK54: 2900 | AN54: 2027
A55: 3005 | B55: Miscellaneous | C55: Misc-5 | D55: Wells | R55: =Quantities[[#This Row],[Area (sf)]] -> 0 | AO55: 700
A56: 5000 | B56: North Overburden Stockpile | C56: 1000 | D56: Cover Material | E56: =VLOOKUP(Quantities[[#This Row],[Sub Area or Destination for Cover Material]],$A$4:$E$55,$E$2) -> 20470494.95 | V56: 2310 | W56: -0.08874458874 | Z56: 7312 | AA56: -0.009573304158 | AD56: 2937 | AE56: 0.04085801839 | AF56: 36 | AG56: 0.08 | AH56: 1.2 | AI56: 1.2 | AJ56: 2900 | AK56: 2900 | AL56: 1000
A57: 5001 | B57: North Overburden Stockpile | C57: 1001 | D57: Cover Material | E57: =VLOOKUP(Quantities[[#This Row],[Sub Area or Destination for Cover Material]],$A$4:$E$55,$E$2) -> 4787244 | V57: 2310 | W57: -0.08874458874 | Z57: 7312 | AA57: -0.009573304158 | AD57: 2937 | AE57: 0.04085801839 | AF57: 36 | AG57: 0.08 | AH57: 1.2 | AI57: 1.2 | AJ57: 2900 | AK57: 2900 | AL57: 1000
A58: 5002 | B58: North Overburden Stockpile | C58: 1002 | D58: Cover Material | E58: =VLOOKUP(Quantities[[#This Row],[Sub Area or Destination for Cover Material]],$A$4:$E$55,$E$2) -> 11133936 | V58: 2310 | W58: -0.08874458874 | Z58: 7312 | AA58: -0.009573304158 | AD58: 2937 | AE58: 0.04085801839 | AF58: 36 | AG58: 0.08 | AH58: 1.2 | AI58: 1.2 | AJ58: 2900 | AK58: 2900 | AL58: 1000
A59: 5003 | B59: North Overburden Stockpile | C59: 1003 | D59: Cover Material | E59: =VLOOKUP(Quantities[[#This Row],[Sub Area or Destination for Cover Material]],$A$4:$E$55,$E$2) -> 3638910.95 | V59: 2310 | W59: -0.08874458874 | Z59: 7312 | AA59: -0.009573304158 | AD59: 2937 | AE59: 0.04085801839 | AF59: 36 | AG59: 0.08 | AH59: 1.2 | AI59: 1.2 | AJ59: 2900 | AK59: 2900 | AL59: 1000
A60: 5004 | B60: North Overburden Stockpile | C60: 1004 | D60: Cover Material | E60: =VLOOKUP(Quantities[[#This Row],[Sub Area or Destination for Cover Material]],$A$4:$E$55,$E$2) -> 910404 | V60: 2310 | W60: -0.08874458874 | Z60: 7312 | AA60: -0.009573304158 | AD60: 2937 | AE60: 0.04085801839 | AF60: 36 | AG60: 0.08 | AH60: 1.2 | AI60: 1.2 | AJ60: 2900 | AK60: 2900 | AL60: 1000
A61: 5005 | B61: North Overburden Stockpile | C61: 1100 | D61: Cover Material | E61: =VLOOKUP(Quantities[[#This Row],[Sub Area or Destination for Cover Material]],$A$4:$E$55,$E$2) -> 248292 | V61: 1357 | W61: -0.018 | Z61: 1443 | AA61: -0.033 | AD61: 1443 | AE61: -0.022 | AF61: 36 | AG61: 0.08 | AH61: 1.2 | AI61: 1.2 | AJ61: 2900 | AK61: 2900 | AL61: 1000
A62: 5006 | B62: North Overburden Stockpile | C62: 1101 | D62: Cover Material | E62: =VLOOKUP(Quantities[[#This Row],[Sub Area or Destination for Cover Material]],$A$4:$E$55,$E$2) -> 56628 | V62: 1357 | W62: -0.018 | Z62: 1443 | AA62: -0.033 | AD62: 1443 | AE62: -0.022 | AF62: 36 | AG62: 0.08 | AH62: 1.2 | AI62: 1.2 | AJ62: 2900 | AK62: 2900 | AL62: 1000
A63: 5007 | B63: North Overburden Stockpile | C63: 1102 | D63: Cover Material | E63: =VLOOKUP(Quantities[[#This Row],[Sub Area or Destination for Cover Material]],$A$4:$E$55,$E$2) -> 191664 | V63: 1357 | W63: -0.018 | Z63: 1443 | AA63: -0.033 | AD63: 1443 | AE63: -0.022 | AF63: 36 | AG63: 0.08 | AH63: 1.2 | AI63: 1.2 | AJ63: 2900 | AK63: 2900 | AL63: 1000
A64: 5008 | B64: North Overburden Stockpile | C64: 1200 | D64: Cover Material | E64: =VLOOKUP(Quantities[[#This Row],[Sub Area or Destination for Cover Material]],$A$4:$E$55,$E$2) -> 1212274.8 | V64: 2310 | W64: -0.089 | Z64: 2310 | AA64: -0.023 | AD64: 3000 | AE64: 0 | AF64: 36 | AG64: 0.08 | AH64: 1.2 | AI64: 1.2 | AJ64: 2900 | AK64: 2900 | AL64: 1000
A65: 5009 | B65: North Overburden Stockpile | C65: 1201 | D65: Cover Material | E65: =VLOOKUP(Quantities[[#This Row],[Sub Area or Destination for Cover Material]],$A$4:$E$55,$E$2) -> 242676.8948 | V65: 2310 | W65: -0.089 | Z65: 2310 | AA65: -0.023 | AD65: 3000 | AE65: 0 | AF65: 36 | AG65: 0.08 | AH65: 1.2 | AI65: 1.2 | AJ65: 2900 | AK65: 2900 | AL65: 1000
A66: 5010 | B66: North Overburden Stockpile | C66: 1202 | D66: Cover Material | E66: =VLOOKUP(Quantities[[#This Row],[Sub Area or Destination for Cover Material]],$A$4:$E$55,$E$2) -> 969597.9052 | V66: 2310 | W66: -0.089 | Z66: 2310 | AA66: -0.023 | AD66: 3000 | AE66: 0 | AF66: 36 | AG66: 0.08 | AH66: 1.2 | AI66: 1.2 | AJ66: 2900 | AK66: 2900 | AL66: 1000
A67: 5011 | B67: North Overburden Stockpile | C67: 1300 | D67: Cover Material | E67: =VLOOKUP(Quantities[[#This Row],[Sub Area or Destination for Cover Material]],$A$4:$E$55,$E$2) -> 7733206.8 | V67: 2310 | W67: -0.0887 | Z67: 2310 | AA67: 0.016 | AD67: 2943 | AE67: 0.036 | AF67: 36 | AG67: 0.08 | AH67: 1.2 | AI67: 1.2 | AJ67: 2900 | AK67: 2900 | AL67: 1000
A68: 5012 | B68: North Overburden Stockpile | C68: 1301 | D68: Cover Material | E68: =VLOOKUP(Quantities[[#This Row],[Sub Area or Destination for Cover Material]],$A$4:$E$55,$E$2) -> 4713192 | V68: 2310 | W68: -0.0887 | Z68: 2310 | AA68: 0.016 | AD68: 2943 | AE68: 0.036 | AF68: 36 | AG68: 0.08 | AH68: 1.2 | AI68: 1.2 | AJ68: 2900 | AK68: 2900 | AL68: 1000
A69: 5013 | B69: North Overburden Stockpile | C69: 1302 | D69: Cover Material | E69: =VLOOKUP(Quantities[[#This Row],[Sub Area or Destination for Cover Material]],$A$4:$E$55,$E$2) -> 1582534.8 | V69: 2310 | W69: -0.0887 | Z69: 2310 | AA69: 0.016 | AD69: 2943 | AE69: 0.036 | AF69: 36 | AG69: 0.08 | AH69: 1.2 | AI69: 1.2 | AJ69: 2900 | AK69: 2900 | AL69: 1000
A70: 5014 | B70: North Overburden Stockpile | C70: 1303 | D70: Cover Material | E70: =VLOOKUP(Quantities[[#This Row],[Sub Area or Destination for Cover Material]],$A$4:$E$55,$E$2) -> 1437480 | V70: 2310 | W70: -0.0887 | Z70: 2310 | AA70: 0.016 | AD70: 2943 | AE70: 0.036 | AF70: 36 | AG70: 0.08 | AH70: 1.2 | AI70: 1.2 | AJ70: 2900 | AK70: 2900 | AL70: 1000
A71: 5015 | B71: North Overburden Stockpile | C71: 1400 | D71: Cover Material | E71: =VLOOKUP(Quantities[[#This Row],[Sub Area or Destination for Cover Material]],$A$4:$E$55,$E$2) -> 2721193.2 | V71: 2310 | W71: -0.089 | Z71: 1940 | AA71: 0.015 | AD71: 1940 | AE71: -0.04 | AF71: 36 | AG71: 0.08 | AH71: 1.2 | AI71: 1.2 | AJ71: 2900 | AK71: 2900 | AL71: 1000
A72: 5016 | B72: North Overburden Stockpile | C72: 1401 | D72: Cover Material | E72: =VLOOKUP(Quantities[[#This Row],[Sub Area or Destination for Cover Material]],$A$4:$E$55,$E$2) -> 2489541.12 | V72: 2310 | W72: -0.089 | Z72: 1940 | AA72: 0.015 | AD72: 1940 | AE72: -0.04 | AF72: 36 | AG72: 0.08 | AH72: 1.2 | AI72: 1.2 | AJ72: 2900 | AK72: 2900 | AL72: 1000
A73: 5017 | B73: North Overburden Stockpile | C73: 1402 | D73: Cover Material | E73: =VLOOKUP(Quantities[[#This Row],[Sub Area or Destination for Cover Material]],$A$4:$E$55,$E$2) -> 231652.08 | V73: 2310 | W73: -0.089 | Z73: 1940 | AA73: 0.015 | AD73: 1940 | AE73: -0.04 | AF73: 36 | AG73: 0.08 | AH73: 1.2 | AI73: 1.2 | AJ73: 2900 | AK73: 2900 | AL73: 1000
A74: 5018 | B74: North Overburden Stockpile | C74: 1600 | D74: Cover Material | E74: =VLOOKUP(Quantities[[#This Row],[Sub Area or Destination for Cover Material]],$A$4:$E$55,$E$2) -> 518364 | V74: 2310 | W74: -0.08874458874 | Z74: 7312 | AA74: -0.009573304158 | AD74: 2937 | AE74: 0.04085801839 | AF74: 36 | AG74: 0.08 | AH74: 1.2 | AI74: 1.2 | AJ74: 2900 | AK74: 2900 | AL74: 1000
A75: 5019 | B75: North Overburden Stockpile | C75: 1601 | D75: Cover Material | E75: =VLOOKUP(Quantities[[#This Row],[Sub Area or Destination for Cover Material]],$A$4:$E$55,$E$2) -> 518364 | V75: 2310 | W75: -0.08874458874 | Z75: 7312 | AA75: -0.009573304158 | AD75: 2937 | AE75: 0.04085801839 | AF75: 36 | AG75: 0.08 | AH75: 1.2 | AI75: 1.2 | AJ75: 2900 | AK75: 2900 | AL75: 1000
A76: 5020 | B76: North Overburden Stockpile | C76: 1700 | D76: Cover Material | E76: =VLOOKUP(Quantities[[#This Row],[Sub Area or Destination for Cover Material]],$A$4:$E$55,$E$2) -> 4064148 | V76: 1759 | W76: -0.099 | Z76: 2466 | AA76: -0.081 | AD76: 1482 | AE76: 0.067 | AF76: 36 | AG76: 0.08 | AH76: 1.2 | AI76: 1.2 | AJ76: 2900 | AK76: 2900 | AL76: 1000
A77: 5021 | B77: North Overburden Stockpile | C77: 2001 | D77: Cover Material | E77: =VLOOKUP(Quantities[[#This Row],[Sub Area or Destination for Cover Material]],$A$4:$E$55,$E$2) -> 435.6 | V77: 2310 | W77: -0.0887 | Z77: 1546 | AA77: -0.0776 | AD77: - | AE77: - | AF77: 36 | AG77: 0.08 | AH77: 1.2 | AI77: 1.2 | AJ77: 2900 | AK77: 2900 | AL77: 1000
A78: 5022 | B78: North Overburden Stockpile | C78: 2002 | D78: Cover Material | E78: =VLOOKUP(Quantities[[#This Row],[Sub Area or Destination for Cover Material]],$A$4:$E$55,$E$2) -> 27007.2 | V78: 2310 | W78: -0.08874458874 | Z78: 1800 | AA78: -0.01111111111 | AD78: - | AE78: - | AF78: 36 | AG78: 0.08 | AH78: 1.2 | AI78: 1.2 | AJ78: 2900 | AK78: 2900 | AL78: 1000
A79: 5023 | B79: North Overburden Stockpile | C79: 2003 | D79: Cover Material | E79: =VLOOKUP(Quantities[[#This Row],[Sub Area or Destination for Cover Material]],$A$4:$E$55,$E$2) -> 21780 | V79: 2310 | W79: -0.08874458874 | Z79: 1800 | AA79: -0.01111111111 | AD79: - | AE79: - | AF79: 36 | AG79: 0.08 | AH79: 1.2 | AI79: 1.2 | AJ79: 2900 | AK79: 2900 | AL79: 1000
A80: 5024 | B80: North Overburden Stockpile | C80: 2004 | D80: Cover Material | E80: =VLOOKUP(Quantities[[#This Row],[Sub Area or Destination for Cover Material]],$A$4:$E$55,$E$2) -> 16552.8 | V80: 2310 | W80: -0.0887 | Z80: 1546 | AA80: -0.0776 | AD80: - | AE80: - | AF80: 36 | AG80: 0.08 | AH80: 1.2 | AI80: 1.2 | AJ80: 2900 | AK80: 2900 | AL80: 1000
A81: 5025 | B81: North Overburden Stockpile | C81: 2005 | D81: Cover Material | E81: =VLOOKUP(Quantities[[#This Row],[Sub Area or Destination for Cover Material]],$A$4:$E$55,$E$2) -> 8712 | V81: 2310 | W81: -0.0887 | Z81: 1940 | AA81: 0.0155 | AD81: 2230 | AE81: -0.0404 | AF81: 36 | AG81: 0.08 | AH81: 1.2 | AI81: 1.2 | AJ81: 2900 | AK81: 2900 | AL81: 1000
A82: 5026 | B82: North Overburden Stockpile | C82: 2006 | D82: Cover Material | E82: =VLOOKUP(Quantities[[#This Row],[Sub Area or Destination for Cover Material]],$A$4:$E$55,$E$2) -> 20037.6 | V82: 2310 | W82: -0.08874458874 | Z82: 1800 | AA82: -0.01111111111 | AD82: - | AE82: - | AF82: 36 | AG82: 0.08 | AH82: 1.2 | AI82: 1.2 | AJ82: 2900 | AK82: 2900 | AL82: 1000
A83: 5027 | B83: North Overburden Stockpile | C83: 2007 | D83: Cover Material | E83: =VLOOKUP(Quantities[[#This Row],[Sub Area or Destination for Cover Material]],$A$4:$E$55,$E$2) -> 22651.2 | V83: 2310 | W83: -0.08874458874 | Z83: 7312 | AA83: -0.009573304158 | AD83: 2937 | AE83: 0.04085801839 | AF83: 36 | AG83: 0.08 | AH83: 1.2 | AI83: 1.2 | AJ83: 2900 | AK83: 2900 | AL83: 1000
A84: 5028 | B84: North Overburden Stockpile | C84: 2008 | D84: Cover Material | E84: =VLOOKUP(Quantities[[#This Row],[Sub Area or Destination for Cover Material]],$A$4:$E$55,$E$2) -> 14810.4 | V84: 2310 | W84: -0.08874458874 | Z84: 7312 | AA84: -0.009573304158 | AD84: 2937 | AE84: 0.04085801839 | AF84: 36 | AG84: 0.08 | AH84: 1.2 | AI84: 1.2 | AJ84: 2900 | AK84: 2900 | AL84: 1000
A85: 5029 | B85: North Overburden Stockpile | C85: 2009 | D85: Cover Material | E85: =VLOOKUP(Quantities[[#This Row],[Sub Area or Destination for Cover Material]],$A$4:$E$55,$E$2) -> 36590.4 | V85: 2310 | W85: -0.08874458874 | Z85: 7312 | AA85: -0.009573304158 | AD85: 2937 | AE85: 0.04085801839 | AF85: 36 | AG85: 0.08 | AH85: 1.2 | AI85: 1.2 | AJ85: 2900 | AK85: 2900 | AL85: 1000
A86: 5030 | B86: North Overburden Stockpile | C86: 2010 | D86: Cover Material | E86: =VLOOKUP(Quantities[[#This Row],[Sub Area or Destination for Cover Material]],$A$4:$E$55,$E$2) -> 66646.8 | V86: 2310 | W86: -0.08874458874 | Z86: 1546 | AA86: -0.07761966365 | AD86: - | AE86: - | AF86: 36 | AG86: 0.08 | AH86: 1.2 | AI86: 1.2 | AJ86: 2900 | AK86: 2900 | AL86: 1000
A87: 5031 | B87: North Overburden Stockpile | C87: 3001 | D87: Cover Material | E87: =VLOOKUP(Quantities[[#This Row],[Sub Area or Destination for Cover Material]],$A$4:$E$55,$E$2) -> 2178000 | V87: 2264 | W87: -0.075 | Z87: 3691 | AA87: -0.022 | AD87: 2540 | AE87: 0.024 | AF87: 36 | AG87: 0.08 | AH87: 1.2 | AI87: 1.2 | AJ87: 2900 | AK87: 2900 | AL87: 1000
A88: 5032 | B88: North Overburden Stockpile | C88: 3004 | D88: Cover Material | E88: =VLOOKUP(Quantities[[#This Row],[Sub Area or Destination for Cover Material]],$A$4:$E$55,$E$2) -> 62987.76 | V88: 2310 | W88: -0.089 | Z88: 1940 | AA88: 0.016 | AD88: 2943 | AE88: 0.036 | AF88: 36 | AG88: 0.08 | AH88: 1.2 | AI88: 1.2 | AJ88: 2900 | AK88: 2900 | AL88: 1000
A89: 5099 | B89: North Overburden Stockpile | C89: 5099 | D89: Cover Material | E89: 831996 | G89: 372 | H89: 0.01 | I89: 0.01 | V89: 375 | W89: 0.01 | AH89: 1.2 | AI89: 1.2 | AJ89: 2900 | AK89: 2900 | AL89: 1000
S248: site-wide weighted haul: | T248: =SUMPRODUCT(T211:T229,$F$211:$F$229)/SUM($F$211:$F$229) ->  | U248: =SUMPRODUCT(U211:U229,$F$211:$F$229)/SUM($F$211:$F$229) -> 

Sheet Activity-Material_Codes
A1: Item | B1: Activity | C1: Description
A2: - | B2: - | C2: Place holder for item
A3: A | B3: Grade | C3: Rough grading original material or fine grading cover material
A4: B | B4: Dozer Assist | C4: Dozer is used to assist loader or shovel at cover stockpile or assist scrapers during rough grading
A5: C | B5: Load | C5: Cover material is loaded at borrow areas onto haul trucks
A6: D | B6: Haul | C6: Haul trucks transport cover material from borrow areas to destination stockpiles
A7: E | B7: Rip | C7: Tops of stockpiles are ripped before placing cover to compensate for compaction of soil during rough grading. Stockpiles are also ripped before rough grading with a scraper. Borrow stockpile ripped before revegetation. MTI stormwater channel ripped before excavation
A8: F | B8: Grade Benches | C8: Benches are graded at stockpiles and tailings after fine grading
A9: G | B9: Construct Downdrains | C9: Downdrains are constructed after fine grading and consist of articulated concrete blocks (ACBs)
A10: Gb | B10: Construct Downdrain Dissipators | C10: Energy dissipators are specified as part of the downdrains
A11: H | B11: Construct Bench Channels | C11: Bench channels are constructed along benches after bench grading. Construction includes excavation and wasting, riprap production, riprap and filter placement, and final grading.
A12: I | B12: Construct Top Channels | C12: Top channels are constructed after final grading. Construction includes excavation, wasting, and final grading.
A13: J | B13: Revegetate | C13: Occurs after final grading and channel construction and includes tractor rental and maintenance, fuel, scarifying, discing, drill seeding, mulching, crimping, seed, and mulch
A14: K | B14: Perforate Liner | C14: Reservoir liners are perforated prior to reclamation
A15: L | B15: Replace Infrastructure | C15: Replacing infrastructure is not part of this RCE
A16: M | B16: Post-Closure O&M | C16: Includes vegetation maintenance for 12 years after reclamation and erosion control, road maintenance, and groundwater monitoring for 100 years after reclamation
A17: N | B17: Plug and Abandon Well | C17: Well borehole is backfilled with cement grout
A18: O | B18: Replace Well | C18: Includes borehole drilling, casing, and cementing
A19: P | B19: Road Maintenance | C19: Dust suppression and road maintenance with water truck and motor grader
A20: Q | B20: Construct Haul Road | C20: For shorter hauls etc.
A21: R | B21: Construct Berms | C21: Berming for pits
A22: S | B22: Fencing | C22: Fencing for pits
A24: Item | B24: Material | C24: Description
A25: - | B25: - | C25: Placeholder
A26: a | B26: Existing Ground | C26: Existing ground before rough grading
A27: b | B27: Cover | C27: Cover material from cover stockpiles, before being placed at destination location
A28: c | B28: Rough Graded Material | C28: Exisiting ground after rough grading
A29: d | B29: Placed Cover | C29: Cover material after being placed at destination location
A30: e | B30: Final Grade | C30: Facility material and cover material after rough grading and fine grading

Sheet Unit Rates
G1: ='1 General'!C1 -> Continental Mine
G2: Unit Rates Worksheet
G3: ='1 General'!C3 -> 43553
B4: Unit Rates
A10: Code | B10: Activity | C10: Base Per Unit Cost | D10: Fuel Per Unit Cost | E10: Units | F10: Source | G10: Reference
A11: U1 | B11: Fuel | C11: 2.34 | D11: - | E11: gal | F11: N/A | G11: Diesel fuel cost is estimated by correlating historical local quotes with public data, as agreed upon in November 2018 discussions with the agencies. Fuel cost includes direct and indirect costs at $2.34/gal.
A12: U2 | B12: Revegetation | C12: =Revegetation_UC!C77-UnitRates[[#This Row],[Fuel Per Unit Cost]] -> 820.1201906 | D12: =Revegetation_UC!C23 -> 3.84813 | E12: ac | F12: N/A | G12: See unit rates calculations - Cost is based on a calculated unit rate that includes tractor rental and maintenance, fuel, scarifying, discing, drill seeding, mulching, crimping, seed, and mulch.
A13: U3a | B13: Bench Grading Stockpile 3:1 | C13: ='Bench Grading_UC'!Z11 -> 1.737608438 | D13: ='Bench Grading_UC'!AA11 -> 0.4099082925 | E13: ft | F13: N/A | G13: See unit rates calculations
A14: U3b | B14: Bench Grading Stockpile 2.5:1 | C14: ='Bench Grading_UC'!Z20 -> 1.603315675 | D14: ='Bench Grading_UC'!AA20 -> 0.3767391833 | E14: ft | G14: See unit rates calculations
A15: U4 | B15: Bench Grading Tailings Pond | C15: ='Bench Grading_UC'!Z30 -> 1.622249125 | D15: ='Bench Grading_UC'!AA30 -> 0.3965988243 | E15: ft | F15: N/A | G15: See unit rates calculations
A16: U5a | B16: Downdrain Construction | C16: =Downdrain_UC!F16+Downdrain_UC!W7 -> 374.335196 | D16: =Downdrain_UC!X7 -> 0.1939363649 | E16: ft | F16: N/A | G16: See unit rates calculations
A17: U5b | B17: Dissipator Construction | C17: =Downdrain_UC!F35 -> 14556.48 | D17: - | E17: ea | F17: N/A | G17: See downdrain unit rate calculation
A18: U6a | B18: Bench Channel Construction WR 3:1 | C18: =SUM('Bench Channel_UC'!E12:E13) -> 8.007020859 | D18: =SUM('Bench Channel_UC'!F12:F13) -> 1.638435407 | E18: ft | F18: N/A | G18: See unit rates calculations
A19: U6b | B19: Bench Channel Construction WR 2.5:1 | C19: =SUM('Bench Channel_UC'!E26:E27) -> 7.606669816 | D19: =SUM('Bench Channel_UC'!F26:F27) -> 1.556513636 | E19: ft | F19: N/A | G19: See unit rates calculations
A20: U6c | B20: Bench Channel Construction Tails 3:1 | C20: =SUM('Bench Channel_UC'!E40:E41) -> 8.007020859 | D20: =SUM('Bench Channel_UC'!F40:F41) -> 1.638435407 | E20: ft | F20: N/A | G20: See unit rates calculations
A21: U7a | B21: Top Channel Construction Type I | C21: ='Top Channel_Type_I_UC'!W13 -> 18.42527845 | D21: ='Top Channel_Type_I_UC'!X13 -> 3.835962734 | E21: ft | F21: N/A | G21: See unit rates calculations. Used on SWRDF
A22: U7b | B22: Top Channel Construction Type II | C22: ='Top Channel_Type_II_UC'!W13 -> 45.33581998 | D22: ='Top Channel_Type_II_UC'!X13 -> 9.485807271 | E22: ft | F22: N/A | G22: See unit rates calculations. Used on MTI
A23: U8 | B23: Erosion Control | C23: ='2 Full Site O&M'!E134 -> 2923.362727 | D23: ='2 Full Site O&M'!F134 -> 382.2624 | E23: day | F23: Modified Crew B-13A | G23: Erosion control for O&M - includes 1 foreman, 2 laborers, 1 equipment operator, 2 truck drivers, 1 loader (4 cy), 2 dump trucks (8 cy)
A24: U9 | B24: Structure Demolition | C24: 0.25 | D24: - | E24: cf | F24: Means Line Item 024116.13 0100 | G24: Building demolition, large urban projects, mixture of types, excludes foundation demolition, dump fees
A25: U10 | B25: Concrete Slab Demolition | C25: 0.62 | D25: - | E25: sf | F25: Means Line Item 024116.17 0400 | G25: Buillding footings and foundations demolition, floors, concrete slab on grade, plain concrete, 6" thick, excludes disposal costs and dump fees
A26: U11 | B26: Storage Tank Demolition | C26: 1005.97 | D26: - | E26: ea | F26: Means Line Item 130505.75 0530 | G26: Selective Demolition - Storage Tanks, steel tank, single wall, above ground, not including foundations, pumps or piping, 5,000 thru 10,000 gallon
A27: U12 | B27: Power Line Demolition | C27: 0.63 | D27: - | E27: ft | F27: Means Line Item 260505.10 0370 | G27: Electrical Demolition - Nonmetallic sheathed cable 3 wire; assume similar enough in cost to overhead powerlines.
A28: U13 | B28: Power Pole Demolition | C28: 216.24 | D28: - | E28: ea | F28: Means Line Item 024113.80 0200 | G28: Selective Demolition - wood utility poles 35-45 ft high
A29: U14 | B29: Pipeline (small HDPE pipe) | C29: 2.29 | D29: - | E29: ft | F29: Means Line Item 024113.38 1700 | G29: Selective demolition water, process water HDPE piping; (6 to 8-inch diameter); excludes excavation
A30: U15 | B30: Pipeline (medium HDPE pipe) | C30: 3.82 | D30: - | E30: ft | F30: Means Line Item 024113.38 1800 | G30: Selective demolition water, process water HDPE piping; (10 to 18-inch diameter); excludes excavation
A31: U16 | B31: Pipeline (large HDPE pipe) | C31: 5.72 | D31: - | E31: ft | F31: Means Line Item 024113.38 1900 | G31: Selective demolition water, process water HDPE piping (20 to 36-inch diameter); excludes excavation
A32: U17 | B32: Well Plug & Abandon | C32: =(10000+5704.94)/(1500) -> 10.46996 | D32: - | E32: ft | F32: N/A | G32: Layne Christensen Company, 7/31/18 Tyrone estimate is $10,000 mobilization and demobilization plus $5,704.94 for one 1500 ft well
A33: U18 | B33: Well Replacement | C33: =(173500/3000)*(1+0.02)^(2018-2011) -> 66.43232111 | D33: - | E33: ft | F33: N/A | G33: Wilcox Professional Services, 8/2011, est. cost for 5 ½ in bore, $173,500 for 3000 ft total ($57.83/ft). Escalated 2% 2011-2018= $66.43/ft
A34: U19 | B34: Reinforced Concrete Wall Demolition | C34: =1866/8*D46 -> 199.1955 | D34: - | E34: hr | F34: Means Crew B-12C | G34: Standard Union Crew: 1 equipment operator (crane), 1 laborer, 1 hydraulic excavator, 2 cy, approximately 40 hrs to demo 200 ft reinforced concrete dam.
A35: U20 | B35: Disc harrow attachment, for tractor | C35: 616.33 | D35: - | E35: month | F35: Means Line Item 015433.20 1500 | G35: Equipment rental costs
A36: U21 | B36: Cast-In-Place Concrete | C36: 254.97 | D36: - | E36: cy | F36: Means Line Item 033053.40 6200 | G36: Structural concrete, in place, gravity retaining wall (3000 psi), includes forms and reinforcement
A37: U22 | B37: Cleanup & Disposal of Wastes Requiring Special Handling | C37: 335.2 | D37: - | E37: ton | F37: Means Line Item 028120.10 1120/1130 | G37: Solid pickup; average of minimum and maximum
A38: U23 | B38: Tranport of Wastes Requiring Special Handling | C38: 4.78 | D38: - | E38: mile | F38: Means Line Item 028120.10 1260/1270 | G38: Transporation to disposal site (Truckload = 80 drums or 25 cy or 18 tons); average of minimum and maximum
A39: U24 | B39: Road Maintenance | C39: ='2 Full Site O&M'!K132 -> 4945.959545 | D39: ='2 Full Site O&M'!L132 -> 1240.32 | E39: month | G39: Road maintenance for O&M - includes one 14M motor grader and one 6,000-gal water truck
A40: U25 | B40: Groundwater Monitoring | C40: ='2 Full Site O&M'!R136+'2 Full Site O&M'!S136 -> 3587.94 | D40: - | E40: day | G40: Groundwater monitoring for O&M - includes 1 foreman, 1 laborers, rental equipment, misc. field equipment, and aqueous chemistry
A41: U26 | B41: Berming | C41: =2.59*1.02 -> 2.6418 | D41: - | E41: ft | G41: 2018 price inflated by 2%
A42: U27 | B42: Fencing | C42: 23.05 | D42: - | E42: ft | F42: Means Line Item 323113.20 0800
A43: U28 | B43: Place Holder | C43: 0.01 | D43: - | E43: day | G43: -
C46: Location adjustment: New Mexico Las Cruces | D46: 0.854
B48: [1] Applied to RSM derived costs only. EquipmentWatch items and items based on local quotes adjusted at base rate
B49: RS Means Online, 2019

Sheet Equipment
B1: EARTHWORK AND O&M EQUIPMENT
A2: 1 | B2: 2 | C2: 3 | D2: 4 | E2: 5 | F2: 6 | G2: 7 | H2: 8 | I2: 9 | J2: 10 | K2: 11 | L2: 12 | M2: 13 | N2: 14 | O2: 15 | P2: 16 | Q2: 17 | R2: 18 | S2: 19 | T2: 20 | U2: 21 | V2: 22 | W2: 23 | X2: 24 | Y2: 25 | Z2: 26 | AA2: 27 | AB2: 28 | AC2: 29 | AD2: 30 | AE2: 31 | AF2: 32 | AG2: 33 | AH2: 34 | AI2: 35 | AJ2: 36 | AK2: 37 | AL2: 38 | AM2: 39 | AN2: 40 | AO2: 41 | AP2: 42 | AQ2: 43 | AR2: 44 | AS2: 45 | AT2: 46 | AU2: 47 | AV2: 48 | AW2: 49 | AX2: 50 | AY2: 51 | AZ2: 52 | BA2: 53 | BB2: 54 | BC2: 55 | BD2: 56 | BE2: 57 | BF2: 58 | BG2: 59 | BH2: 60 | BI2: 61 | BJ2: 62 | BK2: 63 | BL2: 64 | BM2: 65 | BN2: 66 | BO2: 67 | BP2: 68 | BQ2: 69 | BR2: 70 | BS2: 71 | BT2: 72
N3: Dozing Production (lcy/hr)1 | P3: Haul Travel Time (min/m) = A(Eff. Grade %)4 + B(Eff. Grade %)3 + C(Eff. Grade %)2 + D(Eff. Grade %) + E
N4: Production = C(Avg. dozing distance in ft)b | P4: Loaded Uphill | U4: Empty Uphill | Z4: Loaded Downhill | AE4: Empty Downhill | AV4: Ripper Factors | BP4: Push Cycle Time D9T
A5: Code | B5: Equipment Description | C5: Equipment Type | D5: Fuel Consumption (gal/hr) | E5: Fuel Cost ($/hr) | F5: Lube Cost ($/hr) | G5: Field Parts ($/hr) | H5: Tire Cost ($/hr) | I5: Ground Engaging Component Cost ($/hr) | J5: Monthly Rental Rate ($/month) | K5: Field Labor Time Cost ($/hr) | L5: Rental Cost (w/o fuel, lube, tires, or field parts) ($/hr)5 | M5: Lube, Tires, GEC, & Field Parts Adjusted Rental Cost (w/o fuel) ($/hr) | N5: C | O5: b | P5: A | Q5: B | R5: C | S5: D | T5: E | U5: A | V5: B | W5: C | X5: D | Y5: E | Z5: A | AA5: B | AB5: C | AC5: D | AD5: E | AE5: A | AF5: B | AG5: C | AH5: D | AI5: E | AJ5: Loaded Speed (mph)4 | AK5: Empty Speed (mph) | AL5: Pass Overlap (ft) | AM5: Operator Factor: Coarse Regrading | AN5: Operator Factor: Fine Grading, Cover, Other Surfaces, and Channels | AO5: Visibility Factor | AP5: Elevation Factor | AQ5: Direct Drive Trans. | AR5: Production Method/ Blade Factor: Coarse and Fine Grading | AS5: Production Method/ Blade Factor: Channels, Downdrains, Benches | AT5: Work Hour (min/hr) | AU5: Effective Blade Width (ft) | AV5: Penetration (in) | AW5: Pocket Spacing (in) | AX5: Number of Pockets | AY5: Turn Time (min/pass) | AZ5: Dist. b/n Passes (in) | BA5: Net Bucket Capacity (cy) | BB5: Loader Cycle Time1 (min) | BC5: Bucket Fill Factor | BD5: Struck Capacity (cy) | BE5: Heaped Capacity (cy) | BF5: Sheepsfoot Roller Width (ft) | BG5: Max Reach at GL (in) | BH5: Swing Time (Loaded) (min) | BI5: Swing Time (Empty) (min) | BJ5: Rolling Resistance (%) | BK5: Truck Exchange Time (min) | BL5: Dump/ Maneuver Time (min) | BM5: Rated Load (lb) | BN5: Load Time (min) | BO5: Maneuver & Spread Time (min) | BP5: Boost Time (min) | BQ5: Return Time and Load Time (min) | BR5: Maneuver Time (min) | BS5: NMDOL Operator Group | BT5: NMDOL Total 2019 Rate ($/hr)
A6: - | B6: - | C6: placeholder | D6: 0 | E6: 0 | F6: 0 | G6: 0 | H6: 0 | I6: 0 | J6: 0 | K6: 0 | L6: 0 | M6: 0 | N6: - | O6: - | P6: - | Q6: - | R6: - | S6: - | T6: - | U6: - | V6: - | W6: - | X6: - | Y6: - | Z6: - | AA6: - | AB6: - | AC6: - | AD6: - | AE6: - | AF6: - | AG6: - | AH6: - | AI6: - | AJ6: - | AK6: - | AL6: - | AM6: - | AN6: - | AO6: - | AP6: - | AQ6: - | AR6: - | AS6: - | AT6: - | AU6: - | AV6: - | AW6: - | AX6: - | AY6: - | AZ6: - | BA6: - | BB6: - | BC6: - | BD6: - | BE6: - | BF6: - | BG6: - | BH6: - | BI6: - | BJ6: - | BK6: - | BL6: - | BM6: - | BN6: - | BO6: - | BP6: - | BQ6: - | BR6: - | BS6: =CONCATENATE(BS29," & ", BS19) -> Truck Driver III & Equipment Operator IV | BT6: =BT29+BT19 -> 51.68
A7: Comb1 | B7: Cat 14M, Off-Hwy Water Tanker Truck,6,000-gal. | C7: Combo 1 | D7: =D29+D19 -> 19.54 | E7: =Equipment[[#This Row],[Fuel Consumption (gal/hr)]]*$C$46 -> 45.7236 | F7: =F19+F29 -> 12.72 | G7: =G29+G19 -> 3.75 | H7: 13.46 | I7: 1.16 | J7: 20078.37 | K7: 9.23 | L7: 114.0816477 | M7: 154.4016477 | N7: - | O7: - | P7: - | Q7: - | R7: - | S7: - | T7: - | U7: - | V7: - | W7: - | X7: - | Y7: - | Z7: - | AA7: - | AB7: - | AC7: - | AD7: - | AE7: - | AF7: - | AG7: - | AH7: - | AI7: - | AJ7: - | AK7: - | AL7: - | AM7: - | AN7: - | AO7: - | AP7: - | AQ7: - | AR7: - | AS7: - | AT7: - | AU7: - | AV7: - | AW7: - | AX7: - | AY7: - | AZ7: - | BA7: - | BB7: - | BC7: - | BD7: - | BE7: - | BF7: - | BG7: - | BH7: - | BI7: - | BJ7: - | BK7: - | BL7: - | BM7: - | BN7: - | BO7: - | BP7: - | BQ7: - | BR7: - | BS7: =CONCATENATE(BS30," & ", BS20) -> Laborer I & Truck Driver III | BT7: =BT30+BT20 -> 47.36
A8: Dz1 | B8: Cat D11T, U Blade | C8: Dozer | D8: 29.75 | E8: =Equipment[[#This Row],[Fuel Consumption (gal/hr)]]*$C$46 -> 69.615 | F8: 26.23 | G8: 13.89 | H8: 0 | I8: 12.22 | J8: 34408.41 | K8: 6.6 | L8: =Equipment[[#This Row],[Monthly Rental Rate ($/month)]]/176 -> 195.5023295 | M8: =SUM(L8,K8,H8,F8,Equipment[[#This Row],[Field Parts ($/hr)]],Equipment[[#This Row],[Ground Engaging Component Cost ($/hr)]]) -> 254.4423295 | N8: 155881.5879 | O8: -0.889952 | P8: - | Q8: - | R8: - | S8: - | T8: - | U8: - | V8: - | W8: - | X8: - | Y8: - | Z8: - | AA8: - | AB8: - | AC8: - | AD8: - | AE8: - | AF8: - | AG8: - | AH8: - | AI8: - | AJ8: =AJ9 -> 2.5 | AK8: =Equipment[[#This Row],[Loaded Speed (mph)4]] -> 2.5 | AL8: - | AM8: 1 | AN8: =AN9 -> 0.75 | AO8: 1 | AP8: 1 | AQ8: 1 | AR8: 1.2 | AS8: 1 | AT8: 50 | AU8: =18+(4/12) -> 18.33333333 | AV8: - | AW8: - | AX8: - | AY8: - | AZ8: - | BA8: - | BB8: - | BC8: - | BD8: - | BE8: - | BF8: - | BG8: - | BH8: - | BI8: - | BJ8: - | BK8: - | BL8: - | BM8: - | BN8: - | BO8: - | BP8: - | BQ8: - | BR8: - | BS8: Equipment Operator IV | BT8: =VLOOKUP(BS8,$B$54:$C$59,2) -> 27.41
A9: Dz2 | B9: Cat D11T CD | C9: Dozer6 | D9: =D8 -> 29.75 | E9: =Equipment[[#This Row],[Fuel Consumption (gal/hr)]]*$C$46 -> 69.615 | F9: 26.23 | G9: 13.89 | H9: 0 | I9: 12.22 | J9: 34408.41 | K9: 6.6 | L9: =L8 -> 195.5023295 | M9: =M8 -> 254.4423295 | N9: 162758.7595 | O9: -0.866691 | P9: - | Q9: - | R9: - | S9: - | T9: - | U9: - | V9: - | W9: - | X9: - | Y9: - | Z9: - | AA9: - | AB9: - | AC9: - | AD9: - | AE9: - | AF9: - | AG9: - | AH9: - | AI9: - | AJ9: 2.5 | AK9: =Equipment[[#This Row],[Loaded Speed (mph)4]] -> 2.5 | AL9: - | AM9: 1 | AN9: 0.75 | AO9: 1 | AP9: 1 | AQ9: 1 | AR9: 1.2 | AS9: 1 | AT9: 50 | AU9: 22 | AV9: - | AW9: - | AX9: - | AY9: - | AZ9: - | BA9: - | BB9: - | BC9: - | BD9: - | BE9: - | BF9: - | BG9: - | BH9: - | BI9: - | BJ9: - | BK9: - | BL9: - | BM9: - | BN9: - | BO9: - | BP9: - | BQ9: - | BR9: - | BS9: Equipment Operator IV | BT9: 27.41
A10: Dz3 | B10: Cat D9T, SU Blade | C10: Dozer | D10: 14.35 | E10: =Equipment[[#This Row],[Fuel Consumption (gal/hr)]]*$C$46 -> 33.579 | F10: 11.22 | G10: 5.49 | H10: 0 | I10: 3.98 | J10: 30109.48 | K10: 6.6 | L10: =Equipment[[#This Row],[Monthly Rental Rate ($/month)]]/176 -> 171.0765909 | M10: =SUM(L10,K10,H10,F10,Equipment[[#This Row],[Field Parts ($/hr)]],Equipment[[#This Row],[Ground Engaging Component Cost ($/hr)]]) -> 198.3665909 | N10: 52161.03341 | O10: -0.845532 | P10: - | Q10: - | R10: - | S10: - | T10: - | U10: - | V10: - | W10: - | X10: - | Y10: - | Z10: - | AA10: - | AB10: - | AC10: - | AD10: - | AE10: - | AF10: - | AG10: - | AH10: - | AI10: - | AJ10: 1 | AK10: =Equipment[[#This Row],[Loaded Speed (mph)4]] -> 1 | AL10: - | AM10: 1 | AN10: 0.75 | AO10: 1 | AP10: 1 | AQ10: 1 | AR10: 1.2 | AS10: 1 | AT10: 50 | AU10: =14 + (1/12) -> 14.08333333 | AV10: - | AW10: - | AX10: - | AY10: - | AZ10: - | BA10: - | BB10: - | BC10: - | BD10: - | BE10: - | BF10: - | BG10: - | BH10: - | BI10: - | BJ10: - | BK10: - | BL10: - | BM10: - | BN10: - | BO10: - | BP10: - | BQ10: - | BR10: - | BS10: Equipment Operator IV | BT10: 27.41
A11: Dz4 | B11: Cat D6T, SU Blade | C11: Dozer | D11: 7.22 | E11: =Equipment[[#This Row],[Fuel Consumption (gal/hr)]]*$C$46 -> 16.8948 | F11: 4.83 | G11: 2.1 | H11: 0 | I11: 2.1 | J11: 8939.42 | K11: 3.83 | L11: =Equipment[[#This Row],[Monthly Rental Rate ($/month)]]/176 -> 50.79215909 | M11: =SUM(L11,K11,H11,F11,Equipment[[#This Row],[Field Parts ($/hr)]],Equipment[[#This Row],[Ground Engaging Component Cost ($/hr)]]) -> 63.65215909 | N11: 13582.45339 | O11: -0.74851 | P11: - | Q11: - | R11: - | S11: - | T11: - | U11: - | V11: - | W11: - | X11: - | Y11: - | Z11: - | AA11: - | AB11: - | AC11: - | AD11: - | AE11: - | AF11: - | AG11: - | AH11: - | AI11: - | AJ11: 1 | AK11: =Equipment[[#This Row],[Loaded Speed (mph)4]] -> 1 | AL11: - | AM11: 1 | AN11: 0.75 | AO11: 1 | AP11: 1 | AQ11: 1 | AR11: 1.2 | AS11: 1 | AT11: 50 | AU11: =10 + (8/12) -> 10.66666667 | AV11: - | AW11: - | AX11: - | AY11: - | AZ11: - | BA11: - | BB11: - | BC11: - | BD11: - | BE11: - | BF11: - | BG11: - | BH11: - | BI11: - | BJ11: - | BK11: - | BL11: - | BM11: - | BN11: - | BO11: - | BP11: - | BQ11: - | BR11: - | BS11: Equipment Operator IV | BT11: 27.41
A12: Dz5 | B12: Cat D6T XL, SU Blade | C12: Dozer | D12: 7.8 | E12: =Equipment[[#This Row],[Fuel Consumption (gal/hr)]]*$C$46 -> 18.252 | F12: 5.28 | G12: 2.32 | H12: 0 | I12: 2.36 | J12: 9104.55 | K12: 3.83 | L12: =Equipment[[#This Row],[Monthly Rental Rate ($/month)]]/176 -> 51.73039773 | M12: =SUM(L12,K12,H12,F12,Equipment[[#This Row],[Field Parts ($/hr)]],Equipment[[#This Row],[Ground Engaging Component Cost ($/hr)]]) -> 65.52039773 | N12: 13582.45339 | O12: -0.74851 | P12: - | Q12: - | R12: - | S12: - | T12: - | U12: - | V12: - | W12: - | X12: - | Y12: - | Z12: - | AA12: - | AB12: - | AC12: - | AD12: - | AE12: - | AF12: - | AG12: - | AH12: - | AI12: - | AJ12: =AJ11 -> 1 | AK12: =Equipment[[#This Row],[Loaded Speed (mph)4]] -> 1 | AL12: - | AM12: 1 | AN12: 0.75 | AO12: 1 | AP12: 1 | AQ12: 1 | AR12: 1.2 | AS12: 1 | AT12: 50 | AU12: =10 + (8/12) -> 10.66666667 | AV12: - | AW12: - | AX12: - | AY12: - | AZ12: - | BA12: - | BB12: - | BC12: - | BD12: - | BE12: - | BF12: - | BG12: - | BH12: - | BI12: - | BJ12: - | BK12: - | BL12: - | BM12: - | BN12: - | BO12: - | BP12: - | BQ12: - | BR12: - | BS12: Equipment Operator IV | BT12: 27.41
A13: Ex1 | B13: Cat 319D L | C13: Excavator | D13: 5.25 | E13: =Equipment[[#This Row],[Fuel Consumption (gal/hr)]]*$C$46 -> 12.285 | F13: 3.47 | G13: 1.19 | H13: 0 | I13: 0.84 | J13: 7450.15 | K13: 4.55 | L13: =Equipment[[#This Row],[Monthly Rental Rate ($/month)]]/176 -> 42.33039773 | M13: =SUM(L13,K13,H13,F13,Equipment[[#This Row],[Field Parts ($/hr)]],Equipment[[#This Row],[Ground Engaging Component Cost ($/hr)]]) -> 52.38039773 | N13: - | O13: - | P13: - | Q13: - | R13: - | S13: - | T13: - | U13: - | V13: - | W13: - | X13: - | Y13: - | Z13: - | AA13: - | AB13: - | AC13: - | AD13: - | AE13: - | AF13: - | AG13: - | AH13: - | AI13: - | AJ13: - | AK13: - | AL13: - | AM13: - | AN13: - | AO13: - | AP13: - | AQ13: - | AR13: - | AS13: - | AT13: 50 | AU13: - | AV13: - | AW13: - | AX13: - | AY13: - | AZ13: - | BA13: - | BB13: - | BC13: 0.875 | BD13: - | BE13: 1 | BF13: 3 | BG13: 380 | BH13: 0.09 | BI13: 0.07 | BJ13: - | BK13: - | BL13: - | BM13: - | BN13: - | BO13: - | BP13: - | BQ13: - | BR13: - | BS13: Equipment Operator VI | BT13: 27.7
A14: Ld1 | B14: Cat 992K | C14: Loader | D14: 25.63 | E14: =Equipment[[#This Row],[Fuel Consumption (gal/hr)]]*$C$46 -> 59.9742 | F14: 22.35 | G14: 4.43 | H14: 35.39 | I14: 4.99 | J14: 25527.98 | K14: 4.02 | L14: =Equipment[[#This Row],[Monthly Rental Rate ($/month)]]/176 -> 145.0453409 | M14: =SUM(L14,K14,H14,F14,Equipment[[#This Row],[Field Parts ($/hr)]],Equipment[[#This Row],[Ground Engaging Component Cost ($/hr)]]) -> 216.2253409 | N14: - | O14: - | P14: - | Q14: - | R14: - | S14: - | T14: - | U14: - | V14: - | W14: - | X14: - | Y14: - | Z14: - | AA14: - | AB14: - | AC14: - | AD14: - | AE14: - | AF14: - | AG14: - | AH14: - | AI14: - | AJ14: 7.6 | AK14: 12.8 | AL14: - | AM14: - | AN14: - | AO14: - | AP14: - | AQ14: - | AR14: - | AS14: - | AT14: 50 | AU14: - | AV14: - | AW14: - | AX14: - | AY14: - | AZ14: - | BA14: =Equipment[[#This Row],[Bucket Fill Factor]]*Equipment[[#This Row],[Struck Capacity (cy)]] -> 14 | BB14: 0.65 | BC14: 0.875 | BD14: 16 | BE14: - | BF14: - | BG14: - | BH14: - | BI14: - | BJ14: - | BK14: - | BL14: - | BM14: - | BN14: - | BO14: - | BP14: - | BQ14: - | BR14: - | BS14: Equipment Operator VI | BT14: 27.7
A15: Ld2 | B15: Cat 988H | C15: Loader | D15: 15.2 | E15: =Equipment[[#This Row],[Fuel Consumption (gal/hr)]]*$C$46 -> 35.568 | F15: 11.4 | G15: 2.11 | H15: 16.85 | I15: 1.93 | J15: 16272.06 | K15: 4.02 | L15: =Equipment[[#This Row],[Monthly Rental Rate ($/month)]]/176 -> 92.45488636 | M15: =SUM(L15,K15,H15,F15,Equipment[[#This Row],[Field Parts ($/hr)]],Equipment[[#This Row],[Ground Engaging Component Cost ($/hr)]]) -> 128.7648864 | N15: - | O15: - | P15: - | Q15: - | R15: - | S15: - | T15: - | U15: - | V15: - | W15: - | X15: - | Y15: - | Z15: - | AA15: - | AB15: - | AC15: - | AD15: - | AE15: - | AF15: - | AG15: - | AH15: - | AI15: - | AJ15: 7.3 | AK15: 12.9 | AL15: - | AM15: - | AN15: - | AO15: - | AP15: - | AQ15: - | AR15: - | AS15: - | AT15: 50 | AU15: - | AV15: - | AW15: - | AX15: - | AY15: - | AZ15: - | BA15: =Equipment[[#This Row],[Bucket Fill Factor]]*Equipment[[#This Row],[Struck Capacity (cy)]] -> 7.28875 | BB15: 0.575 | BC15: 0.875 | BD15: 8.33 | BE15: - | BF15: - | BG15: - | BH15: - | BI15: - | BJ15: - | BK15: - | BL15: - | BM15: - | BN15: - | BO15: - | BP15: - | BQ15: - | BR15: - | BS15: Equipment Operator VI | BT15: 27.7
A16: Ld3 | B16: Cat 980H | C16: Loader | D16: 10.8 | E16: =Equipment[[#This Row],[Fuel Consumption (gal/hr)]]*$C$46 -> 25.272 | F16: 6.7 | G16: 1.13 | H16: 7.69 | I16: 1.03 | J16: 10030.76 | K16: 4.02 | L16: =Equipment[[#This Row],[Monthly Rental Rate ($/month)]]/176 -> 56.99295455 | M16: =SUM(L16,K16,H16,F16,Equipment[[#This Row],[Field Parts ($/hr)]],Equipment[[#This Row],[Ground Engaging Component Cost ($/hr)]]) -> 77.56295455 | N16: - | O16: - | P16: - | Q16: - | R16: - | S16: - | T16: - | U16: - | V16: - | W16: - | X16: - | Y16: - | Z16: - | AA16: - | AB16: - | AC16: - | AD16: - | AE16: - | AF16: - | AG16: - | AH16: - | AI16: - | AJ16: 7.3 | AK16: 12.9 | AL16: - | AM16: - | AN16: - | AO16: - | AP16: - | AQ16: - | AR16: - | AS16: - | AT16: 50 | AU16: - | AV16: - | AW16: - | AX16: - | AY16: - | AZ16: - | BA16: =Equipment[[#This Row],[Bucket Fill Factor]]*Equipment[[#This Row],[Struck Capacity (cy)]] -> 6.5625 | BB16: 0.525 | BC16: 0.875 | BD16: 7.5 | BE16: - | BF16: - | BG16: - | BH16: - | BI16: - | BJ16: - | BK16: - | BL16: - | BM16: - | BN16: - | BO16: - | BP16: - | BQ16: - | BR16: - | BS16: Equipment Operator VI | BT16: 27.7
A17: Ld4 | B17: Cat 966H | C17: Loader | D17: 8.38 | E17: =Equipment[[#This Row],[Fuel Consumption (gal/hr)]]*$C$46 -> 19.6092 | F17: 5.33 | G17: 0.84 | H17: 5.71 | I17: 0.75 | J17: 9937.5 | K17: 4.02 | L17: =Equipment[[#This Row],[Monthly Rental Rate ($/month)]]/176 -> 56.46306818 | M17: =SUM(L17,K17,H17,F17,Equipment[[#This Row],[Field Parts ($/hr)]],Equipment[[#This Row],[Ground Engaging Component Cost ($/hr)]]) -> 73.11306818 | N17: - | O17: - | P17: - | Q17: - | R17: - | S17: - | T17: - | U17: - | V17: - | W17: - | X17: - | Y17: - | Z17: - | AA17: - | AB17: - | AC17: - | AD17: - | AE17: - | AF17: - | AG17: - | AH17: - | AI17: - | AJ17: 7.8 | AK17: 13.7 | AL17: - | AM17: - | AN17: - | AO17: - | AP17: - | AQ17: - | AR17: - | AS17: - | AT17: 50 | AU17: - | AV17: - | AW17: - | AX17: - | AY17: - | AZ17: - | BA17: =Equipment[[#This Row],[Bucket Fill Factor]]*Equipment[[#This Row],[Struck Capacity (cy)]] -> 4.8125 | BB17: 0.525 | BC17: 0.875 | BD17: 5.5 | BE17: - | BF17: - | BG17: - | BH17: - | BI17: - | BJ17: - | BK17: - | BL17: - | BM17: - | BN17: - | BO17: - | BP17: - | BQ17: - | BR17: - | BS17: Equipment Operator VI | BT17: 27.7
A18: Mg1 | B18: Cat 16M | C18: Motor Grader | D18: 9.5 | E18: =Equipment[[#This Row],[Fuel Consumption (gal/hr)]]*$C$46 -> 22.23 | F18: 8.69 | G18: 3.26 | H18: 10.13 | I18: 1.76 | J18: 11906.7 | K18: 2.02 | L18: =Equipment[[#This Row],[Monthly Rental Rate ($/month)]]/176 -> 67.65170455 | M18: =SUM(L18,K18,H18,F18,Equipment[[#This Row],[Field Parts ($/hr)]],Equipment[[#This Row],[Ground Engaging Component Cost ($/hr)]]) -> 93.51170455 | N18: - | O18: - | P18: - | Q18: - | R18: - | S18: - | T18: - | U18: - | V18: - | W18: - | X18: - | Y18: - | Z18: - | AA18: - | AB18: - | AC18: - | AD18: - | AE18: - | AF18: - | AG18: - | AH18: - | AI18: - | AJ18: 2.5 | AK18: =Equipment[[#This Row],[Loaded Speed (mph)4]] -> 2.5 | AL18: 2 | AM18: - | AN18: 0.75 | AO18: 1 | AP18: 1 | AQ18: 1 | AR18: 1.2 | AS18: 1 | AT18: 50 | AU18: 16 | AV18: - | AW18: - | AX18: - | AY18: - | AZ18: - | BA18: - | BB18: - | BC18: - | BD18: - | BE18: - | BF18: - | BG18: - | BH18: - | BI18: - | BJ18: - | BK18: - | BL18: - | BM18: - | BN18: - | BO18: - | BP18: - | BQ18: - | BR18: - | BS18: Equipment Operator IV | BT18: 27.41
A19: Mg2 | B19: Cat 14M | C19: Motor Grader | D19: 8.29 | E19: =Equipment[[#This Row],[Fuel Consumption (gal/hr)]]*$C$46 -> 19.3986 | F19: 6.57 | G19: 2.27 | H19: 7.04 | I19: 1.16 | J19: 11906.7 | K19: 2.02 | L19: =Equipment[[#This Row],[Monthly Rental Rate ($/month)]]/176 -> 67.65170455 | M19: =SUM(L19,K19,H19,F19,Equipment[[#This Row],[Field Parts ($/hr)]],Equipment[[#This Row],[Ground Engaging Component Cost ($/hr)]]) -> 86.71170455 | N19: - | O19: - | P19: - | Q19: - | R19: - | S19: - | T19: - | U19: - | V19: - | W19: - | X19: - | Y19: - | Z19: - | AA19: - | AB19: - | AC19: - | AD19: - | AE19: - | AF19: - | AG19: - | AH19: - | AI19: - | AJ19: 2.5 | AK19: =Equipment[[#This Row],[Loaded Speed (mph)4]] -> 2.5 | AL19: 2 | AM19: - | AN19: 0.75 | AO19: 1 | AP19: 1 | AQ19: 1 | AR19: 1.2 | AS19: 1 | AT19: 50 | AU19: 14 | AV19: - | AW19: - | AX19: - | AY19: - | AZ19: - | BA19: - | BB19: - | BC19: - | BD19: - | BE19: - | BF19: - | BG19: - | BH19: - | BI19: - | BJ19: - | BK19: - | BL19: - | BM19: - | BN19: - | BO19: - | BP19: - | BQ19: - | BR19: - | BS19: Equipment Operator IV | BT19: 27.41
A20: Mu1 | B20: Finn B260 | C20: Mulcher | D20: 4.13 | E20: =Equipment[[#This Row],[Fuel Consumption (gal/hr)]]*$C$46 -> 9.6642 | F20: 1.6 | G20: 0.15 | H20: 0.6 | I20: 0 | J20: 2167.95 | K20: 1.25 | L20: =Equipment[[#This Row],[Monthly Rental Rate ($/month)]]/176 -> 12.31789773 | M20: =SUM(L20,K20,H20,F20,Equipment[[#This Row],[Field Parts ($/hr)]],Equipment[[#This Row],[Ground Engaging Component Cost ($/hr)]]) -> 15.91789773 | O20: - | P20: - | Q20: - | R20: - | S20: - | T20: - | U20: - | V20: - | W20: - | X20: - | Y20: - | Z20: - | AA20: - | AB20: - | AC20: - | AD20: - | AE20: - | AF20: - | AG20: - | AH20: - | AI20: - | AJ20: - | AK20: - | AL20: - | AM20: - | AN20: - | AO20: - | AP20: - | AQ20: - | AR20: - | AS20: - | AT20: - | AU20: - | AV20: - | AW20: - | AX20: - | AY20: - | AZ20: - | BA20: - | BB20: - | BC20: - | BD20: - | BE20: - | BF20: - | BG20: - | BH20: - | BI20: - | BJ20: - | BK20: - | BL20: - | BM20: - | BN20: - | BO20: - | BP20: - | BQ20: - | BR20: - | BS20: Truck Driver III | BT20: 24.27
A21: Rp1 | B21: Cat D11T CD Multi-shank (w/ MSR-359H) | C21: Dozer w/ Ripper | D21: =D9 -> 29.75 | E21: =Equipment[[#This Row],[Fuel Consumption (gal/hr)]]*$C$46 -> 69.615 | F21: 26.6 | G21: 14.2 | H21: =H9 -> 0 | I21: 1.56 | J21: 36753.56 | K21: 8.16 | L21: =Equipment[[#This Row],[Monthly Rental Rate ($/month)]]/176 -> 208.8270455 | M21: =SUM(L21,K21,H21,F21,Equipment[[#This Row],[Field Parts ($/hr)]],Equipment[[#This Row],[Ground Engaging Component Cost ($/hr)]]) -> 259.3470455 | N21: - | O21: - | P21: - | Q21: - | R21: - | S21: - | T21: - | U21: - | V21: - | W21: - | X21: - | Y21: - | Z21: - | AA21: - | AB21: - | AC21: - | AD21: - | AE21: - | AF21: - | AG21: - | AH21: - | AI21: - | AJ21: 1 | AK21: =Equipment[[#This Row],[Loaded Speed (mph)4]] -> 1 | AL21: - | AM21: - | AN21: - | AO21: - | AP21: - | AQ21: - | AR21: - | AS21: - | AT21: 50 | AU21: - | AV21: 18 | AW21: =(4*12)+11 -> 59 | AX21: 3 | AY21: 0.25 | AZ21: =Equipment[[#This Row],[Pocket Spacing (in)]] -> 59 | BA21: - | BB21: - | BC21: - | BD21: - | BE21: - | BF21: - | BG21: - | BH21: - | BI21: - | BJ21: - | BK21: - | BL21: - | BM21: - | BN21: - | BO21: - | BP21: - | BQ21: - | BR21: - | BS21: Equipment Operator IV | BT21: 27.41
A22: Rp2 | B22: MSR-189H | C22: Ripper Attachment | D22: 0 | E22: =Equipment[[#This Row],[Fuel Consumption (gal/hr)]]*$C$46 -> 0 | F22: 0.15 | G22: 0.16 | H22: 0 | I22: 0.78 | J22: 898.9 | K22: 0.57 | L22: =Equipment[[#This Row],[Monthly Rental Rate ($/month)]]/176 -> 5.107386364 | M22: =SUM(L22,K22,H22,F22,Equipment[[#This Row],[Field Parts ($/hr)]],Equipment[[#This Row],[Ground Engaging Component Cost ($/hr)]]) -> 6.767386364 | N22: - | O22: - | P22: - | Q22: - | R22: - | S22: - | T22: - | U22: - | V22: - | W22: - | X22: - | Y22: - | Z22: - | AA22: - | AB22: - | AC22: - | AD22: - | AE22: - | AF22: - | AG22: - | AH22: - | AI22: - | AJ22: - | AK22: - | AL22: - | AM22: - | AN22: - | AO22: - | AP22: - | AQ22: - | AR22: - | AS22: - | AT22: 50 | AU22: - | AV22: - | AW22: - | AX22: - | AY22: - | AZ22: - | BA22: - | BB22: - | BC22: - | BD22: - | BE22: - | BF22: - | BG22: - | BH22: - | BI22: - | BJ22: - | BK22: - | BL22: - | BM22: - | BN22: - | BO22: - | BP22: - | BQ22: - | BR22: - | BS22: - | BT22: -
A23: Sc2 | B23: Cat 657G | C23: Scraper | D23: 42.86 | E23: =Equipment[[#This Row],[Fuel Consumption (gal/hr)]]*$C$46 -> 100.2924 | F23: 20.41 | G23: 7.73 | H23: 9.34 | I23: 2.31 | J23: 25070 | K23: 12.8 | L23: =Equipment[[#This Row],[Monthly Rental Rate ($/month)]]/176 -> 142.4431818 | M23: =SUM(L23,K23,H23,F23,Equipment[[#This Row],[Field Parts ($/hr)]],Equipment[[#This Row],[Ground Engaging Component Cost ($/hr)]]) -> 195.0331818 | N23: - | O23: - | P23: 0.3036 | Q23: -0.4512 | R23: 0.2181 | S23: -0.0034 | T23: 0.0013 | U23: 0 | V23: -0.1016 | W23: 0.0774 | X23: -0.0013 | Y23: 0.0012 | Z23: 0 | AA23: -0.1612 | AB23: 0.1031 | AC23: -0.0081 | AD23: 0.0016 | AE23: 0 | AF23: 0.1668 | AG23: -0.094 | AH23: 0.0207 | AI23: 0.0004 | AJ23: 33 | AK23: =Equipment[[#This Row],[Loaded Speed (mph)4]] -> 33 | AL23: - | AM23: - | AN23: - | AO23: - | AP23: - | AQ23: - | AR23: - | AS23: - | AT23: 50 | AU23: - | AV23: - | AW23: - | AX23: - | AY23: - | AZ23: - | BA23: - | BB23: - | BC23: - | BD23: 32 | BE23: 44 | BF23: - | BG23: - | BH23: - | BI23: - | BJ23: 0.025 | BK23: - | BL23: - | BM23: 104000 | BN23: 0.85 | BO23: 0.65 | BP23: 0.1 | BQ23: 1.19 | BR23: 0.15 | BS23: Equipment Operator IV | BT23: =VLOOKUP(BS23,$B$54:$C$59,2) -> 27.41
A24: Sh1 | B24: Hitachi EX3600-5 | C24: Shovel2 | D24: 82.72 | E24: =Equipment[[#This Row],[Fuel Consumption (gal/hr)]]*$C$46 -> 193.5648 | F24: 59.15 | G24: 24.25 | H24: 0 | I24: 16.56 | J24: 69269 | K24: 14.45 | L24: =Equipment[[#This Row],[Monthly Rental Rate ($/month)]]/176 -> 393.5738636 | M24: =SUM(L24,K24,H24,F24,Equipment[[#This Row],[Field Parts ($/hr)]],Equipment[[#This Row],[Ground Engaging Component Cost ($/hr)]]) -> 507.9838636 | N24: - | O24: - | P24: - | Q24: - | R24: - | S24: - | T24: - | U24: - | V24: - | W24: - | X24: - | Y24: - | Z24: - | AA24: - | AB24: - | AC24: - | AD24: - | AE24: - | AF24: - | AG24: - | AH24: - | AI24: - | AJ24: - | AK24: - | AL24: - | AM24: - | AN24: - | AO24: - | AP24: - | AQ24: - | AR24: - | AS24: - | AT24: 50 | AU24: - | AV24: - | AW24: - | AX24: - | AY24: - | AZ24: - | BA24: 27.4 | BB24: 0.45 | BC24: - | BD24: - | BE24: - | BF24: - | BG24: - | BH24: - | BI24: - | BJ24: - | BK24: - | BL24: - | BM24: - | BN24: - | BO24: - | BP24: - | BQ24: - | BR24: - | BS24: Equipment Operator VI | BT24: 27.7
A25: Tc1 | B25: Deere 7430 | C25: Tractor | D25: 5.98 | E25: =Equipment[[#This Row],[Fuel Consumption (gal/hr)]]*$C$46 -> 13.9932 | F25: 2.84 | G25: 0.61 | H25: 2.42 | I25: 0 | J25: 5210.05 | K25: 2.53 | L25: =Equipment[[#This Row],[Monthly Rental Rate ($/month)]]/176 -> 29.60255682 | M25: =SUM(L25,K25,H25,F25,Equipment[[#This Row],[Field Parts ($/hr)]],Equipment[[#This Row],[Ground Engaging Component Cost ($/hr)]]) -> 38.00255682 | N25: - | O25: - | P25: - | Q25: - | R25: - | S25: - | T25: - | U25: - | V25: - | W25: - | X25: - | Y25: - | Z25: - | AA25: - | AB25: - | AC25: - | AD25: - | AE25: - | AF25: - | AG25: - | AH25: - | AI25: - | AJ25: 3 | AK25: =Equipment[[#This Row],[Loaded Speed (mph)4]] -> 3 | AL25: - | AM25: - | AN25: - | AO25: - | AP25: - | AQ25: - | AR25: - | AS25: - | AT25: 50 | AU25: 12 | AV25: - | AW25: - | AX25: - | AY25: - | AZ25: - | BA25: - | BB25: - | BC25: - | BD25: - | BE25: - | BF25: - | BG25: - | BH25: - | BI25: - | BJ25: - | BK25: - | BL25: - | BM25: - | BN25: - | BO25: - | BP25: - | BQ25: - | BR25: - | BS25: Truck Driver III | BT25: 24.27
A26: Tk2 | B26: Cat 769D | C26: Truck | D26: 9.74 | E26: =Equipment[[#This Row],[Fuel Consumption (gal/hr)]]*$C$46 -> 22.7916 | F26: 8.77 | G26: 1.48 | H26: 13.72 | I26: 0 | J26: 14042.5 | K26: 4.25 | L26: =Equipment[[#This Row],[Monthly Rental Rate ($/month)]]/176 -> 79.78693182 | M26: =SUM(L26,K26,H26,F26,Equipment[[#This Row],[Field Parts ($/hr)]],Equipment[[#This Row],[Ground Engaging Component Cost ($/hr)]]) -> 108.0069318 | N26: - | O26: - | P26: 0.5429 | Q26: -0.487 | R26: 0.1823 | S26: 0.0151 | T26: 0.0007 | U26: 0 | V26: 0.0224 | W26: -0.0076 | X26: 0.0141 | Y26: 0.0007 | Z26: 0 | AA26: 0 | AB26: -0.0808 | AC26: 0.426 | AD26: -0.0008 | AE26: 5.6146 | AF26: -3.6353 | AG26: 0.7823 | AH26: -0.0535 | AI26: 0.002 | AJ26: 47 | AK26: =Equipment[[#This Row],[Loaded Speed (mph)4]] -> 47 | AL26: - | AM26: - | AN26: - | AO26: - | AP26: - | AQ26: - | AR26: - | AS26: - | AT26: 50 | AU26: - | AV26: - | AW26: - | AX26: - | AY26: - | AZ26: - | BA26: - | BB26: - | BC26: - | BD26: 22.2 | BE26: 31.7 | BF26: - | BG26: - | BH26: - | BI26: - | BJ26: 0.025 | BK26: 0.7 | BL26: 1.1 | BM26: - | BN26: - | BO26: - | BP26: - | BQ26: - | BR26: - | BS26: Truck Driver III | BT26: 24.27
A27: Tk3 | B27: Cat 725 | C27: Truck | D27: 6.02 | E27: =Equipment[[#This Row],[Fuel Consumption (gal/hr)]]*$C$46 -> 14.0868 | F27: 5.74 | G27: 0.94 | H27: 7.11 | I27: 0 | J27: 9849.6 | K27: 3.36 | L27: =Equipment[[#This Row],[Monthly Rental Rate ($/month)]]/176 -> 55.96363636 | M27: =SUM(L27,K27,H27,F27,Equipment[[#This Row],[Field Parts ($/hr)]],Equipment[[#This Row],[Ground Engaging Component Cost ($/hr)]]) -> 73.11363636 | N27: - | O27: - | P27: 0.1363 | Q27: 0.1636 | R27: -0.04 | S27: 0.0342 | T27: 0.0009 | U27: 0 | V27: -0.024 | W27: 0.0309 | X27: 0.0099 | Y27: 0.001 | Z27: 0 | AA27: 2.5262 | AB27: -0.7562 | AC27: 0.095 | AD27: -0.002 | AE27: 0 | AF27: 0 | AG27: 0 | AH27: 0.0103 | AI27: 0.0009 | AJ27: 34 | AK27: =Equipment[[#This Row],[Loaded Speed (mph)4]] -> 34 | AL27: - | AM27: - | AN27: - | AO27: - | AP27: - | AQ27: - | AR27: - | AS27: - | AT27: 50 | AU27: - | AV27: - | AW27: - | AX27: - | AY27: - | AZ27: - | BA27: - | BB27: - | BC27: - | BD27: 14.3 | BE27: 18.8 | BF27: - | BG27: - | BH27: - | BI27: - | BJ27: 0.025 | BK27: 0.7 | BL27: 1.1 | BM27: - | BN27: - | BO27: - | BP27: - | BQ27: - | BR27: - | BS27: Truck Driver III | BT27: 24.27
A28: Tk4 | B28: Komatsu 730E | C28: Truck3 | D28: 33.48 | E28: =Equipment[[#This Row],[Fuel Consumption (gal/hr)]]*$C$46 -> 78.3432 | F28: 20.49 | G28: 1.8 | H28: 21.21 | I28: 0 | J28: 29356.98 | K28: 11.49 | L28: =Equipment[[#This Row],[Monthly Rental Rate ($/month)]]/176 -> 166.8010227 | M28: =SUM(L28,K28,H28,F28,Equipment[[#This Row],[Field Parts ($/hr)]],Equipment[[#This Row],[Ground Engaging Component Cost ($/hr)]]) -> 221.7910227 | N28: - | O28: - | P28: 7.5599 | Q28: -2.711 | R28: 0.4209 | S28: 0.005 | T28: 0.0011 | U28: 0 | V28: -0.0689 | W28: 0.0501 | X28: 0.0052 | Y28: 0.001 | Z28: - | AA28: -1.1878 | AB28: 0.325 | AC28: 0.0042 | AD28: 0.001 | AE28: -3.4907 | AF28: 2.4171 | AG28: -0.55 | AH28: 0.0643 | AI28: -0.0011 | AJ28: 35.5 | AK28: =Equipment[[#This Row],[Loaded Speed (mph)4]] -> 35.5 | AL28: - | AM28: - | AN28: - | AO28: - | AP28: - | AQ28: - | AR28: - | AS28: - | AT28: 50 | AU28: - | AV28: - | AW28: - | AX28: - | AY28: - | AZ28: - | BA28: - | BB28: - | BC28: - | BD28: 101 | BE28: 145 | BF28: - | BG28: - | BH28: - | BI28: - | BJ28: 0.025 | BK28: 0.7 | BL28: 1.1 | BM28: - | BN28: - | BO28: - | BP28: - | BQ28: - | BR28: - | BS28: Truck Driver III | BT28: 24.27
A29: Tw1 | B29: Off-Hwy Water Tanker Truck,6,000-gal. | C29: WaterTruck | D29: 11.25 | E29: =Equipment[[#This Row],[Fuel Consumption (gal/hr)]]*$C$46 -> 26.325 | F29: 6.15 | G29: 1.48 | H29: 6.42 | I29: 0 | J29: 8171.67 | K29: 7.21 | L29: =Equipment[[#This Row],[Monthly Rental Rate ($/month)]]/176 -> 46.42994318 | M29: =SUM(L29,K29,H29,F29,Equipment[[#This Row],[Field Parts ($/hr)]],Equipment[[#This Row],[Ground Engaging Component Cost ($/hr)]]) -> 67.68994318 | N29: - | O29: - | P29: - | Q29: - | R29: - | S29: - | T29: - | U29: - | V29: - | W29: - | X29: - | Y29: - | Z29: - | AA29: - | AB29: - | AC29: - | AD29: - | AE29: - | AF29: - | AG29: - | AH29: - | AI29: - | AJ29: - | AK29: - | AL29: - | AM29: - | AN29: - | AO29: - | AP29: - | AQ29: - | AR29: - | AS29: - | AT29: 50 | AU29: - | AV29: - | AW29: - | AX29: - | AY29: - | AZ29: - | BA29: - | BB29: - | BC29: - | BD29: - | BE29: - | BF29: - | BG29: - | BH29: - | BI29: - | BJ29: - | BK29: - | BL29: - | BM29: - | BN29: - | BO29: - | BP29: - | BQ29: - | BR29: - | BS29: Truck Driver III | BT29: 24.27
A30: X3 | B30: 1 Deck Screening Plant (5X16, 48X60) | C30: ScreenPlant | D30: 4.85 | E30: =Equipment[[#This Row],[Fuel Consumption (gal/hr)]]*$C$46 -> 11.349 | F30: 2.37 | G30: 1.14 | H30: 0.39 | I30: 0 | J30: 5671.66 | K30: 4.46 | L30: =Equipment[[#This Row],[Monthly Rental Rate ($/month)]]/176 -> 32.22534091 | M30: =SUM(L30,K30,H30,F30,Equipment[[#This Row],[Field Parts ($/hr)]],Equipment[[#This Row],[Ground Engaging Component Cost ($/hr)]]) -> 40.58534091 | N30: - | O30: - | P30: - | Q30: - | R30: - | S30: - | T30: - | U30: - | V30: - | W30: - | X30: - | Y30: - | Z30: - | AA30: - | AB30: - | AC30: - | AD30: - | AE30: - | AF30: - | AG30: - | AH30: - | AI30: - | AJ30: - | AK30: - | AL30: - | AM30: - | AN30: - | AO30: - | AP30: - | AQ30: - | AR30: - | AS30: - | AT30: 50 | AU30: - | AV30: - | AW30: - | AX30: - | AY30: - | AZ30: - | BA30: - | BB30: - | BC30: - | BD30: - | BE30: - | BF30: - | BG30: - | BH30: - | BI30: - | BJ30: - | BK30: - | BL30: - | BM30: - | BN30: - | BO30: - | BP30: - | BQ30: - | BR30: - | BS30: Laborer I | BT30: 23.09
A31: X4 | B31: 3 Deck Screening Plant (5X16, 42X60) | C31: ScreenPlant | D31: 4.85 | E31: =Equipment[[#This Row],[Fuel Consumption (gal/hr)]]*$C$46 -> 11.349 | F31: 2.38 | G31: 1.16 | H31: 0.37 | I31: 0 | J31: 5743.36 | K31: 4.62 | L31: =Equipment[[#This Row],[Monthly Rental Rate ($/month)]]/176 -> 32.63272727 | M31: =SUM(L31,K31,H31,F31,Equipment[[#This Row],[Field Parts ($/hr)]],Equipment[[#This Row],[Ground Engaging Component Cost ($/hr)]]) -> 41.16272727 | N31: - | O31: - | P31: - | Q31: - | R31: - | S31: - | T31: - | U31: - | V31: - | W31: - | X31: - | Y31: - | Z31: - | AA31: - | AB31: - | AC31: - | AD31: - | AE31: - | AF31: - | AG31: - | AH31: - | AI31: - | AJ31: - | AK31: - | AL31: - | AM31: - | AN31: - | AO31: - | AP31: - | AQ31: - | AR31: - | AS31: - | AT31: 50 | AU31: - | AV31: - | AW31: - | AX31: - | AY31: - | AZ31: - | BA31: - | BB31: - | BC31: - | BD31: - | BE31: - | BF31: - | BG31: - | BH31: - | BI31: - | BJ31: - | BK31: - | BL31: - | BM31: - | BN31: - | BO31: - | BP31: - | BQ31: - | BR31: - | BS31: Laborer I | BT31: 23.09
B33: NOTES
B34: 1 Loader Cycle Time = load, dump, and maneuver time
B35: 2 Performance information is unavailable for the Hitachi EX3600-5; therefore, performance information for the Caterpillar 5230B FS has been used
B36: 3 Performance information is unavailable for the Komatsu 730E; therefore, performance information for the Caterpillar 789D has been used
B37: 4 Maximum loaded speed listed for trucks and scrapers
B38: 5 Equipment costs use 176 max work hours per month (from Bluebook)
B39: 6 Fuel consumption assumed to be the same for the D11T and D11T CD (fuel consumption information unavailble for the D11T CD in EquipmentWatch)
B44: FUEL
D45: Reference
B46: Earthwork Oil Broker Quote ($/gal) | C46: ='Unit Rates'!C11 -> 2.34 | D46: 2
B50: EARTHWORK AND O&M LABOR
C51: Total 2019
B52: NMDOL Type A | C52: Rate
B53: Operator Group | C53: ($/hr) | D53: Reference
B54: Equipment Operator IV | C54: =20.87+5.94+0.6 -> 27.41 | D54: 3
B55: Equipment Operator V | C55: =20.98+5.94+0.6 -> 27.52 | D55: 3
B56: Equipment Operator VI | C56: =21.16+5.94+0.6 -> 27.7 | D56: 3
B57: Laborer I | C57: =16.86+5.63+0.6 -> 23.09 | D57: 3
B58: Laborer II | C58: =17.61+5.63+0.6 -> 23.84 | D58: 3
B59: Truck Driver III | C59: =16.15+7.52+0.6 -> 24.27 | D59: 3
B64: Equipment costs use 176 max work hours per month (from Bluebook)
B66: References
B67: 1. Equipment unit rates from EquipmentWatch Custom Cost Evaluator January 2019 (http://www.equipmentwatch.com). See attachments for rate development. Excavator capacity and maximum reach at ground level from EquipmentWatch.
B68: 2. Diesel fuel cost is estimated based on a predictive equation developed by correlating U.S. No. 2 diesel retail prices (U.S. Energy Information Administration) and FMI local fuel quotes, as agreed upon in November 2018 discussions with the agencies. The correlation is based on a dataset for the period from 1995-2018. Fuel cost includes direct and indirect costs at $2.34/gal.
B69: 3. Labor rates based on New Mexico Department of Labor (NMDOL) Type H (Heavy Engineering) 2019 labor rates. Rates include base hourly wage, fringe benefit, and apprenticeship contribution rates.
B70: https://www.dws.state.nm.us/Portals/0/DM/LaborRelations/Prevailing_Wage_Poster_H_2019_final.pdf
B71: 4. Production and Haul rates from Caterpillar Performance Handbook; Equipment paramters from Caterpillar Performance Handbook
B72: 5. Table 4 of "Chino Mine Closure/Closeout Plan Earthworks and Auncillary Facilities Financial Assurance Cost Estimate Process Summary" (Nov. 2017, Telesto) and Table 1 of "9 Waste Rock Stockpile Earthwork Cost Estimate Process Report" (March 2017, Telesto) list applicable equipment production factors

Sheet 1 General
C1: Continental Mine
C2: Stockpile Spreadsheet Worksheet #1
A3: General Information | C3: 43553
A5: Applicant | B5: Chino Mines Company
B6: Hurley, New Mexico 88043
A11: Disturbed Surface Area (acres) | B11: ='1 Full SiteVeg Maint'!I280 -> 912.2139006
A13: Type of Operation | B13: Existing/Surface/Copper
A17: Current value of earthwork and O&M before escalation and discounting | B17: ='16 Sum'!D18+'3 Full Site O&M Summ'!D17 -> 22821162.59
C22: Stockpiles, Tailing,
A23: Based on 2014 Closure/Closeout Plan (Telesto, 2014) and | C23: Reservoirs, Haul Roads
A24: 2018 Closure/Closeout Plan Update (Telesto, 2018) | C24: and Disturbed Areas

Sheet 2 Demo
I1: ='1 General'!C1 -> Continental Mine
I2: Stockpile Spreadsheet Worksheet #2
A3: Demolition | I3: ='1 General'!C3 -> 43553
A5: Building Demolition costs are calculated in "1 BuildingDemo", "2 BuildingCover", "3 BuildingVeg", and "4BuildingHazardousWaste" and summarized on the last line of this table.
A10: Item | B10: Activity | C10: Quantity | D10: Unit | E10: Unit Cost1 ($/unit) | F10: Direct Item Cost ($) | G10: Reference | H10: Means Line Item | I10: Description
A11: Placeholder
A12: Placeholder
A13: Placeholder
A14: Placeholder
A15: Placeholder
A16: Buildings and Associated Facilities | B16: Demolition | C16: See Demo Sheets | F16: ='5 BuildingSum'!D13 -> 1524735.229
E22: Total Direct Cost: | F22: =SUM(F12:F16) -> 1524735.229

Sheet 3 Material
K1: ='1 General'!C1 -> Continental Mine
K2: Stockpile Spreadsheet Worksheet #3
F3: Material Handling Plan Summary Sheet | K3: ='1 General'!C3 -> 43553
F4: All activities for the Continental Mine RCE are listed on this sheet and carried through the succeeding worksheets of the RCE. The column labeled ID contains the codes for the facility location, activity, material and equipment used for that particular row of work. The description lists the activity, top or outslope (if applicable), and the material. The source location lists the stockpile name (or sub-area) for the location of the activity. If borrow material is involved, it is transported from a borrow stockpile to a destination stockpile. Blank cells indicate that that column is not relevant to a particular activity.
F6: Notes and Assumptions:
F7: 1 - Haul/Push Distance based on Continental 2014 CCP or measured/assumed as shown in documentation 2 - Weighted Average Haul Grades based on 2018 Continental RCE Update Submittal 3 - Grade Factors from 2018 Continental RCE Update Submittal
A14: Item | B14: Activity | C14: Material | D14: Eq | E14: ID | F14: Description | G14: Source Location 1 | H14: Destination Location 2 | I14: Total Haul/Push Distance (ft)1 | J14: Grade (%)2,3 | K14: Equipment
A15: =Quantities!A40 -> 2001 | B15: K | C15: a | D15: Rp1 | E15: =CONCATENATE(TEXT(A15,"0"),"-",B15,"-",C15,"-",D15) -> 2001-K-a-Rp1 | F15: =IF(D15="Comb1",VLOOKUP(B15,'Activity-Material_Codes'!$A$2:$B$22,Quantities!$B$2), CONCATENATE( VLOOKUP(B15,'Activity-Material_Codes'!$A$2:$B$22,Quantities!$B$2), IF(AND(B15="B",C15="a"), " Grading",""), IF(C15="b","","-"), IF(C15="b","",VLOOKUP(A15,Quantities[],Quantities!$D$2)), IF(LEFT(TEXT(A15,"0"),1)="5","","-"), IF(LEFT(TEXT(A15,"0"),1)="5","",VLOOKUP(C15,'Activity-Material_Codes'!$A$25:$B$30,Quantities!$B$2)) )) -> Perforate Liner-Blackman's Seep (Pond #2) -Existing Ground | G15: =CONCATENATE( IF(OR(RIGHT(TEXT($A15,"0"),Quantities!$B$2)="00",LEFT(TEXT($A15,"0"),1)="5",$C15="b"),"",VLOOKUP($A15,Quantities[],Quantities!$B$2)), IF(LEFT(TEXT($A15,"0"),1)="5",""," "), IF(OR(C15="a",C15="c",C15="d",C15="e"),IF(OR(RIGHT(TEXT($A15,"0"),Quantities!$B$2)="00",LEFT(TEXT($A15,"0"),1)="5"),VLOOKUP($A15,Quantities[],Quantities!$B$2),VLOOKUP($A15,Quantities[],Quantities!$C$2)), IF(LEFT(TEXT($A15,"0"),1)="5",VLOOKUP($A15,Quantities[],Quantities!$B$2), VLOOKUP(INDEX(Quantities!$A$56:$A$89,MATCH($A15,Quantities!$C$56:$C$89)),Quantities!$A$56:$B$89,Quantities!$B$2)))) -> Containments Cntmnt-02 | H15: =IF(LEFT(TEXT(A15,"0"),1)="5", VLOOKUP(VLOOKUP(A15,Quantities!$A$4:$D$89,Quantities!$C$2),Quantities!$A$4:$D$89,Quantities!$C$2), IF(OR(C15="a",C15="c",C15="d",C15="e"), "-", IF(RIGHT(TEXT(A15,"0"),2)="00",VLOOKUP(A15,Quantities[],Quantities!$B$2),VLOOKUP(A15,Quantities[],Quantities!$C$2)) )) -> - | I15: =IF(AND(LEFT(D15,2)="Sc",B15="A",C15="d"), SUM(VLOOKUP($A15,Quantities[],Quantities!$V$2),VLOOKUP($A15,Quantities[],Quantities!$Z$2), VLOOKUP($A15,Quantities[],Quantities!$AD$2)), IF(AND(LEFT(D15,2)="Sc",C15="a"), VLOOKUP(A15,Quantities[],Quantities!$J$2), IF(AND(B15="D",C15="b"), VLOOKUP(INDEX(Quantities!$A$56:$A$88,MATCH($A15,Quantities!$C$56:$C$89)),Quantities!$A$56:$AP$88,Quantities!$V$2)+ VLOOKUP(INDEX(Quantities!$A$56:$A$88,MATCH($A15,Quantities!$C$56:$C$89)),Quantities!$A$56:$AP$88,Quantities!$Z$2)+ VLOOKUP(INDEX(Quantities!$A$56:$A$88,MATCH($A15,Quantities!$C$56:$C$89)),Quantities!$A$56:$AP$88,Quantities!$AD$2), IF(B15="D", VLOOKUP(A15,Quantities[],Quantities!$V$2)+VLOOKUP(A15,Quantities[],Quantities!$Z$2)+VLOOKUP(A15,Quantities[],Quantities!$AD$2), IF($B15="Q", SUM(VLOOKUP($A15,Quantities[],Quantities!$V$2),VLOOKUP($A15,Quantities[],Quantities!$Z$2), VLOOKUP($A15,Quantities[],Quantities!$AD$2)), VLOOKUP(A15,Quantities[],Quantities!$G$2) ))))) -> 200 | J15: =IF(LEFT(D15,2)="Mg", VLOOKUP(A15,Quantities[],Quantities!$I$2), IF(AND(LEFT(D15,2)="Sc",B15="A",C15="d"), (SUM(VLOOKUP($A15,Quantities[],Quantities!$W$2)*VLOOKUP($A15,Quantities[],Quantities!$V$2),VLOOKUP($A15,Quantities[],Quantities!$AA$2)*VLOOKUP($A15,Quantities[],Quantities!$Z$2),VLOOKUP($A15,Quantities[],Quantities!$AE$2)*VLOOKUP($A15,Quantities[],Quantities!$AD$2)))/SUM(VLOOKUP($A15,Quantities[],Quantities!$V$2),VLOOKUP($A15,Quantities[],Quantities!$Z$2),VLOOKUP($A15,Quantities[],Quantities!$AD$2)), IF(AND(LEFT(D15,2)="Sc",C15="a"), VLOOKUP(A15,Quantities[],Quantities!$K$2), IF(AND(B15="D",C15="b", (VLOOKUP(INDEX(Quantities!$A$56:$A$88,MATCH($A15,Quantities!$C$56:$C$88)),Quantities[],Quantities!$V$2)+VLOOKUP(INDEX(Quantities!$A$56:$A$88,MATCH($A15,Quantities!$C$56:$C$88)),Quantities[],Quantities!$Z$2)+VLOOKUP(INDEX(Quantities!$A$56:$A$88,MATCH($A15,Quantities!$C$56:$C$88)),Quantities[],Quantities!$AD$2))>0), (VLOOKUP(INDEX(Quantities!$A$56:$A$88,MATCH($A15,Quantities!$C$56:$C$88)),Quantities[],Quantities!$W$2)*VLOOKUP(INDEX(Quantities!$A$56:$A$88,MATCH($A15,Quantities!$C$56:$C$88)),Quantities[],Quantities!$V$2) +VLOOKUP(INDEX(Quantities!$A$56:$A$88,MATCH($A15,Quantities!$C$56:$C$88)),Quantities[],Quantities!$AA$2)*VLOOKUP(INDEX(Quantities!$A$56:$A$88,MATCH($A15,Quantities!$C$56:$C$88)),Quantities[],Quantities!$Z$2) +VLOOKUP(INDEX(Quantities!$A$56:$A$88,MATCH($A15,Quantities!$C$56:$C$88)),Quantities[],Quantities!$AE$2)*VLOOKUP(INDEX(Quantities!$A$56:$A$88,MATCH($A15,Quantities!$C$56:$C$88)),Quantities[],Quantities!$AD$2))/ (VLOOKUP(INDEX(Quantities!$A$56:$A$88,MATCH($A15,Quantities!$C$56:$C$88)),Quantities[],Quantities!$V$2)+VLOOKUP(INDEX(Quantities!$A$56:$A$88,MATCH($A15,Quantities!$C$56:$C$88)),Quantities[],Quantities!$Z$2)+VLOOKUP(A15,Quantities[],Quantities!$AD$2)), IF(AND(B15="D", (VLOOKUP(A15,Quantities[],Quantities!$V$2)+VLOOKUP(A15,Quantities[],Quantities!$Z$2)+VLOOKUP(A15,Quantities[],Quantities!$AD$2))>0), (VLOOKUP(A15,Quantities[],Quantities!$W$2)*VLOOKUP(A15,Quantities[],Quantities!$V$2) +VLOOKUP(A15,Quantities[],Quantities!$AA$2)*VLOOKUP(A15,Quantities[],Quantities!$Z$2) +VLOOKUP(A15,Quantities[],Quantities!$AE$2)*VLOOKUP(A15,Quantities[],Quantities!$AD$2))/ (VLOOKUP(A15,Quantities[],Quantities!$V$2)+VLOOKUP(A15,Quantities[],Quantities!$Z$2)+VLOOKUP(A15,Quantities[],Quantities!$AD$2)), IF($B15="Q", (SUM(VLOOKUP($A15,Quantities[],Quantities!$W$2)*VLOOKUP($A15,Quantities[],Quantities!$V$2),VLOOKUP($A15,Quantities[],Quantities!$AA$2)*VLOOKUP($A15,Quantities[],Quantities!$Z$2),VLOOKUP($A15,Quantities[],Quantities!$AE$2)*VLOOKUP($A15,Quantities[],Quantities!$AD$2)))/SUM(VLOOKUP($A15,Quantities[],Quantities!$V$2),VLOOKUP($A15,Quantities[],Quantities!$Z$2),VLOOKUP($A15,Quantities[],Quantities!$AD$2)), VLOOKUP(A15,Quantities[],Quantities!$I$2) )))))) -> 0.005 | K15: =IF(LEFT(D15,1)="U","-",VLOOKUP(D15,Equipment[],Equipment!$B$2)) -> Cat D11T CD Multi-shank (w/ MSR-359H)
A16: =Quantities!A41 -> 2002 | B16: K | C16: a | D16: Rp1 | E16: =CONCATENATE(TEXT(A16,"0"),"-",B16,"-",C16,"-",D16) -> 2002-K-a-Rp1 | F16: =IF(D16="Comb1",VLOOKUP(B16,'Activity-Material_Codes'!$A$2:$B$22,Quantities!$B$2), CONCATENATE( VLOOKUP(B16,'Activity-Material_Codes'!$A$2:$B$22,Quantities!$B$2), IF(AND(B16="B",C16="a"), " Grading",""), IF(C16="b","","-"), IF(C16="b","",VLOOKUP(A16,Quantities[],Quantities!$D$2)), IF(LEFT(TEXT(A16,"0"),1)="5","","-"), IF(LEFT(TEXT(A16,"0"),1)="5","",VLOOKUP(C16,'Activity-Material_Codes'!$A$25:$B$30,Quantities!$B$2)) )) -> Perforate Liner-Decant Pond #4-Existing Ground | G16: =CONCATENATE( IF(OR(RIGHT(TEXT($A16,"0"),Quantities!$B$2)="00",LEFT(TEXT($A16,"0"),1)="5",$C16="b"),"",VLOOKUP($A16,Quantities[],Quantities!$B$2)), IF(LEFT(TEXT($A16,"0"),1)="5",""," "), IF(OR(C16="a",C16="c",C16="d",C16="e"),IF(OR(RIGHT(TEXT($A16,"0"),Quantities!$B$2)="00",LEFT(TEXT($A16,"0"),1)="5"),VLOOKUP($A16,Quantities[],Quantities!$B$2),VLOOKUP($A16,Quantities[],Quantities!$C$2)), IF(LEFT(TEXT($A16,"0"),1)="5",VLOOKUP($A16,Quantities[],Quantities!$B$2), VLOOKUP(INDEX(Quantities!$A$56:$A$89,MATCH($A16,Quantities!$C$56:$C$89)),Quantities!$A$56:$B$89,Quantities!$B$2)))) -> Containments Cntmnt-03 | H16: =IF(LEFT(TEXT(A16,"0"),1)="5", VLOOKUP(VLOOKUP(A16,Quantities!$A$4:$D$89,Quantities!$C$2),Quantities!$A$4:$D$89,Quantities!$C$2), IF(OR(C16="a",C16="c",C16="d",C16="e"), "-", IF(RIGHT(TEXT(A16,"0"),2)="00",VLOOKUP(A16,Quantities[],Quantities!$B$2),VLOOKUP(A16,Quantities[],Quantities!$C$2)) )) -> - | I16: =IF(AND(LEFT(D16,2)="Sc",B16="A",C16="d"), SUM(VLOOKUP($A16,Quantities[],Quantities!$V$2),VLOOKUP($A16,Quantities[],Quantities!$Z$2), VLOOKUP($A16,Quantities[],Quantities!$AD$2)), IF(AND(LEFT(D16,2)="Sc",C16="a"), VLOOKUP(A16,Quantities[],Quantities!$J$2), IF(AND(B16="D",C16="b"), VLOOKUP(INDEX(Quantities!$A$56:$A$88,MATCH($A16,Quantities!$C$56:$C$89)),Quantities!$A$56:$AP$88,Quantities!$V$2)+ VLOOKUP(INDEX(Quantities!$A$56:$A$88,MATCH($A16,Quantities!$C$56:$C$89)),Quantities!$A$56:$AP$88,Quantities!$Z$2)+ VLOOKUP(INDEX(Quantities!$A$56:$A$88,MATCH($A16,Quantities!$C$56:$C$89)),Quantities!$A$56:$AP$88,Quantities!$AD$2), IF(B16="D", VLOOKUP(A16,Quantities[],Quantities!$V$2)+VLOOKUP(A16,Quantities[],Quantities!$Z$2)+VLOOKUP(A16,Quantities[],Quantities!$AD$2), IF($B16="Q", SUM(VLOOKUP($A16,Quantities[],Quantities!$V$2),VLOOKUP($A16,Quantities[],Quantities!$Z$2), VLOOKUP($A16,Quantities[],Quantities!$AD$2)), VLOOKUP(A16,Quantities[],Quantities!$G$2) ))))) -> 200 | J16: =IF(LEFT(D16,2)="Mg", VLOOKUP(A16,Quantities[],Quantities!$I$2), IF(AND(LEFT(D16,2)="Sc",B16="A",C16="d"), (SUM(VLOOKUP($A16,Quantities[],Quantities!$W$2)*VLOOKUP($A16,Quantities[],Quantities!$V$2),VLOOKUP($A16,Quantities[],Quantities!$AA$2)*VLOOKUP($A16,Quantities[],Quantities!$Z$2),VLOOKUP($A16,Quantities[],Quantities!$AE$2)*VLOOKUP($A16,Quantities[],Quantities!$AD$2)))/SUM(VLOOKUP($A16,Quantities[],Quantities!$V$2),VLOOKUP($A16,Quantities[],Quantities!$Z$2),VLOOKUP($A16,Quantities[],Quantities!$AD$2)), IF(AND(LEFT(D16,2)="Sc",C16="a"), VLOOKUP(A16,Quantities[],Quantities!$K$2), IF(AND(B16="D",C16="b", (VLOOKUP(INDEX(Quantities!$A$56:$A$88,MATCH($A16,Quantities!$C$56:$C$88)),Quantities[],Quantities!$V$2)+VLOOKUP(INDEX(Quantities!$A$56:$A$88,MATCH($A16,Quantities!$C$56:$C$88)),Quantities[],Quantities!$Z$2)+VLOOKUP(INDEX(Quantities!$A$56:$A$88,MATCH($A16,Quantities!$C$56:$C$88)),Quantities[],Quantities!$AD$2))>0), (VLOOKUP(INDEX(Quantities!$A$56:$A$88,MATCH($A16,Quantities!$C$56:$C$88)),Quantities[],Quantities!$W$2)*VLOOKUP(INDEX(Quantities!$A$56:$A$88,MATCH($A16,Quantities!$C$56:$C$88)),Quantities[],Quantities!$V$2) +VLOOKUP(INDEX(Quantities!$A$56:$A$88,MATCH($A16,Quantities!$C$56:$C$88)),Quantities[],Quantities!$AA$2)*VLOOKUP(INDEX(Quantities!$A$56:$A$88,MATCH($A16,Quantities!$C$56:$C$88)),Quantities[],Quantities!$Z$2) +VLOOKUP(INDEX(Quantities!$A$56:$A$88,MATCH($A16,Quantities!$C$56:$C$88)),Quantities[],Quantities!$AE$2)*VLOOKUP(INDEX(Quantities!$A$56:$A$88,MATCH($A16,Quantities!$C$56:$C$88)),Quantities[],Quantities!$AD$2))/ (VLOOKUP(INDEX(Quantities!$A$56:$A$88,MATCH($A16,Quantities!$C$56:$C$88)),Quantities[],Quantities!$V$2)+VLOOKUP(INDEX(Quantities!$A$56:$A$88,MATCH($A16,Quantities!$C$56:$C$88)),Quantities[],Quantities!$Z$2)+VLOOKUP(A16,Quantities[],Quantities!$AD$2)), IF(AND(B16="D", (VLOOKUP(A16,Quantities[],Quantities!$V$2)+VLOOKUP(A16,Quantities[],Quantities!$Z$2)+VLOOKUP(A16,Quantities[],Quantities!$AD$2))>0), (VLOOKUP(A16,Quantities[],Quantities!$W$2)*VLOOKUP(A16,Quantities[],Quantities!$V$2) +VLOOKUP(A16,Quantities[],Quantities!$AA$2)*VLOOKUP(A16,Quantities[],Quantities!$Z$2) +VLOOKUP(A16,Quantities[],Quantities!$AE$2)*VLOOKUP(A16,Quantities[],Quantities!$AD$2))/ (VLOOKUP(A16,Quantities[],Quantities!$V$2)+VLOOKUP(A16,Quantities[],Quantities!$Z$2)+VLOOKUP(A16,Quantities[],Quantities!$AD$2)), IF($B16="Q", (SUM(VLOOKUP($A16,Quantities[],Quantities!$W$2)*VLOOKUP($A16,Quantities[],Quantities!$V$2),VLOOKUP($A16,Quantities[],Quantities!$AA$2)*VLOOKUP($A16,Quantities[],Quantities!$Z$2),VLOOKUP($A16,Quantities[],Quantities!$AE$2)*VLOOKUP($A16,Quantities[],Quantities!$AD$2)))/SUM(VLOOKUP($A16,Quantities[],Quantities!$V$2),VLOOKUP($A16,Quantities[],Quantities!$Z$2),VLOOKUP($A16,Quantities[],Quantities!$AD$2)), VLOOKUP(A16,Quantities[],Quantities!$I$2) )))))) -> 0.005 | K16: =IF(LEFT(D16,1)="U","-",VLOOKUP(D16,Equipment[],Equipment!$B$2)) -> Cat D11T CD Multi-shank (w/ MSR-359H)
A17: =Quantities!A43 -> 2004 | B17: K | C17: a | D17: Rp1 | E17: 2004-K-a-Rp1 | F17: =IF(D17="Comb1",VLOOKUP(B17,'Activity-Material_Codes'!$A$2:$B$22,Quantities!$B$2), CONCATENATE( VLOOKUP(B17,'Activity-Material_Codes'!$A$2:$B$22,Quantities!$B$2), IF(AND(B17="B",C17="a"), " Grading",""), IF(C17="b","","-"), IF(C17="b","",VLOOKUP(A17,Quantities[],Quantities!$D$2)), IF(LEFT(TEXT(A17,"0"),1)="5","","-"), IF(LEFT(TEXT(A17,"0"),1)="5","",VLOOKUP(C17,'Activity-Material_Codes'!$A$25:$B$30,Quantities!$B$2)) )) -> Perforate Liner-Grape Gulch Pond #3-Existing Ground | G17: =CONCATENATE( IF(OR(RIGHT(TEXT($A17,"0"),Quantities!$B$2)="00",LEFT(TEXT($A17,"0"),1)="5",$C17="b"),"",VLOOKUP($A17,Quantities[],Quantities!$B$2)), IF(LEFT(TEXT($A17,"0"),1)="5",""," "), IF(OR(C17="a",C17="c",C17="d",C17="e"),IF(OR(RIGHT(TEXT($A17,"0"),Quantities!$B$2)="00",LEFT(TEXT($A17,"0"),1)="5"),VLOOKUP($A17,Quantities[],Quantities!$B$2),VLOOKUP($A17,Quantities[],Quantities!$C$2)), IF(LEFT(TEXT($A17,"0"),1)="5",VLOOKUP($A17,Quantities[],Quantities!$B$2), VLOOKUP(INDEX(Quantities!$A$56:$A$89,MATCH($A17,Quantities!$C$56:$C$89)),Quantities!$A$56:$B$89,Quantities!$B$2)))) -> Containments Cntmnt-05 | H17: =IF(LEFT(TEXT(A17,"0"),1)="5", VLOOKUP(VLOOKUP(A17,Quantities!$A$4:$D$89,Quantities!$C$2),Quantities!$A$4:$D$89,Quantities!$C$2), IF(OR(C17="a",C17="c",C17="d",C17="e"), "-", IF(RIGHT(TEXT(A17,"0"),2)="00",VLOOKUP(A17,Quantities[],Quantities!$B$2),VLOOKUP(A17,Quantities[],Quantities!$C$2)) )) -> - | I17: =IF(AND(LEFT(D17,2)="Sc",B17="A",C17="d"), SUM(VLOOKUP($A17,Quantities[],Quantities!$V$2),VLOOKUP($A17,Quantities[],Quantities!$Z$2), VLOOKUP($A17,Quantities[],Quantities!$AD$2)), IF(AND(LEFT(D17,2)="Sc",C17="a"), VLOOKUP(A17,Quantities[],Quantities!$J$2), IF(AND(B17="D",C17="b"), VLOOKUP(INDEX(Quantities!$A$56:$A$88,MATCH($A17,Quantities!$C$56:$C$89)),Quantities!$A$56:$AP$88,Quantities!$V$2)+ VLOOKUP(INDEX(Quantities!$A$56:$A$88,MATCH($A17,Quantities!$C$56:$C$89)),Quantities!$A$56:$AP$88,Quantities!$Z$2)+ VLOOKUP(INDEX(Quantities!$A$56:$A$88,MATCH($A17,Quantities!$C$56:$C$89)),Quantities!$A$56:$AP$88,Quantities!$AD$2), IF(B17="D", VLOOKUP(A17,Quantities[],Quantities!$V$2)+VLOOKUP(A17,Quantities[],Quantities!$Z$2)+VLOOKUP(A17,Quantities[],Quantities!$AD$2), IF($B17="Q", SUM(VLOOKUP($A17,Quantities[],Quantities!$V$2),VLOOKUP($A17,Quantities[],Quantities!$Z$2), VLOOKUP($A17,Quantities[],Quantities!$AD$2)), VLOOKUP(A17,Quantities[],Quantities!$G$2) ))))) -> 200 | J17: =IF(LEFT(D17,2)="Mg", VLOOKUP(A17,Quantities[],Quantities!$I$2), IF(AND(LEFT(D17,2)="Sc",B17="A",C17="d"), (SUM(VLOOKUP($A17,Quantities[],Quantities!$W$2)*VLOOKUP($A17,Quantities[],Quantities!$V$2),VLOOKUP($A17,Quantities[],Quantities!$AA$2)*VLOOKUP($A17,Quantities[],Quantities!$Z$2),VLOOKUP($A17,Quantities[],Quantities!$AE$2)*VLOOKUP($A17,Quantities[],Quantities!$AD$2)))/SUM(VLOOKUP($A17,Quantities[],Quantities!$V$2),VLOOKUP($A17,Quantities[],Quantities!$Z$2),VLOOKUP($A17,Quantities[],Quantities!$AD$2)), IF(AND(LEFT(D17,2)="Sc",C17="a"), VLOOKUP(A17,Quantities[],Quantities!$K$2), IF(AND(B17="D",C17="b", (VLOOKUP(INDEX(Quantities!$A$56:$A$88,MATCH($A17,Quantities!$C$56:$C$88)),Quantities[],Quantities!$V$2)+VLOOKUP(INDEX(Quantities!$A$56:$A$88,MATCH($A17,Quantities!$C$56:$C$88)),Quantities[],Quantities!$Z$2)+VLOOKUP(INDEX(Quantities!$A$56:$A$88,MATCH($A17,Quantities!$C$56:$C$88)),Quantities[],Quantities!$AD$2))>0), (VLOOKUP(INDEX(Quantities!$A$56:$A$88,MATCH($A17,Quantities!$C$56:$C$88)),Quantities[],Quantities!$W$2)*VLOOKUP(INDEX(Quantities!$A$56:$A$88,MATCH($A17,Quantities!$C$56:$C$88)),Quantities[],Quantities!$V$2) +VLOOKUP(INDEX(Quantities!$A$56:$A$88,MATCH($A17,Quantities!$C$56:$C$88)),Quantities[],Quantities!$AA$2)*VLOOKUP(INDEX(Quantities!$A$56:$A$88,MATCH($A17,Quantities!$C$56:$C$88)),Quantities[],Quantities!$Z$2) +VLOOKUP(INDEX(Quantities!$A$56:$A$88,MATCH($A17,Quantities!$C$56:$C$88)),Quantities[],Quantities!$AE$2)*VLOOKUP(INDEX(Quantities!$A$56:$A$88,MATCH($A17,Quantities!$C$56:$C$88)),Quantities[],Quantities!$AD$2))/ (VLOOKUP(INDEX(Quantities!$A$56:$A$88,MATCH($A17,Quantities!$C$56:$C$88)),Quantities[],Quantities!$V$2)+VLOOKUP(INDEX(Quantities!$A$56:$A$88,MATCH($A17,Quantities!$C$56:$C$88)),Quantities[],Quantities!$Z$2)+VLOOKUP(A17,Quantities[],Quantities!$AD$2)), IF(AND(B17="D", (VLOOKUP(A17,Quantities[],Quantities!$V$2)+VLOOKUP(A17,Quantities[],Quantities!$Z$2)+VLOOKUP(A17,Quantities[],Quantities!$AD$2))>0), (VLOOKUP(A17,Quantities[],Quantities!$W$2)*VLOOKUP(A17,Quantities[],Quantities!$V$2) +VLOOKUP(A17,Quantities[],Quantities!$AA$2)*VLOOKUP(A17,Quantities[],Quantities!$Z$2) +VLOOKUP(A17,Quantities[],Quantities!$AE$2)*VLOOKUP(A17,Quantities[],Quantities!$AD$2))/ (VLOOKUP(A17,Quantities[],Quantities!$V$2)+VLOOKUP(A17,Quantities[],Quantities!$Z$2)+VLOOKUP(A17,Quantities[],Quantities!$AD$2)), IF($B17="Q", (SUM(VLOOKUP($A17,Quantities[],Quantities!$W$2)*VLOOKUP($A17,Quantities[],Quantities!$V$2),VLOOKUP($A17,Quantities[],Quantities!$AA$2)*VLOOKUP($A17,Quantities[],Quantities!$Z$2),VLOOKUP($A17,Quantities[],Quantities!$AE$2)*VLOOKUP($A17,Quantities[],Quantities!$AD$2)))/SUM(VLOOKUP($A17,Quantities[],Quantities!$V$2),VLOOKUP($A17,Quantities[],Quantities!$Z$2),VLOOKUP($A17,Quantities[],Quantities!$AD$2)), VLOOKUP(A17,Quantities[],Quantities!$I$2) )))))) -> 0.005 | K17: =IF(LEFT(D17,1)="U","-",VLOOKUP(D17,Equipment[],Equipment!$B$2)) -> Cat D11T CD Multi-shank (w/ MSR-359H)
A18: =Quantities!A44 -> 2005 | B18: K | C18: a | D18: Rp1 | E18: 2005-K-a-Rp1 | F18: =IF(D18="Comb1",VLOOKUP(B18,'Activity-Material_Codes'!$A$2:$B$22,Quantities!$B$2), CONCATENATE( VLOOKUP(B18,'Activity-Material_Codes'!$A$2:$B$22,Quantities!$B$2), IF(AND(B18="B",C18="a"), " Grading",""), IF(C18="b","","-"), IF(C18="b","",VLOOKUP(A18,Quantities[],Quantities!$D$2)), IF(LEFT(TEXT(A18,"0"),1)="5","","-"), IF(LEFT(TEXT(A18,"0"),1)="5","",VLOOKUP(C18,'Activity-Material_Codes'!$A$25:$B$30,Quantities!$B$2)) )) -> Perforate Liner-Magnetite Seepage Pond-Existing Ground | G18: =CONCATENATE( IF(OR(RIGHT(TEXT($A18,"0"),Quantities!$B$2)="00",LEFT(TEXT($A18,"0"),1)="5",$C18="b"),"",VLOOKUP($A18,Quantities[],Quantities!$B$2)), IF(LEFT(TEXT($A18,"0"),1)="5",""," "), IF(OR(C18="a",C18="c",C18="d",C18="e"),IF(OR(RIGHT(TEXT($A18,"0"),Quantities!$B$2)="00",LEFT(TEXT($A18,"0"),1)="5"),VLOOKUP($A18,Quantities[],Quantities!$B$2),VLOOKUP($A18,Quantities[],Quantities!$C$2)), IF(LEFT(TEXT($A18,"0"),1)="5",VLOOKUP($A18,Quantities[],Quantities!$B$2), VLOOKUP(INDEX(Quantities!$A$56:$A$89,MATCH($A18,Quantities!$C$56:$C$89)),Quantities!$A$56:$B$89,Quantities!$B$2)))) -> Containments Cntmnt-06 | H18: =IF(LEFT(TEXT(A18,"0"),1)="5", VLOOKUP(VLOOKUP(A18,Quantities!$A$4:$D$89,Quantities!$C$2),Quantities!$A$4:$D$89,Quantities!$C$2), IF(OR(C18="a",C18="c",C18="d",C18="e"), "-", IF(RIGHT(TEXT(A18,"0"),2)="00",VLOOKUP(A18,Quantities[],Quantities!$B$2),VLOOKUP(A18,Quantities[],Quantities!$C$2)) )) -> - | I18: =IF(AND(LEFT(D18,2)="Sc",B18="A",C18="d"), SUM(VLOOKUP($A18,Quantities[],Quantities!$V$2),VLOOKUP($A18,Quantities[],Quantities!$Z$2), VLOOKUP($A18,Quantities[],Quantities!$AD$2)), IF(AND(LEFT(D18,2)="Sc",C18="a"), VLOOKUP(A18,Quantities[],Quantities!$J$2), IF(AND(B18="D",C18="b"), VLOOKUP(INDEX(Quantities!$A$56:$A$88,MATCH($A18,Quantities!$C$56:$C$89)),Quantities!$A$56:$AP$88,Quantities!$V$2)+ VLOOKUP(INDEX(Quantities!$A$56:$A$88,MATCH($A18,Quantities!$C$56:$C$89)),Quantities!$A$56:$AP$88,Quantities!$Z$2)+ VLOOKUP(INDEX(Quantities!$A$56:$A$88,MATCH($A18,Quantities!$C$56:$C$89)),Quantities!$A$56:$AP$88,Quantities!$AD$2), IF(B18="D", VLOOKUP(A18,Quantities[],Quantities!$V$2)+VLOOKUP(A18,Quantities[],Quantities!$Z$2)+VLOOKUP(A18,Quantities[],Quantities!$AD$2), IF($B18="Q", SUM(VLOOKUP($A18,Quantities[],Quantities!$V$2),VLOOKUP($A18,Quantities[],Quantities!$Z$2), VLOOKUP($A18,Quantities[],Quantities!$AD$2)), VLOOKUP(A18,Quantities[],Quantities!$G$2) ))))) -> 200 | J18: =IF(LEFT(D18,2)="Mg", VLOOKUP(A18,Quantities[],Quantities!$I$2), IF(AND(LEFT(D18,2)="Sc",B18="A",C18="d"), (SUM(VLOOKUP($A18,Quantities[],Quantities!$W$2)*VLOOKUP($A18,Quantities[],Quantities!$V$2),VLOOKUP($A18,Quantities[],Quantities!$AA$2)*VLOOKUP($A18,Quantities[],Quantities!$Z$2),VLOOKUP($A18,Quantities[],Quantities!$AE$2)*VLOOKUP($A18,Quantities[],Quantities!$AD$2)))/SUM(VLOOKUP($A18,Quantities[],Quantities!$V$2),VLOOKUP($A18,Quantities[],Quantities!$Z$2),VLOOKUP($A18,Quantities[],Quantities!$AD$2)), IF(AND(LEFT(D18,2)="Sc",C18="a"), VLOOKUP(A18,Quantities[],Quantities!$K$2), IF(AND(B18="D",C18="b", (VLOOKUP(INDEX(Quantities!$A$56:$A$88,MATCH($A18,Quantities!$C$56:$C$88)),Quantities[],Quantities!$V$2)+VLOOKUP(INDEX(Quantities!$A$56:$A$88,MATCH($A18,Quantities!$C$56:$C$88)),Quantities[],Quantities!$Z$2)+VLOOKUP(INDEX(Quantities!$A$56:$A$88,MATCH($A18,Quantities!$C$56:$C$88)),Quantities[],Quantities!$AD$2))>0), (VLOOKUP(INDEX(Quantities!$A$56:$A$88,MATCH($A18,Quantities!$C$56:$C$88)),Quantities[],Quantities!$W$2)*VLOOKUP(INDEX(Quantities!$A$56:$A$88,MATCH($A18,Quantities!$C$56:$C$88)),Quantities[],Quantities!$V$2) +VLOOKUP(INDEX(Quantities!$A$56:$A$88,MATCH($A18,Quantities!$C$56:$C$88)),Quantities[],Quantities!$AA$2)*VLOOKUP(INDEX(Quantities!$A$56:$A$88,MATCH($A18,Quantities!$C$56:$C$88)),Quantities[],Quantities!$Z$2) +VLOOKUP(INDEX(Quantities!$A$56:$A$88,MATCH($A18,Quantities!$C$56:$C$88)),Quantities[],Quantities!$AE$2)*VLOOKUP(INDEX(Quantities!$A$56:$A$88,MATCH($A18,Quantities!$C$56:$C$88)),Quantities[],Quantities!$AD$2))/ (VLOOKUP(INDEX(Quantities!$A$56:$A$88,MATCH($A18,Quantities!$C$56:$C$88)),Quantities[],Quantities!$V$2)+VLOOKUP(INDEX(Quantities!$A$56:$A$88,MATCH($A18,Quantities!$C$56:$C$88)),Quantities[],Quantities!$Z$2)+VLOOKUP(A18,Quantities[],Quantities!$AD$2)), IF(AND(B18="D", (VLOOKUP(A18,Quantities[],Quantities!$V$2)+VLOOKUP(A18,Quantities[],Quantities!$Z$2)+VLOOKUP(A18,Quantities[],Quantities!$AD$2))>0), (VLOOKUP(A18,Quantities[],Quantities!$W$2)*VLOOKUP(A18,Quantities[],Quantities!$V$2) +VLOOKUP(A18,Quantities[],Quantities!$AA$2)*VLOOKUP(A18,Quantities[],Quantities!$Z$2) +VLOOKUP(A18,Quantities[],Quantities!$AE$2)*VLOOKUP(A18,Quantities[],Quantities!$AD$2))/ (VLOOKUP(A18,Quantities[],Quantities!$V$2)+VLOOKUP(A18,Quantities[],Quantities!$Z$2)+VLOOKUP(A18,Quantities[],Quantities!$AD$2)), IF($B18="Q", (SUM(VLOOKUP($A18,Quantities[],Quantities!$W$2)*VLOOKUP($A18,Quantities[],Quantities!$V$2),VLOOKUP($A18,Quantities[],Quantities!$AA$2)*VLOOKUP($A18,Quantities[],Quantities!$Z$2),VLOOKUP($A18,Quantities[],Quantities!$AE$2)*VLOOKUP($A18,Quantities[],Quantities!$AD$2)))/SUM(VLOOKUP($A18,Quantities[],Quantities!$V$2),VLOOKUP($A18,Quantities[],Quantities!$Z$2),VLOOKUP($A18,Quantities[],Quantities!$AD$2)), VLOOKUP(A18,Quantities[],Quantities!$I$2) )))))) -> 0.005 | K18: =IF(LEFT(D18,1)="U","-",VLOOKUP(D18,Equipment[],Equipment!$B$2)) -> Cat D11T CD Multi-shank (w/ MSR-359H)
A19: =Quantities!A49 -> 2010 | B19: K | C19: a | D19: Rp1 | E19: 2010-K-a-Rp1 | F19: =IF(D19="Comb1",VLOOKUP(B19,'Activity-Material_Codes'!$A$2:$B$22,Quantities!$B$2), CONCATENATE( VLOOKUP(B19,'Activity-Material_Codes'!$A$2:$B$22,Quantities!$B$2), IF(AND(B19="B",C19="a"), " Grading",""), IF(C19="b","","-"), IF(C19="b","",VLOOKUP(A19,Quantities[],Quantities!$D$2)), IF(LEFT(TEXT(A19,"0"),1)="5","","-"), IF(LEFT(TEXT(A19,"0"),1)="5","",VLOOKUP(C19,'Activity-Material_Codes'!$A$25:$B$30,Quantities!$B$2)) )) -> Perforate Liner-Upper Creek Containment Pond 1 -Existing Ground | G19: =CONCATENATE( IF(OR(RIGHT(TEXT($A19,"0"),Quantities!$B$2)="00",LEFT(TEXT($A19,"0"),1)="5",$C19="b"),"",VLOOKUP($A19,Quantities[],Quantities!$B$2)), IF(LEFT(TEXT($A19,"0"),1)="5",""," "), IF(OR(C19="a",C19="c",C19="d",C19="e"),IF(OR(RIGHT(TEXT($A19,"0"),Quantities!$B$2)="00",LEFT(TEXT($A19,"0"),1)="5"),VLOOKUP($A19,Quantities[],Quantities!$B$2),VLOOKUP($A19,Quantities[],Quantities!$C$2)), IF(LEFT(TEXT($A19,"0"),1)="5",VLOOKUP($A19,Quantities[],Quantities!$B$2), VLOOKUP(INDEX(Quantities!$A$56:$A$89,MATCH($A19,Quantities!$C$56:$C$89)),Quantities!$A$56:$B$89,Quantities!$B$2)))) -> Containments Cntmnt-11 | H19: =IF(LEFT(TEXT(A19,"0"),1)="5", VLOOKUP(VLOOKUP(A19,Quantities!$A$4:$D$89,Quantities!$C$2),Quantities!$A$4:$D$89,Quantities!$C$2), IF(OR(C19="a",C19="c",C19="d",C19="e"), "-", IF(RIGHT(TEXT(A19,"0"),2)="00",VLOOKUP(A19,Quantities[],Quantities!$B$2),VLOOKUP(A19,Quantities[],Quantities!$C$2)) )) -> - | I19: =IF(AND(LEFT(D19,2)="Sc",B19="A",C19="d"), SUM(VLOOKUP($A19,Quantities[],Quantities!$V$2),VLOOKUP($A19,Quantities[],Quantities!$Z$2), VLOOKUP($A19,Quantities[],Quantities!$AD$2)), IF(AND(LEFT(D19,2)="Sc",C19="a"), VLOOKUP(A19,Quantities[],Quantities!$J$2), IF(AND(B19="D",C19="b"), VLOOKUP(INDEX(Quantities!$A$56:$A$88,MATCH($A19,Quantities!$C$56:$C$89)),Quantities!$A$56:$AP$88,Quantities!$V$2)+ VLOOKUP(INDEX(Quantities!$A$56:$A$88,MATCH($A19,Quantities!$C$56:$C$89)),Quantities!$A$56:$AP$88,Quantities!$Z$2)+ VLOOKUP(INDEX(Quantities!$A$56:$A$88,MATCH($A19,Quantities!$C$56:$C$89)),Quantities!$A$56:$AP$88,Quantities!$AD$2), IF(B19="D", VLOOKUP(A19,Quantities[],Quantities!$V$2)+VLOOKUP(A19,Quantities[],Quantities!$Z$2)+VLOOKUP(A19,Quantities[],Quantities!$AD$2), IF($B19="Q", SUM(VLOOKUP($A19,Quantities[],Quantities!$V$2),VLOOKUP($A19,Quantities[],Quantities!$Z$2), VLOOKUP($A19,Quantities[],Quantities!$AD$2)), VLOOKUP(A19,Quantities[],Quantities!$G$2) ))))) -> 200 | J19: =IF(LEFT(D19,2)="Mg", VLOOKUP(A19,Quantities[],Quantities!$I$2), IF(AND(LEFT(D19,2)="Sc",B19="A",C19="d"), (SUM(VLOOKUP($A19,Quantities[],Quantities!$W$2)*VLOOKUP($A19,Quantities[],Quantities!$V$2),VLOOKUP($A19,Quantities[],Quantities!$AA$2)*VLOOKUP($A19,Quantities[],Quantities!$Z$2),VLOOKUP($A19,Quantities[],Quantities!$AE$2)*VLOOKUP($A19,Quantities[],Quantities!$AD$2)))/SUM(VLOOKUP($A19,Quantities[],Quantities!$V$2),VLOOKUP($A19,Quantities[],Quantities!$Z$2),VLOOKUP($A19,Quantities[],Quantities!$AD$2)), IF(AND(LEFT(D19,2)="Sc",C19="a"), VLOOKUP(A19,Quantities[],Quantities!$K$2), IF(AND(B19="D",C19="b", (VLOOKUP(INDEX(Quantities!$A$56:$A$88,MATCH($A19,Quantities!$C$56:$C$88)),Quantities[],Quantities!$V$2)+VLOOKUP(INDEX(Quantities!$A$56:$A$88,MATCH($A19,Quantities!$C$56:$C$88)),Quantities[],Quantities!$Z$2)+VLOOKUP(INDEX(Quantities!$A$56:$A$88,MATCH($A19,Quantities!$C$56:$C$88)),Quantities[],Quantities!$AD$2))>0), (VLOOKUP(INDEX(Quantities!$A$56:$A$88,MATCH($A19,Quantities!$C$56:$C$88)),Quantities[],Quantities!$W$2)*VLOOKUP(INDEX(Quantities!$A$56:$A$88,MATCH($A19,Quantities!$C$56:$C$88)),Quantities[],Quantities!$V$2) +VLOOKUP(INDEX(Quantities!$A$56:$A$88,MATCH($A19,Quantities!$C$56:$C$88)),Quantities[],Quantities!$AA$2)*VLOOKUP(INDEX(Quantities!$A$56:$A$88,MATCH($A19,Quantities!$C$56:$C$88)),Quantities[],Quantities!$Z$2) +VLOOKUP(INDEX(Quantities!$A$56:$A$88,MATCH($A19,Quantities!$C$56:$C$88)),Quantities[],Quantities!$AE$2)*VLOOKUP(INDEX(Quantities!$A$56:$A$88,MATCH($A19,Quantities!$C$56:$C$88)),Quantities[],Quantities!$AD$2))/ (VLOOKUP(INDEX(Quantities!$A$56:$A$88,MATCH($A19,Quantities!$C$56:$C$88)),Quantities[],Quantities!$V$2)+VLOOKUP(INDEX(Quantities!$A$56:$A$88,MATCH($A19,Quantities!$C$56:$C$88)),Quantities[],Quantities!$Z$2)+VLOOKUP(A19,Quantities[],Quantities!$AD$2)), IF(AND(B19="D", (VLOOKUP(A19,Quantities[],Quantities!$V$2)+VLOOKUP(A19,Quantities[],Quantities!$Z$2)+VLOOKUP(A19,Quantities[],Quantities!$AD$2))>0), (VLOOKUP(A19,Quantities[],Quantities!$W$2)*VLOOKUP(A19,Quantities[],Quantities!$V$2) +VLOOKUP(A19,Quantities[],Quantities!$AA$2)*VLOOKUP(A19,Quantities[],Quantities!$Z$2) +VLOOKUP(A19,Quantities[],Quantities!$AE$2)*VLOOKUP(A19,Quantities[],Quantities!$AD$2))/ (VLOOKUP(A19,Quantities[],Quantities!$V$2)+VLOOKUP(A19,Quantities[],Quantities!$Z$2)+VLOOKUP(A19,Quantities[],Quantities!$AD$2)), IF($B19="Q", (SUM(VLOOKUP($A19,Quantities[],Quantities!$W$2)*VLOOKUP($A19,Quantities[],Quantities!$V$2),VLOOKUP($A19,Quantities[],Quantities!$AA$2)*VLOOKUP($A19,Quantities[],Quantities!$Z$2),VLOOKUP($A19,Quantities[],Quantities!$AE$2)*VLOOKUP($A19,Quantities[],Quantities!$AD$2)))/SUM(VLOOKUP($A19,Quantities[],Quantities!$V$2),VLOOKUP($A19,Quantities[],Quantities!$Z$2),VLOOKUP($A19,Quantities[],Quantities!$AD$2)), VLOOKUP(A19,Quantities[],Quantities!$I$2) )))))) -> 0.005 | K19: =IF(LEFT(D19,1)="U","-",VLOOKUP(D19,Equipment[],Equipment!$B$2)) -> Cat D11T CD Multi-shank (w/ MSR-359H)
A20: =Quantities!A5 -> 1001 | B20: A | C20: a | D20: Dz1 | E20: 1001-A-a-Dz1 | F20: =IF(D20="Comb1",VLOOKUP(B20,'Activity-Material_Codes'!$A$2:$B$22,Quantities!$B$2), CONCATENATE( VLOOKUP(B20,'Activity-Material_Codes'!$A$2:$B$22,Quantities!$B$2), IF(AND(B20="B",C20="a"), " Grading",""), IF(C20="b","","-"), IF(C20="b","",VLOOKUP(A20,Quantities[],Quantities!$D$2)), IF(LEFT(TEXT(A20,"0"),1)="5","","-"), IF(LEFT(TEXT(A20,"0"),1)="5","",VLOOKUP(C20,'Activity-Material_Codes'!$A$25:$B$30,Quantities!$B$2)) )) -> Grade-Top-Existing Ground | G20: =CONCATENATE( IF(OR(RIGHT(TEXT($A20,"0"),Quantities!$B$2)="00",LEFT(TEXT($A20,"0"),1)="5",$C20="b"),"",VLOOKUP($A20,Quantities[],Quantities!$B$2)), IF(LEFT(TEXT($A20,"0"),1)="5",""," "), IF(OR(C20="a",C20="c",C20="d",C20="e"),IF(OR(RIGHT(TEXT($A20,"0"),Quantities!$B$2)="00",LEFT(TEXT($A20,"0"),1)="5"),VLOOKUP($A20,Quantities[],Quantities!$B$2),VLOOKUP($A20,Quantities[],Quantities!$C$2)), IF(LEFT(TEXT($A20,"0"),1)="5",VLOOKUP($A20,Quantities[],Quantities!$B$2), VLOOKUP(INDEX(Quantities!$A$56:$A$89,MATCH($A20,Quantities!$C$56:$C$89)),Quantities!$A$56:$B$89,Quantities!$B$2)))) -> South Waste Rock Disposal Facility SWRDF-1 | H20: =IF(LEFT(TEXT(A20,"0"),1)="5", VLOOKUP(VLOOKUP(A20,Quantities!$A$4:$D$89,Quantities!$C$2),Quantities!$A$4:$D$89,Quantities!$C$2), IF(OR(C20="a",C20="c",C20="d",C20="e"), "-", IF(RIGHT(TEXT(A20,"0"),2)="00",VLOOKUP(A20,Quantities[],Quantities!$B$2),VLOOKUP(A20,Quantities[],Quantities!$C$2)) )) -> - | I20: =IF(AND(LEFT(D20,2)="Sc",B20="A",C20="d"), SUM(VLOOKUP($A20,Quantities[],Quantities!$V$2),VLOOKUP($A20,Quantities[],Quantities!$Z$2), VLOOKUP($A20,Quantities[],Quantities!$AD$2)), IF(AND(LEFT(D20,2)="Sc",C20="a"), VLOOKUP(A20,Quantities[],Quantities!$J$2), IF(AND(B20="D",C20="b"), VLOOKUP(INDEX(Quantities!$A$56:$A$88,MATCH($A20,Quantities!$C$56:$C$89)),Quantities!$A$56:$AP$88,Quantities!$V$2)+ VLOOKUP(INDEX(Quantities!$A$56:$A$88,MATCH($A20,Quantities!$C$56:$C$89)),Quantities!$A$56:$AP$88,Quantities!$Z$2)+ VLOOKUP(INDEX(Quantities!$A$56:$A$88,MATCH($A20,Quantities!$C$56:$C$89)),Quantities!$A$56:$AP$88,Quantities!$AD$2), IF(B20="D", VLOOKUP(A20,Quantities[],Quantities!$V$2)+VLOOKUP(A20,Quantities[],Quantities!$Z$2)+VLOOKUP(A20,Quantities[],Quantities!$AD$2), IF($B20="Q", SUM(VLOOKUP($A20,Quantities[],Quantities!$V$2),VLOOKUP($A20,Quantities[],Quantities!$Z$2), VLOOKUP($A20,Quantities[],Quantities!$AD$2)), VLOOKUP(A20,Quantities[],Quantities!$G$2) ))))) -> 540 | J20: =IF(LEFT(D20,2)="Mg", VLOOKUP(A20,Quantities[],Quantities!$I$2), IF(AND(LEFT(D20,2)="Sc",B20="A",C20="d"), (SUM(VLOOKUP($A20,Quantities[],Quantities!$W$2)*VLOOKUP($A20,Quantities[],Quantities!$V$2),VLOOKUP($A20,Quantities[],Quantities!$AA$2)*VLOOKUP($A20,Quantities[],Quantities!$Z$2),VLOOKUP($A20,Quantities[],Quantities!$AE$2)*VLOOKUP($A20,Quantities[],Quantities!$AD$2)))/SUM(VLOOKUP($A20,Quantities[],Quantities!$V$2),VLOOKUP($A20,Quantities[],Quantities!$Z$2),VLOOKUP($A20,Quantities[],Quantities!$AD$2)), IF(AND(LEFT(D20,2)="Sc",C20="a"), VLOOKUP(A20,Quantities[],Quantities!$K$2), IF(AND(B20="D",C20="b", (VLOOKUP(INDEX(Quantities!$A$56:$A$88,MATCH($A20,Quantities!$C$56:$C$88)),Quantities[],Quantities!$V$2)+VLOOKUP(INDEX(Quantities!$A$56:$A$88,MATCH($A20,Quantities!$C$56:$C$88)),Quantities[],Quantities!$Z$2)+VLOOKUP(INDEX(Quantities!$A$56:$A$88,MATCH($A20,Quantities!$C$56:$C$88)),Quantities[],Quantities!$AD$2))>0), (VLOOKUP(INDEX(Quantities!$A$56:$A$88,MATCH($A20,Quantities!$C$56:$C$88)),Quantities[],Quantities!$W$2)*VLOOKUP(INDEX(Quantities!$A$56:$A$88,MATCH($A20,Quantities!$C$56:$C$88)),Quantities[],Quantities!$V$2) +VLOOKUP(INDEX(Quantities!$A$56:$A$88,MATCH($A20,Quantities!$C$56:$C$88)),Quantities[],Quantities!$AA$2)*VLOOKUP(INDEX(Quantities!$A$56:$A$88,MATCH($A20,Quantities!$C$56:$C$88)),Quantities[],Quantities!$Z$2) +VLOOKUP(INDEX(Quantities!$A$56:$A$88,MATCH($A20,Quantities!$C$56:$C$88)),Quantities[],Quantities!$AE$2)*VLOOKUP(INDEX(Quantities!$A$56:$A$88,MATCH($A20,Quantities!$C$56:$C$88)),Quantities[],Quantities!$AD$2))/ (VLOOKUP(INDEX(Quantities!$A$56:$A$88,MATCH($A20,Quantities!$C$56:$C$88)),Quantities[],Quantities!$V$2)+VLOOKUP(INDEX(Quantities!$A$56:$A$88,MATCH($A20,Quantities!$C$56:$C$88)),Quantities[],Quantities!$Z$2)+VLOOKUP(A20,Quantities[],Quantities!$AD$2)), IF(AND(B20="D", (VLOOKUP(A20,Quantities[],Quantities!$V$2)+VLOOKUP(A20,Quantities[],Quantities!$Z$2)+VLOOKUP(A20,Quantities[],Quantities!$AD$2))>0), (VLOOKUP(A20,Quantities[],Quantities!$W$2)*VLOOKUP(A20,Quantities[],Quantities!$V$2) +VLOOKUP(A20,Quantities[],Quantities!$AA$2)*VLOOKUP(A20,Quantities[],Quantities!$Z$2) +VLOOKUP(A20,Quantities[],Quantities!$AE$2)*VLOOKUP(A20,Quantities[],Quantities!$AD$2))/ (VLOOKUP(A20,Quantities[],Quantities!$V$2)+VLOOKUP(A20,Quantities[],Quantities!$Z$2)+VLOOKUP(A20,Quantities[],Quantities!$AD$2)), IF($B20="Q", (SUM(VLOOKUP($A20,Quantities[],Quantities!$W$2)*VLOOKUP($A20,Quantities[],Quantities!$V$2),VLOOKUP($A20,Quantities[],Quantities!$AA$2)*VLOOKUP($A20,Quantities[],Quantities!$Z$2),VLOOKUP($A20,Quantities[],Quantities!$AE$2)*VLOOKUP($A20,Quantities[],Quantities!$AD$2)))/SUM(VLOOKUP($A20,Quantities[],Quantities!$V$2),VLOOKUP($A20,Quantities[],Quantities!$Z$2),VLOOKUP($A20,Quantities[],Quantities!$AD$2)), VLOOKUP(A20,Quantities[],Quantities!$I$2) )))))) -> -0.01 | K20: =IF(LEFT(D20,1)="U","-",VLOOKUP(D20,Equipment[],Equipment!$B$2)) -> Cat D11T, U Blade
A21: =Quantities!A6 -> 1002 | B21: A | C21: a | D21: Dz1 | E21: 1002-A-a-Dz1 | F21: =IF(D21="Comb1",VLOOKUP(B21,'Activity-Material_Codes'!$A$2:$B$22,Quantities!$B$2), CONCATENATE( VLOOKUP(B21,'Activity-Material_Codes'!$A$2:$B$22,Quantities!$B$2), IF(AND(B21="B",C21="a"), " Grading",""), IF(C21="b","","-"), IF(C21="b","",VLOOKUP(A21,Quantities[],Quantities!$D$2)), IF(LEFT(TEXT(A21,"0"),1)="5","","-"), IF(LEFT(TEXT(A21,"0"),1)="5","",VLOOKUP(C21,'Activity-Material_Codes'!$A$25:$B$30,Quantities!$B$2)) )) -> Grade-3:1 Interbench Outslope-Existing Ground | G21: =CONCATENATE( IF(OR(RIGHT(TEXT($A21,"0"),Quantities!$B$2)="00",LEFT(TEXT($A21,"0"),1)="5",$C21="b"),"",VLOOKUP($A21,Quantities[],Quantities!$B$2)), IF(LEFT(TEXT($A21,"0"),1)="5",""," "), IF(OR(C21="a",C21="c",C21="d",C21="e"),IF(OR(RIGHT(TEXT($A21,"0"),Quantities!$B$2)="00",LEFT(TEXT($A21,"0"),1)="5"),VLOOKUP($A21,Quantities[],Quantities!$B$2),VLOOKUP($A21,Quantities[],Quantities!$C$2)), IF(LEFT(TEXT($A21,"0"),1)="5",VLOOKUP($A21,Quantities[],Quantities!$B$2), VLOOKUP(INDEX(Quantities!$A$56:$A$89,MATCH($A21,Quantities!$C$56:$C$89)),Quantities!$A$56:$B$89,Quantities!$B$2)))) -> South Waste Rock Disposal Facility SWRDF-2 | H21: =IF(LEFT(TEXT(A21,"0"),1)="5", VLOOKUP(VLOOKUP(A21,Quantities!$A$4:$D$89,Quantities!$C$2),Quantities!$A$4:$D$89,Quantities!$C$2), IF(OR(C21="a",C21="c",C21="d",C21="e"), "-", IF(RIGHT(TEXT(A21,"0"),2)="00",VLOOKUP(A21,Quantities[],Quantities!$B$2),VLOOKUP(A21,Quantities[],Quantities!$C$2)) )) -> - | I21: =IF(AND(LEFT(D21,2)="Sc",B21="A",C21="d"), SUM(VLOOKUP($A21,Quantities[],Quantities!$V$2),VLOOKUP($A21,Quantities[],Quantities!$Z$2), VLOOKUP($A21,Quantities[],Quantities!$AD$2)), IF(AND(LEFT(D21,2)="Sc",C21="a"), VLOOKUP(A21,Quantities[],Quantities!$J$2), IF(AND(B21="D",C21="b"), VLOOKUP(INDEX(Quantities!$A$56:$A$88,MATCH($A21,Quantities!$C$56:$C$89)),Quantities!$A$56:$AP$88,Quantities!$V$2)+ VLOOKUP(INDEX(Quantities!$A$56:$A$88,MATCH($A21,Quantities!$C$56:$C$89)),Quantities!$A$56:$AP$88,Quantities!$Z$2)+ VLOOKUP(INDEX(Quantities!$A$56:$A$88,MATCH($A21,Quantities!$C$56:$C$89)),Quantities!$A$56:$AP$88,Quantities!$AD$2), IF(B21="D", VLOOKUP(A21,Quantities[],Quantities!$V$2)+VLOOKUP(A21,Quantities[],Quantities!$Z$2)+VLOOKUP(A21,Quantities[],Quantities!$AD$2), IF($B21="Q", SUM(VLOOKUP($A21,Quantities[],Quantities!$V$2),VLOOKUP($A21,Quantities[],Quantities!$Z$2), VLOOKUP($A21,Quantities[],Quantities!$AD$2)), VLOOKUP(A21,Quantities[],Quantities!$G$2) ))))) -> 99 | J21: =IF(LEFT(D21,2)="Mg", VLOOKUP(A21,Quantities[],Quantities!$I$2), IF(AND(LEFT(D21,2)="Sc",B21="A",C21="d"), (SUM(VLOOKUP($A21,Quantities[],Quantities!$W$2)*VLOOKUP($A21,Quantities[],Quantities!$V$2),VLOOKUP($A21,Quantities[],Quantities!$AA$2)*VLOOKUP($A21,Quantities[],Quantities!$Z$2),VLOOKUP($A21,Quantities[],Quantities!$AE$2)*VLOOKUP($A21,Quantities[],Quantities!$AD$2)))/SUM(VLOOKUP($A21,Quantities[],Quantities!$V$2),VLOOKUP($A21,Quantities[],Quantities!$Z$2),VLOOKUP($A21,Quantities[],Quantities!$AD$2)), IF(AND(LEFT(D21,2)="Sc",C21="a"), VLOOKUP(A21,Quantities[],Quantities!$K$2), IF(AND(B21="D",C21="b", (VLOOKUP(INDEX(Quantities!$A$56:$A$88,MATCH($A21,Quantities!$C$56:$C$88)),Quantities[],Quantities!$V$2)+VLOOKUP(INDEX(Quantities!$A$56:$A$88,MATCH($A21,Quantities!$C$56:$C$88)),Quantities[],Quantities!$Z$2)+VLOOKUP(INDEX(Quantities!$A$56:$A$88,MATCH($A21,Quantities!$C$56:$C$88)),Quantities[],Quantities!$AD$2))>0), (VLOOKUP(INDEX(Quantities!$A$56:$A$88,MATCH($A21,Quantities!$C$56:$C$88)),Quantities[],Quantities!$W$2)*VLOOKUP(INDEX(Quantities!$A$56:$A$88,MATCH($A21,Quantities!$C$56:$C$88)),Quantities[],Quantities!$V$2) +VLOOKUP(INDEX(Quantities!$A$56:$A$88,MATCH($A21,Quantities!$C$56:$C$88)),Quantities[],Quantities!$AA$2)*VLOOKUP(INDEX(Quantities!$A$56:$A$88,MATCH($A21,Quantities!$C$56:$C$88)),Quantities[],Quantities!$Z$2) +VLOOKUP(INDEX(Quantities!$A$56:$A$88,MATCH($A21,Quantities!$C$56:$C$88)),Quantities[],Quantities!$AE$2)*VLOOKUP(INDEX(Quantities!$A$56:$A$88,MATCH($A21,Quantities!$C$56:$C$88)),Quantities[],Quantities!$AD$2))/ (VLOOKUP(INDEX(Quantities!$A$56:$A$88,MATCH($A21,Quantities!$C$56:$C$88)),Quantities[],Quantities!$V$2)+VLOOKUP(INDEX(Quantities!$A$56:$A$88,MATCH($A21,Quantities!$C$56:$C$88)),Quantities[],Quantities!$Z$2)+VLOOKUP(A21,Quantities[],Quantities!$AD$2)), IF(AND(B21="D", (VLOOKUP(A21,Quantities[],Quantities!$V$2)+VLOOKUP(A21,Quantities[],Quantities!$Z$2)+VLOOKUP(A21,Quantities[],Quantities!$AD$2))>0), (VLOOKUP(A21,Quantities[],Quantities!$W$2)*VLOOKUP(A21,Quantities[],Quantities!$V$2) +VLOOKUP(A21,Quantities[],Quantities!$AA$2)*VLOOKUP(A21,Quantities[],Quantities!$Z$2) +VLOOKUP(A21,Quantities[],Quantities!$AE$2)*VLOOKUP(A21,Quantities[],Quantities!$AD$2))/ (VLOOKUP(A21,Quantities[],Quantities!$V$2)+VLOOKUP(A21,Quantities[],Quantities!$Z$2)+VLOOKUP(A21,Quantities[],Quantities!$AD$2)), IF($B21="Q", (SUM(VLOOKUP($A21,Quantities[],Quantities!$W$2)*VLOOKUP($A21,Quantities[],Quantities!$V$2),VLOOKUP($A21,Quantities[],Quantities!$AA$2)*VLOOKUP($A21,Quantities[],Quantities!$Z$2),VLOOKUP($A21,Quantities[],Quantities!$AE$2)*VLOOKUP($A21,Quantities[],Quantities!$AD$2)))/SUM(VLOOKUP($A21,Quantities[],Quantities!$V$2),VLOOKUP($A21,Quantities[],Quantities!$Z$2),VLOOKUP($A21,Quantities[],Quantities!$AD$2)), VLOOKUP(A21,Quantities[],Quantities!$I$2) )))))) -> -0.27 | K21: =IF(LEFT(D21,1)="U","-",VLOOKUP(D21,Equipment[],Equipment!$B$2)) -> Cat D11T, U Blade
A22: =Quantities!A7 -> 1003 | B22: A | C22: a | D22: Dz1 | E22: 1003-A-a-Dz1 | F22: =IF(D22="Comb1",VLOOKUP(B22,'Activity-Material_Codes'!$A$2:$B$22,Quantities!$B$2), CONCATENATE( VLOOKUP(B22,'Activity-Material_Codes'!$A$2:$B$22,Quantities!$B$2), IF(AND(B22="B",C22="a"), " Grading",""), IF(C22="b","","-"), IF(C22="b","",VLOOKUP(A22,Quantities[],Quantities!$D$2)), IF(LEFT(TEXT(A22,"0"),1)="5","","-"), IF(LEFT(TEXT(A22,"0"),1)="5","",VLOOKUP(C22,'Activity-Material_Codes'!$A$25:$B$30,Quantities!$B$2)) )) -> Grade-2.5:1 Interbench Outslope-Existing Ground | G22: =CONCATENATE( IF(OR(RIGHT(TEXT($A22,"0"),Quantities!$B$2)="00",LEFT(TEXT($A22,"0"),1)="5",$C22="b"),"",VLOOKUP($A22,Quantities[],Quantities!$B$2)), IF(LEFT(TEXT($A22,"0"),1)="5",""," "), IF(OR(C22="a",C22="c",C22="d",C22="e"),IF(OR(RIGHT(TEXT($A22,"0"),Quantities!$B$2)="00",LEFT(TEXT($A22,"0"),1)="5"),VLOOKUP($A22,Quantities[],Quantities!$B$2),VLOOKUP($A22,Quantities[],Quantities!$C$2)), IF(LEFT(TEXT($A22,"0"),1)="5",VLOOKUP($A22,Quantities[],Quantities!$B$2), VLOOKUP(INDEX(Quantities!$A$56:$A$89,MATCH($A22,Quantities!$C$56:$C$89)),Quantities!$A$56:$B$89,Quantities!$B$2)))) -> South Waste Rock Disposal Facility SWRDF-3 | H22: =IF(LEFT(TEXT(A22,"0"),1)="5", VLOOKUP(VLOOKUP(A22,Quantities!$A$4:$D$89,Quantities!$C$2),Quantities!$A$4:$D$89,Quantities!$C$2), IF(OR(C22="a",C22="c",C22="d",C22="e"), "-", IF(RIGHT(TEXT(A22,"0"),2)="00",VLOOKUP(A22,Quantities[],Quantities!$B$2),VLOOKUP(A22,Quantities[],Quantities!$C$2)) )) -> - | I22: =IF(AND(LEFT(D22,2)="Sc",B22="A",C22="d"), SUM(VLOOKUP($A22,Quantities[],Quantities!$V$2),VLOOKUP($A22,Quantities[],Quantities!$Z$2), VLOOKUP($A22,Quantities[],Quantities!$AD$2)), IF(AND(LEFT(D22,2)="Sc",C22="a"), VLOOKUP(A22,Quantities[],Quantities!$J$2), IF(AND(B22="D",C22="b"), VLOOKUP(INDEX(Quantities!$A$56:$A$88,MATCH($A22,Quantities!$C$56:$C$89)),Quantities!$A$56:$AP$88,Quantities!$V$2)+ VLOOKUP(INDEX(Quantities!$A$56:$A$88,MATCH($A22,Quantities!$C$56:$C$89)),Quantities!$A$56:$AP$88,Quantities!$Z$2)+ VLOOKUP(INDEX(Quantities!$A$56:$A$88,MATCH($A22,Quantities!$C$56:$C$89)),Quantities!$A$56:$AP$88,Quantities!$AD$2), IF(B22="D", VLOOKUP(A22,Quantities[],Quantities!$V$2)+VLOOKUP(A22,Quantities[],Quantities!$Z$2)+VLOOKUP(A22,Quantities[],Quantities!$AD$2), IF($B22="Q", SUM(VLOOKUP($A22,Quantities[],Quantities!$V$2),VLOOKUP($A22,Quantities[],Quantities!$Z$2), VLOOKUP($A22,Quantities[],Quantities!$AD$2)), VLOOKUP(A22,Quantities[],Quantities!$G$2) ))))) -> 98.92 | J22: =IF(LEFT(D22,2)="Mg", VLOOKUP(A22,Quantities[],Quantities!$I$2), IF(AND(LEFT(D22,2)="Sc",B22="A",C22="d"), (SUM(VLOOKUP($A22,Quantities[],Quantities!$W$2)*VLOOKUP($A22,Quantities[],Quantities!$V$2),VLOOKUP($A22,Quantities[],Quantities!$AA$2)*VLOOKUP($A22,Quantities[],Quantities!$Z$2),VLOOKUP($A22,Quantities[],Quantities!$AE$2)*VLOOKUP($A22,Quantities[],Quantities!$AD$2)))/SUM(VLOOKUP($A22,Quantities[],Quantities!$V$2),VLOOKUP($A22,Quantities[],Quantities!$Z$2),VLOOKUP($A22,Quantities[],Quantities!$AD$2)), IF(AND(LEFT(D22,2)="Sc",C22="a"), VLOOKUP(A22,Quantities[],Quantities!$K$2), IF(AND(B22="D",C22="b", (VLOOKUP(INDEX(Quantities!$A$56:$A$88,MATCH($A22,Quantities!$C$56:$C$88)),Quantities[],Quantities!$V$2)+VLOOKUP(INDEX(Quantities!$A$56:$A$88,MATCH($A22,Quantities!$C$56:$C$88)),Quantities[],Quantities!$Z$2)+VLOOKUP(INDEX(Quantities!$A$56:$A$88,MATCH($A22,Quantities!$C$56:$C$88)),Quantities[],Quantities!$AD$2))>0), (VLOOKUP(INDEX(Quantities!$A$56:$A$88,MATCH($A22,Quantities!$C$56:$C$88)),Quantities[],Quantities!$W$2)*VLOOKUP(INDEX(Quantities!$A$56:$A$88,MATCH($A22,Quantities!$C$56:$C$88)),Quantities[],Quantities!$V$2) +VLOOKUP(INDEX(Quantities!$A$56:$A$88,MATCH($A22,Quantities!$C$56:$C$88)),Quantities[],Quantities!$AA$2)*VLOOKUP(INDEX(Quantities!$A$56:$A$88,MATCH($A22,Quantities!$C$56:$C$88)),Quantities[],Quantities!$Z$2) +VLOOKUP(INDEX(Quantities!$A$56:$A$88,MATCH($A22,Quantities!$C$56:$C$88)),Quantities[],Quantities!$AE$2)*VLOOKUP(INDEX(Quantities!$A$56:$A$88,MATCH($A22,Quantities!$C$56:$C$88)),Quantities[],Quantities!$AD$2))/ (VLOOKUP(INDEX(Quantities!$A$56:$A$88,MATCH($A22,Quantities!$C$56:$C$88)),Quantities[],Quantities!$V$2)+VLOOKUP(INDEX(Quantities!$A$56:$A$88,MATCH($A22,Quantities!$C$56:$C$88)),Quantities[],Quantities!$Z$2)+VLOOKUP(A22,Quantities[],Quantities!$AD$2)), IF(AND(B22="D", (VLOOKUP(A22,Quantities[],Quantities!$V$2)+VLOOKUP(A22,Quantities[],Quantities!$Z$2)+VLOOKUP(A22,Quantities[],Quantities!$AD$2))>0), (VLOOKUP(A22,Quantities[],Quantities!$W$2)*VLOOKUP(A22,Quantities[],Quantities!$V$2) +VLOOKUP(A22,Quantities[],Quantities!$AA$2)*VLOOKUP(A22,Quantities[],Quantities!$Z$2) +VLOOKUP(A22,Quantities[],Quantities!$AE$2)*VLOOKUP(A22,Quantities[],Quantities!$AD$2))/ (VLOOKUP(A22,Quantities[],Quantities!$V$2)+VLOOKUP(A22,Quantities[],Quantities!$Z$2)+VLOOKUP(A22,Quantities[],Quantities!$AD$2)), IF($B22="Q", (SUM(VLOOKUP($A22,Quantities[],Quantities!$W$2)*VLOOKUP($A22,Quantities[],Quantities!$V$2),VLOOKUP($A22,Quantities[],Quantities!$AA$2)*VLOOKUP($A22,Quantities[],Quantities!$Z$2),VLOOKUP($A22,Quantities[],Quantities!$AE$2)*VLOOKUP($A22,Quantities[],Quantities!$AD$2)))/SUM(VLOOKUP($A22,Quantities[],Quantities!$V$2),VLOOKUP($A22,Quantities[],Quantities!$Z$2),VLOOKUP($A22,Quantities[],Quantities!$AD$2)), VLOOKUP(A22,Quantities[],Quantities!$I$2) )))))) -> -0.33 | K22: =IF(LEFT(D22,1)="U","-",VLOOKUP(D22,Equipment[],Equipment!$B$2)) -> Cat D11T, U Blade
A23: =Quantities!A8 -> 1004 | B23: A | C23: a | D23: Dz1 | E23: 1004-A-a-Dz1 | F23: =IF(D23="Comb1",VLOOKUP(B23,'Activity-Material_Codes'!$A$2:$B$22,Quantities!$B$2), CONCATENATE( VLOOKUP(B23,'Activity-Material_Codes'!$A$2:$B$22,Quantities!$B$2), IF(AND(B23="B",C23="a"), " Grading",""), IF(C23="b","","-"), IF(C23="b","",VLOOKUP(A23,Quantities[],Quantities!$D$2)), IF(LEFT(TEXT(A23,"0"),1)="5","","-"), IF(LEFT(TEXT(A23,"0"),1)="5","",VLOOKUP(C23,'Activity-Material_Codes'!$A$25:$B$30,Quantities!$B$2)) )) -> Grade-Laydown Yard N of SWRDF-Existing Ground | G23: =CONCATENATE( IF(OR(RIGHT(TEXT($A23,"0"),Quantities!$B$2)="00",LEFT(TEXT($A23,"0"),1)="5",$C23="b"),"",VLOOKUP($A23,Quantities[],Quantities!$B$2)), IF(LEFT(TEXT($A23,"0"),1)="5",""," "), IF(OR(C23="a",C23="c",C23="d",C23="e"),IF(OR(RIGHT(TEXT($A23,"0"),Quantities!$B$2)="00",LEFT(TEXT($A23,"0"),1)="5"),VLOOKUP($A23,Quantities[],Quantities!$B$2),VLOOKUP($A23,Quantities[],Quantities!$C$2)), IF(LEFT(TEXT($A23,"0"),1)="5",VLOOKUP($A23,Quantities[],Quantities!$B$2), VLOOKUP(INDEX(Quantities!$A$56:$A$89,MATCH($A23,Quantities!$C$56:$C$89)),Quantities!$A$56:$B$89,Quantities!$B$2)))) -> South Waste Rock Disposal Facility SWRDF-4 | H23: =IF(LEFT(TEXT(A23,"0"),1)="5", VLOOKUP(VLOOKUP(A23,Quantities!$A$4:$D$89,Quantities!$C$2),Quantities!$A$4:$D$89,Quantities!$C$2), IF(OR(C23="a",C23="c",C23="d",C23="e"), "-", IF(RIGHT(TEXT(A23,"0"),2)="00",VLOOKUP(A23,Quantities[],Quantities!$B$2),VLOOKUP(A23,Quantities[],Quantities!$C$2)) )) -> - | I23: =IF(AND(LEFT(D23,2)="Sc",B23="A",C23="d"), SUM(VLOOKUP($A23,Quantities[],Quantities!$V$2),VLOOKUP($A23,Quantities[],Quantities!$Z$2), VLOOKUP($A23,Quantities[],Quantities!$AD$2)), IF(AND(LEFT(D23,2)="Sc",C23="a"), VLOOKUP(A23,Quantities[],Quantities!$J$2), IF(AND(B23="D",C23="b"), VLOOKUP(INDEX(Quantities!$A$56:$A$88,MATCH($A23,Quantities!$C$56:$C$89)),Quantities!$A$56:$AP$88,Quantities!$V$2)+ VLOOKUP(INDEX(Quantities!$A$56:$A$88,MATCH($A23,Quantities!$C$56:$C$89)),Quantities!$A$56:$AP$88,Quantities!$Z$2)+ VLOOKUP(INDEX(Quantities!$A$56:$A$88,MATCH($A23,Quantities!$C$56:$C$89)),Quantities!$A$56:$AP$88,Quantities!$AD$2), IF(B23="D", VLOOKUP(A23,Quantities[],Quantities!$V$2)+VLOOKUP(A23,Quantities[],Quantities!$Z$2)+VLOOKUP(A23,Quantities[],Quantities!$AD$2), IF($B23="Q", SUM(VLOOKUP($A23,Quantities[],Quantities!$V$2),VLOOKUP($A23,Quantities[],Quantities!$Z$2), VLOOKUP($A23,Quantities[],Quantities!$AD$2)), VLOOKUP(A23,Quantities[],Quantities!$G$2) ))))) -> 99 | J23: =IF(LEFT(D23,2)="Mg", VLOOKUP(A23,Quantities[],Quantities!$I$2), IF(AND(LEFT(D23,2)="Sc",B23="A",C23="d"), (SUM(VLOOKUP($A23,Quantities[],Quantities!$W$2)*VLOOKUP($A23,Quantities[],Quantities!$V$2),VLOOKUP($A23,Quantities[],Quantities!$AA$2)*VLOOKUP($A23,Quantities[],Quantities!$Z$2),VLOOKUP($A23,Quantities[],Quantities!$AE$2)*VLOOKUP($A23,Quantities[],Quantities!$AD$2)))/SUM(VLOOKUP($A23,Quantities[],Quantities!$V$2),VLOOKUP($A23,Quantities[],Quantities!$Z$2),VLOOKUP($A23,Quantities[],Quantities!$AD$2)), IF(AND(LEFT(D23,2)="Sc",C23="a"), VLOOKUP(A23,Quantities[],Quantities!$K$2), IF(AND(B23="D",C23="b", (VLOOKUP(INDEX(Quantities!$A$56:$A$88,MATCH($A23,Quantities!$C$56:$C$88)),Quantities[],Quantities!$V$2)+VLOOKUP(INDEX(Quantities!$A$56:$A$88,MATCH($A23,Quantities!$C$56:$C$88)),Quantities[],Quantities!$Z$2)+VLOOKUP(INDEX(Quantities!$A$56:$A$88,MATCH($A23,Quantities!$C$56:$C$88)),Quantities[],Quantities!$AD$2))>0), (VLOOKUP(INDEX(Quantities!$A$56:$A$88,MATCH($A23,Quantities!$C$56:$C$88)),Quantities[],Quantities!$W$2)*VLOOKUP(INDEX(Quantities!$A$56:$A$88,MATCH($A23,Quantities!$C$56:$C$88)),Quantities[],Quantities!$V$2) +VLOOKUP(INDEX(Quantities!$A$56:$A$88,MATCH($A23,Quantities!$C$56:$C$88)),Quantities[],Quantities!$AA$2)*VLOOKUP(INDEX(Quantities!$A$56:$A$88,MATCH($A23,Quantities!$C$56:$C$88)),Quantities[],Quantities!$Z$2) +VLOOKUP(INDEX(Quantities!$A$56:$A$88,MATCH($A23,Quantities!$C$56:$C$88)),Quantities[],Quantities!$AE$2)*VLOOKUP(INDEX(Quantities!$A$56:$A$88,MATCH($A23,Quantities!$C$56:$C$88)),Quantities[],Quantities!$AD$2))/ (VLOOKUP(INDEX(Quantities!$A$56:$A$88,MATCH($A23,Quantities!$C$56:$C$88)),Quantities[],Quantities!$V$2)+VLOOKUP(INDEX(Quantities!$A$56:$A$88,MATCH($A23,Quantities!$C$56:$C$88)),Quantities[],Quantities!$Z$2)+VLOOKUP(A23,Quantities[],Quantities!$AD$2)), IF(AND(B23="D", (VLOOKUP(A23,Quantities[],Quantities!$V$2)+VLOOKUP(A23,Quantities[],Quantities!$Z$2)+VLOOKUP(A23,Quantities[],Quantities!$AD$2))>0), (VLOOKUP(A23,Quantities[],Quantities!$W$2)*VLOOKUP(A23,Quantities[],Quantities!$V$2) +VLOOKUP(A23,Quantities[],Quantities!$AA$2)*VLOOKUP(A23,Quantities[],Quantities!$Z$2) +VLOOKUP(A23,Quantities[],Quantities!$AE$2)*VLOOKUP(A23,Quantities[],Quantities!$AD$2))/ (VLOOKUP(A23,Quantities[],Quantities!$V$2)+VLOOKUP(A23,Quantities[],Quantities!$Z$2)+VLOOKUP(A23,Quantities[],Quantities!$AD$2)), IF($B23="Q", (SUM(VLOOKUP($A23,Quantities[],Quantities!$W$2)*VLOOKUP($A23,Quantities[],Quantities!$V$2),VLOOKUP($A23,Quantities[],Quantities!$AA$2)*VLOOKUP($A23,Quantities[],Quantities!$Z$2),VLOOKUP($A23,Quantities[],Quantities!$AE$2)*VLOOKUP($A23,Quantities[],Quantities!$AD$2)))/SUM(VLOOKUP($A23,Quantities[],Quantities!$V$2),VLOOKUP($A23,Quantities[],Quantities!$Z$2),VLOOKUP($A23,Quantities[],Quantities!$AD$2)), VLOOKUP(A23,Quantities[],Quantities!$I$2) )))))) -> 0.01 | K23: =IF(LEFT(D23,1)="U","-",VLOOKUP(D23,Equipment[],Equipment!$B$2)) -> Cat D11T, U Blade
A24: =Quantities!A10 -> 1101 | B24: A | C24: a | D24: Dz1 | E24: 1101-A-a-Dz1 | F24: =IF(D24="Comb1",VLOOKUP(B24,'Activity-Material_Codes'!$A$2:$B$22,Quantities!$B$2), CONCATENATE( VLOOKUP(B24,'Activity-Material_Codes'!$A$2:$B$22,Quantities!$B$2), IF(AND(B24="B",C24="a"), " Grading",""), IF(C24="b","","-"), IF(C24="b","",VLOOKUP(A24,Quantities[],Quantities!$D$2)), IF(LEFT(TEXT(A24,"0"),1)="5","","-"), IF(LEFT(TEXT(A24,"0"),1)="5","",VLOOKUP(C24,'Activity-Material_Codes'!$A$25:$B$30,Quantities!$B$2)) )) -> Grade-Top-Existing Ground | G24: =CONCATENATE( IF(OR(RIGHT(TEXT($A24,"0"),Quantities!$B$2)="00",LEFT(TEXT($A24,"0"),1)="5",$C24="b"),"",VLOOKUP($A24,Quantities[],Quantities!$B$2)), IF(LEFT(TEXT($A24,"0"),1)="5",""," "), IF(OR(C24="a",C24="c",C24="d",C24="e"),IF(OR(RIGHT(TEXT($A24,"0"),Quantities!$B$2)="00",LEFT(TEXT($A24,"0"),1)="5"),VLOOKUP($A24,Quantities[],Quantities!$B$2),VLOOKUP($A24,Quantities[],Quantities!$C$2)), IF(LEFT(TEXT($A24,"0"),1)="5",VLOOKUP($A24,Quantities[],Quantities!$B$2), VLOOKUP(INDEX(Quantities!$A$56:$A$89,MATCH($A24,Quantities!$C$56:$C$89)),Quantities!$A$56:$B$89,Quantities!$B$2)))) -> No. 3 Shaft Stockpile N3SS-1 | H24: =IF(LEFT(TEXT(A24,"0"),1)="5", VLOOKUP(VLOOKUP(A24,Quantities!$A$4:$D$89,Quantities!$C$2),Quantities!$A$4:$D$89,Quantities!$C$2), IF(OR(C24="a",C24="c",C24="d",C24="e"), "-", IF(RIGHT(TEXT(A24,"0"),2)="00",VLOOKUP(A24,Quantities[],Quantities!$B$2),VLOOKUP(A24,Quantities[],Quantities!$C$2)) )) -> - | I24: =IF(AND(LEFT(D24,2)="Sc",B24="A",C24="d"), SUM(VLOOKUP($A24,Quantities[],Quantities!$V$2),VLOOKUP($A24,Quantities[],Quantities!$Z$2), VLOOKUP($A24,Quantities[],Quantities!$AD$2)), IF(AND(LEFT(D24,2)="Sc",C24="a"), VLOOKUP(A24,Quantities[],Quantities!$J$2), IF(AND(B24="D",C24="b"), VLOOKUP(INDEX(Quantities!$A$56:$A$88,MATCH($A24,Quantities!$C$56:$C$89)),Quantities!$A$56:$AP$88,Quantities!$V$2)+ VLOOKUP(INDEX(Quantities!$A$56:$A$88,MATCH($A24,Quantities!$C$56:$C$89)),Quantities!$A$56:$AP$88,Quantities!$Z$2)+ VLOOKUP(INDEX(Quantities!$A$56:$A$88,MATCH($A24,Quantities!$C$56:$C$89)),Quantities!$A$56:$AP$88,Quantities!$AD$2), IF(B24="D", VLOOKUP(A24,Quantities[],Quantities!$V$2)+VLOOKUP(A24,Quantities[],Quantities!$Z$2)+VLOOKUP(A24,Quantities[],Quantities!$AD$2), IF($B24="Q", SUM(VLOOKUP($A24,Quantities[],Quantities!$V$2),VLOOKUP($A24,Quantities[],Quantities!$Z$2), VLOOKUP($A24,Quantities[],Quantities!$AD$2)), VLOOKUP(A24,Quantities[],Quantities!$G$2) ))))) -> 60 | J24: =IF(LEFT(D24,2)="Mg", VLOOKUP(A24,Quantities[],Quantities!$I$2), IF(AND(LEFT(D24,2)="Sc",B24="A",C24="d"), (SUM(VLOOKUP($A24,Quantities[],Quantities!$W$2)*VLOOKUP($A24,Quantities[],Quantities!$V$2),VLOOKUP($A24,Quantities[],Quantities!$AA$2)*VLOOKUP($A24,Quantities[],Quantities!$Z$2),VLOOKUP($A24,Quantities[],Quantities!$AE$2)*VLOOKUP($A24,Quantities[],Quantities!$AD$2)))/SUM(VLOOKUP($A24,Quantities[],Quantities!$V$2),VLOOKUP($A24,Quantities[],Quantities!$Z$2),VLOOKUP($A24,Quantities[],Quantities!$AD$2)), IF(AND(LEFT(D24,2)="Sc",C24="a"), VLOOKUP(A24,Quantities[],Quantities!$K$2), IF(AND(B24="D",C24="b", (VLOOKUP(INDEX(Quantities!$A$56:$A$88,MATCH($A24,Quantities!$C$56:$C$88)),Quantities[],Quantities!$V$2)+VLOOKUP(INDEX(Quantities!$A$56:$A$88,MATCH($A24,Quantities!$C$56:$C$88)),Quantities[],Quantities!$Z$2)+VLOOKUP(INDEX(Quantities!$A$56:$A$88,MATCH($A24,Quantities!$C$56:$C$88)),Quantities[],Quantities!$AD$2))>0), (VLOOKUP(INDEX(Quantities!$A$56:$A$88,MATCH($A24,Quantities!$C$56:$C$88)),Quantities[],Quantities!$W$2)*VLOOKUP(INDEX(Quantities!$A$56:$A$88,MATCH($A24,Quantities!$C$56:$C$88)),Quantities[],Quantities!$V$2) +VLOOKUP(INDEX(Quantities!$A$56:$A$88,MATCH($A24,Quantities!$C$56:$C$88)),Quantities[],Quantities!$AA$2)*VLOOKUP(INDEX(Quantities!$A$56:$A$88,MATCH($A24,Quantities!$C$56:$C$88)),Quantities[],Quantities!$Z$2) +VLOOKUP(INDEX(Quantities!$A$56:$A$88,MATCH($A24,Quantities!$C$56:$C$88)),Quantities[],Quantities!$AE$2)*VLOOKUP(INDEX(Quantities!$A$56:$A$88,MATCH($A24,Quantities!$C$56:$C$88)),Quantities[],Quantities!$AD$2))/ (VLOOKUP(INDEX(Quantities!$A$56:$A$88,MATCH($A24,Quantities!$C$56:$C$88)),Quantities[],Quantities!$V$2)+VLOOKUP(INDEX(Quantities!$A$56:$A$88,MATCH($A24,Quantities!$C$56:$C$88)),Quantities[],Quantities!$Z$2)+VLOOKUP(A24,Quantities[],Quantities!$AD$2)), IF(AND(B24="D", (VLOOKUP(A24,Quantities[],Quantities!$V$2)+VLOOKUP(A24,Quantities[],Quantities!$Z$2)+VLOOKUP(A24,Quantities[],Quantities!$AD$2))>0), (VLOOKUP(A24,Quantities[],Quantities!$W$2)*VLOOKUP(A24,Quantities[],Quantities!$V$2) +VLOOKUP(A24,Quantities[],Quantities!$AA$2)*VLOOKUP(A24,Quantities[],Quantities!$Z$2) +VLOOKUP(A24,Quantities[],Quantities!$AE$2)*VLOOKUP(A24,Quantities[],Quantities!$AD$2))/ (VLOOKUP(A24,Quantities[],Quantities!$V$2)+VLOOKUP(A24,Quantities[],Quantities!$Z$2)+VLOOKUP(A24,Quantities[],Quantities!$AD$2)), IF($B24="Q", (SUM(VLOOKUP($A24,Quantities[],Quantities!$W$2)*VLOOKUP($A24,Quantities[],Quantities!$V$2),VLOOKUP($A24,Quantities[],Quantities!$AA$2)*VLOOKUP($A24,Quantities[],Quantities!$Z$2),VLOOKUP($A24,Quantities[],Quantities!$AE$2)*VLOOKUP($A24,Quantities[],Quantities!$AD$2)))/SUM(VLOOKUP($A24,Quantities[],Quantities!$V$2),VLOOKUP($A24,Quantities[],Quantities!$Z$2),VLOOKUP($A24,Quantities[],Quantities!$AD$2)), VLOOKUP(A24,Quantities[],Quantities!$I$2) )))))) -> -0.01 | K24: =IF(LEFT(D24,1)="U","-",VLOOKUP(D24,Equipment[],Equipment!$B$2)) -> Cat D11T, U Blade
A25: =Quantities!A11 -> 1102 | B25: A | C25: a | D25: Dz1 | E25: 1102-A-a-Dz1 | F25: =IF(D25="Comb1",VLOOKUP(B25,'Activity-Material_Codes'!$A$2:$B$22,Quantities!$B$2), CONCATENATE( VLOOKUP(B25,'Activity-Material_Codes'!$A$2:$B$22,Quantities!$B$2), IF(AND(B25="B",C25="a"), " Grading",""), IF(C25="b","","-"), IF(C25="b","",VLOOKUP(A25,Quantities[],Quantities!$D$2)), IF(LEFT(TEXT(A25,"0"),1)="5","","-"), IF(LEFT(TEXT(A25,"0"),1)="5","",VLOOKUP(C25,'Activity-Material_Codes'!$A$25:$B$30,Quantities!$B$2)) )) -> Grade-Outslope-Existing Ground | G25: =CONCATENATE( IF(OR(RIGHT(TEXT($A25,"0"),Quantities!$B$2)="00",LEFT(TEXT($A25,"0"),1)="5",$C25="b"),"",VLOOKUP($A25,Quantities[],Quantities!$B$2)), IF(LEFT(TEXT($A25,"0"),1)="5",""," "), IF(OR(C25="a",C25="c",C25="d",C25="e"),IF(OR(RIGHT(TEXT($A25,"0"),Quantities!$B$2)="00",LEFT(TEXT($A25,"0"),1)="5"),VLOOKUP($A25,Quantities[],Quantities!$B$2),VLOOKUP($A25,Quantities[],Quantities!$C$2)), IF(LEFT(TEXT($A25,"0"),1)="5",VLOOKUP($A25,Quantities[],Quantities!$B$2), VLOOKUP(INDEX(Quantities!$A$56:$A$89,MATCH($A25,Quantities!$C$56:$C$89)),Quantities!$A$56:$B$89,Quantities!$B$2)))) -> No. 3 Shaft Stockpile N3SS-2 | H25: =IF(LEFT(TEXT(A25,"0"),1)="5", VLOOKUP(VLOOKUP(A25,Quantities!$A$4:$D$89,Quantities!$C$2),Quantities!$A$4:$D$89,Quantities!$C$2), IF(OR(C25="a",C25="c",C25="d",C25="e"), "-", IF(RIGHT(TEXT(A25,"0"),2)="00",VLOOKUP(A25,Quantities[],Quantities!$B$2),VLOOKUP(A25,Quantities[],Quantities!$C$2)) )) -> - | I25: =IF(AND(LEFT(D25,2)="Sc",B25="A",C25="d"), SUM(VLOOKUP($A25,Quantities[],Quantities!$V$2),VLOOKUP($A25,Quantities[],Quantities!$Z$2), VLOOKUP($A25,Quantities[],Quantities!$AD$2)), IF(AND(LEFT(D25,2)="Sc",C25="a"), VLOOKUP(A25,Quantities[],Quantities!$J$2), IF(AND(B25="D",C25="b"), VLOOKUP(INDEX(Quantities!$A$56:$A$88,MATCH($A25,Quantities!$C$56:$C$89)),Quantities!$A$56:$AP$88,Quantities!$V$2)+ VLOOKUP(INDEX(Quantities!$A$56:$A$88,MATCH($A25,Quantities!$C$56:$C$89)),Quantities!$A$56:$AP$88,Quantities!$Z$2)+ VLOOKUP(INDEX(Quantities!$A$56:$A$88,MATCH($A25,Quantities!$C$56:$C$89)),Quantities!$A$56:$AP$88,Quantities!$AD$2), IF(B25="D", VLOOKUP(A25,Quantities[],Quantities!$V$2)+VLOOKUP(A25,Quantities[],Quantities!$Z$2)+VLOOKUP(A25,Quantities[],Quantities!$AD$2), IF($B25="Q", SUM(VLOOKUP($A25,Quantities[],Quantities!$V$2),VLOOKUP($A25,Quantities[],Quantities!$Z$2), VLOOKUP($A25,Quantities[],Quantities!$AD$2)), VLOOKUP(A25,Quantities[],Quantities!$G$2) ))))) -> 128 | J25: =IF(LEFT(D25,2)="Mg", VLOOKUP(A25,Quantities[],Quantities!$I$2), IF(AND(LEFT(D25,2)="Sc",B25="A",C25="d"), (SUM(VLOOKUP($A25,Quantities[],Quantities!$W$2)*VLOOKUP($A25,Quantities[],Quantities!$V$2),VLOOKUP($A25,Quantities[],Quantities!$AA$2)*VLOOKUP($A25,Quantities[],Quantities!$Z$2),VLOOKUP($A25,Quantities[],Quantities!$AE$2)*VLOOKUP($A25,Quantities[],Quantities!$AD$2)))/SUM(VLOOKUP($A25,Quantities[],Quantities!$V$2),VLOOKUP($A25,Quantities[],Quantities!$Z$2),VLOOKUP($A25,Quantities[],Quantities!$AD$2)), IF(AND(LEFT(D25,2)="Sc",C25="a"), VLOOKUP(A25,Quantities[],Quantities!$K$2), IF(AND(B25="D",C25="b", (VLOOKUP(INDEX(Quantities!$A$56:$A$88,MATCH($A25,Quantities!$C$56:$C$88)),Quantities[],Quantities!$V$2)+VLOOKUP(INDEX(Quantities!$A$56:$A$88,MATCH($A25,Quantities!$C$56:$C$88)),Quantities[],Quantities!$Z$2)+VLOOKUP(INDEX(Quantities!$A$56:$A$88,MATCH($A25,Quantities!$C$56:$C$88)),Quantities[],Quantities!$AD$2))>0), (VLOOKUP(INDEX(Quantities!$A$56:$A$88,MATCH($A25,Quantities!$C$56:$C$88)),Quantities[],Quantities!$W$2)*VLOOKUP(INDEX(Quantities!$A$56:$A$88,MATCH($A25,Quantities!$C$56:$C$88)),Quantities[],Quantities!$V$2) +VLOOKUP(INDEX(Quantities!$A$56:$A$88,MATCH($A25,Quantities!$C$56:$C$88)),Quantities[],Quantities!$AA$2)*VLOOKUP(INDEX(Quantities!$A$56:$A$88,MATCH($A25,Quantities!$C$56:$C$88)),Quantities[],Quantities!$Z$2) +VLOOKUP(INDEX(Quantities!$A$56:$A$88,MATCH($A25,Quantities!$C$56:$C$88)),Quantities[],Quantities!$AE$2)*VLOOKUP(INDEX(Quantities!$A$56:$A$88,MATCH($A25,Quantities!$C$56:$C$88)),Quantities[],Quantities!$AD$2))/ (VLOOKUP(INDEX(Quantities!$A$56:$A$88,MATCH($A25,Quantities!$C$56:$C$88)),Quantities[],Quantities!$V$2)+VLOOKUP(INDEX(Quantities!$A$56:$A$88,MATCH($A25,Quantities!$C$56:$C$88)),Quantities[],Quantities!$Z$2)+VLOOKUP(A25,Quantities[],Quantities!$AD$2)), IF(AND(B25="D", (VLOOKUP(A25,Quantities[],Quantities!$V$2)+VLOOKUP(A25,Quantities[],Quantities!$Z$2)+VLOOKUP(A25,Quantities[],Quantities!$AD$2))>0), (VLOOKUP(A25,Quantities[],Quantities!$W$2)*VLOOKUP(A25,Quantities[],Quantities!$V$2) +VLOOKUP(A25,Quantities[],Quantities!$AA$2)*VLOOKUP(A25,Quantities[],Quantities!$Z$2) +VLOOKUP(A25,Quantities[],Quantities!$AE$2)*VLOOKUP(A25,Quantities[],Quantities!$AD$2))/ (VLOOKUP(A25,Quantities[],Quantities!$V$2)+VLOOKUP(A25,Quantities[],Quantities!$Z$2)+VLOOKUP(A25,Quantities[],Quantities!$AD$2)), IF($B25="Q", (SUM(VLOOKUP($A25,Quantities[],Quantities!$W$2)*VLOOKUP($A25,Quantities[],Quantities!$V$2),VLOOKUP($A25,Quantities[],Quantities!$AA$2)*VLOOKUP($A25,Quantities[],Quantities!$Z$2),VLOOKUP($A25,Quantities[],Quantities!$AE$2)*VLOOKUP($A25,Quantities[],Quantities!$AD$2)))/SUM(VLOOKUP($A25,Quantities[],Quantities!$V$2),VLOOKUP($A25,Quantities[],Quantities!$Z$2),VLOOKUP($A25,Quantities[],Quantities!$AD$2)), VLOOKUP(A25,Quantities[],Quantities!$I$2) )))))) -> -0.33 | K25: =IF(LEFT(D25,1)="U","-",VLOOKUP(D25,Equipment[],Equipment!$B$2)) -> Cat D11T, U Blade
A26: =Quantities!A13 -> 1201 | B26: A | C26: a | D26: Dz1 | E26: 1201-A-a-Dz1 | F26: =IF(D26="Comb1",VLOOKUP(B26,'Activity-Material_Codes'!$A$2:$B$22,Quantities!$B$2), CONCATENATE( VLOOKUP(B26,'Activity-Material_Codes'!$A$2:$B$22,Quantities!$B$2), IF(AND(B26="B",C26="a"), " Grading",""), IF(C26="b","","-"), IF(C26="b","",VLOOKUP(A26,Quantities[],Quantities!$D$2)), IF(LEFT(TEXT(A26,"0"),1)="5","","-"), IF(LEFT(TEXT(A26,"0"),1)="5","",VLOOKUP(C26,'Activity-Material_Codes'!$A$25:$B$30,Quantities!$B$2)) )) -> Grade-Top-Existing Ground | G26: =CONCATENATE( IF(OR(RIGHT(TEXT($A26,"0"),Quantities!$B$2)="00",LEFT(TEXT($A26,"0"),1)="5",$C26="b"),"",VLOOKUP($A26,Quantities[],Quantities!$B$2)), IF(LEFT(TEXT($A26,"0"),1)="5",""," "), IF(OR(C26="a",C26="c",C26="d",C26="e"),IF(OR(RIGHT(TEXT($A26,"0"),Quantities!$B$2)="00",LEFT(TEXT($A26,"0"),1)="5"),VLOOKUP($A26,Quantities[],Quantities!$B$2),VLOOKUP($A26,Quantities[],Quantities!$C$2)), IF(LEFT(TEXT($A26,"0"),1)="5",VLOOKUP($A26,Quantities[],Quantities!$B$2), VLOOKUP(INDEX(Quantities!$A$56:$A$89,MATCH($A26,Quantities!$C$56:$C$89)),Quantities!$A$56:$B$89,Quantities!$B$2)))) -> Low Grade Ore Waste Rock Facility LGWRF-1 | H26: =IF(LEFT(TEXT(A26,"0"),1)="5", VLOOKUP(VLOOKUP(A26,Quantities!$A$4:$D$89,Quantities!$C$2),Quantities!$A$4:$D$89,Quantities!$C$2), IF(OR(C26="a",C26="c",C26="d",C26="e"), "-", IF(RIGHT(TEXT(A26,"0"),2)="00",VLOOKUP(A26,Quantities[],Quantities!$B$2),VLOOKUP(A26,Quantities[],Quantities!$C$2)) )) -> - | I26: =IF(AND(LEFT(D26,2)="Sc",B26="A",C26="d"), SUM(VLOOKUP($A26,Quantities[],Quantities!$V$2),VLOOKUP($A26,Quantities[],Quantities!$Z$2), VLOOKUP($A26,Quantities[],Quantities!$AD$2)), IF(AND(LEFT(D26,2)="Sc",C26="a"), VLOOKUP(A26,Quantities[],Quantities!$J$2), IF(AND(B26="D",C26="b"), VLOOKUP(INDEX(Quantities!$A$56:$A$88,MATCH($A26,Quantities!$C$56:$C$89)),Quantities!$A$56:$AP$88,Quantities!$V$2)+ VLOOKUP(INDEX(Quantities!$A$56:$A$88,MATCH($A26,Quantities!$C$56:$C$89)),Quantities!$A$56:$AP$88,Quantities!$Z$2)+ VLOOKUP(INDEX(Quantities!$A$56:$A$88,MATCH($A26,Quantities!$C$56:$C$89)),Quantities!$A$56:$AP$88,Quantities!$AD$2), IF(B26="D", VLOOKUP(A26,Quantities[],Quantities!$V$2)+VLOOKUP(A26,Quantities[],Quantities!$Z$2)+VLOOKUP(A26,Quantities[],Quantities!$AD$2), IF($B26="Q", SUM(VLOOKUP($A26,Quantities[],Quantities!$V$2),VLOOKUP($A26,Quantities[],Quantities!$Z$2), VLOOKUP($A26,Quantities[],Quantities!$AD$2)), VLOOKUP(A26,Quantities[],Quantities!$G$2) ))))) -> 92 | J26: =IF(LEFT(D26,2)="Mg", VLOOKUP(A26,Quantities[],Quantities!$I$2), IF(AND(LEFT(D26,2)="Sc",B26="A",C26="d"), (SUM(VLOOKUP($A26,Quantities[],Quantities!$W$2)*VLOOKUP($A26,Quantities[],Quantities!$V$2),VLOOKUP($A26,Quantities[],Quantities!$AA$2)*VLOOKUP($A26,Quantities[],Quantities!$Z$2),VLOOKUP($A26,Quantities[],Quantities!$AE$2)*VLOOKUP($A26,Quantities[],Quantities!$AD$2)))/SUM(VLOOKUP($A26,Quantities[],Quantities!$V$2),VLOOKUP($A26,Quantities[],Quantities!$Z$2),VLOOKUP($A26,Quantities[],Quantities!$AD$2)), IF(AND(LEFT(D26,2)="Sc",C26="a"), VLOOKUP(A26,Quantities[],Quantities!$K$2), IF(AND(B26="D",C26="b", (VLOOKUP(INDEX(Quantities!$A$56:$A$88,MATCH($A26,Quantities!$C$56:$C$88)),Quantities[],Quantities!$V$2)+VLOOKUP(INDEX(Quantities!$A$56:$A$88,MATCH($A26,Quantities!$C$56:$C$88)),Quantities[],Quantities!$Z$2)+VLOOKUP(INDEX(Quantities!$A$56:$A$88,MATCH($A26,Quantities!$C$56:$C$88)),Quantities[],Quantities!$AD$2))>0), (VLOOKUP(INDEX(Quantities!$A$56:$A$88,MATCH($A26,Quantities!$C$56:$C$88)),Quantities[],Quantities!$W$2)*VLOOKUP(INDEX(Quantities!$A$56:$A$88,MATCH($A26,Quantities!$C$56:$C$88)),Quantities[],Quantities!$V$2) +VLOOKUP(INDEX(Quantities!$A$56:$A$88,MATCH($A26,Quantities!$C$56:$C$88)),Quantities[],Quantities!$AA$2)*VLOOKUP(INDEX(Quantities!$A$56:$A$88,MATCH($A26,Quantities!$C$56:$C$88)),Quantities[],Quantities!$Z$2) +VLOOKUP(INDEX(Quantities!$A$56:$A$88,MATCH($A26,Quantities!$C$56:$C$88)),Quantities[],Quantities!$AE$2)*VLOOKUP(INDEX(Quantities!$A$56:$A$88,MATCH($A26,Quantities!$C$56:$C$88)),Quantities[],Quantities!$AD$2))/ (VLOOKUP(INDEX(Quantities!$A$56:$A$88,MATCH($A26,Quantities!$C$56:$C$88)),Quantities[],Quantities!$V$2)+VLOOKUP(INDEX(Quantities!$A$56:$A$88,MATCH($A26,Quantities!$C$56:$C$88)),Quantities[],Quantities!$Z$2)+VLOOKUP(A26,Quantities[],Quantities!$AD$2)), IF(AND(B26="D", (VLOOKUP(A26,Quantities[],Quantities!$V$2)+VLOOKUP(A26,Quantities[],Quantities!$Z$2)+VLOOKUP(A26,Quantities[],Quantities!$AD$2))>0), (VLOOKUP(A26,Quantities[],Quantities!$W$2)*VLOOKUP(A26,Quantities[],Quantities!$V$2) +VLOOKUP(A26,Quantities[],Quantities!$AA$2)*VLOOKUP(A26,Quantities[],Quantities!$Z$2) +VLOOKUP(A26,Quantities[],Quantities!$AE$2)*VLOOKUP(A26,Quantities[],Quantities!$AD$2))/ (VLOOKUP(A26,Quantities[],Quantities!$V$2)+VLOOKUP(A26,Quantities[],Quantities!$Z$2)+VLOOKUP(A26,Quantities[],Quantities!$AD$2)), IF($B26="Q", (SUM(VLOOKUP($A26,Quantities[],Quantities!$W$2)*VLOOKUP($A26,Quantities[],Quantities!$V$2),VLOOKUP($A26,Quantities[],Quantities!$AA$2)*VLOOKUP($A26,Quantities[],Quantities!$Z$2),VLOOKUP($A26,Quantities[],Quantities!$AE$2)*VLOOKUP($A26,Quantities[],Quantities!$AD$2)))/SUM(VLOOKUP($A26,Quantities[],Quantities!$V$2),VLOOKUP($A26,Quantities[],Quantities!$Z$2),VLOOKUP($A26,Quantities[],Quantities!$AD$2)), VLOOKUP(A26,Quantities[],Quantities!$I$2) )))))) -> -0.01 | K26: =IF(LEFT(D26,1)="U","-",VLOOKUP(D26,Equipment[],Equipment!$B$2)) -> Cat D11T, U Blade
A27: =Quantities!A14 -> 1202 | B27: A | C27: a | D27: Dz1 | E27: 1202-A-a-Dz1 | F27: =IF(D27="Comb1",VLOOKUP(B27,'Activity-Material_Codes'!$A$2:$B$22,Quantities!$B$2), CONCATENATE( VLOOKUP(B27,'Activity-Material_Codes'!$A$2:$B$22,Quantities!$B$2), IF(AND(B27="B",C27="a"), " Grading",""), IF(C27="b","","-"), IF(C27="b","",VLOOKUP(A27,Quantities[],Quantities!$D$2)), IF(LEFT(TEXT(A27,"0"),1)="5","","-"), IF(LEFT(TEXT(A27,"0"),1)="5","",VLOOKUP(C27,'Activity-Material_Codes'!$A$25:$B$30,Quantities!$B$2)) )) -> Grade-Outslope-Existing Ground | G27: =CONCATENATE( IF(OR(RIGHT(TEXT($A27,"0"),Quantities!$B$2)="00",LEFT(TEXT($A27,"0"),1)="5",$C27="b"),"",VLOOKUP($A27,Quantities[],Quantities!$B$2)), IF(LEFT(TEXT($A27,"0"),1)="5",""," "), IF(OR(C27="a",C27="c",C27="d",C27="e"),IF(OR(RIGHT(TEXT($A27,"0"),Quantities!$B$2)="00",LEFT(TEXT($A27,"0"),1)="5"),VLOOKUP($A27,Quantities[],Quantities!$B$2),VLOOKUP($A27,Quantities[],Quantities!$C$2)), IF(LEFT(TEXT($A27,"0"),1)="5",VLOOKUP($A27,Quantities[],Quantities!$B$2), VLOOKUP(INDEX(Quantities!$A$56:$A$89,MATCH($A27,Quantities!$C$56:$C$89)),Quantities!$A$56:$B$89,Quantities!$B$2)))) -> Low Grade Ore Waste Rock Facility LGWRF-2 | H27: =IF(LEFT(TEXT(A27,"0"),1)="5", VLOOKUP(VLOOKUP(A27,Quantities!$A$4:$D$89,Quantities!$C$2),Quantities!$A$4:$D$89,Quantities!$C$2), IF(OR(C27="a",C27="c",C27="d",C27="e"), "-", IF(RIGHT(TEXT(A27,"0"),2)="00",VLOOKUP(A27,Quantities[],Quantities!$B$2),VLOOKUP(A27,Quantities[],Quantities!$C$2)) )) -> - | I27: =IF(AND(LEFT(D27,2)="Sc",B27="A",C27="d"), SUM(VLOOKUP($A27,Quantities[],Quantities!$V$2),VLOOKUP($A27,Quantities[],Quantities!$Z$2), VLOOKUP($A27,Quantities[],Quantities!$AD$2)), IF(AND(LEFT(D27,2)="Sc",C27="a"), VLOOKUP(A27,Quantities[],Quantities!$J$2), IF(AND(B27="D",C27="b"), VLOOKUP(INDEX(Quantities!$A$56:$A$88,MATCH($A27,Quantities!$C$56:$C$89)),Quantities!$A$56:$AP$88,Quantities!$V$2)+ VLOOKUP(INDEX(Quantities!$A$56:$A$88,MATCH($A27,Quantities!$C$56:$C$89)),Quantities!$A$56:$AP$88,Quantities!$Z$2)+ VLOOKUP(INDEX(Quantities!$A$56:$A$88,MATCH($A27,Quantities!$C$56:$C$89)),Quantities!$A$56:$AP$88,Quantities!$AD$2), IF(B27="D", VLOOKUP(A27,Quantities[],Quantities!$V$2)+VLOOKUP(A27,Quantities[],Quantities!$Z$2)+VLOOKUP(A27,Quantities[],Quantities!$AD$2), IF($B27="Q", SUM(VLOOKUP($A27,Quantities[],Quantities!$V$2),VLOOKUP($A27,Quantities[],Quantities!$Z$2), VLOOKUP($A27,Quantities[],Quantities!$AD$2)), VLOOKUP(A27,Quantities[],Quantities!$G$2) ))))) -> 162.9 | J27: =IF(LEFT(D27,2)="Mg", VLOOKUP(A27,Quantities[],Quantities!$I$2), IF(AND(LEFT(D27,2)="Sc",B27="A",C27="d"), (SUM(VLOOKUP($A27,Quantities[],Quantities!$W$2)*VLOOKUP($A27,Quantities[],Quantities!$V$2),VLOOKUP($A27,Quantities[],Quantities!$AA$2)*VLOOKUP($A27,Quantities[],Quantities!$Z$2),VLOOKUP($A27,Quantities[],Quantities!$AE$2)*VLOOKUP($A27,Quantities[],Quantities!$AD$2)))/SUM(VLOOKUP($A27,Quantities[],Quantities!$V$2),VLOOKUP($A27,Quantities[],Quantities!$Z$2),VLOOKUP($A27,Quantities[],Quantities!$AD$2)), IF(AND(LEFT(D27,2)="Sc",C27="a"), VLOOKUP(A27,Quantities[],Quantities!$K$2), IF(AND(B27="D",C27="b", (VLOOKUP(INDEX(Quantities!$A$56:$A$88,MATCH($A27,Quantities!$C$56:$C$88)),Quantities[],Quantities!$V$2)+VLOOKUP(INDEX(Quantities!$A$56:$A$88,MATCH($A27,Quantities!$C$56:$C$88)),Quantities[],Quantities!$Z$2)+VLOOKUP(INDEX(Quantities!$A$56:$A$88,MATCH($A27,Quantities!$C$56:$C$88)),Quantities[],Quantities!$AD$2))>0), (VLOOKUP(INDEX(Quantities!$A$56:$A$88,MATCH($A27,Quantities!$C$56:$C$88)),Quantities[],Quantities!$W$2)*VLOOKUP(INDEX(Quantities!$A$56:$A$88,MATCH($A27,Quantities!$C$56:$C$88)),Quantities[],Quantities!$V$2) +VLOOKUP(INDEX(Quantities!$A$56:$A$88,MATCH($A27,Quantities!$C$56:$C$88)),Quantities[],Quantities!$AA$2)*VLOOKUP(INDEX(Quantities!$A$56:$A$88,MATCH($A27,Quantities!$C$56:$C$88)),Quantities[],Quantities!$Z$2) +VLOOKUP(INDEX(Quantities!$A$56:$A$88,MATCH($A27,Quantities!$C$56:$C$88)),Quantities[],Quantities!$AE$2)*VLOOKUP(INDEX(Quantities!$A$56:$A$88,MATCH($A27,Quantities!$C$56:$C$88)),Quantities[],Quantities!$AD$2))/ (VLOOKUP(INDEX(Quantities!$A$56:$A$88,MATCH($A27,Quantities!$C$56:$C$88)),Quantities[],Quantities!$V$2)+VLOOKUP(INDEX(Quantities!$A$56:$A$88,MATCH($A27,Quantities!$C$56:$C$88)),Quantities[],Quantities!$Z$2)+VLOOKUP(A27,Quantities[],Quantities!$AD$2)), IF(AND(B27="D", (VLOOKUP(A27,Quantities[],Quantities!$V$2)+VLOOKUP(A27,Quantities[],Quantities!$Z$2)+VLOOKUP(A27,Quantities[],Quantities!$AD$2))>0), (VLOOKUP(A27,Quantities[],Quantities!$W$2)*VLOOKUP(A27,Quantities[],Quantities!$V$2) +VLOOKUP(A27,Quantities[],Quantities!$AA$2)*VLOOKUP(A27,Quantities[],Quantities!$Z$2) +VLOOKUP(A27,Quantities[],Quantities!$AE$2)*VLOOKUP(A27,Quantities[],Quantities!$AD$2))/ (VLOOKUP(A27,Quantities[],Quantities!$V$2)+VLOOKUP(A27,Quantities[],Quantities!$Z$2)+VLOOKUP(A27,Quantities[],Quantities!$AD$2)), IF($B27="Q", (SUM(VLOOKUP($A27,Quantities[],Quantities!$W$2)*VLOOKUP($A27,Quantities[],Quantities!$V$2),VLOOKUP($A27,Quantities[],Quantities!$AA$2)*VLOOKUP($A27,Quantities[],Quantities!$Z$2),VLOOKUP($A27,Quantities[],Quantities!$AE$2)*VLOOKUP($A27,Quantities[],Quantities!$AD$2)))/SUM(VLOOKUP($A27,Quantities[],Quantities!$V$2),VLOOKUP($A27,Quantities[],Quantities!$Z$2),VLOOKUP($A27,Quantities[],Quantities!$AD$2)), VLOOKUP(A27,Quantities[],Quantities!$I$2) )))))) -> -0.33 | K27: =IF(LEFT(D27,1)="U","-",VLOOKUP(D27,Equipment[],Equipment!$B$2)) -> Cat D11T, U Blade
A28: =Quantities!A16 -> 1301 | B28: A | C28: a | D28: Dz1 | E28: 1301-A-a-Dz1 | F28: =IF(D28="Comb1",VLOOKUP(B28,'Activity-Material_Codes'!$A$2:$B$22,Quantities!$B$2), CONCATENATE( VLOOKUP(B28,'Activity-Material_Codes'!$A$2:$B$22,Quantities!$B$2), IF(AND(B28="B",C28="a"), " Grading",""), IF(C28="b","","-"), IF(C28="b","",VLOOKUP(A28,Quantities[],Quantities!$D$2)), IF(LEFT(TEXT(A28,"0"),1)="5","","-"), IF(LEFT(TEXT(A28,"0"),1)="5","",VLOOKUP(C28,'Activity-Material_Codes'!$A$25:$B$30,Quantities!$B$2)) )) -> Grade-Top-Existing Ground | G28: =CONCATENATE( IF(OR(RIGHT(TEXT($A28,"0"),Quantities!$B$2)="00",LEFT(TEXT($A28,"0"),1)="5",$C28="b"),"",VLOOKUP($A28,Quantities[],Quantities!$B$2)), IF(LEFT(TEXT($A28,"0"),1)="5",""," "), IF(OR(C28="a",C28="c",C28="d",C28="e"),IF(OR(RIGHT(TEXT($A28,"0"),Quantities!$B$2)="00",LEFT(TEXT($A28,"0"),1)="5"),VLOOKUP($A28,Quantities[],Quantities!$B$2),VLOOKUP($A28,Quantities[],Quantities!$C$2)), IF(LEFT(TEXT($A28,"0"),1)="5",VLOOKUP($A28,Quantities[],Quantities!$B$2), VLOOKUP(INDEX(Quantities!$A$56:$A$89,MATCH($A28,Quantities!$C$56:$C$89)),Quantities!$A$56:$B$89,Quantities!$B$2)))) -> Main Tailings Impoundment MTI-1 | H28: =IF(LEFT(TEXT(A28,"0"),1)="5", VLOOKUP(VLOOKUP(A28,Quantities!$A$4:$D$89,Quantities!$C$2),Quantities!$A$4:$D$89,Quantities!$C$2), IF(OR(C28="a",C28="c",C28="d",C28="e"), "-", IF(RIGHT(TEXT(A28,"0"),2)="00",VLOOKUP(A28,Quantities[],Quantities!$B$2),VLOOKUP(A28,Quantities[],Quantities!$C$2)) )) -> - | I28: =IF(AND(LEFT(D28,2)="Sc",B28="A",C28="d"), SUM(VLOOKUP($A28,Quantities[],Quantities!$V$2),VLOOKUP($A28,Quantities[],Quantities!$Z$2), VLOOKUP($A28,Quantities[],Quantities!$AD$2)), IF(AND(LEFT(D28,2)="Sc",C28="a"), VLOOKUP(A28,Quantities[],Quantities!$J$2), IF(AND(B28="D",C28="b"), VLOOKUP(INDEX(Quantities!$A$56:$A$88,MATCH($A28,Quantities!$C$56:$C$89)),Quantities!$A$56:$AP$88,Quantities!$V$2)+ VLOOKUP(INDEX(Quantities!$A$56:$A$88,MATCH($A28,Quantities!$C$56:$C$89)),Quantities!$A$56:$AP$88,Quantities!$Z$2)+ VLOOKUP(INDEX(Quantities!$A$56:$A$88,MATCH($A28,Quantities!$C$56:$C$89)),Quantities!$A$56:$AP$88,Quantities!$AD$2), IF(B28="D", VLOOKUP(A28,Quantities[],Quantities!$V$2)+VLOOKUP(A28,Quantities[],Quantities!$Z$2)+VLOOKUP(A28,Quantities[],Quantities!$AD$2), IF($B28="Q", SUM(VLOOKUP($A28,Quantities[],Quantities!$V$2),VLOOKUP($A28,Quantities[],Quantities!$Z$2), VLOOKUP($A28,Quantities[],Quantities!$AD$2)), VLOOKUP(A28,Quantities[],Quantities!$G$2) ))))) -> 200 | J28: =IF(LEFT(D28,2)="Mg", VLOOKUP(A28,Quantities[],Quantities!$I$2), IF(AND(LEFT(D28,2)="Sc",B28="A",C28="d"), (SUM(VLOOKUP($A28,Quantities[],Quantities!$W$2)*VLOOKUP($A28,Quantities[],Quantities!$V$2),VLOOKUP($A28,Quantities[],Quantities!$AA$2)*VLOOKUP($A28,Quantities[],Quantities!$Z$2),VLOOKUP($A28,Quantities[],Quantities!$AE$2)*VLOOKUP($A28,Quantities[],Quantities!$AD$2)))/SUM(VLOOKUP($A28,Quantities[],Quantities!$V$2),VLOOKUP($A28,Quantities[],Quantities!$Z$2),VLOOKUP($A28,Quantities[],Quantities!$AD$2)), IF(AND(LEFT(D28,2)="Sc",C28="a"), VLOOKUP(A28,Quantities[],Quantities!$K$2), IF(AND(B28="D",C28="b", (VLOOKUP(INDEX(Quantities!$A$56:$A$88,MATCH($A28,Quantities!$C$56:$C$88)),Quantities[],Quantities!$V$2)+VLOOKUP(INDEX(Quantities!$A$56:$A$88,MATCH($A28,Quantities!$C$56:$C$88)),Quantities[],Quantities!$Z$2)+VLOOKUP(INDEX(Quantities!$A$56:$A$88,MATCH($A28,Quantities!$C$56:$C$88)),Quantities[],Quantities!$AD$2))>0), (VLOOKUP(INDEX(Quantities!$A$56:$A$88,MATCH($A28,Quantities!$C$56:$C$88)),Quantities[],Quantities!$W$2)*VLOOKUP(INDEX(Quantities!$A$56:$A$88,MATCH($A28,Quantities!$C$56:$C$88)),Quantities[],Quantities!$V$2) +VLOOKUP(INDEX(Quantities!$A$56:$A$88,MATCH($A28,Quantities!$C$56:$C$88)),Quantities[],Quantities!$AA$2)*VLOOKUP(INDEX(Quantities!$A$56:$A$88,MATCH($A28,Quantities!$C$56:$C$88)),Quantities[],Quantities!$Z$2) +VLOOKUP(INDEX(Quantities!$A$56:$A$88,MATCH($A28,Quantities!$C$56:$C$88)),Quantities[],Quantities!$AE$2)*VLOOKUP(INDEX(Quantities!$A$56:$A$88,MATCH($A28,Quantities!$C$56:$C$88)),Quantities[],Quantities!$AD$2))/ (VLOOKUP(INDEX(Quantities!$A$56:$A$88,MATCH($A28,Quantities!$C$56:$C$88)),Quantities[],Quantities!$V$2)+VLOOKUP(INDEX(Quantities!$A$56:$A$88,MATCH($A28,Quantities!$C$56:$C$88)),Quantities[],Quantities!$Z$2)+VLOOKUP(A28,Quantities[],Quantities!$AD$2)), IF(AND(B28="D", (VLOOKUP(A28,Quantities[],Quantities!$V$2)+VLOOKUP(A28,Quantities[],Quantities!$Z$2)+VLOOKUP(A28,Quantities[],Quantities!$AD$2))>0), (VLOOKUP(A28,Quantities[],Quantities!$W$2)*VLOOKUP(A28,Quantities[],Quantities!$V$2) +VLOOKUP(A28,Quantities[],Quantities!$AA$2)*VLOOKUP(A28,Quantities[],Quantities!$Z$2) +VLOOKUP(A28,Quantities[],Quantities!$AE$2)*VLOOKUP(A28,Quantities[],Quantities!$AD$2))/ (VLOOKUP(A28,Quantities[],Quantities!$V$2)+VLOOKUP(A28,Quantities[],Quantities!$Z$2)+VLOOKUP(A28,Quantities[],Quantities!$AD$2)), IF($B28="Q", (SUM(VLOOKUP($A28,Quantities[],Quantities!$W$2)*VLOOKUP($A28,Quantities[],Quantities!$V$2),VLOOKUP($A28,Quantities[],Quantities!$AA$2)*VLOOKUP($A28,Quantities[],Quantities!$Z$2),VLOOKUP($A28,Quantities[],Quantities!$AE$2)*VLOOKUP($A28,Quantities[],Quantities!$AD$2)))/SUM(VLOOKUP($A28,Quantities[],Quantities!$V$2),VLOOKUP($A28,Quantities[],Quantities!$Z$2),VLOOKUP($A28,Quantities[],Quantities!$AD$2)), VLOOKUP(A28,Quantities[],Quantities!$I$2) )))))) -> -0.008 | K28: =IF(LEFT(D28,1)="U","-",VLOOKUP(D28,Equipment[],Equipment!$B$2)) -> Cat D11T, U Blade
A29: =Quantities!A17 -> 1302 | B29: A | C29: a | D29: Dz1 | E29: 1302-A-a-Dz1 | F29: =IF(D29="Comb1",VLOOKUP(B29,'Activity-Material_Codes'!$A$2:$B$22,Quantities!$B$2), CONCATENATE( VLOOKUP(B29,'Activity-Material_Codes'!$A$2:$B$22,Quantities!$B$2), IF(AND(B29="B",C29="a"), " Grading",""), IF(C29="b","","-"), IF(C29="b","",VLOOKUP(A29,Quantities[],Quantities!$D$2)), IF(LEFT(TEXT(A29,"0"),1)="5","","-"), IF(LEFT(TEXT(A29,"0"),1)="5","",VLOOKUP(C29,'Activity-Material_Codes'!$A$25:$B$30,Quantities!$B$2)) )) -> Grade-Outslope-Existing Ground | G29: =CONCATENATE( IF(OR(RIGHT(TEXT($A29,"0"),Quantities!$B$2)="00",LEFT(TEXT($A29,"0"),1)="5",$C29="b"),"",VLOOKUP($A29,Quantities[],Quantities!$B$2)), IF(LEFT(TEXT($A29,"0"),1)="5",""," "), IF(OR(C29="a",C29="c",C29="d",C29="e"),IF(OR(RIGHT(TEXT($A29,"0"),Quantities!$B$2)="00",LEFT(TEXT($A29,"0"),1)="5"),VLOOKUP($A29,Quantities[],Quantities!$B$2),VLOOKUP($A29,Quantities[],Quantities!$C$2)), IF(LEFT(TEXT($A29,"0"),1)="5",VLOOKUP($A29,Quantities[],Quantities!$B$2), VLOOKUP(INDEX(Quantities!$A$56:$A$89,MATCH($A29,Quantities!$C$56:$C$89)),Quantities!$A$56:$B$89,Quantities!$B$2)))) -> Main Tailings Impoundment MTI-2 | H29: =IF(LEFT(TEXT(A29,"0"),1)="5", VLOOKUP(VLOOKUP(A29,Quantities!$A$4:$D$89,Quantities!$C$2),Quantities!$A$4:$D$89,Quantities!$C$2), IF(OR(C29="a",C29="c",C29="d",C29="e"), "-", IF(RIGHT(TEXT(A29,"0"),2)="00",VLOOKUP(A29,Quantities[],Quantities!$B$2),VLOOKUP(A29,Quantities[],Quantities!$C$2)) )) -> - | I29: =IF(AND(LEFT(D29,2)="Sc",B29="A",C29="d"), SUM(VLOOKUP($A29,Quantities[],Quantities!$V$2),VLOOKUP($A29,Quantities[],Quantities!$Z$2), VLOOKUP($A29,Quantities[],Quantities!$AD$2)), IF(AND(LEFT(D29,2)="Sc",C29="a"), VLOOKUP(A29,Quantities[],Quantities!$J$2), IF(AND(B29="D",C29="b"), VLOOKUP(INDEX(Quantities!$A$56:$A$88,MATCH($A29,Quantities!$C$56:$C$89)),Quantities!$A$56:$AP$88,Quantities!$V$2)+ VLOOKUP(INDEX(Quantities!$A$56:$A$88,MATCH($A29,Quantities!$C$56:$C$89)),Quantities!$A$56:$AP$88,Quantities!$Z$2)+ VLOOKUP(INDEX(Quantities!$A$56:$A$88,MATCH($A29,Quantities!$C$56:$C$89)),Quantities!$A$56:$AP$88,Quantities!$AD$2), IF(B29="D", VLOOKUP(A29,Quantities[],Quantities!$V$2)+VLOOKUP(A29,Quantities[],Quantities!$Z$2)+VLOOKUP(A29,Quantities[],Quantities!$AD$2), IF($B29="Q", SUM(VLOOKUP($A29,Quantities[],Quantities!$V$2),VLOOKUP($A29,Quantities[],Quantities!$Z$2), VLOOKUP($A29,Quantities[],Quantities!$AD$2)), VLOOKUP(A29,Quantities[],Quantities!$G$2) ))))) -> 250 | J29: =IF(LEFT(D29,2)="Mg", VLOOKUP(A29,Quantities[],Quantities!$I$2), IF(AND(LEFT(D29,2)="Sc",B29="A",C29="d"), (SUM(VLOOKUP($A29,Quantities[],Quantities!$W$2)*VLOOKUP($A29,Quantities[],Quantities!$V$2),VLOOKUP($A29,Quantities[],Quantities!$AA$2)*VLOOKUP($A29,Quantities[],Quantities!$Z$2),VLOOKUP($A29,Quantities[],Quantities!$AE$2)*VLOOKUP($A29,Quantities[],Quantities!$AD$2)))/SUM(VLOOKUP($A29,Quantities[],Quantities!$V$2),VLOOKUP($A29,Quantities[],Quantities!$Z$2),VLOOKUP($A29,Quantities[],Quantities!$AD$2)), IF(AND(LEFT(D29,2)="Sc",C29="a"), VLOOKUP(A29,Quantities[],Quantities!$K$2), IF(AND(B29="D",C29="b", (VLOOKUP(INDEX(Quantities!$A$56:$A$88,MATCH($A29,Quantities!$C$56:$C$88)),Quantities[],Quantities!$V$2)+VLOOKUP(INDEX(Quantities!$A$56:$A$88,MATCH($A29,Quantities!$C$56:$C$88)),Quantities[],Quantities!$Z$2)+VLOOKUP(INDEX(Quantities!$A$56:$A$88,MATCH($A29,Quantities!$C$56:$C$88)),Quantities[],Quantities!$AD$2))>0), (VLOOKUP(INDEX(Quantities!$A$56:$A$88,MATCH($A29,Quantities!$C$56:$C$88)),Quantities[],Quantities!$W$2)*VLOOKUP(INDEX(Quantities!$A$56:$A$88,MATCH($A29,Quantities!$C$56:$C$88)),Quantities[],Quantities!$V$2) +VLOOKUP(INDEX(Quantities!$A$56:$A$88,MATCH($A29,Quantities!$C$56:$C$88)),Quantities[],Quantities!$AA$2)*VLOOKUP(INDEX(Quantities!$A$56:$A$88,MATCH($A29,Quantities!$C$56:$C$88)),Quantities[],Quantities!$Z$2) +VLOOKUP(INDEX(Quantities!$A$56:$A$88,MATCH($A29,Quantities!$C$56:$C$88)),Quantities[],Quantities!$AE$2)*VLOOKUP(INDEX(Quantities!$A$56:$A$88,MATCH($A29,Quantities!$C$56:$C$88)),Quantities[],Quantities!$AD$2))/ (VLOOKUP(INDEX(Quantities!$A$56:$A$88,MATCH($A29,Quantities!$C$56:$C$88)),Quantities[],Quantities!$V$2)+VLOOKUP(INDEX(Quantities!$A$56:$A$88,MATCH($A29,Quantities!$C$56:$C$88)),Quantities[],Quantities!$Z$2)+VLOOKUP(A29,Quantities[],Quantities!$AD$2)), IF(AND(B29="D", (VLOOKUP(A29,Quantities[],Quantities!$V$2)+VLOOKUP(A29,Quantities[],Quantities!$Z$2)+VLOOKUP(A29,Quantities[],Quantities!$AD$2))>0), (VLOOKUP(A29,Quantities[],Quantities!$W$2)*VLOOKUP(A29,Quantities[],Quantities!$V$2) +VLOOKUP(A29,Quantities[],Quantities!$AA$2)*VLOOKUP(A29,Quantities[],Quantities!$Z$2) +VLOOKUP(A29,Quantities[],Quantities!$AE$2)*VLOOKUP(A29,Quantities[],Quantities!$AD$2))/ (VLOOKUP(A29,Quantities[],Quantities!$V$2)+VLOOKUP(A29,Quantities[],Quantities!$Z$2)+VLOOKUP(A29,Quantities[],Quantities!$AD$2)), IF($B29="Q", (SUM(VLOOKUP($A29,Quantities[],Quantities!$W$2)*VLOOKUP($A29,Quantities[],Quantities!$V$2),VLOOKUP($A29,Quantities[],Quantities!$AA$2)*VLOOKUP($A29,Quantities[],Quantities!$Z$2),VLOOKUP($A29,Quantities[],Quantities!$AE$2)*VLOOKUP($A29,Quantities[],Quantities!$AD$2)))/SUM(VLOOKUP($A29,Quantities[],Quantities!$V$2),VLOOKUP($A29,Quantities[],Quantities!$Z$2),VLOOKUP($A29,Quantities[],Quantities!$AD$2)), VLOOKUP(A29,Quantities[],Quantities!$I$2) )))))) -> -0.33 | K29: =IF(LEFT(D29,1)="U","-",VLOOKUP(D29,Equipment[],Equipment!$B$2)) -> Cat D11T, U Blade
A30: =Quantities!A18 -> 1303 | B30: A | C30: a | D30: Dz1 | E30: 1303-A-a-Dz1 | F30: =IF(D30="Comb1",VLOOKUP(B30,'Activity-Material_Codes'!$A$2:$B$22,Quantities!$B$2), CONCATENATE( VLOOKUP(B30,'Activity-Material_Codes'!$A$2:$B$22,Quantities!$B$2), IF(AND(B30="B",C30="a"), " Grading",""), IF(C30="b","","-"), IF(C30="b","",VLOOKUP(A30,Quantities[],Quantities!$D$2)), IF(LEFT(TEXT(A30,"0"),1)="5","","-"), IF(LEFT(TEXT(A30,"0"),1)="5","",VLOOKUP(C30,'Activity-Material_Codes'!$A$25:$B$30,Quantities!$B$2)) )) -> Grade-Reclaim Pond-Existing Ground | G30: =CONCATENATE( IF(OR(RIGHT(TEXT($A30,"0"),Quantities!$B$2)="00",LEFT(TEXT($A30,"0"),1)="5",$C30="b"),"",VLOOKUP($A30,Quantities[],Quantities!$B$2)), IF(LEFT(TEXT($A30,"0"),1)="5",""," "), IF(OR(C30="a",C30="c",C30="d",C30="e"),IF(OR(RIGHT(TEXT($A30,"0"),Quantities!$B$2)="00",LEFT(TEXT($A30,"0"),1)="5"),VLOOKUP($A30,Quantities[],Quantities!$B$2),VLOOKUP($A30,Quantities[],Quantities!$C$2)), IF(LEFT(TEXT($A30,"0"),1)="5",VLOOKUP($A30,Quantities[],Quantities!$B$2), VLOOKUP(INDEX(Quantities!$A$56:$A$89,MATCH($A30,Quantities!$C$56:$C$89)),Quantities!$A$56:$B$89,Quantities!$B$2)))) -> Main Tailings Impoundment MTI-3 | H30: =IF(LEFT(TEXT(A30,"0"),1)="5", VLOOKUP(VLOOKUP(A30,Quantities!$A$4:$D$89,Quantities!$C$2),Quantities!$A$4:$D$89,Quantities!$C$2), IF(OR(C30="a",C30="c",C30="d",C30="e"), "-", IF(RIGHT(TEXT(A30,"0"),2)="00",VLOOKUP(A30,Quantities[],Quantities!$B$2),VLOOKUP(A30,Quantities[],Quantities!$C$2)) )) -> - | I30: =IF(AND(LEFT(D30,2)="Sc",B30="A",C30="d"), SUM(VLOOKUP($A30,Quantities[],Quantities!$V$2),VLOOKUP($A30,Quantities[],Quantities!$Z$2), VLOOKUP($A30,Quantities[],Quantities!$AD$2)), IF(AND(LEFT(D30,2)="Sc",C30="a"), VLOOKUP(A30,Quantities[],Quantities!$J$2), IF(AND(B30="D",C30="b"), VLOOKUP(INDEX(Quantities!$A$56:$A$88,MATCH($A30,Quantities!$C$56:$C$89)),Quantities!$A$56:$AP$88,Quantities!$V$2)+ VLOOKUP(INDEX(Quantities!$A$56:$A$88,MATCH($A30,Quantities!$C$56:$C$89)),Quantities!$A$56:$AP$88,Quantities!$Z$2)+ VLOOKUP(INDEX(Quantities!$A$56:$A$88,MATCH($A30,Quantities!$C$56:$C$89)),Quantities!$A$56:$AP$88,Quantities!$AD$2), IF(B30="D", VLOOKUP(A30,Quantities[],Quantities!$V$2)+VLOOKUP(A30,Quantities[],Quantities!$Z$2)+VLOOKUP(A30,Quantities[],Quantities!$AD$2), IF($B30="Q", SUM(VLOOKUP($A30,Quantities[],Quantities!$V$2),VLOOKUP($A30,Quantities[],Quantities!$Z$2), VLOOKUP($A30,Quantities[],Quantities!$AD$2)), VLOOKUP(A30,Quantities[],Quantities!$G$2) ))))) -> 200 | J30: =IF(LEFT(D30,2)="Mg", VLOOKUP(A30,Quantities[],Quantities!$I$2), IF(AND(LEFT(D30,2)="Sc",B30="A",C30="d"), (SUM(VLOOKUP($A30,Quantities[],Quantities!$W$2)*VLOOKUP($A30,Quantities[],Quantities!$V$2),VLOOKUP($A30,Quantities[],Quantities!$AA$2)*VLOOKUP($A30,Quantities[],Quantities!$Z$2),VLOOKUP($A30,Quantities[],Quantities!$AE$2)*VLOOKUP($A30,Quantities[],Quantities!$AD$2)))/SUM(VLOOKUP($A30,Quantities[],Quantities!$V$2),VLOOKUP($A30,Quantities[],Quantities!$Z$2),VLOOKUP($A30,Quantities[],Quantities!$AD$2)), IF(AND(LEFT(D30,2)="Sc",C30="a"), VLOOKUP(A30,Quantities[],Quantities!$K$2), IF(AND(B30="D",C30="b", (VLOOKUP(INDEX(Quantities!$A$56:$A$88,MATCH($A30,Quantities!$C$56:$C$88)),Quantities[],Quantities!$V$2)+VLOOKUP(INDEX(Quantities!$A$56:$A$88,MATCH($A30,Quantities!$C$56:$C$88)),Quantities[],Quantities!$Z$2)+VLOOKUP(INDEX(Quantities!$A$56:$A$88,MATCH($A30,Quantities!$C$56:$C$88)),Quantities[],Quantities!$AD$2))>0), (VLOOKUP(INDEX(Quantities!$A$56:$A$88,MATCH($A30,Quantities!$C$56:$C$88)),Quantities[],Quantities!$W$2)*VLOOKUP(INDEX(Quantities!$A$56:$A$88,MATCH($A30,Quantities!$C$56:$C$88)),Quantities[],Quantities!$V$2) +VLOOKUP(INDEX(Quantities!$A$56:$A$88,MATCH($A30,Quantities!$C$56:$C$88)),Quantities[],Quantities!$AA$2)*VLOOKUP(INDEX(Quantities!$A$56:$A$88,MATCH($A30,Quantities!$C$56:$C$88)),Quantities[],Quantities!$Z$2) +VLOOKUP(INDEX(Quantities!$A$56:$A$88,MATCH($A30,Quantities!$C$56:$C$88)),Quantities[],Quantities!$AE$2)*VLOOKUP(INDEX(Quantities!$A$56:$A$88,MATCH($A30,Quantities!$C$56:$C$88)),Quantities[],Quantities!$AD$2))/ (VLOOKUP(INDEX(Quantities!$A$56:$A$88,MATCH($A30,Quantities!$C$56:$C$88)),Quantities[],Quantities!$V$2)+VLOOKUP(INDEX(Quantities!$A$56:$A$88,MATCH($A30,Quantities!$C$56:$C$88)),Quantities[],Quantities!$Z$2)+VLOOKUP(A30,Quantities[],Quantities!$AD$2)), IF(AND(B30="D", (VLOOKUP(A30,Quantities[],Quantities!$V$2)+VLOOKUP(A30,Quantities[],Quantities!$Z$2)+VLOOKUP(A30,Quantities[],Quantities!$AD$2))>0), (VLOOKUP(A30,Quantities[],Quantities!$W$2)*VLOOKUP(A30,Quantities[],Quantities!$V$2) +VLOOKUP(A30,Quantities[],Quantities!$AA$2)*VLOOKUP(A30,Quantities[],Quantities!$Z$2) +VLOOKUP(A30,Quantities[],Quantities!$AE$2)*VLOOKUP(A30,Quantities[],Quantities!$AD$2))/ (VLOOKUP(A30,Quantities[],Quantities!$V$2)+VLOOKUP(A30,Quantities[],Quantities!$Z$2)+VLOOKUP(A30,Quantities[],Quantities!$AD$2)), IF($B30="Q", (SUM(VLOOKUP($A30,Quantities[],Quantities!$W$2)*VLOOKUP($A30,Quantities[],Quantities!$V$2),VLOOKUP($A30,Quantities[],Quantities!$AA$2)*VLOOKUP($A30,Quantities[],Quantities!$Z$2),VLOOKUP($A30,Quantities[],Quantities!$AE$2)*VLOOKUP($A30,Quantities[],Quantities!$AD$2)))/SUM(VLOOKUP($A30,Quantities[],Quantities!$V$2),VLOOKUP($A30,Quantities[],Quantities!$Z$2),VLOOKUP($A30,Quantities[],Quantities!$AD$2)), VLOOKUP(A30,Quantities[],Quantities!$I$2) )))))) -> -0.33 | K30: =IF(LEFT(D30,1)="U","-",VLOOKUP(D30,Equipment[],Equipment!$B$2)) -> Cat D11T, U Blade
A31: =Quantities!A19 -> 1304 | B31: E | C31: a | D31: Rp1 | E31: 1304-E-a-Rp1 | F31: =IF(D31="Comb1",VLOOKUP(B31,'Activity-Material_Codes'!$A$2:$B$22,Quantities!$B$2), CONCATENATE( VLOOKUP(B31,'Activity-Material_Codes'!$A$2:$B$22,Quantities!$B$2), IF(AND(B31="B",C31="a"), " Grading",""), IF(C31="b","","-"), IF(C31="b","",VLOOKUP(A31,Quantities[],Quantities!$D$2)), IF(LEFT(TEXT(A31,"0"),1)="5","","-"), IF(LEFT(TEXT(A31,"0"),1)="5","",VLOOKUP(C31,'Activity-Material_Codes'!$A$25:$B$30,Quantities!$B$2)) )) -> Rip-Reclaim Pond Outlet Channel-Existing Ground | G31: =CONCATENATE( IF(OR(RIGHT(TEXT($A31,"0"),Quantities!$B$2)="00",LEFT(TEXT($A31,"0"),1)="5",$C31="b"),"",VLOOKUP($A31,Quantities[],Quantities!$B$2)), IF(LEFT(TEXT($A31,"0"),1)="5",""," "), IF(OR(C31="a",C31="c",C31="d",C31="e"),IF(OR(RIGHT(TEXT($A31,"0"),Quantities!$B$2)="00",LEFT(TEXT($A31,"0"),1)="5"),VLOOKUP($A31,Quantities[],Quantities!$B$2),VLOOKUP($A31,Quantities[],Quantities!$C$2)), IF(LEFT(TEXT($A31,"0"),1)="5",VLOOKUP($A31,Quantities[],Quantities!$B$2), VLOOKUP(INDEX(Quantities!$A$56:$A$89,MATCH($A31,Quantities!$C$56:$C$89)),Quantities!$A$56:$B$89,Quantities!$B$2)))) -> Main Tailings Impoundment MTI-4 | H31: =IF(LEFT(TEXT(A31,"0"),1)="5", VLOOKUP(VLOOKUP(A31,Quantities!$A$4:$D$89,Quantities!$C$2),Quantities!$A$4:$D$89,Quantities!$C$2), IF(OR(C31="a",C31="c",C31="d",C31="e"), "-", IF(RIGHT(TEXT(A31,"0"),2)="00",VLOOKUP(A31,Quantities[],Quantities!$B$2),VLOOKUP(A31,Quantities[],Quantities!$C$2)) )) -> - | I31: =IF(AND(LEFT(D31,2)="Sc",B31="A",C31="d"), SUM(VLOOKUP($A31,Quantities[],Quantities!$V$2),VLOOKUP($A31,Quantities[],Quantities!$Z$2), VLOOKUP($A31,Quantities[],Quantities!$AD$2)), IF(AND(LEFT(D31,2)="Sc",C31="a"), VLOOKUP(A31,Quantities[],Quantities!$J$2), IF(AND(B31="D",C31="b"), VLOOKUP(INDEX(Quantities!$A$56:$A$88,MATCH($A31,Quantities!$C$56:$C$89)),Quantities!$A$56:$AP$88,Quantities!$V$2)+ VLOOKUP(INDEX(Quantities!$A$56:$A$88,MATCH($A31,Quantities!$C$56:$C$89)),Quantities!$A$56:$AP$88,Quantities!$Z$2)+ VLOOKUP(INDEX(Quantities!$A$56:$A$88,MATCH($A31,Quantities!$C$56:$C$89)),Quantities!$A$56:$AP$88,Quantities!$AD$2), IF(B31="D", VLOOKUP(A31,Quantities[],Quantities!$V$2)+VLOOKUP(A31,Quantities[],Quantities!$Z$2)+VLOOKUP(A31,Quantities[],Quantities!$AD$2), IF($B31="Q", SUM(VLOOKUP($A31,Quantities[],Quantities!$V$2),VLOOKUP($A31,Quantities[],Quantities!$Z$2), VLOOKUP($A31,Quantities[],Quantities!$AD$2)), VLOOKUP(A31,Quantities[],Quantities!$G$2) ))))) -> 0 | J31: =IF(LEFT(D31,2)="Mg", VLOOKUP(A31,Quantities[],Quantities!$I$2), IF(AND(LEFT(D31,2)="Sc",B31="A",C31="d"), (SUM(VLOOKUP($A31,Quantities[],Quantities!$W$2)*VLOOKUP($A31,Quantities[],Quantities!$V$2),VLOOKUP($A31,Quantities[],Quantities!$AA$2)*VLOOKUP($A31,Quantities[],Quantities!$Z$2),VLOOKUP($A31,Quantities[],Quantities!$AE$2)*VLOOKUP($A31,Quantities[],Quantities!$AD$2)))/SUM(VLOOKUP($A31,Quantities[],Quantities!$V$2),VLOOKUP($A31,Quantities[],Quantities!$Z$2),VLOOKUP($A31,Quantities[],Quantities!$AD$2)), IF(AND(LEFT(D31,2)="Sc",C31="a"), VLOOKUP(A31,Quantities[],Quantities!$K$2), IF(AND(B31="D",C31="b", (VLOOKUP(INDEX(Quantities!$A$56:$A$88,MATCH($A31,Quantities!$C$56:$C$88)),Quantities[],Quantities!$V$2)+VLOOKUP(INDEX(Quantities!$A$56:$A$88,MATCH($A31,Quantities!$C$56:$C$88)),Quantities[],Quantities!$Z$2)+VLOOKUP(INDEX(Quantities!$A$56:$A$88,MATCH($A31,Quantities!$C$56:$C$88)),Quantities[],Quantities!$AD$2))>0), (VLOOKUP(INDEX(Quantities!$A$56:$A$88,MATCH($A31,Quantities!$C$56:$C$88)),Quantities[],Quantities!$W$2)*VLOOKUP(INDEX(Quantities!$A$56:$A$88,MATCH($A31,Quantities!$C$56:$C$88)),Quantities[],Quantities!$V$2) +VLOOKUP(INDEX(Quantities!$A$56:$A$88,MATCH($A31,Quantities!$C$56:$C$88)),Quantities[],Quantities!$AA$2)*VLOOKUP(INDEX(Quantities!$A$56:$A$88,MATCH($A31,Quantities!$C$56:$C$88)),Quantities[],Quantities!$Z$2) +VLOOKUP(INDEX(Quantities!$A$56:$A$88,MATCH($A31,Quantities!$C$56:$C$88)),Quantities[],Quantities!$AE$2)*VLOOKUP(INDEX(Quantities!$A$56:$A$88,MATCH($A31,Quantities!$C$56:$C$88)),Quantities[],Quantities!$AD$2))/ (VLOOKUP(INDEX(Quantities!$A$56:$A$88,MATCH($A31,Quantities!$C$56:$C$88)),Quantities[],Quantities!$V$2)+VLOOKUP(INDEX(Quantities!$A$56:$A$88,MATCH($A31,Quantities!$C$56:$C$88)),Quantities[],Quantities!$Z$2)+VLOOKUP(A31,Quantities[],Quantities!$AD$2)), IF(AND(B31="D", (VLOOKUP(A31,Quantities[],Quantities!$V$2)+VLOOKUP(A31,Quantities[],Quantities!$Z$2)+VLOOKUP(A31,Quantities[],Quantities!$AD$2))>0), (VLOOKUP(A31,Quantities[],Quantities!$W$2)*VLOOKUP(A31,Quantities[],Quantities!$V$2) +VLOOKUP(A31,Quantities[],Quantities!$AA$2)*VLOOKUP(A31,Quantities[],Quantities!$Z$2) +VLOOKUP(A31,Quantities[],Quantities!$AE$2)*VLOOKUP(A31,Quantities[],Quantities!$AD$2))/ (VLOOKUP(A31,Quantities[],Quantities!$V$2)+VLOOKUP(A31,Quantities[],Quantities!$Z$2)+VLOOKUP(A31,Quantities[],Quantities!$AD$2)), IF($B31="Q", (SUM(VLOOKUP($A31,Quantities[],Quantities!$W$2)*VLOOKUP($A31,Quantities[],Quantities!$V$2),VLOOKUP($A31,Quantities[],Quantities!$AA$2)*VLOOKUP($A31,Quantities[],Quantities!$Z$2),VLOOKUP($A31,Quantities[],Quantities!$AE$2)*VLOOKUP($A31,Quantities[],Quantities!$AD$2)))/SUM(VLOOKUP($A31,Quantities[],Quantities!$V$2),VLOOKUP($A31,Quantities[],Quantities!$Z$2),VLOOKUP($A31,Quantities[],Quantities!$AD$2)), VLOOKUP(A31,Quantities[],Quantities!$I$2) )))))) -> 0 | K31: =IF(LEFT(D31,1)="U","-",VLOOKUP(D31,Equipment[],Equipment!$B$2)) -> Cat D11T CD Multi-shank (w/ MSR-359H)
A32: =Quantities!A19 -> 1304 | B32: C | C32: a | D32: Ld1 | E32: 1304-C-a-Ld1 | F32: =IF(D32="Comb1",VLOOKUP(B32,'Activity-Material_Codes'!$A$2:$B$22,Quantities!$B$2), CONCATENATE( VLOOKUP(B32,'Activity-Material_Codes'!$A$2:$B$22,Quantities!$B$2), IF(AND(B32="B",C32="a"), " Grading",""), IF(C32="b","","-"), IF(C32="b","",VLOOKUP(A32,Quantities[],Quantities!$D$2)), IF(LEFT(TEXT(A32,"0"),1)="5","","-"), IF(LEFT(TEXT(A32,"0"),1)="5","",VLOOKUP(C32,'Activity-Material_Codes'!$A$25:$B$30,Quantities!$B$2)) )) -> Load-Reclaim Pond Outlet Channel-Existing Ground | G32: =CONCATENATE( IF(OR(RIGHT(TEXT($A32,"0"),Quantities!$B$2)="00",LEFT(TEXT($A32,"0"),1)="5",$C32="b"),"",VLOOKUP($A32,Quantities[],Quantities!$B$2)), IF(LEFT(TEXT($A32,"0"),1)="5",""," "), IF(OR(C32="a",C32="c",C32="d",C32="e"),IF(OR(RIGHT(TEXT($A32,"0"),Quantities!$B$2)="00",LEFT(TEXT($A32,"0"),1)="5"),VLOOKUP($A32,Quantities[],Quantities!$B$2),VLOOKUP($A32,Quantities[],Quantities!$C$2)), IF(LEFT(TEXT($A32,"0"),1)="5",VLOOKUP($A32,Quantities[],Quantities!$B$2), VLOOKUP(INDEX(Quantities!$A$56:$A$89,MATCH($A32,Quantities!$C$56:$C$89)),Quantities!$A$56:$B$89,Quantities!$B$2)))) -> Main Tailings Impoundment MTI-4 | H32: =IF(LEFT(TEXT(A32,"0"),1)="5", VLOOKUP(VLOOKUP(A32,Quantities!$A$4:$D$89,Quantities!$C$2),Quantities!$A$4:$D$89,Quantities!$C$2), IF(OR(C32="a",C32="c",C32="d",C32="e"), "-", IF(RIGHT(TEXT(A32,"0"),2)="00",VLOOKUP(A32,Quantities[],Quantities!$B$2),VLOOKUP(A32,Quantities[],Quantities!$C$2)) )) -> - | I32: =IF(AND(LEFT(D32,2)="Sc",B32="A",C32="d"), SUM(VLOOKUP($A32,Quantities[],Quantities!$V$2),VLOOKUP($A32,Quantities[],Quantities!$Z$2), VLOOKUP($A32,Quantities[],Quantities!$AD$2)), IF(AND(LEFT(D32,2)="Sc",C32="a"), VLOOKUP(A32,Quantities[],Quantities!$J$2), IF(AND(B32="D",C32="b"), VLOOKUP(INDEX(Quantities!$A$56:$A$88,MATCH($A32,Quantities!$C$56:$C$89)),Quantities!$A$56:$AP$88,Quantities!$V$2)+ VLOOKUP(INDEX(Quantities!$A$56:$A$88,MATCH($A32,Quantities!$C$56:$C$89)),Quantities!$A$56:$AP$88,Quantities!$Z$2)+ VLOOKUP(INDEX(Quantities!$A$56:$A$88,MATCH($A32,Quantities!$C$56:$C$89)),Quantities!$A$56:$AP$88,Quantities!$AD$2), IF(B32="D", VLOOKUP(A32,Quantities[],Quantities!$V$2)+VLOOKUP(A32,Quantities[],Quantities!$Z$2)+VLOOKUP(A32,Quantities[],Quantities!$AD$2), IF($B32="Q", SUM(VLOOKUP($A32,Quantities[],Quantities!$V$2),VLOOKUP($A32,Quantities[],Quantities!$Z$2), VLOOKUP($A32,Quantities[],Quantities!$AD$2)), VLOOKUP(A32,Quantities[],Quantities!$G$2) ))))) -> 0 | J32: =IF(LEFT(D32,2)="Mg", VLOOKUP(A32,Quantities[],Quantities!$I$2), IF(AND(LEFT(D32,2)="Sc",B32="A",C32="d"), (SUM(VLOOKUP($A32,Quantities[],Quantities!$W$2)*VLOOKUP($A32,Quantities[],Quantities!$V$2),VLOOKUP($A32,Quantities[],Quantities!$AA$2)*VLOOKUP($A32,Quantities[],Quantities!$Z$2),VLOOKUP($A32,Quantities[],Quantities!$AE$2)*VLOOKUP($A32,Quantities[],Quantities!$AD$2)))/SUM(VLOOKUP($A32,Quantities[],Quantities!$V$2),VLOOKUP($A32,Quantities[],Quantities!$Z$2),VLOOKUP($A32,Quantities[],Quantities!$AD$2)), IF(AND(LEFT(D32,2)="Sc",C32="a"), VLOOKUP(A32,Quantities[],Quantities!$K$2), IF(AND(B32="D",C32="b", (VLOOKUP(INDEX(Quantities!$A$56:$A$88,MATCH($A32,Quantities!$C$56:$C$88)),Quantities[],Quantities!$V$2)+VLOOKUP(INDEX(Quantities!$A$56:$A$88,MATCH($A32,Quantities!$C$56:$C$88)),Quantities[],Quantities!$Z$2)+VLOOKUP(INDEX(Quantities!$A$56:$A$88,MATCH($A32,Quantities!$C$56:$C$88)),Quantities[],Quantities!$AD$2))>0), (VLOOKUP(INDEX(Quantities!$A$56:$A$88,MATCH($A32,Quantities!$C$56:$C$88)),Quantities[],Quantities!$W$2)*VLOOKUP(INDEX(Quantities!$A$56:$A$88,MATCH($A32,Quantities!$C$56:$C$88)),Quantities[],Quantities!$V$2) +VLOOKUP(INDEX(Quantities!$A$56:$A$88,MATCH($A32,Quantities!$C$56:$C$88)),Quantities[],Quantities!$AA$2)*VLOOKUP(INDEX(Quantities!$A$56:$A$88,MATCH($A32,Quantities!$C$56:$C$88)),Quantities[],Quantities!$Z$2) +VLOOKUP(INDEX(Quantities!$A$56:$A$88,MATCH($A32,Quantities!$C$56:$C$88)),Quantities[],Quantities!$AE$2)*VLOOKUP(INDEX(Quantities!$A$56:$A$88,MATCH($A32,Quantities!$C$56:$C$88)),Quantities[],Quantities!$AD$2))/ (VLOOKUP(INDEX(Quantities!$A$56:$A$88,MATCH($A32,Quantities!$C$56:$C$88)),Quantities[],Quantities!$V$2)+VLOOKUP(INDEX(Quantities!$A$56:$A$88,MATCH($A32,Quantities!$C$56:$C$88)),Quantities[],Quantities!$Z$2)+VLOOKUP(A32,Quantities[],Quantities!$AD$2)), IF(AND(B32="D", (VLOOKUP(A32,Quantities[],Quantities!$V$2)+VLOOKUP(A32,Quantities[],Quantities!$Z$2)+VLOOKUP(A32,Quantities[],Quantities!$AD$2))>0), (VLOOKUP(A32,Quantities[],Quantities!$W$2)*VLOOKUP(A32,Quantities[],Quantities!$V$2) +VLOOKUP(A32,Quantities[],Quantities!$AA$2)*VLOOKUP(A32,Quantities[],Quantities!$Z$2) +VLOOKUP(A32,Quantities[],Quantities!$AE$2)*VLOOKUP(A32,Quantities[],Quantities!$AD$2))/ (VLOOKUP(A32,Quantities[],Quantities!$V$2)+VLOOKUP(A32,Quantities[],Quantities!$Z$2)+VLOOKUP(A32,Quantities[],Quantities!$AD$2)), IF($B32="Q", (SUM(VLOOKUP($A32,Quantities[],Quantities!$W$2)*VLOOKUP($A32,Quantities[],Quantities!$V$2),VLOOKUP($A32,Quantities[],Quantities!$AA$2)*VLOOKUP($A32,Quantities[],Quantities!$Z$2),VLOOKUP($A32,Quantities[],Quantities!$AE$2)*VLOOKUP($A32,Quantities[],Quantities!$AD$2)))/SUM(VLOOKUP($A32,Quantities[],Quantities!$V$2),VLOOKUP($A32,Quantities[],Quantities!$Z$2),VLOOKUP($A32,Quantities[],Quantities!$AD$2)), VLOOKUP(A32,Quantities[],Quantities!$I$2) )))))) -> 0 | K32: =IF(LEFT(D32,1)="U","-",VLOOKUP(D32,Equipment[],Equipment!$B$2)) -> Cat 992K
A33: =Quantities!A19 -> 1304 | B33: D | C33: a | D33: Tk4 | E33: 1304-D-a-Tk4 | F33: =IF(D33="Comb1",VLOOKUP(B33,'Activity-Material_Codes'!$A$2:$B$22,Quantities!$B$2), CONCATENATE( VLOOKUP(B33,'Activity-Material_Codes'!$A$2:$B$22,Quantities!$B$2), IF(AND(B33="B",C33="a"), " Grading",""), IF(C33="b","","-"), IF(C33="b","",VLOOKUP(A33,Quantities[],Quantities!$D$2)), IF(LEFT(TEXT(A33,"0"),1)="5","","-"), IF(LEFT(TEXT(A33,"0"),1)="5","",VLOOKUP(C33,'Activity-Material_Codes'!$A$25:$B$30,Quantities!$B$2)) )) -> Haul-Reclaim Pond Outlet Channel-Existing Ground | G33: =CONCATENATE( IF(OR(RIGHT(TEXT($A33,"0"),Quantities!$B$2)="00",LEFT(TEXT($A33,"0"),1)="5",$C33="b"),"",VLOOKUP($A33,Quantities[],Quantities!$B$2)), IF(LEFT(TEXT($A33,"0"),1)="5",""," "), IF(OR(C33="a",C33="c",C33="d",C33="e"),IF(OR(RIGHT(TEXT($A33,"0"),Quantities!$B$2)="00",LEFT(TEXT($A33,"0"),1)="5"),VLOOKUP($A33,Quantities[],Quantities!$B$2),VLOOKUP($A33,Quantities[],Quantities!$C$2)), IF(LEFT(TEXT($A33,"0"),1)="5",VLOOKUP($A33,Quantities[],Quantities!$B$2), VLOOKUP(INDEX(Quantities!$A$56:$A$89,MATCH($A33,Quantities!$C$56:$C$89)),Quantities!$A$56:$B$89,Quantities!$B$2)))) -> Main Tailings Impoundment MTI-4 | H33: =IF(LEFT(TEXT(A33,"0"),1)="5", VLOOKUP(VLOOKUP(A33,Quantities!$A$4:$D$89,Quantities!$C$2),Quantities!$A$4:$D$89,Quantities!$C$2), IF(OR(C33="a",C33="c",C33="d",C33="e"), "-", IF(RIGHT(TEXT(A33,"0"),2)="00",VLOOKUP(A33,Quantities[],Quantities!$B$2),VLOOKUP(A33,Quantities[],Quantities!$C$2)) )) -> - | I33: =IF(AND(LEFT(D33,2)="Sc",B33="A",C33="d"), SUM(VLOOKUP($A33,Quantities[],Quantities!$V$2),VLOOKUP($A33,Quantities[],Quantities!$Z$2), VLOOKUP($A33,Quantities[],Quantities!$AD$2)), IF(AND(LEFT(D33,2)="Sc",C33="a"), VLOOKUP(A33,Quantities[],Quantities!$J$2), IF(AND(B33="D",C33="b"), VLOOKUP(INDEX(Quantities!$A$56:$A$88,MATCH($A33,Quantities!$C$56:$C$89)),Quantities!$A$56:$AP$88,Quantities!$V$2)+ VLOOKUP(INDEX(Quantities!$A$56:$A$88,MATCH($A33,Quantities!$C$56:$C$89)),Quantities!$A$56:$AP$88,Quantities!$Z$2)+ VLOOKUP(INDEX(Quantities!$A$56:$A$88,MATCH($A33,Quantities!$C$56:$C$89)),Quantities!$A$56:$AP$88,Quantities!$AD$2), IF(B33="D", VLOOKUP(A33,Quantities[],Quantities!$V$2)+VLOOKUP(A33,Quantities[],Quantities!$Z$2)+VLOOKUP(A33,Quantities[],Quantities!$AD$2), IF($B33="Q", SUM(VLOOKUP($A33,Quantities[],Quantities!$V$2),VLOOKUP($A33,Quantities[],Quantities!$Z$2), VLOOKUP($A33,Quantities[],Quantities!$AD$2)), VLOOKUP(A33,Quantities[],Quantities!$G$2) ))))) -> 1172 | J33: =IF(LEFT(D33,2)="Mg", VLOOKUP(A33,Quantities[],Quantities!$I$2), IF(AND(LEFT(D33,2)="Sc",B33="A",C33="d"), (SUM(VLOOKUP($A33,Quantities[],Quantities!$W$2)*VLOOKUP($A33,Quantities[],Quantities!$V$2),VLOOKUP($A33,Quantities[],Quantities!$AA$2)*VLOOKUP($A33,Quantities[],Quantities!$Z$2),VLOOKUP($A33,Quantities[],Quantities!$AE$2)*VLOOKUP($A33,Quantities[],Quantities!$AD$2)))/SUM(VLOOKUP($A33,Quantities[],Quantities!$V$2),VLOOKUP($A33,Quantities[],Quantities!$Z$2),VLOOKUP($A33,Quantities[],Quantities!$AD$2)), IF(AND(LEFT(D33,2)="Sc",C33="a"), VLOOKUP(A33,Quantities[],Quantities!$K$2), IF(AND(B33="D",C33="b", (VLOOKUP(INDEX(Quantities!$A$56:$A$88,MATCH($A33,Quantities!$C$56:$C$88)),Quantities[],Quantities!$V$2)+VLOOKUP(INDEX(Quantities!$A$56:$A$88,MATCH($A33,Quantities!$C$56:$C$88)),Quantities[],Quantities!$Z$2)+VLOOKUP(INDEX(Quantities!$A$56:$A$88,MATCH($A33,Quantities!$C$56:$C$88)),Quantities[],Quantities!$AD$2))>0), (VLOOKUP(INDEX(Quantities!$A$56:$A$88,MATCH($A33,Quantities!$C$56:$C$88)),Quantities[],Quantities!$W$2)*VLOOKUP(INDEX(Quantities!$A$56:$A$88,MATCH($A33,Quantities!$C$56:$C$88)),Quantities[],Quantities!$V$2) +VLOOKUP(INDEX(Quantities!$A$56:$A$88,MATCH($A33,Quantities!$C$56:$C$88)),Quantities[],Quantities!$AA$2)*VLOOKUP(INDEX(Quantities!$A$56:$A$88,MATCH($A33,Quantities!$C$56:$C$88)),Quantities[],Quantities!$Z$2) +VLOOKUP(INDEX(Quantities!$A$56:$A$88,MATCH($A33,Quantities!$C$56:$C$88)),Quantities[],Quantities!$AE$2)*VLOOKUP(INDEX(Quantities!$A$56:$A$88,MATCH($A33,Quantities!$C$56:$C$88)),Quantities[],Quantities!$AD$2))/ (VLOOKUP(INDEX(Quantities!$A$56:$A$88,MATCH($A33,Quantities!$C$56:$C$88)),Quantities[],Quantities!$V$2)+VLOOKUP(INDEX(Quantities!$A$56:$A$88,MATCH($A33,Quantities!$C$56:$C$88)),Quantities[],Quantities!$Z$2)+VLOOKUP(A33,Quantities[],Quantities!$AD$2)), IF(AND(B33="D", (VLOOKUP(A33,Quantities[],Quantities!$V$2)+VLOOKUP(A33,Quantities[],Quantities!$Z$2)+VLOOKUP(A33,Quantities[],Quantities!$AD$2))>0), (VLOOKUP(A33,Quantities[],Quantities!$W$2)*VLOOKUP(A33,Quantities[],Quantities!$V$2) +VLOOKUP(A33,Quantities[],Quantities!$AA$2)*VLOOKUP(A33,Quantities[],Quantities!$Z$2) +VLOOKUP(A33,Quantities[],Quantities!$AE$2)*VLOOKUP(A33,Quantities[],Quantities!$AD$2))/ (VLOOKUP(A33,Quantities[],Quantities!$V$2)+VLOOKUP(A33,Quantities[],Quantities!$Z$2)+VLOOKUP(A33,Quantities[],Quantities!$AD$2)), IF($B33="Q", (SUM(VLOOKUP($A33,Quantities[],Quantities!$W$2)*VLOOKUP($A33,Quantities[],Quantities!$V$2),VLOOKUP($A33,Quantities[],Quantities!$AA$2)*VLOOKUP($A33,Quantities[],Quantities!$Z$2),VLOOKUP($A33,Quantities[],Quantities!$AE$2)*VLOOKUP($A33,Quantities[],Quantities!$AD$2)))/SUM(VLOOKUP($A33,Quantities[],Quantities!$V$2),VLOOKUP($A33,Quantities[],Quantities!$Z$2),VLOOKUP($A33,Quantities[],Quantities!$AD$2)), VLOOKUP(A33,Quantities[],Quantities!$I$2) )))))) -> 0.009 | K33: =IF(LEFT(D33,1)="U","-",VLOOKUP(D33,Equipment[],Equipment!$B$2)) -> Komatsu 730E
A34: =Quantities!A21 -> 1401 | B34: A | C34: a | D34: Dz1 | E34: 1401-A-a-Dz1 | F34: =IF(D34="Comb1",VLOOKUP(B34,'Activity-Material_Codes'!$A$2:$B$22,Quantities!$B$2), CONCATENATE( VLOOKUP(B34,'Activity-Material_Codes'!$A$2:$B$22,Quantities!$B$2), IF(AND(B34="B",C34="a"), " Grading",""), IF(C34="b","","-"), IF(C34="b","",VLOOKUP(A34,Quantities[],Quantities!$D$2)), IF(LEFT(TEXT(A34,"0"),1)="5","","-"), IF(LEFT(TEXT(A34,"0"),1)="5","",VLOOKUP(C34,'Activity-Material_Codes'!$A$25:$B$30,Quantities!$B$2)) )) -> Grade-Top-Existing Ground | G34: =CONCATENATE( IF(OR(RIGHT(TEXT($A34,"0"),Quantities!$B$2)="00",LEFT(TEXT($A34,"0"),1)="5",$C34="b"),"",VLOOKUP($A34,Quantities[],Quantities!$B$2)), IF(LEFT(TEXT($A34,"0"),1)="5",""," "), IF(OR(C34="a",C34="c",C34="d",C34="e"),IF(OR(RIGHT(TEXT($A34,"0"),Quantities!$B$2)="00",LEFT(TEXT($A34,"0"),1)="5"),VLOOKUP($A34,Quantities[],Quantities!$B$2),VLOOKUP($A34,Quantities[],Quantities!$C$2)), IF(LEFT(TEXT($A34,"0"),1)="5",VLOOKUP($A34,Quantities[],Quantities!$B$2), VLOOKUP(INDEX(Quantities!$A$56:$A$89,MATCH($A34,Quantities!$C$56:$C$89)),Quantities!$A$56:$B$89,Quantities!$B$2)))) -> Magnetite Tailings Impoundment MGTI-1 | H34: =IF(LEFT(TEXT(A34,"0"),1)="5", VLOOKUP(VLOOKUP(A34,Quantities!$A$4:$D$89,Quantities!$C$2),Quantities!$A$4:$D$89,Quantities!$C$2), IF(OR(C34="a",C34="c",C34="d",C34="e"), "-", IF(RIGHT(TEXT(A34,"0"),2)="00",VLOOKUP(A34,Quantities[],Quantities!$B$2),VLOOKUP(A34,Quantities[],Quantities!$C$2)) )) -> - | I34: =IF(AND(LEFT(D34,2)="Sc",B34="A",C34="d"), SUM(VLOOKUP($A34,Quantities[],Quantities!$V$2),VLOOKUP($A34,Quantities[],Quantities!$Z$2), VLOOKUP($A34,Quantities[],Quantities!$AD$2)), IF(AND(LEFT(D34,2)="Sc",C34="a"), VLOOKUP(A34,Quantities[],Quantities!$J$2), IF(AND(B34="D",C34="b"), VLOOKUP(INDEX(Quantities!$A$56:$A$88,MATCH($A34,Quantities!$C$56:$C$89)),Quantities!$A$56:$AP$88,Quantities!$V$2)+ VLOOKUP(INDEX(Quantities!$A$56:$A$88,MATCH($A34,Quantities!$C$56:$C$89)),Quantities!$A$56:$AP$88,Quantities!$Z$2)+ VLOOKUP(INDEX(Quantities!$A$56:$A$88,MATCH($A34,Quantities!$C$56:$C$89)),Quantities!$A$56:$AP$88,Quantities!$AD$2), IF(B34="D", VLOOKUP(A34,Quantities[],Quantities!$V$2)+VLOOKUP(A34,Quantities[],Quantities!$Z$2)+VLOOKUP(A34,Quantities[],Quantities!$AD$2), IF($B34="Q", SUM(VLOOKUP($A34,Quantities[],Quantities!$V$2),VLOOKUP($A34,Quantities[],Quantities!$Z$2), VLOOKUP($A34,Quantities[],Quantities!$AD$2)), VLOOKUP(A34,Quantities[],Quantities!$G$2) ))))) -> 300 | J34: =IF(LEFT(D34,2)="Mg", VLOOKUP(A34,Quantities[],Quantities!$I$2), IF(AND(LEFT(D34,2)="Sc",B34="A",C34="d"), (SUM(VLOOKUP($A34,Quantities[],Quantities!$W$2)*VLOOKUP($A34,Quantities[],Quantities!$V$2),VLOOKUP($A34,Quantities[],Quantities!$AA$2)*VLOOKUP($A34,Quantities[],Quantities!$Z$2),VLOOKUP($A34,Quantities[],Quantities!$AE$2)*VLOOKUP($A34,Quantities[],Quantities!$AD$2)))/SUM(VLOOKUP($A34,Quantities[],Quantities!$V$2),VLOOKUP($A34,Quantities[],Quantities!$Z$2),VLOOKUP($A34,Quantities[],Quantities!$AD$2)), IF(AND(LEFT(D34,2)="Sc",C34="a"), VLOOKUP(A34,Quantities[],Quantities!$K$2), IF(AND(B34="D",C34="b", (VLOOKUP(INDEX(Quantities!$A$56:$A$88,MATCH($A34,Quantities!$C$56:$C$88)),Quantities[],Quantities!$V$2)+VLOOKUP(INDEX(Quantities!$A$56:$A$88,MATCH($A34,Quantities!$C$56:$C$88)),Quantities[],Quantities!$Z$2)+VLOOKUP(INDEX(Quantities!$A$56:$A$88,MATCH($A34,Quantities!$C$56:$C$88)),Quantities[],Quantities!$AD$2))>0), (VLOOKUP(INDEX(Quantities!$A$56:$A$88,MATCH($A34,Quantities!$C$56:$C$88)),Quantities[],Quantities!$W$2)*VLOOKUP(INDEX(Quantities!$A$56:$A$88,MATCH($A34,Quantities!$C$56:$C$88)),Quantities[],Quantities!$V$2) +VLOOKUP(INDEX(Quantities!$A$56:$A$88,MATCH($A34,Quantities!$C$56:$C$88)),Quantities[],Quantities!$AA$2)*VLOOKUP(INDEX(Quantities!$A$56:$A$88,MATCH($A34,Quantities!$C$56:$C$88)),Quantities[],Quantities!$Z$2) +VLOOKUP(INDEX(Quantities!$A$56:$A$88,MATCH($A34,Quantities!$C$56:$C$88)),Quantities[],Quantities!$AE$2)*VLOOKUP(INDEX(Quantities!$A$56:$A$88,MATCH($A34,Quantities!$C$56:$C$88)),Quantities[],Quantities!$AD$2))/ (VLOOKUP(INDEX(Quantities!$A$56:$A$88,MATCH($A34,Quantities!$C$56:$C$88)),Quantities[],Quantities!$V$2)+VLOOKUP(INDEX(Quantities!$A$56:$A$88,MATCH($A34,Quantities!$C$56:$C$88)),Quantities[],Quantities!$Z$2)+VLOOKUP(A34,Quantities[],Quantities!$AD$2)), IF(AND(B34="D", (VLOOKUP(A34,Quantities[],Quantities!$V$2)+VLOOKUP(A34,Quantities[],Quantities!$Z$2)+VLOOKUP(A34,Quantities[],Quantities!$AD$2))>0), (VLOOKUP(A34,Quantities[],Quantities!$W$2)*VLOOKUP(A34,Quantities[],Quantities!$V$2) +VLOOKUP(A34,Quantities[],Quantities!$AA$2)*VLOOKUP(A34,Quantities[],Quantities!$Z$2) +VLOOKUP(A34,Quantities[],Quantities!$AE$2)*VLOOKUP(A34,Quantities[],Quantities!$AD$2))/ (VLOOKUP(A34,Quantities[],Quantities!$V$2)+VLOOKUP(A34,Quantities[],Quantities!$Z$2)+VLOOKUP(A34,Quantities[],Quantities!$AD$2)), IF($B34="Q", (SUM(VLOOKUP($A34,Quantities[],Quantities!$W$2)*VLOOKUP($A34,Quantities[],Quantities!$V$2),VLOOKUP($A34,Quantities[],Quantities!$AA$2)*VLOOKUP($A34,Quantities[],Quantities!$Z$2),VLOOKUP($A34,Quantities[],Quantities!$AE$2)*VLOOKUP($A34,Quantities[],Quantities!$AD$2)))/SUM(VLOOKUP($A34,Quantities[],Quantities!$V$2),VLOOKUP($A34,Quantities[],Quantities!$Z$2),VLOOKUP($A34,Quantities[],Quantities!$AD$2)), VLOOKUP(A34,Quantities[],Quantities!$I$2) )))))) -> -0.035 | K34: =IF(LEFT(D34,1)="U","-",VLOOKUP(D34,Equipment[],Equipment!$B$2)) -> Cat D11T, U Blade
A35: =Quantities!A22 -> 1402 | B35: A | C35: a | D35: Dz1 | E35: 1402-A-a-Dz1 | F35: =IF(D35="Comb1",VLOOKUP(B35,'Activity-Material_Codes'!$A$2:$B$22,Quantities!$B$2), CONCATENATE( VLOOKUP(B35,'Activity-Material_Codes'!$A$2:$B$22,Quantities!$B$2), IF(AND(B35="B",C35="a"), " Grading",""), IF(C35="b","","-"), IF(C35="b","",VLOOKUP(A35,Quantities[],Quantities!$D$2)), IF(LEFT(TEXT(A35,"0"),1)="5","","-"), IF(LEFT(TEXT(A35,"0"),1)="5","",VLOOKUP(C35,'Activity-Material_Codes'!$A$25:$B$30,Quantities!$B$2)) )) -> Grade-Outslope-Existing Ground | G35: =CONCATENATE( IF(OR(RIGHT(TEXT($A35,"0"),Quantities!$B$2)="00",LEFT(TEXT($A35,"0"),1)="5",$C35="b"),"",VLOOKUP($A35,Quantities[],Quantities!$B$2)), IF(LEFT(TEXT($A35,"0"),1)="5",""," "), IF(OR(C35="a",C35="c",C35="d",C35="e"),IF(OR(RIGHT(TEXT($A35,"0"),Quantities!$B$2)="00",LEFT(TEXT($A35,"0"),1)="5"),VLOOKUP($A35,Quantities[],Quantities!$B$2),VLOOKUP($A35,Quantities[],Quantities!$C$2)), IF(LEFT(TEXT($A35,"0"),1)="5",VLOOKUP($A35,Quantities[],Quantities!$B$2), VLOOKUP(INDEX(Quantities!$A$56:$A$89,MATCH($A35,Quantities!$C$56:$C$89)),Quantities!$A$56:$B$89,Quantities!$B$2)))) -> Magnetite Tailings Impoundment MGTI-2 | H35: =IF(LEFT(TEXT(A35,"0"),1)="5", VLOOKUP(VLOOKUP(A35,Quantities!$A$4:$D$89,Quantities!$C$2),Quantities!$A$4:$D$89,Quantities!$C$2), IF(OR(C35="a",C35="c",C35="d",C35="e"), "-", IF(RIGHT(TEXT(A35,"0"),2)="00",VLOOKUP(A35,Quantities[],Quantities!$B$2),VLOOKUP(A35,Quantities[],Quantities!$C$2)) )) -> - | I35: =IF(AND(LEFT(D35,2)="Sc",B35="A",C35="d"), SUM(VLOOKUP($A35,Quantities[],Quantities!$V$2),VLOOKUP($A35,Quantities[],Quantities!$Z$2), VLOOKUP($A35,Quantities[],Quantities!$AD$2)), IF(AND(LEFT(D35,2)="Sc",C35="a"), VLOOKUP(A35,Quantities[],Quantities!$J$2), IF(AND(B35="D",C35="b"), VLOOKUP(INDEX(Quantities!$A$56:$A$88,MATCH($A35,Quantities!$C$56:$C$89)),Quantities!$A$56:$AP$88,Quantities!$V$2)+ VLOOKUP(INDEX(Quantities!$A$56:$A$88,MATCH($A35,Quantities!$C$56:$C$89)),Quantities!$A$56:$AP$88,Quantities!$Z$2)+ VLOOKUP(INDEX(Quantities!$A$56:$A$88,MATCH($A35,Quantities!$C$56:$C$89)),Quantities!$A$56:$AP$88,Quantities!$AD$2), IF(B35="D", VLOOKUP(A35,Quantities[],Quantities!$V$2)+VLOOKUP(A35,Quantities[],Quantities!$Z$2)+VLOOKUP(A35,Quantities[],Quantities!$AD$2), IF($B35="Q", SUM(VLOOKUP($A35,Quantities[],Quantities!$V$2),VLOOKUP($A35,Quantities[],Quantities!$Z$2), VLOOKUP($A35,Quantities[],Quantities!$AD$2)), VLOOKUP(A35,Quantities[],Quantities!$G$2) ))))) -> 250 | J35: =IF(LEFT(D35,2)="Mg", VLOOKUP(A35,Quantities[],Quantities!$I$2), IF(AND(LEFT(D35,2)="Sc",B35="A",C35="d"), (SUM(VLOOKUP($A35,Quantities[],Quantities!$W$2)*VLOOKUP($A35,Quantities[],Quantities!$V$2),VLOOKUP($A35,Quantities[],Quantities!$AA$2)*VLOOKUP($A35,Quantities[],Quantities!$Z$2),VLOOKUP($A35,Quantities[],Quantities!$AE$2)*VLOOKUP($A35,Quantities[],Quantities!$AD$2)))/SUM(VLOOKUP($A35,Quantities[],Quantities!$V$2),VLOOKUP($A35,Quantities[],Quantities!$Z$2),VLOOKUP($A35,Quantities[],Quantities!$AD$2)), IF(AND(LEFT(D35,2)="Sc",C35="a"), VLOOKUP(A35,Quantities[],Quantities!$K$2), IF(AND(B35="D",C35="b", (VLOOKUP(INDEX(Quantities!$A$56:$A$88,MATCH($A35,Quantities!$C$56:$C$88)),Quantities[],Quantities!$V$2)+VLOOKUP(INDEX(Quantities!$A$56:$A$88,MATCH($A35,Quantities!$C$56:$C$88)),Quantities[],Quantities!$Z$2)+VLOOKUP(INDEX(Quantities!$A$56:$A$88,MATCH($A35,Quantities!$C$56:$C$88)),Quantities[],Quantities!$AD$2))>0), (VLOOKUP(INDEX(Quantities!$A$56:$A$88,MATCH($A35,Quantities!$C$56:$C$88)),Quantities[],Quantities!$W$2)*VLOOKUP(INDEX(Quantities!$A$56:$A$88,MATCH($A35,Quantities!$C$56:$C$88)),Quantities[],Quantities!$V$2) +VLOOKUP(INDEX(Quantities!$A$56:$A$88,MATCH($A35,Quantities!$C$56:$C$88)),Quantities[],Quantities!$AA$2)*VLOOKUP(INDEX(Quantities!$A$56:$A$88,MATCH($A35,Quantities!$C$56:$C$88)),Quantities[],Quantities!$Z$2) +VLOOKUP(INDEX(Quantities!$A$56:$A$88,MATCH($A35,Quantities!$C$56:$C$88)),Quantities[],Quantities!$AE$2)*VLOOKUP(INDEX(Quantities!$A$56:$A$88,MATCH($A35,Quantities!$C$56:$C$88)),Quantities[],Quantities!$AD$2))/ (VLOOKUP(INDEX(Quantities!$A$56:$A$88,MATCH($A35,Quantities!$C$56:$C$88)),Quantities[],Quantities!$V$2)+VLOOKUP(INDEX(Quantities!$A$56:$A$88,MATCH($A35,Quantities!$C$56:$C$88)),Quantities[],Quantities!$Z$2)+VLOOKUP(A35,Quantities[],Quantities!$AD$2)), IF(AND(B35="D", (VLOOKUP(A35,Quantities[],Quantities!$V$2)+VLOOKUP(A35,Quantities[],Quantities!$Z$2)+VLOOKUP(A35,Quantities[],Quantities!$AD$2))>0), (VLOOKUP(A35,Quantities[],Quantities!$W$2)*VLOOKUP(A35,Quantities[],Quantities!$V$2) +VLOOKUP(A35,Quantities[],Quantities!$AA$2)*VLOOKUP(A35,Quantities[],Quantities!$Z$2) +VLOOKUP(A35,Quantities[],Quantities!$AE$2)*VLOOKUP(A35,Quantities[],Quantities!$AD$2))/ (VLOOKUP(A35,Quantities[],Quantities!$V$2)+VLOOKUP(A35,Quantities[],Quantities!$Z$2)+VLOOKUP(A35,Quantities[],Quantities!$AD$2)), IF($B35="Q", (SUM(VLOOKUP($A35,Quantities[],Quantities!$W$2)*VLOOKUP($A35,Quantities[],Quantities!$V$2),VLOOKUP($A35,Quantities[],Quantities!$AA$2)*VLOOKUP($A35,Quantities[],Quantities!$Z$2),VLOOKUP($A35,Quantities[],Quantities!$AE$2)*VLOOKUP($A35,Quantities[],Quantities!$AD$2)))/SUM(VLOOKUP($A35,Quantities[],Quantities!$V$2),VLOOKUP($A35,Quantities[],Quantities!$Z$2),VLOOKUP($A35,Quantities[],Quantities!$AD$2)), VLOOKUP(A35,Quantities[],Quantities!$I$2) )))))) -> -0.33 | K35: =IF(LEFT(D35,1)="U","-",VLOOKUP(D35,Equipment[],Equipment!$B$2)) -> Cat D11T, U Blade
A36: =Quantities!A25 -> 1502 | B36: A | C36: a | D36: Dz1 | E36: 1502-A-a-Dz1 | F36: =IF(D36="Comb1",VLOOKUP(B36,'Activity-Material_Codes'!$A$2:$B$22,Quantities!$B$2), CONCATENATE( VLOOKUP(B36,'Activity-Material_Codes'!$A$2:$B$22,Quantities!$B$2), IF(AND(B36="B",C36="a"), " Grading",""), IF(C36="b","","-"), IF(C36="b","",VLOOKUP(A36,Quantities[],Quantities!$D$2)), IF(LEFT(TEXT(A36,"0"),1)="5","","-"), IF(LEFT(TEXT(A36,"0"),1)="5","",VLOOKUP(C36,'Activity-Material_Codes'!$A$25:$B$30,Quantities!$B$2)) )) -> Grade-Outslope-pushdown-Existing Ground | G36: =CONCATENATE( IF(OR(RIGHT(TEXT($A36,"0"),Quantities!$B$2)="00",LEFT(TEXT($A36,"0"),1)="5",$C36="b"),"",VLOOKUP($A36,Quantities[],Quantities!$B$2)), IF(LEFT(TEXT($A36,"0"),1)="5",""," "), IF(OR(C36="a",C36="c",C36="d",C36="e"),IF(OR(RIGHT(TEXT($A36,"0"),Quantities!$B$2)="00",LEFT(TEXT($A36,"0"),1)="5"),VLOOKUP($A36,Quantities[],Quantities!$B$2),VLOOKUP($A36,Quantities[],Quantities!$C$2)), IF(LEFT(TEXT($A36,"0"),1)="5",VLOOKUP($A36,Quantities[],Quantities!$B$2), VLOOKUP(INDEX(Quantities!$A$56:$A$89,MATCH($A36,Quantities!$C$56:$C$89)),Quantities!$A$56:$B$89,Quantities!$B$2)))) -> Cobre Haul Road CHR-2 | H36: =IF(LEFT(TEXT(A36,"0"),1)="5", VLOOKUP(VLOOKUP(A36,Quantities!$A$4:$D$89,Quantities!$C$2),Quantities!$A$4:$D$89,Quantities!$C$2), IF(OR(C36="a",C36="c",C36="d",C36="e"), "-", IF(RIGHT(TEXT(A36,"0"),2)="00",VLOOKUP(A36,Quantities[],Quantities!$B$2),VLOOKUP(A36,Quantities[],Quantities!$C$2)) )) -> - | I36: =IF(AND(LEFT(D36,2)="Sc",B36="A",C36="d"), SUM(VLOOKUP($A36,Quantities[],Quantities!$V$2),VLOOKUP($A36,Quantities[],Quantities!$Z$2), VLOOKUP($A36,Quantities[],Quantities!$AD$2)), IF(AND(LEFT(D36,2)="Sc",C36="a"), VLOOKUP(A36,Quantities[],Quantities!$J$2), IF(AND(B36="D",C36="b"), VLOOKUP(INDEX(Quantities!$A$56:$A$88,MATCH($A36,Quantities!$C$56:$C$89)),Quantities!$A$56:$AP$88,Quantities!$V$2)+ VLOOKUP(INDEX(Quantities!$A$56:$A$88,MATCH($A36,Quantities!$C$56:$C$89)),Quantities!$A$56:$AP$88,Quantities!$Z$2)+ VLOOKUP(INDEX(Quantities!$A$56:$A$88,MATCH($A36,Quantities!$C$56:$C$89)),Quantities!$A$56:$AP$88,Quantities!$AD$2), IF(B36="D", VLOOKUP(A36,Quantities[],Quantities!$V$2)+VLOOKUP(A36,Quantities[],Quantities!$Z$2)+VLOOKUP(A36,Quantities[],Quantities!$AD$2), IF($B36="Q", SUM(VLOOKUP($A36,Quantities[],Quantities!$V$2),VLOOKUP($A36,Quantities[],Quantities!$Z$2), VLOOKUP($A36,Quantities[],Quantities!$AD$2)), VLOOKUP(A36,Quantities[],Quantities!$G$2) ))))) -> 47 | J36: =IF(LEFT(D36,2)="Mg", VLOOKUP(A36,Quantities[],Quantities!$I$2), IF(AND(LEFT(D36,2)="Sc",B36="A",C36="d"), (SUM(VLOOKUP($A36,Quantities[],Quantities!$W$2)*VLOOKUP($A36,Quantities[],Quantities!$V$2),VLOOKUP($A36,Quantities[],Quantities!$AA$2)*VLOOKUP($A36,Quantities[],Quantities!$Z$2),VLOOKUP($A36,Quantities[],Quantities!$AE$2)*VLOOKUP($A36,Quantities[],Quantities!$AD$2)))/SUM(VLOOKUP($A36,Quantities[],Quantities!$V$2),VLOOKUP($A36,Quantities[],Quantities!$Z$2),VLOOKUP($A36,Quantities[],Quantities!$AD$2)), IF(AND(LEFT(D36,2)="Sc",C36="a"), VLOOKUP(A36,Quantities[],Quantities!$K$2), IF(AND(B36="D",C36="b", (VLOOKUP(INDEX(Quantities!$A$56:$A$88,MATCH($A36,Quantities!$C$56:$C$88)),Quantities[],Quantities!$V$2)+VLOOKUP(INDEX(Quantities!$A$56:$A$88,MATCH($A36,Quantities!$C$56:$C$88)),Quantities[],Quantities!$Z$2)+VLOOKUP(INDEX(Quantities!$A$56:$A$88,MATCH($A36,Quantities!$C$56:$C$88)),Quantities[],Quantities!$AD$2))>0), (VLOOKUP(INDEX(Quantities!$A$56:$A$88,MATCH($A36,Quantities!$C$56:$C$88)),Quantities[],Quantities!$W$2)*VLOOKUP(INDEX(Quantities!$A$56:$A$88,MATCH($A36,Quantities!$C$56:$C$88)),Quantities[],Quantities!$V$2) +VLOOKUP(INDEX(Quantities!$A$56:$A$88,MATCH($A36,Quantities!$C$56:$C$88)),Quantities[],Quantities!$AA$2)*VLOOKUP(INDEX(Quantities!$A$56:$A$88,MATCH($A36,Quantities!$C$56:$C$88)),Quantities[],Quantities!$Z$2) +VLOOKUP(INDEX(Quantities!$A$56:$A$88,MATCH($A36,Quantities!$C$56:$C$88)),Quantities[],Quantities!$AE$2)*VLOOKUP(INDEX(Quantities!$A$56:$A$88,MATCH($A36,Quantities!$C$56:$C$88)),Quantities[],Quantities!$AD$2))/ (VLOOKUP(INDEX(Quantities!$A$56:$A$88,MATCH($A36,Quantities!$C$56:$C$88)),Quantities[],Quantities!$V$2)+VLOOKUP(INDEX(Quantities!$A$56:$A$88,MATCH($A36,Quantities!$C$56:$C$88)),Quantities[],Quantities!$Z$2)+VLOOKUP(A36,Quantities[],Quantities!$AD$2)), IF(AND(B36="D", (VLOOKUP(A36,Quantities[],Quantities!$V$2)+VLOOKUP(A36,Quantities[],Quantities!$Z$2)+VLOOKUP(A36,Quantities[],Quantities!$AD$2))>0), (VLOOKUP(A36,Quantities[],Quantities!$W$2)*VLOOKUP(A36,Quantities[],Quantities!$V$2) +VLOOKUP(A36,Quantities[],Quantities!$AA$2)*VLOOKUP(A36,Quantities[],Quantities!$Z$2) +VLOOKUP(A36,Quantities[],Quantities!$AE$2)*VLOOKUP(A36,Quantities[],Quantities!$AD$2))/ (VLOOKUP(A36,Quantities[],Quantities!$V$2)+VLOOKUP(A36,Quantities[],Quantities!$Z$2)+VLOOKUP(A36,Quantities[],Quantities!$AD$2)), IF($B36="Q", (SUM(VLOOKUP($A36,Quantities[],Quantities!$W$2)*VLOOKUP($A36,Quantities[],Quantities!$V$2),VLOOKUP($A36,Quantities[],Quantities!$AA$2)*VLOOKUP($A36,Quantities[],Quantities!$Z$2),VLOOKUP($A36,Quantities[],Quantities!$AE$2)*VLOOKUP($A36,Quantities[],Quantities!$AD$2)))/SUM(VLOOKUP($A36,Quantities[],Quantities!$V$2),VLOOKUP($A36,Quantities[],Quantities!$Z$2),VLOOKUP($A36,Quantities[],Quantities!$AD$2)), VLOOKUP(A36,Quantities[],Quantities!$I$2) )))))) -> 0.4 | K36: =IF(LEFT(D36,1)="U","-",VLOOKUP(D36,Equipment[],Equipment!$B$2)) -> Cat D11T, U Blade
A37: =Quantities!A26 -> 1503 | B37: A | C37: a | D37: Ex1 | E37: 1503-A-a-Ex1 | F37: =IF(D37="Comb1",VLOOKUP(B37,'Activity-Material_Codes'!$A$2:$B$22,Quantities!$B$2), CONCATENATE( VLOOKUP(B37,'Activity-Material_Codes'!$A$2:$B$22,Quantities!$B$2), IF(AND(B37="B",C37="a"), " Grading",""), IF(C37="b","","-"), IF(C37="b","",VLOOKUP(A37,Quantities[],Quantities!$D$2)), IF(LEFT(TEXT(A37,"0"),1)="5","","-"), IF(LEFT(TEXT(A37,"0"),1)="5","",VLOOKUP(C37,'Activity-Material_Codes'!$A$25:$B$30,Quantities!$B$2)) )) -> Grade-Outslope-pullback Ex Only 2.5:1-Existing Ground | G37: =CONCATENATE( IF(OR(RIGHT(TEXT($A37,"0"),Quantities!$B$2)="00",LEFT(TEXT($A37,"0"),1)="5",$C37="b"),"",VLOOKUP($A37,Quantities[],Quantities!$B$2)), IF(LEFT(TEXT($A37,"0"),1)="5",""," "), IF(OR(C37="a",C37="c",C37="d",C37="e"),IF(OR(RIGHT(TEXT($A37,"0"),Quantities!$B$2)="00",LEFT(TEXT($A37,"0"),1)="5"),VLOOKUP($A37,Quantities[],Quantities!$B$2),VLOOKUP($A37,Quantities[],Quantities!$C$2)), IF(LEFT(TEXT($A37,"0"),1)="5",VLOOKUP($A37,Quantities[],Quantities!$B$2), VLOOKUP(INDEX(Quantities!$A$56:$A$89,MATCH($A37,Quantities!$C$56:$C$89)),Quantities!$A$56:$B$89,Quantities!$B$2)))) -> Cobre Haul Road CHR-3 | H37: =IF(LEFT(TEXT(A37,"0"),1)="5", VLOOKUP(VLOOKUP(A37,Quantities!$A$4:$D$89,Quantities!$C$2),Quantities!$A$4:$D$89,Quantities!$C$2), IF(OR(C37="a",C37="c",C37="d",C37="e"), "-", IF(RIGHT(TEXT(A37,"0"),2)="00",VLOOKUP(A37,Quantities[],Quantities!$B$2),VLOOKUP(A37,Quantities[],Quantities!$C$2)) )) -> - | I37: =IF(AND(LEFT(D37,2)="Sc",B37="A",C37="d"), SUM(VLOOKUP($A37,Quantities[],Quantities!$V$2),VLOOKUP($A37,Quantities[],Quantities!$Z$2), VLOOKUP($A37,Quantities[],Quantities!$AD$2)), IF(AND(LEFT(D37,2)="Sc",C37="a"), VLOOKUP(A37,Quantities[],Quantities!$J$2), IF(AND(B37="D",C37="b"), VLOOKUP(INDEX(Quantities!$A$56:$A$88,MATCH($A37,Quantities!$C$56:$C$89)),Quantities!$A$56:$AP$88,Quantities!$V$2)+ VLOOKUP(INDEX(Quantities!$A$56:$A$88,MATCH($A37,Quantities!$C$56:$C$89)),Quantities!$A$56:$AP$88,Quantities!$Z$2)+ VLOOKUP(INDEX(Quantities!$A$56:$A$88,MATCH($A37,Quantities!$C$56:$C$89)),Quantities!$A$56:$AP$88,Quantities!$AD$2), IF(B37="D", VLOOKUP(A37,Quantities[],Quantities!$V$2)+VLOOKUP(A37,Quantities[],Quantities!$Z$2)+VLOOKUP(A37,Quantities[],Quantities!$AD$2), IF($B37="Q", SUM(VLOOKUP($A37,Quantities[],Quantities!$V$2),VLOOKUP($A37,Quantities[],Quantities!$Z$2), VLOOKUP($A37,Quantities[],Quantities!$AD$2)), VLOOKUP(A37,Quantities[],Quantities!$G$2) ))))) -> 100 | J37: =IF(LEFT(D37,2)="Mg", VLOOKUP(A37,Quantities[],Quantities!$I$2), IF(AND(LEFT(D37,2)="Sc",B37="A",C37="d"), (SUM(VLOOKUP($A37,Quantities[],Quantities!$W$2)*VLOOKUP($A37,Quantities[],Quantities!$V$2),VLOOKUP($A37,Quantities[],Quantities!$AA$2)*VLOOKUP($A37,Quantities[],Quantities!$Z$2),VLOOKUP($A37,Quantities[],Quantities!$AE$2)*VLOOKUP($A37,Quantities[],Quantities!$AD$2)))/SUM(VLOOKUP($A37,Quantities[],Quantities!$V$2),VLOOKUP($A37,Quantities[],Quantities!$Z$2),VLOOKUP($A37,Quantities[],Quantities!$AD$2)), IF(AND(LEFT(D37,2)="Sc",C37="a"), VLOOKUP(A37,Quantities[],Quantities!$K$2), IF(AND(B37="D",C37="b", (VLOOKUP(INDEX(Quantities!$A$56:$A$88,MATCH($A37,Quantities!$C$56:$C$88)),Quantities[],Quantities!$V$2)+VLOOKUP(INDEX(Quantities!$A$56:$A$88,MATCH($A37,Quantities!$C$56:$C$88)),Quantities[],Quantities!$Z$2)+VLOOKUP(INDEX(Quantities!$A$56:$A$88,MATCH($A37,Quantities!$C$56:$C$88)),Quantities[],Quantities!$AD$2))>0), (VLOOKUP(INDEX(Quantities!$A$56:$A$88,MATCH($A37,Quantities!$C$56:$C$88)),Quantities[],Quantities!$W$2)*VLOOKUP(INDEX(Quantities!$A$56:$A$88,MATCH($A37,Quantities!$C$56:$C$88)),Quantities[],Quantities!$V$2) +VLOOKUP(INDEX(Quantities!$A$56:$A$88,MATCH($A37,Quantities!$C$56:$C$88)),Quantities[],Quantities!$AA$2)*VLOOKUP(INDEX(Quantities!$A$56:$A$88,MATCH($A37,Quantities!$C$56:$C$88)),Quantities[],Quantities!$Z$2) +VLOOKUP(INDEX(Quantities!$A$56:$A$88,MATCH($A37,Quantities!$C$56:$C$88)),Quantities[],Quantities!$AE$2)*VLOOKUP(INDEX(Quantities!$A$56:$A$88,MATCH($A37,Quantities!$C$56:$C$88)),Quantities[],Quantities!$AD$2))/ (VLOOKUP(INDEX(Quantities!$A$56:$A$88,MATCH($A37,Quantities!$C$56:$C$88)),Quantities[],Quantities!$V$2)+VLOOKUP(INDEX(Quantities!$A$56:$A$88,MATCH($A37,Quantities!$C$56:$C$88)),Quantities[],Quantities!$Z$2)+VLOOKUP(A37,Quantities[],Quantities!$AD$2)), IF(AND(B37="D", (VLOOKUP(A37,Quantities[],Quantities!$V$2)+VLOOKUP(A37,Quantities[],Quantities!$Z$2)+VLOOKUP(A37,Quantities[],Quantities!$AD$2))>0), (VLOOKUP(A37,Quantities[],Quantities!$W$2)*VLOOKUP(A37,Quantities[],Quantities!$V$2) +VLOOKUP(A37,Quantities[],Quantities!$AA$2)*VLOOKUP(A37,Quantities[],Quantities!$Z$2) +VLOOKUP(A37,Quantities[],Quantities!$AE$2)*VLOOKUP(A37,Quantities[],Quantities!$AD$2))/ (VLOOKUP(A37,Quantities[],Quantities!$V$2)+VLOOKUP(A37,Quantities[],Quantities!$Z$2)+VLOOKUP(A37,Quantities[],Quantities!$AD$2)), IF($B37="Q", (SUM(VLOOKUP($A37,Quantities[],Quantities!$W$2)*VLOOKUP($A37,Quantities[],Quantities!$V$2),VLOOKUP($A37,Quantities[],Quantities!$AA$2)*VLOOKUP($A37,Quantities[],Quantities!$Z$2),VLOOKUP($A37,Quantities[],Quantities!$AE$2)*VLOOKUP($A37,Quantities[],Quantities!$AD$2)))/SUM(VLOOKUP($A37,Quantities[],Quantities!$V$2),VLOOKUP($A37,Quantities[],Quantities!$Z$2),VLOOKUP($A37,Quantities[],Quantities!$AD$2)), VLOOKUP(A37,Quantities[],Quantities!$I$2) )))))) -> 0.4 | K37: =IF(LEFT(D37,1)="U","-",VLOOKUP(D37,Equipment[],Equipment!$B$2)) -> Cat 319D L
A38: =Quantities!A26 -> 1503 | B38: B | C38: a | D38: Dz1 | E38: 1503-B-a-Dz1 | F38: =IF(D38="Comb1",VLOOKUP(B38,'Activity-Material_Codes'!$A$2:$B$22,Quantities!$B$2), CONCATENATE( VLOOKUP(B38,'Activity-Material_Codes'!$A$2:$B$22,Quantities!$B$2), IF(AND(B38="B",C38="a"), " Grading",""), IF(C38="b","","-"), IF(C38="b","",VLOOKUP(A38,Quantities[],Quantities!$D$2)), IF(LEFT(TEXT(A38,"0"),1)="5","","-"), IF(LEFT(TEXT(A38,"0"),1)="5","",VLOOKUP(C38,'Activity-Material_Codes'!$A$25:$B$30,Quantities!$B$2)) )) -> Dozer Assist Grading-Outslope-pullback Ex Only 2.5:1-Existing Ground | G38: =CONCATENATE( IF(OR(RIGHT(TEXT($A38,"0"),Quantities!$B$2)="00",LEFT(TEXT($A38,"0"),1)="5",$C38="b"),"",VLOOKUP($A38,Quantities[],Quantities!$B$2)), IF(LEFT(TEXT($A38,"0"),1)="5",""," "), IF(OR(C38="a",C38="c",C38="d",C38="e"),IF(OR(RIGHT(TEXT($A38,"0"),Quantities!$B$2)="00",LEFT(TEXT($A38,"0"),1)="5"),VLOOKUP($A38,Quantities[],Quantities!$B$2),VLOOKUP($A38,Quantities[],Quantities!$C$2)), IF(LEFT(TEXT($A38,"0"),1)="5",VLOOKUP($A38,Quantities[],Quantities!$B$2), VLOOKUP(INDEX(Quantities!$A$56:$A$89,MATCH($A38,Quantities!$C$56:$C$89)),Quantities!$A$56:$B$89,Quantities!$B$2)))) -> Cobre Haul Road CHR-3 | H38: =IF(LEFT(TEXT(A38,"0"),1)="5", VLOOKUP(VLOOKUP(A38,Quantities!$A$4:$D$89,Quantities!$C$2),Quantities!$A$4:$D$89,Quantities!$C$2), IF(OR(C38="a",C38="c",C38="d",C38="e"), "-", IF(RIGHT(TEXT(A38,"0"),2)="00",VLOOKUP(A38,Quantities[],Quantities!$B$2),VLOOKUP(A38,Quantities[],Quantities!$C$2)) )) -> - | I38: =IF(AND(LEFT(D38,2)="Sc",B38="A",C38="d"), SUM(VLOOKUP($A38,Quantities[],Quantities!$V$2),VLOOKUP($A38,Quantities[],Quantities!$Z$2), VLOOKUP($A38,Quantities[],Quantities!$AD$2)), IF(AND(LEFT(D38,2)="Sc",C38="a"), VLOOKUP(A38,Quantities[],Quantities!$J$2), IF(AND(B38="D",C38="b"), VLOOKUP(INDEX(Quantities!$A$56:$A$88,MATCH($A38,Quantities!$C$56:$C$89)),Quantities!$A$56:$AP$88,Quantities!$V$2)+ VLOOKUP(INDEX(Quantities!$A$56:$A$88,MATCH($A38,Quantities!$C$56:$C$89)),Quantities!$A$56:$AP$88,Quantities!$Z$2)+ VLOOKUP(INDEX(Quantities!$A$56:$A$88,MATCH($A38,Quantities!$C$56:$C$89)),Quantities!$A$56:$AP$88,Quantities!$AD$2), IF(B38="D", VLOOKUP(A38,Quantities[],Quantities!$V$2)+VLOOKUP(A38,Quantities[],Quantities!$Z$2)+VLOOKUP(A38,Quantities[],Quantities!$AD$2), IF($B38="Q", SUM(VLOOKUP($A38,Quantities[],Quantities!$V$2),VLOOKUP($A38,Quantities[],Quantities!$Z$2), VLOOKUP($A38,Quantities[],Quantities!$AD$2)), VLOOKUP(A38,Quantities[],Quantities!$G$2) ))))) -> 100 | J38: =IF(LEFT(D38,2)="Mg", VLOOKUP(A38,Quantities[],Quantities!$I$2), IF(AND(LEFT(D38,2)="Sc",B38="A",C38="d"), (SUM(VLOOKUP($A38,Quantities[],Quantities!$W$2)*VLOOKUP($A38,Quantities[],Quantities!$V$2),VLOOKUP($A38,Quantities[],Quantities!$AA$2)*VLOOKUP($A38,Quantities[],Quantities!$Z$2),VLOOKUP($A38,Quantities[],Quantities!$AE$2)*VLOOKUP($A38,Quantities[],Quantities!$AD$2)))/SUM(VLOOKUP($A38,Quantities[],Quantities!$V$2),VLOOKUP($A38,Quantities[],Quantities!$Z$2),VLOOKUP($A38,Quantities[],Quantities!$AD$2)), IF(AND(LEFT(D38,2)="Sc",C38="a"), VLOOKUP(A38,Quantities[],Quantities!$K$2), IF(AND(B38="D",C38="b", (VLOOKUP(INDEX(Quantities!$A$56:$A$88,MATCH($A38,Quantities!$C$56:$C$88)),Quantities[],Quantities!$V$2)+VLOOKUP(INDEX(Quantities!$A$56:$A$88,MATCH($A38,Quantities!$C$56:$C$88)),Quantities[],Quantities!$Z$2)+VLOOKUP(INDEX(Quantities!$A$56:$A$88,MATCH($A38,Quantities!$C$56:$C$88)),Quantities[],Quantities!$AD$2))>0), (VLOOKUP(INDEX(Quantities!$A$56:$A$88,MATCH($A38,Quantities!$C$56:$C$88)),Quantities[],Quantities!$W$2)*VLOOKUP(INDEX(Quantities!$A$56:$A$88,MATCH($A38,Quantities!$C$56:$C$88)),Quantities[],Quantities!$V$2) +VLOOKUP(INDEX(Quantities!$A$56:$A$88,MATCH($A38,Quantities!$C$56:$C$88)),Quantities[],Quantities!$AA$2)*VLOOKUP(INDEX(Quantities!$A$56:$A$88,MATCH($A38,Quantities!$C$56:$C$88)),Quantities[],Quantities!$Z$2) +VLOOKUP(INDEX(Quantities!$A$56:$A$88,MATCH($A38,Quantities!$C$56:$C$88)),Quantities[],Quantities!$AE$2)*VLOOKUP(INDEX(Quantities!$A$56:$A$88,MATCH($A38,Quantities!$C$56:$C$88)),Quantities[],Quantities!$AD$2))/ (VLOOKUP(INDEX(Quantities!$A$56:$A$88,MATCH($A38,Quantities!$C$56:$C$88)),Quantities[],Quantities!$V$2)+VLOOKUP(INDEX(Quantities!$A$56:$A$88,MATCH($A38,Quantities!$C$56:$C$88)),Quantities[],Quantities!$Z$2)+VLOOKUP(A38,Quantities[],Quantities!$AD$2)), IF(AND(B38="D", (VLOOKUP(A38,Quantities[],Quantities!$V$2)+VLOOKUP(A38,Quantities[],Quantities!$Z$2)+VLOOKUP(A38,Quantities[],Quantities!$AD$2))>0), (VLOOKUP(A38,Quantities[],Quantities!$W$2)*VLOOKUP(A38,Quantities[],Quantities!$V$2) +VLOOKUP(A38,Quantities[],Quantities!$AA$2)*VLOOKUP(A38,Quantities[],Quantities!$Z$2) +VLOOKUP(A38,Quantities[],Quantities!$AE$2)*VLOOKUP(A38,Quantities[],Quantities!$AD$2))/ (VLOOKUP(A38,Quantities[],Quantities!$V$2)+VLOOKUP(A38,Quantities[],Quantities!$Z$2)+VLOOKUP(A38,Quantities[],Quantities!$AD$2)), IF($B38="Q", (SUM(VLOOKUP($A38,Quantities[],Quantities!$W$2)*VLOOKUP($A38,Quantities[],Quantities!$V$2),VLOOKUP($A38,Quantities[],Quantities!$AA$2)*VLOOKUP($A38,Quantities[],Quantities!$Z$2),VLOOKUP($A38,Quantities[],Quantities!$AE$2)*VLOOKUP($A38,Quantities[],Quantities!$AD$2)))/SUM(VLOOKUP($A38,Quantities[],Quantities!$V$2),VLOOKUP($A38,Quantities[],Quantities!$Z$2),VLOOKUP($A38,Quantities[],Quantities!$AD$2)), VLOOKUP(A38,Quantities[],Quantities!$I$2) )))))) -> 0.4 | K38: =IF(LEFT(D38,1)="U","-",VLOOKUP(D38,Equipment[],Equipment!$B$2)) -> Cat D11T, U Blade
A39: 1504 | B39: C | C39: a | D39: Ld1 | E39: 1504-C-a-Ld1 | F39: =IF(D39="Comb1",VLOOKUP(B39,'Activity-Material_Codes'!$A$2:$B$22,Quantities!$B$2), CONCATENATE( VLOOKUP(B39,'Activity-Material_Codes'!$A$2:$B$22,Quantities!$B$2), IF(AND(B39="B",C39="a"), " Grading",""), IF(C39="b","","-"), IF(C39="b","",VLOOKUP(A39,Quantities[],Quantities!$D$2)), IF(LEFT(TEXT(A39,"0"),1)="5","","-"), IF(LEFT(TEXT(A39,"0"),1)="5","",VLOOKUP(C39,'Activity-Material_Codes'!$A$25:$B$30,Quantities!$B$2)) )) -> Load-Outslope-pullback LdTk 2.5:1-Existing Ground | G39: =CONCATENATE( IF(OR(RIGHT(TEXT($A39,"0"),Quantities!$B$2)="00",LEFT(TEXT($A39,"0"),1)="5",$C39="b"),"",VLOOKUP($A39,Quantities[],Quantities!$B$2)), IF(LEFT(TEXT($A39,"0"),1)="5",""," "), IF(OR(C39="a",C39="c",C39="d",C39="e"),IF(OR(RIGHT(TEXT($A39,"0"),Quantities!$B$2)="00",LEFT(TEXT($A39,"0"),1)="5"),VLOOKUP($A39,Quantities[],Quantities!$B$2),VLOOKUP($A39,Quantities[],Quantities!$C$2)), IF(LEFT(TEXT($A39,"0"),1)="5",VLOOKUP($A39,Quantities[],Quantities!$B$2), VLOOKUP(INDEX(Quantities!$A$56:$A$89,MATCH($A39,Quantities!$C$56:$C$89)),Quantities!$A$56:$B$89,Quantities!$B$2)))) -> Cobre Haul Road CHR-4 | H39: =IF(LEFT(TEXT(A39,"0"),1)="5", VLOOKUP(VLOOKUP(A39,Quantities!$A$4:$D$89,Quantities!$C$2),Quantities!$A$4:$D$89,Quantities!$C$2), IF(OR(C39="a",C39="c",C39="d",C39="e"), "-", IF(RIGHT(TEXT(A39,"0"),2)="00",VLOOKUP(A39,Quantities[],Quantities!$B$2),VLOOKUP(A39,Quantities[],Quantities!$C$2)) )) -> - | I39: =IF(AND(LEFT(D39,2)="Sc",B39="A",C39="d"), SUM(VLOOKUP($A39,Quantities[],Quantities!$V$2),VLOOKUP($A39,Quantities[],Quantities!$Z$2), VLOOKUP($A39,Quantities[],Quantities!$AD$2)), IF(AND(LEFT(D39,2)="Sc",C39="a"), VLOOKUP(A39,Quantities[],Quantities!$J$2), IF(AND(B39="D",C39="b"), VLOOKUP(INDEX(Quantities!$A$56:$A$88,MATCH($A39,Quantities!$C$56:$C$89)),Quantities!$A$56:$AP$88,Quantities!$V$2)+ VLOOKUP(INDEX(Quantities!$A$56:$A$88,MATCH($A39,Quantities!$C$56:$C$89)),Quantities!$A$56:$AP$88,Quantities!$Z$2)+ VLOOKUP(INDEX(Quantities!$A$56:$A$88,MATCH($A39,Quantities!$C$56:$C$89)),Quantities!$A$56:$AP$88,Quantities!$AD$2), IF(B39="D", VLOOKUP(A39,Quantities[],Quantities!$V$2)+VLOOKUP(A39,Quantities[],Quantities!$Z$2)+VLOOKUP(A39,Quantities[],Quantities!$AD$2), IF($B39="Q", SUM(VLOOKUP($A39,Quantities[],Quantities!$V$2),VLOOKUP($A39,Quantities[],Quantities!$Z$2), VLOOKUP($A39,Quantities[],Quantities!$AD$2)), VLOOKUP(A39,Quantities[],Quantities!$G$2) ))))) -> 100 | J39: =IF(LEFT(D39,2)="Mg", VLOOKUP(A39,Quantities[],Quantities!$I$2), IF(AND(LEFT(D39,2)="Sc",B39="A",C39="d"), (SUM(VLOOKUP($A39,Quantities[],Quantities!$W$2)*VLOOKUP($A39,Quantities[],Quantities!$V$2),VLOOKUP($A39,Quantities[],Quantities!$AA$2)*VLOOKUP($A39,Quantities[],Quantities!$Z$2),VLOOKUP($A39,Quantities[],Quantities!$AE$2)*VLOOKUP($A39,Quantities[],Quantities!$AD$2)))/SUM(VLOOKUP($A39,Quantities[],Quantities!$V$2),VLOOKUP($A39,Quantities[],Quantities!$Z$2),VLOOKUP($A39,Quantities[],Quantities!$AD$2)), IF(AND(LEFT(D39,2)="Sc",C39="a"), VLOOKUP(A39,Quantities[],Quantities!$K$2), IF(AND(B39="D",C39="b", (VLOOKUP(INDEX(Quantities!$A$56:$A$88,MATCH($A39,Quantities!$C$56:$C$88)),Quantities[],Quantities!$V$2)+VLOOKUP(INDEX(Quantities!$A$56:$A$88,MATCH($A39,Quantities!$C$56:$C$88)),Quantities[],Quantities!$Z$2)+VLOOKUP(INDEX(Quantities!$A$56:$A$88,MATCH($A39,Quantities!$C$56:$C$88)),Quantities[],Quantities!$AD$2))>0), (VLOOKUP(INDEX(Quantities!$A$56:$A$88,MATCH($A39,Quantities!$C$56:$C$88)),Quantities[],Quantities!$W$2)*VLOOKUP(INDEX(Quantities!$A$56:$A$88,MATCH($A39,Quantities!$C$56:$C$88)),Quantities[],Quantities!$V$2) +VLOOKUP(INDEX(Quantities!$A$56:$A$88,MATCH($A39,Quantities!$C$56:$C$88)),Quantities[],Quantities!$AA$2)*VLOOKUP(INDEX(Quantities!$A$56:$A$88,MATCH($A39,Quantities!$C$56:$C$88)),Quantities[],Quantities!$Z$2) +VLOOKUP(INDEX(Quantities!$A$56:$A$88,MATCH($A39,Quantities!$C$56:$C$88)),Quantities[],Quantities!$AE$2)*VLOOKUP(INDEX(Quantities!$A$56:$A$88,MATCH($A39,Quantities!$C$56:$C$88)),Quantities[],Quantities!$AD$2))/ (VLOOKUP(INDEX(Quantities!$A$56:$A$88,MATCH($A39,Quantities!$C$56:$C$88)),Quantities[],Quantities!$V$2)+VLOOKUP(INDEX(Quantities!$A$56:$A$88,MATCH($A39,Quantities!$C$56:$C$88)),Quantities[],Quantities!$Z$2)+VLOOKUP(A39,Quantities[],Quantities!$AD$2)), IF(AND(B39="D", (VLOOKUP(A39,Quantities[],Quantities!$V$2)+VLOOKUP(A39,Quantities[],Quantities!$Z$2)+VLOOKUP(A39,Quantities[],Quantities!$AD$2))>0), (VLOOKUP(A39,Quantities[],Quantities!$W$2)*VLOOKUP(A39,Quantities[],Quantities!$V$2) +VLOOKUP(A39,Quantities[],Quantities!$AA$2)*VLOOKUP(A39,Quantities[],Quantities!$Z$2) +VLOOKUP(A39,Quantities[],Quantities!$AE$2)*VLOOKUP(A39,Quantities[],Quantities!$AD$2))/ (VLOOKUP(A39,Quantities[],Quantities!$V$2)+VLOOKUP(A39,Quantities[],Quantities!$Z$2)+VLOOKUP(A39,Quantities[],Quantities!$AD$2)), IF($B39="Q", (SUM(VLOOKUP($A39,Quantities[],Quantities!$W$2)*VLOOKUP($A39,Quantities[],Quantities!$V$2),VLOOKUP($A39,Quantities[],Quantities!$AA$2)*VLOOKUP($A39,Quantities[],Quantities!$Z$2),VLOOKUP($A39,Quantities[],Quantities!$AE$2)*VLOOKUP($A39,Quantities[],Quantities!$AD$2)))/SUM(VLOOKUP($A39,Quantities[],Quantities!$V$2),VLOOKUP($A39,Quantities[],Quantities!$Z$2),VLOOKUP($A39,Quantities[],Quantities!$AD$2)), VLOOKUP(A39,Quantities[],Quantities!$I$2) )))))) -> 0.4 | K39: =IF(LEFT(D39,1)="U","-",VLOOKUP(D39,Equipment[],Equipment!$B$2)) -> Cat 992K
A40: 1504 | B40: B | C40: a | D40: Dz1 | E40: 1504-B-a-Dz1 | F40: =IF(D40="Comb1",VLOOKUP(B40,'Activity-Material_Codes'!$A$2:$B$22,Quantities!$B$2), CONCATENATE( VLOOKUP(B40,'Activity-Material_Codes'!$A$2:$B$22,Quantities!$B$2), IF(AND(B40="B",C40="a"), " Grading",""), IF(C40="b","","-"), IF(C40="b","",VLOOKUP(A40,Quantities[],Quantities!$D$2)), IF(LEFT(TEXT(A40,"0"),1)="5","","-"), IF(LEFT(TEXT(A40,"0"),1)="5","",VLOOKUP(C40,'Activity-Material_Codes'!$A$25:$B$30,Quantities!$B$2)) )) -> Dozer Assist Grading-Outslope-pullback LdTk 2.5:1-Existing Ground | G40: =CONCATENATE( IF(OR(RIGHT(TEXT($A40,"0"),Quantities!$B$2)="00",LEFT(TEXT($A40,"0"),1)="5",$C40="b"),"",VLOOKUP($A40,Quantities[],Quantities!$B$2)), IF(LEFT(TEXT($A40,"0"),1)="5",""," "), IF(OR(C40="a",C40="c",C40="d",C40="e"),IF(OR(RIGHT(TEXT($A40,"0"),Quantities!$B$2)="00",LEFT(TEXT($A40,"0"),1)="5"),VLOOKUP($A40,Quantities[],Quantities!$B$2),VLOOKUP($A40,Quantities[],Quantities!$C$2)), IF(LEFT(TEXT($A40,"0"),1)="5",VLOOKUP($A40,Quantities[],Quantities!$B$2), VLOOKUP(INDEX(Quantities!$A$56:$A$89,MATCH($A40,Quantities!$C$56:$C$89)),Quantities!$A$56:$B$89,Quantities!$B$2)))) -> Cobre Haul Road CHR-4 | H40: =IF(LEFT(TEXT(A40,"0"),1)="5", VLOOKUP(VLOOKUP(A40,Quantities!$A$4:$D$89,Quantities!$C$2),Quantities!$A$4:$D$89,Quantities!$C$2), IF(OR(C40="a",C40="c",C40="d",C40="e"), "-", IF(RIGHT(TEXT(A40,"0"),2)="00",VLOOKUP(A40,Quantities[],Quantities!$B$2),VLOOKUP(A40,Quantities[],Quantities!$C$2)) )) -> - | I40: =IF(AND(LEFT(D40,2)="Sc",B40="A",C40="d"), SUM(VLOOKUP($A40,Quantities[],Quantities!$V$2),VLOOKUP($A40,Quantities[],Quantities!$Z$2), VLOOKUP($A40,Quantities[],Quantities!$AD$2)), IF(AND(LEFT(D40,2)="Sc",C40="a"), VLOOKUP(A40,Quantities[],Quantities!$J$2), IF(AND(B40="D",C40="b"), VLOOKUP(INDEX(Quantities!$A$56:$A$88,MATCH($A40,Quantities!$C$56:$C$89)),Quantities!$A$56:$AP$88,Quantities!$V$2)+ VLOOKUP(INDEX(Quantities!$A$56:$A$88,MATCH($A40,Quantities!$C$56:$C$89)),Quantities!$A$56:$AP$88,Quantities!$Z$2)+ VLOOKUP(INDEX(Quantities!$A$56:$A$88,MATCH($A40,Quantities!$C$56:$C$89)),Quantities!$A$56:$AP$88,Quantities!$AD$2), IF(B40="D", VLOOKUP(A40,Quantities[],Quantities!$V$2)+VLOOKUP(A40,Quantities[],Quantities!$Z$2)+VLOOKUP(A40,Quantities[],Quantities!$AD$2), IF($B40="Q", SUM(VLOOKUP($A40,Quantities[],Quantities!$V$2),VLOOKUP($A40,Quantities[],Quantities!$Z$2), VLOOKUP($A40,Quantities[],Quantities!$AD$2)), VLOOKUP(A40,Quantities[],Quantities!$G$2) ))))) -> 100 | J40: =IF(LEFT(D40,2)="Mg", VLOOKUP(A40,Quantities[],Quantities!$I$2), IF(AND(LEFT(D40,2)="Sc",B40="A",C40="d"), (SUM(VLOOKUP($A40,Quantities[],Quantities!$W$2)*VLOOKUP($A40,Quantities[],Quantities!$V$2),VLOOKUP($A40,Quantities[],Quantities!$AA$2)*VLOOKUP($A40,Quantities[],Quantities!$Z$2),VLOOKUP($A40,Quantities[],Quantities!$AE$2)*VLOOKUP($A40,Quantities[],Quantities!$AD$2)))/SUM(VLOOKUP($A40,Quantities[],Quantities!$V$2),VLOOKUP($A40,Quantities[],Quantities!$Z$2),VLOOKUP($A40,Quantities[],Quantities!$AD$2)), IF(AND(LEFT(D40,2)="Sc",C40="a"), VLOOKUP(A40,Quantities[],Quantities!$K$2), IF(AND(B40="D",C40="b", (VLOOKUP(INDEX(Quantities!$A$56:$A$88,MATCH($A40,Quantities!$C$56:$C$88)),Quantities[],Quantities!$V$2)+VLOOKUP(INDEX(Quantities!$A$56:$A$88,MATCH($A40,Quantities!$C$56:$C$88)),Quantities[],Quantities!$Z$2)+VLOOKUP(INDEX(Quantities!$A$56:$A$88,MATCH($A40,Quantities!$C$56:$C$88)),Quantities[],Quantities!$AD$2))>0), (VLOOKUP(INDEX(Quantities!$A$56:$A$88,MATCH($A40,Quantities!$C$56:$C$88)),Quantities[],Quantities!$W$2)*VLOOKUP(INDEX(Quantities!$A$56:$A$88,MATCH($A40,Quantities!$C$56:$C$88)),Quantities[],Quantities!$V$2) +VLOOKUP(INDEX(Quantities!$A$56:$A$88,MATCH($A40,Quantities!$C$56:$C$88)),Quantities[],Quantities!$AA$2)*VLOOKUP(INDEX(Quantities!$A$56:$A$88,MATCH($A40,Quantities!$C$56:$C$88)),Quantities[],Quantities!$Z$2) +VLOOKUP(INDEX(Quantities!$A$56:$A$88,MATCH($A40,Quantities!$C$56:$C$88)),Quantities[],Quantities!$AE$2)*VLOOKUP(INDEX(Quantities!$A$56:$A$88,MATCH($A40,Quantities!$C$56:$C$88)),Quantities[],Quantities!$AD$2))/ (VLOOKUP(INDEX(Quantities!$A$56:$A$88,MATCH($A40,Quantities!$C$56:$C$88)),Quantities[],Quantities!$V$2)+VLOOKUP(INDEX(Quantities!$A$56:$A$88,MATCH($A40,Quantities!$C$56:$C$88)),Quantities[],Quantities!$Z$2)+VLOOKUP(A40,Quantities[],Quantities!$AD$2)), IF(AND(B40="D", (VLOOKUP(A40,Quantities[],Quantities!$V$2)+VLOOKUP(A40,Quantities[],Quantities!$Z$2)+VLOOKUP(A40,Quantities[],Quantities!$AD$2))>0), (VLOOKUP(A40,Quantities[],Quantities!$W$2)*VLOOKUP(A40,Quantities[],Quantities!$V$2) +VLOOKUP(A40,Quantities[],Quantities!$AA$2)*VLOOKUP(A40,Quantities[],Quantities!$Z$2) +VLOOKUP(A40,Quantities[],Quantities!$AE$2)*VLOOKUP(A40,Quantities[],Quantities!$AD$2))/ (VLOOKUP(A40,Quantities[],Quantities!$V$2)+VLOOKUP(A40,Quantities[],Quantities!$Z$2)+VLOOKUP(A40,Quantities[],Quantities!$AD$2)), IF($B40="Q", (SUM(VLOOKUP($A40,Quantities[],Quantities!$W$2)*VLOOKUP($A40,Quantities[],Quantities!$V$2),VLOOKUP($A40,Quantities[],Quantities!$AA$2)*VLOOKUP($A40,Quantities[],Quantities!$Z$2),VLOOKUP($A40,Quantities[],Quantities!$AE$2)*VLOOKUP($A40,Quantities[],Quantities!$AD$2)))/SUM(VLOOKUP($A40,Quantities[],Quantities!$V$2),VLOOKUP($A40,Quantities[],Quantities!$Z$2),VLOOKUP($A40,Quantities[],Quantities!$AD$2)), VLOOKUP(A40,Quantities[],Quantities!$I$2) )))))) -> 0.4 | K40: =IF(LEFT(D40,1)="U","-",VLOOKUP(D40,Equipment[],Equipment!$B$2)) -> Cat D11T, U Blade
A41: 1504 | B41: D | C41: a | D41: Tk3 | E41: 1504-D-a-Tk3 | F41: =IF(D41="Comb1",VLOOKUP(B41,'Activity-Material_Codes'!$A$2:$B$22,Quantities!$B$2), CONCATENATE( VLOOKUP(B41,'Activity-Material_Codes'!$A$2:$B$22,Quantities!$B$2), IF(AND(B41="B",C41="a"), " Grading",""), IF(C41="b","","-"), IF(C41="b","",VLOOKUP(A41,Quantities[],Quantities!$D$2)), IF(LEFT(TEXT(A41,"0"),1)="5","","-"), IF(LEFT(TEXT(A41,"0"),1)="5","",VLOOKUP(C41,'Activity-Material_Codes'!$A$25:$B$30,Quantities!$B$2)) )) -> Haul-Outslope-pullback LdTk 2.5:1-Existing Ground | G41: =CONCATENATE( IF(OR(RIGHT(TEXT($A41,"0"),Quantities!$B$2)="00",LEFT(TEXT($A41,"0"),1)="5",$C41="b"),"",VLOOKUP($A41,Quantities[],Quantities!$B$2)), IF(LEFT(TEXT($A41,"0"),1)="5",""," "), IF(OR(C41="a",C41="c",C41="d",C41="e"),IF(OR(RIGHT(TEXT($A41,"0"),Quantities!$B$2)="00",LEFT(TEXT($A41,"0"),1)="5"),VLOOKUP($A41,Quantities[],Quantities!$B$2),VLOOKUP($A41,Quantities[],Quantities!$C$2)), IF(LEFT(TEXT($A41,"0"),1)="5",VLOOKUP($A41,Quantities[],Quantities!$B$2), VLOOKUP(INDEX(Quantities!$A$56:$A$89,MATCH($A41,Quantities!$C$56:$C$89)),Quantities!$A$56:$B$89,Quantities!$B$2)))) -> Cobre Haul Road CHR-4 | H41: =IF(LEFT(TEXT(A41,"0"),1)="5", VLOOKUP(VLOOKUP(A41,Quantities!$A$4:$D$89,Quantities!$C$2),Quantities!$A$4:$D$89,Quantities!$C$2), IF(OR(C41="a",C41="c",C41="d",C41="e"), "-", IF(RIGHT(TEXT(A41,"0"),2)="00",VLOOKUP(A41,Quantities[],Quantities!$B$2),VLOOKUP(A41,Quantities[],Quantities!$C$2)) )) -> - | I41: =IF(AND(LEFT(D41,2)="Sc",B41="A",C41="d"), SUM(VLOOKUP($A41,Quantities[],Quantities!$V$2),VLOOKUP($A41,Quantities[],Quantities!$Z$2), VLOOKUP($A41,Quantities[],Quantities!$AD$2)), IF(AND(LEFT(D41,2)="Sc",C41="a"), VLOOKUP(A41,Quantities[],Quantities!$J$2), IF(AND(B41="D",C41="b"), VLOOKUP(INDEX(Quantities!$A$56:$A$88,MATCH($A41,Quantities!$C$56:$C$89)),Quantities!$A$56:$AP$88,Quantities!$V$2)+ VLOOKUP(INDEX(Quantities!$A$56:$A$88,MATCH($A41,Quantities!$C$56:$C$89)),Quantities!$A$56:$AP$88,Quantities!$Z$2)+ VLOOKUP(INDEX(Quantities!$A$56:$A$88,MATCH($A41,Quantities!$C$56:$C$89)),Quantities!$A$56:$AP$88,Quantities!$AD$2), IF(B41="D", VLOOKUP(A41,Quantities[],Quantities!$V$2)+VLOOKUP(A41,Quantities[],Quantities!$Z$2)+VLOOKUP(A41,Quantities[],Quantities!$AD$2), IF($B41="Q", SUM(VLOOKUP($A41,Quantities[],Quantities!$V$2),VLOOKUP($A41,Quantities[],Quantities!$Z$2), VLOOKUP($A41,Quantities[],Quantities!$AD$2)), VLOOKUP(A41,Quantities[],Quantities!$G$2) ))))) -> 2640 | J41: =IF(LEFT(D41,2)="Mg", VLOOKUP(A41,Quantities[],Quantities!$I$2), IF(AND(LEFT(D41,2)="Sc",B41="A",C41="d"), (SUM(VLOOKUP($A41,Quantities[],Quantities!$W$2)*VLOOKUP($A41,Quantities[],Quantities!$V$2),VLOOKUP($A41,Quantities[],Quantities!$AA$2)*VLOOKUP($A41,Quantities[],Quantities!$Z$2),VLOOKUP($A41,Quantities[],Quantities!$AE$2)*VLOOKUP($A41,Quantities[],Quantities!$AD$2)))/SUM(VLOOKUP($A41,Quantities[],Quantities!$V$2),VLOOKUP($A41,Quantities[],Quantities!$Z$2),VLOOKUP($A41,Quantities[],Quantities!$AD$2)), IF(AND(LEFT(D41,2)="Sc",C41="a"), VLOOKUP(A41,Quantities[],Quantities!$K$2), IF(AND(B41="D",C41="b", (VLOOKUP(INDEX(Quantities!$A$56:$A$88,MATCH($A41,Quantities!$C$56:$C$88)),Quantities[],Quantities!$V$2)+VLOOKUP(INDEX(Quantities!$A$56:$A$88,MATCH($A41,Quantities!$C$56:$C$88)),Quantities[],Quantities!$Z$2)+VLOOKUP(INDEX(Quantities!$A$56:$A$88,MATCH($A41,Quantities!$C$56:$C$88)),Quantities[],Quantities!$AD$2))>0), (VLOOKUP(INDEX(Quantities!$A$56:$A$88,MATCH($A41,Quantities!$C$56:$C$88)),Quantities[],Quantities!$W$2)*VLOOKUP(INDEX(Quantities!$A$56:$A$88,MATCH($A41,Quantities!$C$56:$C$88)),Quantities[],Quantities!$V$2) +VLOOKUP(INDEX(Quantities!$A$56:$A$88,MATCH($A41,Quantities!$C$56:$C$88)),Quantities[],Quantities!$AA$2)*VLOOKUP(INDEX(Quantities!$A$56:$A$88,MATCH($A41,Quantities!$C$56:$C$88)),Quantities[],Quantities!$Z$2) +VLOOKUP(INDEX(Quantities!$A$56:$A$88,MATCH($A41,Quantities!$C$56:$C$88)),Quantities[],Quantities!$AE$2)*VLOOKUP(INDEX(Quantities!$A$56:$A$88,MATCH($A41,Quantities!$C$56:$C$88)),Quantities[],Quantities!$AD$2))/ (VLOOKUP(INDEX(Quantities!$A$56:$A$88,MATCH($A41,Quantities!$C$56:$C$88)),Quantities[],Quantities!$V$2)+VLOOKUP(INDEX(Quantities!$A$56:$A$88,MATCH($A41,Quantities!$C$56:$C$88)),Quantities[],Quantities!$Z$2)+VLOOKUP(A41,Quantities[],Quantities!$AD$2)), IF(AND(B41="D", (VLOOKUP(A41,Quantities[],Quantities!$V$2)+VLOOKUP(A41,Quantities[],Quantities!$Z$2)+VLOOKUP(A41,Quantities[],Quantities!$AD$2))>0), (VLOOKUP(A41,Quantities[],Quantities!$W$2)*VLOOKUP(A41,Quantities[],Quantities!$V$2) +VLOOKUP(A41,Quantities[],Quantities!$AA$2)*VLOOKUP(A41,Quantities[],Quantities!$Z$2) +VLOOKUP(A41,Quantities[],Quantities!$AE$2)*VLOOKUP(A41,Quantities[],Quantities!$AD$2))/ (VLOOKUP(A41,Quantities[],Quantities!$V$2)+VLOOKUP(A41,Quantities[],Quantities!$Z$2)+VLOOKUP(A41,Quantities[],Quantities!$AD$2)), IF($B41="Q", (SUM(VLOOKUP($A41,Quantities[],Quantities!$W$2)*VLOOKUP($A41,Quantities[],Quantities!$V$2),VLOOKUP($A41,Quantities[],Quantities!$AA$2)*VLOOKUP($A41,Quantities[],Quantities!$Z$2),VLOOKUP($A41,Quantities[],Quantities!$AE$2)*VLOOKUP($A41,Quantities[],Quantities!$AD$2)))/SUM(VLOOKUP($A41,Quantities[],Quantities!$V$2),VLOOKUP($A41,Quantities[],Quantities!$Z$2),VLOOKUP($A41,Quantities[],Quantities!$AD$2)), VLOOKUP(A41,Quantities[],Quantities!$I$2) )))))) -> 0.07 | K41: =IF(LEFT(D41,1)="U","-",VLOOKUP(D41,Equipment[],Equipment!$B$2)) -> Cat 725
A42: =Quantities!A28 -> 1505 | B42: C | C42: a | D42: Ld1 | E42: 1505-C-a-Ld1 | F42: =IF(D42="Comb1",VLOOKUP(B42,'Activity-Material_Codes'!$A$2:$B$22,Quantities!$B$2), CONCATENATE( VLOOKUP(B42,'Activity-Material_Codes'!$A$2:$B$22,Quantities!$B$2), IF(AND(B42="B",C42="a"), " Grading",""), IF(C42="b","","-"), IF(C42="b","",VLOOKUP(A42,Quantities[],Quantities!$D$2)), IF(LEFT(TEXT(A42,"0"),1)="5","","-"), IF(LEFT(TEXT(A42,"0"),1)="5","",VLOOKUP(C42,'Activity-Material_Codes'!$A$25:$B$30,Quantities!$B$2)) )) -> Load-Outslope-pullback LdTk 2:1-Existing Ground | G42: =CONCATENATE( IF(OR(RIGHT(TEXT($A42,"0"),Quantities!$B$2)="00",LEFT(TEXT($A42,"0"),1)="5",$C42="b"),"",VLOOKUP($A42,Quantities[],Quantities!$B$2)), IF(LEFT(TEXT($A42,"0"),1)="5",""," "), IF(OR(C42="a",C42="c",C42="d",C42="e"),IF(OR(RIGHT(TEXT($A42,"0"),Quantities!$B$2)="00",LEFT(TEXT($A42,"0"),1)="5"),VLOOKUP($A42,Quantities[],Quantities!$B$2),VLOOKUP($A42,Quantities[],Quantities!$C$2)), IF(LEFT(TEXT($A42,"0"),1)="5",VLOOKUP($A42,Quantities[],Quantities!$B$2), VLOOKUP(INDEX(Quantities!$A$56:$A$89,MATCH($A42,Quantities!$C$56:$C$89)),Quantities!$A$56:$B$89,Quantities!$B$2)))) -> Cobre Haul Road CHR-5 | H42: =IF(LEFT(TEXT(A42,"0"),1)="5", VLOOKUP(VLOOKUP(A42,Quantities!$A$4:$D$89,Quantities!$C$2),Quantities!$A$4:$D$89,Quantities!$C$2), IF(OR(C42="a",C42="c",C42="d",C42="e"), "-", IF(RIGHT(TEXT(A42,"0"),2)="00",VLOOKUP(A42,Quantities[],Quantities!$B$2),VLOOKUP(A42,Quantities[],Quantities!$C$2)) )) -> - | I42: =IF(AND(LEFT(D42,2)="Sc",B42="A",C42="d"), SUM(VLOOKUP($A42,Quantities[],Quantities!$V$2),VLOOKUP($A42,Quantities[],Quantities!$Z$2), VLOOKUP($A42,Quantities[],Quantities!$AD$2)), IF(AND(LEFT(D42,2)="Sc",C42="a"), VLOOKUP(A42,Quantities[],Quantities!$J$2), IF(AND(B42="D",C42="b"), VLOOKUP(INDEX(Quantities!$A$56:$A$88,MATCH($A42,Quantities!$C$56:$C$89)),Quantities!$A$56:$AP$88,Quantities!$V$2)+ VLOOKUP(INDEX(Quantities!$A$56:$A$88,MATCH($A42,Quantities!$C$56:$C$89)),Quantities!$A$56:$AP$88,Quantities!$Z$2)+ VLOOKUP(INDEX(Quantities!$A$56:$A$88,MATCH($A42,Quantities!$C$56:$C$89)),Quantities!$A$56:$AP$88,Quantities!$AD$2), IF(B42="D", VLOOKUP(A42,Quantities[],Quantities!$V$2)+VLOOKUP(A42,Quantities[],Quantities!$Z$2)+VLOOKUP(A42,Quantities[],Quantities!$AD$2), IF($B42="Q", SUM(VLOOKUP($A42,Quantities[],Quantities!$V$2),VLOOKUP($A42,Quantities[],Quantities!$Z$2), VLOOKUP($A42,Quantities[],Quantities!$AD$2)), VLOOKUP(A42,Quantities[],Quantities!$G$2) ))))) -> 100 | J42: =IF(LEFT(D42,2)="Mg", VLOOKUP(A42,Quantities[],Quantities!$I$2), IF(AND(LEFT(D42,2)="Sc",B42="A",C42="d"), (SUM(VLOOKUP($A42,Quantities[],Quantities!$W$2)*VLOOKUP($A42,Quantities[],Quantities!$V$2),VLOOKUP($A42,Quantities[],Quantities!$AA$2)*VLOOKUP($A42,Quantities[],Quantities!$Z$2),VLOOKUP($A42,Quantities[],Quantities!$AE$2)*VLOOKUP($A42,Quantities[],Quantities!$AD$2)))/SUM(VLOOKUP($A42,Quantities[],Quantities!$V$2),VLOOKUP($A42,Quantities[],Quantities!$Z$2),VLOOKUP($A42,Quantities[],Quantities!$AD$2)), IF(AND(LEFT(D42,2)="Sc",C42="a"), VLOOKUP(A42,Quantities[],Quantities!$K$2), IF(AND(B42="D",C42="b", (VLOOKUP(INDEX(Quantities!$A$56:$A$88,MATCH($A42,Quantities!$C$56:$C$88)),Quantities[],Quantities!$V$2)+VLOOKUP(INDEX(Quantities!$A$56:$A$88,MATCH($A42,Quantities!$C$56:$C$88)),Quantities[],Quantities!$Z$2)+VLOOKUP(INDEX(Quantities!$A$56:$A$88,MATCH($A42,Quantities!$C$56:$C$88)),Quantities[],Quantities!$AD$2))>0), (VLOOKUP(INDEX(Quantities!$A$56:$A$88,MATCH($A42,Quantities!$C$56:$C$88)),Quantities[],Quantities!$W$2)*VLOOKUP(INDEX(Quantities!$A$56:$A$88,MATCH($A42,Quantities!$C$56:$C$88)),Quantities[],Quantities!$V$2) +VLOOKUP(INDEX(Quantities!$A$56:$A$88,MATCH($A42,Quantities!$C$56:$C$88)),Quantities[],Quantities!$AA$2)*VLOOKUP(INDEX(Quantities!$A$56:$A$88,MATCH($A42,Quantities!$C$56:$C$88)),Quantities[],Quantities!$Z$2) +VLOOKUP(INDEX(Quantities!$A$56:$A$88,MATCH($A42,Quantities!$C$56:$C$88)),Quantities[],Quantities!$AE$2)*VLOOKUP(INDEX(Quantities!$A$56:$A$88,MATCH($A42,Quantities!$C$56:$C$88)),Quantities[],Quantities!$AD$2))/ (VLOOKUP(INDEX(Quantities!$A$56:$A$88,MATCH($A42,Quantities!$C$56:$C$88)),Quantities[],Quantities!$V$2)+VLOOKUP(INDEX(Quantities!$A$56:$A$88,MATCH($A42,Quantities!$C$56:$C$88)),Quantities[],Quantities!$Z$2)+VLOOKUP(A42,Quantities[],Quantities!$AD$2)), IF(AND(B42="D", (VLOOKUP(A42,Quantities[],Quantities!$V$2)+VLOOKUP(A42,Quantities[],Quantities!$Z$2)+VLOOKUP(A42,Quantities[],Quantities!$AD$2))>0), (VLOOKUP(A42,Quantities[],Quantities!$W$2)*VLOOKUP(A42,Quantities[],Quantities!$V$2) +VLOOKUP(A42,Quantities[],Quantities!$AA$2)*VLOOKUP(A42,Quantities[],Quantities!$Z$2) +VLOOKUP(A42,Quantities[],Quantities!$AE$2)*VLOOKUP(A42,Quantities[],Quantities!$AD$2))/ (VLOOKUP(A42,Quantities[],Quantities!$V$2)+VLOOKUP(A42,Quantities[],Quantities!$Z$2)+VLOOKUP(A42,Quantities[],Quantities!$AD$2)), IF($B42="Q", (SUM(VLOOKUP($A42,Quantities[],Quantities!$W$2)*VLOOKUP($A42,Quantities[],Quantities!$V$2),VLOOKUP($A42,Quantities[],Quantities!$AA$2)*VLOOKUP($A42,Quantities[],Quantities!$Z$2),VLOOKUP($A42,Quantities[],Quantities!$AE$2)*VLOOKUP($A42,Quantities[],Quantities!$AD$2)))/SUM(VLOOKUP($A42,Quantities[],Quantities!$V$2),VLOOKUP($A42,Quantities[],Quantities!$Z$2),VLOOKUP($A42,Quantities[],Quantities!$AD$2)), VLOOKUP(A42,Quantities[],Quantities!$I$2) )))))) -> 0.5 | K42: =IF(LEFT(D42,1)="U","-",VLOOKUP(D42,Equipment[],Equipment!$B$2)) -> Cat 992K
A43: 1505 | B43: B | C43: a | D43: Dz1 | E43: 1505-B-a-Dz1 | F43: =IF(D43="Comb1",VLOOKUP(B43,'Activity-Material_Codes'!$A$2:$B$22,Quantities!$B$2), CONCATENATE( VLOOKUP(B43,'Activity-Material_Codes'!$A$2:$B$22,Quantities!$B$2), IF(AND(B43="B",C43="a"), " Grading",""), IF(C43="b","","-"), IF(C43="b","",VLOOKUP(A43,Quantities[],Quantities!$D$2)), IF(LEFT(TEXT(A43,"0"),1)="5","","-"), IF(LEFT(TEXT(A43,"0"),1)="5","",VLOOKUP(C43,'Activity-Material_Codes'!$A$25:$B$30,Quantities!$B$2)) )) -> Dozer Assist Grading-Outslope-pullback LdTk 2:1-Existing Ground | G43: =CONCATENATE( IF(OR(RIGHT(TEXT($A43,"0"),Quantities!$B$2)="00",LEFT(TEXT($A43,"0"),1)="5",$C43="b"),"",VLOOKUP($A43,Quantities[],Quantities!$B$2)), IF(LEFT(TEXT($A43,"0"),1)="5",""," "), IF(OR(C43="a",C43="c",C43="d",C43="e"),IF(OR(RIGHT(TEXT($A43,"0"),Quantities!$B$2)="00",LEFT(TEXT($A43,"0"),1)="5"),VLOOKUP($A43,Quantities[],Quantities!$B$2),VLOOKUP($A43,Quantities[],Quantities!$C$2)), IF(LEFT(TEXT($A43,"0"),1)="5",VLOOKUP($A43,Quantities[],Quantities!$B$2), VLOOKUP(INDEX(Quantities!$A$56:$A$89,MATCH($A43,Quantities!$C$56:$C$89)),Quantities!$A$56:$B$89,Quantities!$B$2)))) -> Cobre Haul Road CHR-5 | H43: =IF(LEFT(TEXT(A43,"0"),1)="5", VLOOKUP(VLOOKUP(A43,Quantities!$A$4:$D$89,Quantities!$C$2),Quantities!$A$4:$D$89,Quantities!$C$2), IF(OR(C43="a",C43="c",C43="d",C43="e"), "-", IF(RIGHT(TEXT(A43,"0"),2)="00",VLOOKUP(A43,Quantities[],Quantities!$B$2),VLOOKUP(A43,Quantities[],Quantities!$C$2)) )) -> - | I43: =IF(AND(LEFT(D43,2)="Sc",B43="A",C43="d"), SUM(VLOOKUP($A43,Quantities[],Quantities!$V$2),VLOOKUP($A43,Quantities[],Quantities!$Z$2), VLOOKUP($A43,Quantities[],Quantities!$AD$2)), IF(AND(LEFT(D43,2)="Sc",C43="a"), VLOOKUP(A43,Quantities[],Quantities!$J$2), IF(AND(B43="D",C43="b"), VLOOKUP(INDEX(Quantities!$A$56:$A$88,MATCH($A43,Quantities!$C$56:$C$89)),Quantities!$A$56:$AP$88,Quantities!$V$2)+ VLOOKUP(INDEX(Quantities!$A$56:$A$88,MATCH($A43,Quantities!$C$56:$C$89)),Quantities!$A$56:$AP$88,Quantities!$Z$2)+ VLOOKUP(INDEX(Quantities!$A$56:$A$88,MATCH($A43,Quantities!$C$56:$C$89)),Quantities!$A$56:$AP$88,Quantities!$AD$2), IF(B43="D", VLOOKUP(A43,Quantities[],Quantities!$V$2)+VLOOKUP(A43,Quantities[],Quantities!$Z$2)+VLOOKUP(A43,Quantities[],Quantities!$AD$2), IF($B43="Q", SUM(VLOOKUP($A43,Quantities[],Quantities!$V$2),VLOOKUP($A43,Quantities[],Quantities!$Z$2), VLOOKUP($A43,Quantities[],Quantities!$AD$2)), VLOOKUP(A43,Quantities[],Quantities!$G$2) ))))) -> 100 | J43: =IF(LEFT(D43,2)="Mg", VLOOKUP(A43,Quantities[],Quantities!$I$2), IF(AND(LEFT(D43,2)="Sc",B43="A",C43="d"), (SUM(VLOOKUP($A43,Quantities[],Quantities!$W$2)*VLOOKUP($A43,Quantities[],Quantities!$V$2),VLOOKUP($A43,Quantities[],Quantities!$AA$2)*VLOOKUP($A43,Quantities[],Quantities!$Z$2),VLOOKUP($A43,Quantities[],Quantities!$AE$2)*VLOOKUP($A43,Quantities[],Quantities!$AD$2)))/SUM(VLOOKUP($A43,Quantities[],Quantities!$V$2),VLOOKUP($A43,Quantities[],Quantities!$Z$2),VLOOKUP($A43,Quantities[],Quantities!$AD$2)), IF(AND(LEFT(D43,2)="Sc",C43="a"), VLOOKUP(A43,Quantities[],Quantities!$K$2), IF(AND(B43="D",C43="b", (VLOOKUP(INDEX(Quantities!$A$56:$A$88,MATCH($A43,Quantities!$C$56:$C$88)),Quantities[],Quantities!$V$2)+VLOOKUP(INDEX(Quantities!$A$56:$A$88,MATCH($A43,Quantities!$C$56:$C$88)),Quantities[],Quantities!$Z$2)+VLOOKUP(INDEX(Quantities!$A$56:$A$88,MATCH($A43,Quantities!$C$56:$C$88)),Quantities[],Quantities!$AD$2))>0), (VLOOKUP(INDEX(Quantities!$A$56:$A$88,MATCH($A43,Quantities!$C$56:$C$88)),Quantities[],Quantities!$W$2)*VLOOKUP(INDEX(Quantities!$A$56:$A$88,MATCH($A43,Quantities!$C$56:$C$88)),Quantities[],Quantities!$V$2) +VLOOKUP(INDEX(Quantities!$A$56:$A$88,MATCH($A43,Quantities!$C$56:$C$88)),Quantities[],Quantities!$AA$2)*VLOOKUP(INDEX(Quantities!$A$56:$A$88,MATCH($A43,Quantities!$C$56:$C$88)),Quantities[],Quantities!$Z$2) +VLOOKUP(INDEX(Quantities!$A$56:$A$88,MATCH($A43,Quantities!$C$56:$C$88)),Quantities[],Quantities!$AE$2)*VLOOKUP(INDEX(Quantities!$A$56:$A$88,MATCH($A43,Quantities!$C$56:$C$88)),Quantities[],Quantities!$AD$2))/ (VLOOKUP(INDEX(Quantities!$A$56:$A$88,MATCH($A43,Quantities!$C$56:$C$88)),Quantities[],Quantities!$V$2)+VLOOKUP(INDEX(Quantities!$A$56:$A$88,MATCH($A43,Quantities!$C$56:$C$88)),Quantities[],Quantities!$Z$2)+VLOOKUP(A43,Quantities[],Quantities!$AD$2)), IF(AND(B43="D", (VLOOKUP(A43,Quantities[],Quantities!$V$2)+VLOOKUP(A43,Quantities[],Quantities!$Z$2)+VLOOKUP(A43,Quantities[],Quantities!$AD$2))>0), (VLOOKUP(A43,Quantities[],Quantities!$W$2)*VLOOKUP(A43,Quantities[],Quantities!$V$2) +VLOOKUP(A43,Quantities[],Quantities!$AA$2)*VLOOKUP(A43,Quantities[],Quantities!$Z$2) +VLOOKUP(A43,Quantities[],Quantities!$AE$2)*VLOOKUP(A43,Quantities[],Quantities!$AD$2))/ (VLOOKUP(A43,Quantities[],Quantities!$V$2)+VLOOKUP(A43,Quantities[],Quantities!$Z$2)+VLOOKUP(A43,Quantities[],Quantities!$AD$2)), IF($B43="Q", (SUM(VLOOKUP($A43,Quantities[],Quantities!$W$2)*VLOOKUP($A43,Quantities[],Quantities!$V$2),VLOOKUP($A43,Quantities[],Quantities!$AA$2)*VLOOKUP($A43,Quantities[],Quantities!$Z$2),VLOOKUP($A43,Quantities[],Quantities!$AE$2)*VLOOKUP($A43,Quantities[],Quantities!$AD$2)))/SUM(VLOOKUP($A43,Quantities[],Quantities!$V$2),VLOOKUP($A43,Quantities[],Quantities!$Z$2),VLOOKUP($A43,Quantities[],Quantities!$AD$2)), VLOOKUP(A43,Quantities[],Quantities!$I$2) )))))) -> 0.5 | K43: =IF(LEFT(D43,1)="U","-",VLOOKUP(D43,Equipment[],Equipment!$B$2)) -> Cat D11T, U Blade
A44: =Quantities!A28 -> 1505 | B44: D | C44: a | D44: Tk3 | E44: 1505-D-a-Tk3 | F44: =IF(D44="Comb1",VLOOKUP(B44,'Activity-Material_Codes'!$A$2:$B$22,Quantities!$B$2), CONCATENATE( VLOOKUP(B44,'Activity-Material_Codes'!$A$2:$B$22,Quantities!$B$2), IF(AND(B44="B",C44="a"), " Grading",""), IF(C44="b","","-"), IF(C44="b","",VLOOKUP(A44,Quantities[],Quantities!$D$2)), IF(LEFT(TEXT(A44,"0"),1)="5","","-"), IF(LEFT(TEXT(A44,"0"),1)="5","",VLOOKUP(C44,'Activity-Material_Codes'!$A$25:$B$30,Quantities!$B$2)) )) -> Haul-Outslope-pullback LdTk 2:1-Existing Ground | G44: =CONCATENATE( IF(OR(RIGHT(TEXT($A44,"0"),Quantities!$B$2)="00",LEFT(TEXT($A44,"0"),1)="5",$C44="b"),"",VLOOKUP($A44,Quantities[],Quantities!$B$2)), IF(LEFT(TEXT($A44,"0"),1)="5",""," "), IF(OR(C44="a",C44="c",C44="d",C44="e"),IF(OR(RIGHT(TEXT($A44,"0"),Quantities!$B$2)="00",LEFT(TEXT($A44,"0"),1)="5"),VLOOKUP($A44,Quantities[],Quantities!$B$2),VLOOKUP($A44,Quantities[],Quantities!$C$2)), IF(LEFT(TEXT($A44,"0"),1)="5",VLOOKUP($A44,Quantities[],Quantities!$B$2), VLOOKUP(INDEX(Quantities!$A$56:$A$89,MATCH($A44,Quantities!$C$56:$C$89)),Quantities!$A$56:$B$89,Quantities!$B$2)))) -> Cobre Haul Road CHR-5 | H44: =IF(LEFT(TEXT(A44,"0"),1)="5", VLOOKUP(VLOOKUP(A44,Quantities!$A$4:$D$89,Quantities!$C$2),Quantities!$A$4:$D$89,Quantities!$C$2), IF(OR(C44="a",C44="c",C44="d",C44="e"), "-", IF(RIGHT(TEXT(A44,"0"),2)="00",VLOOKUP(A44,Quantities[],Quantities!$B$2),VLOOKUP(A44,Quantities[],Quantities!$C$2)) )) -> - | I44: =IF(AND(LEFT(D44,2)="Sc",B44="A",C44="d"), SUM(VLOOKUP($A44,Quantities[],Quantities!$V$2),VLOOKUP($A44,Quantities[],Quantities!$Z$2), VLOOKUP($A44,Quantities[],Quantities!$AD$2)), IF(AND(LEFT(D44,2)="Sc",C44="a"), VLOOKUP(A44,Quantities[],Quantities!$J$2), IF(AND(B44="D",C44="b"), VLOOKUP(INDEX(Quantities!$A$56:$A$88,MATCH($A44,Quantities!$C$56:$C$89)),Quantities!$A$56:$AP$88,Quantities!$V$2)+ VLOOKUP(INDEX(Quantities!$A$56:$A$88,MATCH($A44,Quantities!$C$56:$C$89)),Quantities!$A$56:$AP$88,Quantities!$Z$2)+ VLOOKUP(INDEX(Quantities!$A$56:$A$88,MATCH($A44,Quantities!$C$56:$C$89)),Quantities!$A$56:$AP$88,Quantities!$AD$2), IF(B44="D", VLOOKUP(A44,Quantities[],Quantities!$V$2)+VLOOKUP(A44,Quantities[],Quantities!$Z$2)+VLOOKUP(A44,Quantities[],Quantities!$AD$2), IF($B44="Q", SUM(VLOOKUP($A44,Quantities[],Quantities!$V$2),VLOOKUP($A44,Quantities[],Quantities!$Z$2), VLOOKUP($A44,Quantities[],Quantities!$AD$2)), VLOOKUP(A44,Quantities[],Quantities!$G$2) ))))) -> 2640 | J44: =IF(LEFT(D44,2)="Mg", VLOOKUP(A44,Quantities[],Quantities!$I$2), IF(AND(LEFT(D44,2)="Sc",B44="A",C44="d"), (SUM(VLOOKUP($A44,Quantities[],Quantities!$W$2)*VLOOKUP($A44,Quantities[],Quantities!$V$2),VLOOKUP($A44,Quantities[],Quantities!$AA$2)*VLOOKUP($A44,Quantities[],Quantities!$Z$2),VLOOKUP($A44,Quantities[],Quantities!$AE$2)*VLOOKUP($A44,Quantities[],Quantities!$AD$2)))/SUM(VLOOKUP($A44,Quantities[],Quantities!$V$2),VLOOKUP($A44,Quantities[],Quantities!$Z$2),VLOOKUP($A44,Quantities[],Quantities!$AD$2)), IF(AND(LEFT(D44,2)="Sc",C44="a"), VLOOKUP(A44,Quantities[],Quantities!$K$2), IF(AND(B44="D",C44="b", (VLOOKUP(INDEX(Quantities!$A$56:$A$88,MATCH($A44,Quantities!$C$56:$C$88)),Quantities[],Quantities!$V$2)+VLOOKUP(INDEX(Quantities!$A$56:$A$88,MATCH($A44,Quantities!$C$56:$C$88)),Quantities[],Quantities!$Z$2)+VLOOKUP(INDEX(Quantities!$A$56:$A$88,MATCH($A44,Quantities!$C$56:$C$88)),Quantities[],Quantities!$AD$2))>0), (VLOOKUP(INDEX(Quantities!$A$56:$A$88,MATCH($A44,Quantities!$C$56:$C$88)),Quantities[],Quantities!$W$2)*VLOOKUP(INDEX(Quantities!$A$56:$A$88,MATCH($A44,Quantities!$C$56:$C$88)),Quantities[],Quantities!$V$2) +VLOOKUP(INDEX(Quantities!$A$56:$A$88,MATCH($A44,Quantities!$C$56:$C$88)),Quantities[],Quantities!$AA$2)*VLOOKUP(INDEX(Quantities!$A$56:$A$88,MATCH($A44,Quantities!$C$56:$C$88)),Quantities[],Quantities!$Z$2) +VLOOKUP(INDEX(Quantities!$A$56:$A$88,MATCH($A44,Quantities!$C$56:$C$88)),Quantities[],Quantities!$AE$2)*VLOOKUP(INDEX(Quantities!$A$56:$A$88,MATCH($A44,Quantities!$C$56:$C$88)),Quantities[],Quantities!$AD$2))/ (VLOOKUP(INDEX(Quantities!$A$56:$A$88,MATCH($A44,Quantities!$C$56:$C$88)),Quantities[],Quantities!$V$2)+VLOOKUP(INDEX(Quantities!$A$56:$A$88,MATCH($A44,Quantities!$C$56:$C$88)),Quantities[],Quantities!$Z$2)+VLOOKUP(A44,Quantities[],Quantities!$AD$2)), IF(AND(B44="D", (VLOOKUP(A44,Quantities[],Quantities!$V$2)+VLOOKUP(A44,Quantities[],Quantities!$Z$2)+VLOOKUP(A44,Quantities[],Quantities!$AD$2))>0), (VLOOKUP(A44,Quantities[],Quantities!$W$2)*VLOOKUP(A44,Quantities[],Quantities!$V$2) +VLOOKUP(A44,Quantities[],Quantities!$AA$2)*VLOOKUP(A44,Quantities[],Quantities!$Z$2) +VLOOKUP(A44,Quantities[],Quantities!$AE$2)*VLOOKUP(A44,Quantities[],Quantities!$AD$2))/ (VLOOKUP(A44,Quantities[],Quantities!$V$2)+VLOOKUP(A44,Quantities[],Quantities!$Z$2)+VLOOKUP(A44,Quantities[],Quantities!$AD$2)), IF($B44="Q", (SUM(VLOOKUP($A44,Quantities[],Quantities!$W$2)*VLOOKUP($A44,Quantities[],Quantities!$V$2),VLOOKUP($A44,Quantities[],Quantities!$AA$2)*VLOOKUP($A44,Quantities[],Quantities!$Z$2),VLOOKUP($A44,Quantities[],Quantities!$AE$2)*VLOOKUP($A44,Quantities[],Quantities!$AD$2)))/SUM(VLOOKUP($A44,Quantities[],Quantities!$V$2),VLOOKUP($A44,Quantities[],Quantities!$Z$2),VLOOKUP($A44,Quantities[],Quantities!$AD$2)), VLOOKUP(A44,Quantities[],Quantities!$I$2) )))))) -> 0.07 | K44: =IF(LEFT(D44,1)="U","-",VLOOKUP(D44,Equipment[],Equipment!$B$2)) -> Cat 725
A45: =Quantities!A29 -> 1506 | B45: C | C45: a | D45: Ex1 | E45: 1506-C-a-Ex1 | F45: =IF(D45="Comb1",VLOOKUP(B45,'Activity-Material_Codes'!$A$2:$B$22,Quantities!$B$2), CONCATENATE( VLOOKUP(B45,'Activity-Material_Codes'!$A$2:$B$22,Quantities!$B$2), IF(AND(B45="B",C45="a"), " Grading",""), IF(C45="b","","-"), IF(C45="b","",VLOOKUP(A45,Quantities[],Quantities!$D$2)), IF(LEFT(TEXT(A45,"0"),1)="5","","-"), IF(LEFT(TEXT(A45,"0"),1)="5","",VLOOKUP(C45,'Activity-Material_Codes'!$A$25:$B$30,Quantities!$B$2)) )) -> Load-Crossings - earth-Existing Ground | G45: =CONCATENATE( IF(OR(RIGHT(TEXT($A45,"0"),Quantities!$B$2)="00",LEFT(TEXT($A45,"0"),1)="5",$C45="b"),"",VLOOKUP($A45,Quantities[],Quantities!$B$2)), IF(LEFT(TEXT($A45,"0"),1)="5",""," "), IF(OR(C45="a",C45="c",C45="d",C45="e"),IF(OR(RIGHT(TEXT($A45,"0"),Quantities!$B$2)="00",LEFT(TEXT($A45,"0"),1)="5"),VLOOKUP($A45,Quantities[],Quantities!$B$2),VLOOKUP($A45,Quantities[],Quantities!$C$2)), IF(LEFT(TEXT($A45,"0"),1)="5",VLOOKUP($A45,Quantities[],Quantities!$B$2), VLOOKUP(INDEX(Quantities!$A$56:$A$89,MATCH($A45,Quantities!$C$56:$C$89)),Quantities!$A$56:$B$89,Quantities!$B$2)))) -> Cobre Haul Road CHR-6 | H45: =IF(LEFT(TEXT(A45,"0"),1)="5", VLOOKUP(VLOOKUP(A45,Quantities!$A$4:$D$89,Quantities!$C$2),Quantities!$A$4:$D$89,Quantities!$C$2), IF(OR(C45="a",C45="c",C45="d",C45="e"), "-", IF(RIGHT(TEXT(A45,"0"),2)="00",VLOOKUP(A45,Quantities[],Quantities!$B$2),VLOOKUP(A45,Quantities[],Quantities!$C$2)) )) -> - | I45: =IF(AND(LEFT(D45,2)="Sc",B45="A",C45="d"), SUM(VLOOKUP($A45,Quantities[],Quantities!$V$2),VLOOKUP($A45,Quantities[],Quantities!$Z$2), VLOOKUP($A45,Quantities[],Quantities!$AD$2)), IF(AND(LEFT(D45,2)="Sc",C45="a"), VLOOKUP(A45,Quantities[],Quantities!$J$2), IF(AND(B45="D",C45="b"), VLOOKUP(INDEX(Quantities!$A$56:$A$88,MATCH($A45,Quantities!$C$56:$C$89)),Quantities!$A$56:$AP$88,Quantities!$V$2)+ VLOOKUP(INDEX(Quantities!$A$56:$A$88,MATCH($A45,Quantities!$C$56:$C$89)),Quantities!$A$56:$AP$88,Quantities!$Z$2)+ VLOOKUP(INDEX(Quantities!$A$56:$A$88,MATCH($A45,Quantities!$C$56:$C$89)),Quantities!$A$56:$AP$88,Quantities!$AD$2), IF(B45="D", VLOOKUP(A45,Quantities[],Quantities!$V$2)+VLOOKUP(A45,Quantities[],Quantities!$Z$2)+VLOOKUP(A45,Quantities[],Quantities!$AD$2), IF($B45="Q", SUM(VLOOKUP($A45,Quantities[],Quantities!$V$2),VLOOKUP($A45,Quantities[],Quantities!$Z$2), VLOOKUP($A45,Quantities[],Quantities!$AD$2)), VLOOKUP(A45,Quantities[],Quantities!$G$2) ))))) -> 100 | J45: =IF(LEFT(D45,2)="Mg", VLOOKUP(A45,Quantities[],Quantities!$I$2), IF(AND(LEFT(D45,2)="Sc",B45="A",C45="d"), (SUM(VLOOKUP($A45,Quantities[],Quantities!$W$2)*VLOOKUP($A45,Quantities[],Quantities!$V$2),VLOOKUP($A45,Quantities[],Quantities!$AA$2)*VLOOKUP($A45,Quantities[],Quantities!$Z$2),VLOOKUP($A45,Quantities[],Quantities!$AE$2)*VLOOKUP($A45,Quantities[],Quantities!$AD$2)))/SUM(VLOOKUP($A45,Quantities[],Quantities!$V$2),VLOOKUP($A45,Quantities[],Quantities!$Z$2),VLOOKUP($A45,Quantities[],Quantities!$AD$2)), IF(AND(LEFT(D45,2)="Sc",C45="a"), VLOOKUP(A45,Quantities[],Quantities!$K$2), IF(AND(B45="D",C45="b", (VLOOKUP(INDEX(Quantities!$A$56:$A$88,MATCH($A45,Quantities!$C$56:$C$88)),Quantities[],Quantities!$V$2)+VLOOKUP(INDEX(Quantities!$A$56:$A$88,MATCH($A45,Quantities!$C$56:$C$88)),Quantities[],Quantities!$Z$2)+VLOOKUP(INDEX(Quantities!$A$56:$A$88,MATCH($A45,Quantities!$C$56:$C$88)),Quantities[],Quantities!$AD$2))>0), (VLOOKUP(INDEX(Quantities!$A$56:$A$88,MATCH($A45,Quantities!$C$56:$C$88)),Quantities[],Quantities!$W$2)*VLOOKUP(INDEX(Quantities!$A$56:$A$88,MATCH($A45,Quantities!$C$56:$C$88)),Quantities[],Quantities!$V$2) +VLOOKUP(INDEX(Quantities!$A$56:$A$88,MATCH($A45,Quantities!$C$56:$C$88)),Quantities[],Quantities!$AA$2)*VLOOKUP(INDEX(Quantities!$A$56:$A$88,MATCH($A45,Quantities!$C$56:$C$88)),Quantities[],Quantities!$Z$2) +VLOOKUP(INDEX(Quantities!$A$56:$A$88,MATCH($A45,Quantities!$C$56:$C$88)),Quantities[],Quantities!$AE$2)*VLOOKUP(INDEX(Quantities!$A$56:$A$88,MATCH($A45,Quantities!$C$56:$C$88)),Quantities[],Quantities!$AD$2))/ (VLOOKUP(INDEX(Quantities!$A$56:$A$88,MATCH($A45,Quantities!$C$56:$C$88)),Quantities[],Quantities!$V$2)+VLOOKUP(INDEX(Quantities!$A$56:$A$88,MATCH($A45,Quantities!$C$56:$C$88)),Quantities[],Quantities!$Z$2)+VLOOKUP(A45,Quantities[],Quantities!$AD$2)), IF(AND(B45="D", (VLOOKUP(A45,Quantities[],Quantities!$V$2)+VLOOKUP(A45,Quantities[],Quantities!$Z$2)+VLOOKUP(A45,Quantities[],Quantities!$AD$2))>0), (VLOOKUP(A45,Quantities[],Quantities!$W$2)*VLOOKUP(A45,Quantities[],Quantities!$V$2) +VLOOKUP(A45,Quantities[],Quantities!$AA$2)*VLOOKUP(A45,Quantities[],Quantities!$Z$2) +VLOOKUP(A45,Quantities[],Quantities!$AE$2)*VLOOKUP(A45,Quantities[],Quantities!$AD$2))/ (VLOOKUP(A45,Quantities[],Quantities!$V$2)+VLOOKUP(A45,Quantities[],Quantities!$Z$2)+VLOOKUP(A45,Quantities[],Quantities!$AD$2)), IF($B45="Q", (SUM(VLOOKUP($A45,Quantities[],Quantities!$W$2)*VLOOKUP($A45,Quantities[],Quantities!$V$2),VLOOKUP($A45,Quantities[],Quantities!$AA$2)*VLOOKUP($A45,Quantities[],Quantities!$Z$2),VLOOKUP($A45,Quantities[],Quantities!$AE$2)*VLOOKUP($A45,Quantities[],Quantities!$AD$2)))/SUM(VLOOKUP($A45,Quantities[],Quantities!$V$2),VLOOKUP($A45,Quantities[],Quantities!$Z$2),VLOOKUP($A45,Quantities[],Quantities!$AD$2)), VLOOKUP(A45,Quantities[],Quantities!$I$2) )))))) -> 0.4 | K45: =IF(LEFT(D45,1)="U","-",VLOOKUP(D45,Equipment[],Equipment!$B$2)) -> Cat 319D L
A46: =Quantities!A29 -> 1506 | B46: D | C46: a | D46: Tk3 | E46: 1506-D-a-Tk3 | F46: =IF(D46="Comb1",VLOOKUP(B46,'Activity-Material_Codes'!$A$2:$B$22,Quantities!$B$2), CONCATENATE( VLOOKUP(B46,'Activity-Material_Codes'!$A$2:$B$22,Quantities!$B$2), IF(AND(B46="B",C46="a"), " Grading",""), IF(C46="b","","-"), IF(C46="b","",VLOOKUP(A46,Quantities[],Quantities!$D$2)), IF(LEFT(TEXT(A46,"0"),1)="5","","-"), IF(LEFT(TEXT(A46,"0"),1)="5","",VLOOKUP(C46,'Activity-Material_Codes'!$A$25:$B$30,Quantities!$B$2)) )) -> Haul-Crossings - earth-Existing Ground | G46: =CONCATENATE( IF(OR(RIGHT(TEXT($A46,"0"),Quantities!$B$2)="00",LEFT(TEXT($A46,"0"),1)="5",$C46="b"),"",VLOOKUP($A46,Quantities[],Quantities!$B$2)), IF(LEFT(TEXT($A46,"0"),1)="5",""," "), IF(OR(C46="a",C46="c",C46="d",C46="e"),IF(OR(RIGHT(TEXT($A46,"0"),Quantities!$B$2)="00",LEFT(TEXT($A46,"0"),1)="5"),VLOOKUP($A46,Quantities[],Quantities!$B$2),VLOOKUP($A46,Quantities[],Quantities!$C$2)), IF(LEFT(TEXT($A46,"0"),1)="5",VLOOKUP($A46,Quantities[],Quantities!$B$2), VLOOKUP(INDEX(Quantities!$A$56:$A$89,MATCH($A46,Quantities!$C$56:$C$89)),Quantities!$A$56:$B$89,Quantities!$B$2)))) -> Cobre Haul Road CHR-6 | H46: =IF(LEFT(TEXT(A46,"0"),1)="5", VLOOKUP(VLOOKUP(A46,Quantities!$A$4:$D$89,Quantities!$C$2),Quantities!$A$4:$D$89,Quantities!$C$2), IF(OR(C46="a",C46="c",C46="d",C46="e"), "-", IF(RIGHT(TEXT(A46,"0"),2)="00",VLOOKUP(A46,Quantities[],Quantities!$B$2),VLOOKUP(A46,Quantities[],Quantities!$C$2)) )) -> - | I46: =IF(AND(LEFT(D46,2)="Sc",B46="A",C46="d"), SUM(VLOOKUP($A46,Quantities[],Quantities!$V$2),VLOOKUP($A46,Quantities[],Quantities!$Z$2), VLOOKUP($A46,Quantities[],Quantities!$AD$2)), IF(AND(LEFT(D46,2)="Sc",C46="a"), VLOOKUP(A46,Quantities[],Quantities!$J$2), IF(AND(B46="D",C46="b"), VLOOKUP(INDEX(Quantities!$A$56:$A$88,MATCH($A46,Quantities!$C$56:$C$89)),Quantities!$A$56:$AP$88,Quantities!$V$2)+ VLOOKUP(INDEX(Quantities!$A$56:$A$88,MATCH($A46,Quantities!$C$56:$C$89)),Quantities!$A$56:$AP$88,Quantities!$Z$2)+ VLOOKUP(INDEX(Quantities!$A$56:$A$88,MATCH($A46,Quantities!$C$56:$C$89)),Quantities!$A$56:$AP$88,Quantities!$AD$2), IF(B46="D", VLOOKUP(A46,Quantities[],Quantities!$V$2)+VLOOKUP(A46,Quantities[],Quantities!$Z$2)+VLOOKUP(A46,Quantities[],Quantities!$AD$2), IF($B46="Q", SUM(VLOOKUP($A46,Quantities[],Quantities!$V$2),VLOOKUP($A46,Quantities[],Quantities!$Z$2), VLOOKUP($A46,Quantities[],Quantities!$AD$2)), VLOOKUP(A46,Quantities[],Quantities!$G$2) ))))) -> 5280 | J46: =IF(LEFT(D46,2)="Mg", VLOOKUP(A46,Quantities[],Quantities!$I$2), IF(AND(LEFT(D46,2)="Sc",B46="A",C46="d"), (SUM(VLOOKUP($A46,Quantities[],Quantities!$W$2)*VLOOKUP($A46,Quantities[],Quantities!$V$2),VLOOKUP($A46,Quantities[],Quantities!$AA$2)*VLOOKUP($A46,Quantities[],Quantities!$Z$2),VLOOKUP($A46,Quantities[],Quantities!$AE$2)*VLOOKUP($A46,Quantities[],Quantities!$AD$2)))/SUM(VLOOKUP($A46,Quantities[],Quantities!$V$2),VLOOKUP($A46,Quantities[],Quantities!$Z$2),VLOOKUP($A46,Quantities[],Quantities!$AD$2)), IF(AND(LEFT(D46,2)="Sc",C46="a"), VLOOKUP(A46,Quantities[],Quantities!$K$2), IF(AND(B46="D",C46="b", (VLOOKUP(INDEX(Quantities!$A$56:$A$88,MATCH($A46,Quantities!$C$56:$C$88)),Quantities[],Quantities!$V$2)+VLOOKUP(INDEX(Quantities!$A$56:$A$88,MATCH($A46,Quantities!$C$56:$C$88)),Quantities[],Quantities!$Z$2)+VLOOKUP(INDEX(Quantities!$A$56:$A$88,MATCH($A46,Quantities!$C$56:$C$88)),Quantities[],Quantities!$AD$2))>0), (VLOOKUP(INDEX(Quantities!$A$56:$A$88,MATCH($A46,Quantities!$C$56:$C$88)),Quantities[],Quantities!$W$2)*VLOOKUP(INDEX(Quantities!$A$56:$A$88,MATCH($A46,Quantities!$C$56:$C$88)),Quantities[],Quantities!$V$2) +VLOOKUP(INDEX(Quantities!$A$56:$A$88,MATCH($A46,Quantities!$C$56:$C$88)),Quantities[],Quantities!$AA$2)*VLOOKUP(INDEX(Quantities!$A$56:$A$88,MATCH($A46,Quantities!$C$56:$C$88)),Quantities[],Quantities!$Z$2) +VLOOKUP(INDEX(Quantities!$A$56:$A$88,MATCH($A46,Quantities!$C$56:$C$88)),Quantities[],Quantities!$AE$2)*VLOOKUP(INDEX(Quantities!$A$56:$A$88,MATCH($A46,Quantities!$C$56:$C$88)),Quantities[],Quantities!$AD$2))/ (VLOOKUP(INDEX(Quantities!$A$56:$A$88,MATCH($A46,Quantities!$C$56:$C$88)),Quantities[],Quantities!$V$2)+VLOOKUP(INDEX(Quantities!$A$56:$A$88,MATCH($A46,Quantities!$C$56:$C$88)),Quantities[],Quantities!$Z$2)+VLOOKUP(A46,Quantities[],Quantities!$AD$2)), IF(AND(B46="D", (VLOOKUP(A46,Quantities[],Quantities!$V$2)+VLOOKUP(A46,Quantities[],Quantities!$Z$2)+VLOOKUP(A46,Quantities[],Quantities!$AD$2))>0), (VLOOKUP(A46,Quantities[],Quantities!$W$2)*VLOOKUP(A46,Quantities[],Quantities!$V$2) +VLOOKUP(A46,Quantities[],Quantities!$AA$2)*VLOOKUP(A46,Quantities[],Quantities!$Z$2) +VLOOKUP(A46,Quantities[],Quantities!$AE$2)*VLOOKUP(A46,Quantities[],Quantities!$AD$2))/ (VLOOKUP(A46,Quantities[],Quantities!$V$2)+VLOOKUP(A46,Quantities[],Quantities!$Z$2)+VLOOKUP(A46,Quantities[],Quantities!$AD$2)), IF($B46="Q", (SUM(VLOOKUP($A46,Quantities[],Quantities!$W$2)*VLOOKUP($A46,Quantities[],Quantities!$V$2),VLOOKUP($A46,Quantities[],Quantities!$AA$2)*VLOOKUP($A46,Quantities[],Quantities!$Z$2),VLOOKUP($A46,Quantities[],Quantities!$AE$2)*VLOOKUP($A46,Quantities[],Quantities!$AD$2)))/SUM(VLOOKUP($A46,Quantities[],Quantities!$V$2),VLOOKUP($A46,Quantities[],Quantities!$Z$2),VLOOKUP($A46,Quantities[],Quantities!$AD$2)), VLOOKUP(A46,Quantities[],Quantities!$I$2) )))))) -> 0.07 | K46: =IF(LEFT(D46,1)="U","-",VLOOKUP(D46,Equipment[],Equipment!$B$2)) -> Cat 725
A47: =Quantities!A30 -> 1507 | B47: C | C47: a | D47: Ex1 | E47: 1507-C-a-Ex1 | F47: =IF(D47="Comb1",VLOOKUP(B47,'Activity-Material_Codes'!$A$2:$B$22,Quantities!$B$2), CONCATENATE( VLOOKUP(B47,'Activity-Material_Codes'!$A$2:$B$22,Quantities!$B$2), IF(AND(B47="B",C47="a"), " Grading",""), IF(C47="b","","-"), IF(C47="b","",VLOOKUP(A47,Quantities[],Quantities!$D$2)), IF(LEFT(TEXT(A47,"0"),1)="5","","-"), IF(LEFT(TEXT(A47,"0"),1)="5","",VLOOKUP(C47,'Activity-Material_Codes'!$A$25:$B$30,Quantities!$B$2)) )) -> Load-Crossings - concrete-Existing Ground | G47: =CONCATENATE( IF(OR(RIGHT(TEXT($A47,"0"),Quantities!$B$2)="00",LEFT(TEXT($A47,"0"),1)="5",$C47="b"),"",VLOOKUP($A47,Quantities[],Quantities!$B$2)), IF(LEFT(TEXT($A47,"0"),1)="5",""," "), IF(OR(C47="a",C47="c",C47="d",C47="e"),IF(OR(RIGHT(TEXT($A47,"0"),Quantities!$B$2)="00",LEFT(TEXT($A47,"0"),1)="5"),VLOOKUP($A47,Quantities[],Quantities!$B$2),VLOOKUP($A47,Quantities[],Quantities!$C$2)), IF(LEFT(TEXT($A47,"0"),1)="5",VLOOKUP($A47,Quantities[],Quantities!$B$2), VLOOKUP(INDEX(Quantities!$A$56:$A$89,MATCH($A47,Quantities!$C$56:$C$89)),Quantities!$A$56:$B$89,Quantities!$B$2)))) -> Cobre Haul Road CHR-7 | H47: =IF(LEFT(TEXT(A47,"0"),1)="5", VLOOKUP(VLOOKUP(A47,Quantities!$A$4:$D$89,Quantities!$C$2),Quantities!$A$4:$D$89,Quantities!$C$2), IF(OR(C47="a",C47="c",C47="d",C47="e"), "-", IF(RIGHT(TEXT(A47,"0"),2)="00",VLOOKUP(A47,Quantities[],Quantities!$B$2),VLOOKUP(A47,Quantities[],Quantities!$C$2)) )) -> - | I47: =IF(AND(LEFT(D47,2)="Sc",B47="A",C47="d"), SUM(VLOOKUP($A47,Quantities[],Quantities!$V$2),VLOOKUP($A47,Quantities[],Quantities!$Z$2), VLOOKUP($A47,Quantities[],Quantities!$AD$2)), IF(AND(LEFT(D47,2)="Sc",C47="a"), VLOOKUP(A47,Quantities[],Quantities!$J$2), IF(AND(B47="D",C47="b"), VLOOKUP(INDEX(Quantities!$A$56:$A$88,MATCH($A47,Quantities!$C$56:$C$89)),Quantities!$A$56:$AP$88,Quantities!$V$2)+ VLOOKUP(INDEX(Quantities!$A$56:$A$88,MATCH($A47,Quantities!$C$56:$C$89)),Quantities!$A$56:$AP$88,Quantities!$Z$2)+ VLOOKUP(INDEX(Quantities!$A$56:$A$88,MATCH($A47,Quantities!$C$56:$C$89)),Quantities!$A$56:$AP$88,Quantities!$AD$2), IF(B47="D", VLOOKUP(A47,Quantities[],Quantities!$V$2)+VLOOKUP(A47,Quantities[],Quantities!$Z$2)+VLOOKUP(A47,Quantities[],Quantities!$AD$2), IF($B47="Q", SUM(VLOOKUP($A47,Quantities[],Quantities!$V$2),VLOOKUP($A47,Quantities[],Quantities!$Z$2), VLOOKUP($A47,Quantities[],Quantities!$AD$2)), VLOOKUP(A47,Quantities[],Quantities!$G$2) ))))) -> 100 | J47: =IF(LEFT(D47,2)="Mg", VLOOKUP(A47,Quantities[],Quantities!$I$2), IF(AND(LEFT(D47,2)="Sc",B47="A",C47="d"), (SUM(VLOOKUP($A47,Quantities[],Quantities!$W$2)*VLOOKUP($A47,Quantities[],Quantities!$V$2),VLOOKUP($A47,Quantities[],Quantities!$AA$2)*VLOOKUP($A47,Quantities[],Quantities!$Z$2),VLOOKUP($A47,Quantities[],Quantities!$AE$2)*VLOOKUP($A47,Quantities[],Quantities!$AD$2)))/SUM(VLOOKUP($A47,Quantities[],Quantities!$V$2),VLOOKUP($A47,Quantities[],Quantities!$Z$2),VLOOKUP($A47,Quantities[],Quantities!$AD$2)), IF(AND(LEFT(D47,2)="Sc",C47="a"), VLOOKUP(A47,Quantities[],Quantities!$K$2), IF(AND(B47="D",C47="b", (VLOOKUP(INDEX(Quantities!$A$56:$A$88,MATCH($A47,Quantities!$C$56:$C$88)),Quantities[],Quantities!$V$2)+VLOOKUP(INDEX(Quantities!$A$56:$A$88,MATCH($A47,Quantities!$C$56:$C$88)),Quantities[],Quantities!$Z$2)+VLOOKUP(INDEX(Quantities!$A$56:$A$88,MATCH($A47,Quantities!$C$56:$C$88)),Quantities[],Quantities!$AD$2))>0), (VLOOKUP(INDEX(Quantities!$A$56:$A$88,MATCH($A47,Quantities!$C$56:$C$88)),Quantities[],Quantities!$W$2)*VLOOKUP(INDEX(Quantities!$A$56:$A$88,MATCH($A47,Quantities!$C$56:$C$88)),Quantities[],Quantities!$V$2) +VLOOKUP(INDEX(Quantities!$A$56:$A$88,MATCH($A47,Quantities!$C$56:$C$88)),Quantities[],Quantities!$AA$2)*VLOOKUP(INDEX(Quantities!$A$56:$A$88,MATCH($A47,Quantities!$C$56:$C$88)),Quantities[],Quantities!$Z$2) +VLOOKUP(INDEX(Quantities!$A$56:$A$88,MATCH($A47,Quantities!$C$56:$C$88)),Quantities[],Quantities!$AE$2)*VLOOKUP(INDEX(Quantities!$A$56:$A$88,MATCH($A47,Quantities!$C$56:$C$88)),Quantities[],Quantities!$AD$2))/ (VLOOKUP(INDEX(Quantities!$A$56:$A$88,MATCH($A47,Quantities!$C$56:$C$88)),Quantities[],Quantities!$V$2)+VLOOKUP(INDEX(Quantities!$A$56:$A$88,MATCH($A47,Quantities!$C$56:$C$88)),Quantities[],Quantities!$Z$2)+VLOOKUP(A47,Quantities[],Quantities!$AD$2)), IF(AND(B47="D", (VLOOKUP(A47,Quantities[],Quantities!$V$2)+VLOOKUP(A47,Quantities[],Quantities!$Z$2)+VLOOKUP(A47,Quantities[],Quantities!$AD$2))>0), (VLOOKUP(A47,Quantities[],Quantities!$W$2)*VLOOKUP(A47,Quantities[],Quantities!$V$2) +VLOOKUP(A47,Quantities[],Quantities!$AA$2)*VLOOKUP(A47,Quantities[],Quantities!$Z$2) +VLOOKUP(A47,Quantities[],Quantities!$AE$2)*VLOOKUP(A47,Quantities[],Quantities!$AD$2))/ (VLOOKUP(A47,Quantities[],Quantities!$V$2)+VLOOKUP(A47,Quantities[],Quantities!$Z$2)+VLOOKUP(A47,Quantities[],Quantities!$AD$2)), IF($B47="Q", (SUM(VLOOKUP($A47,Quantities[],Quantities!$W$2)*VLOOKUP($A47,Quantities[],Quantities!$V$2),VLOOKUP($A47,Quantities[],Quantities!$AA$2)*VLOOKUP($A47,Quantities[],Quantities!$Z$2),VLOOKUP($A47,Quantities[],Quantities!$AE$2)*VLOOKUP($A47,Quantities[],Quantities!$AD$2)))/SUM(VLOOKUP($A47,Quantities[],Quantities!$V$2),VLOOKUP($A47,Quantities[],Quantities!$Z$2),VLOOKUP($A47,Quantities[],Quantities!$AD$2)), VLOOKUP(A47,Quantities[],Quantities!$I$2) )))))) -> 0.4 | K47: =IF(LEFT(D47,1)="U","-",VLOOKUP(D47,Equipment[],Equipment!$B$2)) -> Cat 319D L
A48: =Quantities!A30 -> 1507 | B48: D | C48: a | D48: Tk3 | E48: 1507-D-a-Tk3 | F48: =IF(D48="Comb1",VLOOKUP(B48,'Activity-Material_Codes'!$A$2:$B$22,Quantities!$B$2), CONCATENATE( VLOOKUP(B48,'Activity-Material_Codes'!$A$2:$B$22,Quantities!$B$2), IF(AND(B48="B",C48="a"), " Grading",""), IF(C48="b","","-"), IF(C48="b","",VLOOKUP(A48,Quantities[],Quantities!$D$2)), IF(LEFT(TEXT(A48,"0"),1)="5","","-"), IF(LEFT(TEXT(A48,"0"),1)="5","",VLOOKUP(C48,'Activity-Material_Codes'!$A$25:$B$30,Quantities!$B$2)) )) -> Haul-Crossings - concrete-Existing Ground | G48: =CONCATENATE( IF(OR(RIGHT(TEXT($A48,"0"),Quantities!$B$2)="00",LEFT(TEXT($A48,"0"),1)="5",$C48="b"),"",VLOOKUP($A48,Quantities[],Quantities!$B$2)), IF(LEFT(TEXT($A48,"0"),1)="5",""," "), IF(OR(C48="a",C48="c",C48="d",C48="e"),IF(OR(RIGHT(TEXT($A48,"0"),Quantities!$B$2)="00",LEFT(TEXT($A48,"0"),1)="5"),VLOOKUP($A48,Quantities[],Quantities!$B$2),VLOOKUP($A48,Quantities[],Quantities!$C$2)), IF(LEFT(TEXT($A48,"0"),1)="5",VLOOKUP($A48,Quantities[],Quantities!$B$2), VLOOKUP(INDEX(Quantities!$A$56:$A$89,MATCH($A48,Quantities!$C$56:$C$89)),Quantities!$A$56:$B$89,Quantities!$B$2)))) -> Cobre Haul Road CHR-7 | H48: =IF(LEFT(TEXT(A48,"0"),1)="5", VLOOKUP(VLOOKUP(A48,Quantities!$A$4:$D$89,Quantities!$C$2),Quantities!$A$4:$D$89,Quantities!$C$2), IF(OR(C48="a",C48="c",C48="d",C48="e"), "-", IF(RIGHT(TEXT(A48,"0"),2)="00",VLOOKUP(A48,Quantities[],Quantities!$B$2),VLOOKUP(A48,Quantities[],Quantities!$C$2)) )) -> - | I48: =IF(AND(LEFT(D48,2)="Sc",B48="A",C48="d"), SUM(VLOOKUP($A48,Quantities[],Quantities!$V$2),VLOOKUP($A48,Quantities[],Quantities!$Z$2), VLOOKUP($A48,Quantities[],Quantities!$AD$2)), IF(AND(LEFT(D48,2)="Sc",C48="a"), VLOOKUP(A48,Quantities[],Quantities!$J$2), IF(AND(B48="D",C48="b"), VLOOKUP(INDEX(Quantities!$A$56:$A$88,MATCH($A48,Quantities!$C$56:$C$89)),Quantities!$A$56:$AP$88,Quantities!$V$2)+ VLOOKUP(INDEX(Quantities!$A$56:$A$88,MATCH($A48,Quantities!$C$56:$C$89)),Quantities!$A$56:$AP$88,Quantities!$Z$2)+ VLOOKUP(INDEX(Quantities!$A$56:$A$88,MATCH($A48,Quantities!$C$56:$C$89)),Quantities!$A$56:$AP$88,Quantities!$AD$2), IF(B48="D", VLOOKUP(A48,Quantities[],Quantities!$V$2)+VLOOKUP(A48,Quantities[],Quantities!$Z$2)+VLOOKUP(A48,Quantities[],Quantities!$AD$2), IF($B48="Q", SUM(VLOOKUP($A48,Quantities[],Quantities!$V$2),VLOOKUP($A48,Quantities[],Quantities!$Z$2), VLOOKUP($A48,Quantities[],Quantities!$AD$2)), VLOOKUP(A48,Quantities[],Quantities!$G$2) ))))) -> 5280 | J48: =IF(LEFT(D48,2)="Mg", VLOOKUP(A48,Quantities[],Quantities!$I$2), IF(AND(LEFT(D48,2)="Sc",B48="A",C48="d"), (SUM(VLOOKUP($A48,Quantities[],Quantities!$W$2)*VLOOKUP($A48,Quantities[],Quantities!$V$2),VLOOKUP($A48,Quantities[],Quantities!$AA$2)*VLOOKUP($A48,Quantities[],Quantities!$Z$2),VLOOKUP($A48,Quantities[],Quantities!$AE$2)*VLOOKUP($A48,Quantities[],Quantities!$AD$2)))/SUM(VLOOKUP($A48,Quantities[],Quantities!$V$2),VLOOKUP($A48,Quantities[],Quantities!$Z$2),VLOOKUP($A48,Quantities[],Quantities!$AD$2)), IF(AND(LEFT(D48,2)="Sc",C48="a"), VLOOKUP(A48,Quantities[],Quantities!$K$2), IF(AND(B48="D",C48="b", (VLOOKUP(INDEX(Quantities!$A$56:$A$88,MATCH($A48,Quantities!$C$56:$C$88)),Quantities[],Quantities!$V$2)+VLOOKUP(INDEX(Quantities!$A$56:$A$88,MATCH($A48,Quantities!$C$56:$C$88)),Quantities[],Quantities!$Z$2)+VLOOKUP(INDEX(Quantities!$A$56:$A$88,MATCH($A48,Quantities!$C$56:$C$88)),Quantities[],Quantities!$AD$2))>0), (VLOOKUP(INDEX(Quantities!$A$56:$A$88,MATCH($A48,Quantities!$C$56:$C$88)),Quantities[],Quantities!$W$2)*VLOOKUP(INDEX(Quantities!$A$56:$A$88,MATCH($A48,Quantities!$C$56:$C$88)),Quantities[],Quantities!$V$2) +VLOOKUP(INDEX(Quantities!$A$56:$A$88,MATCH($A48,Quantities!$C$56:$C$88)),Quantities[],Quantities!$AA$2)*VLOOKUP(INDEX(Quantities!$A$56:$A$88,MATCH($A48,Quantities!$C$56:$C$88)),Quantities[],Quantities!$Z$2) +VLOOKUP(INDEX(Quantities!$A$56:$A$88,MATCH($A48,Quantities!$C$56:$C$88)),Quantities[],Quantities!$AE$2)*VLOOKUP(INDEX(Quantities!$A$56:$A$88,MATCH($A48,Quantities!$C$56:$C$88)),Quantities[],Quantities!$AD$2))/ (VLOOKUP(INDEX(Quantities!$A$56:$A$88,MATCH($A48,Quantities!$C$56:$C$88)),Quantities[],Quantities!$V$2)+VLOOKUP(INDEX(Quantities!$A$56:$A$88,MATCH($A48,Quantities!$C$56:$C$88)),Quantities[],Quantities!$Z$2)+VLOOKUP(A48,Quantities[],Quantities!$AD$2)), IF(AND(B48="D", (VLOOKUP(A48,Quantities[],Quantities!$V$2)+VLOOKUP(A48,Quantities[],Quantities!$Z$2)+VLOOKUP(A48,Quantities[],Quantities!$AD$2))>0), (VLOOKUP(A48,Quantities[],Quantities!$W$2)*VLOOKUP(A48,Quantities[],Quantities!$V$2) +VLOOKUP(A48,Quantities[],Quantities!$AA$2)*VLOOKUP(A48,Quantities[],Quantities!$Z$2) +VLOOKUP(A48,Quantities[],Quantities!$AE$2)*VLOOKUP(A48,Quantities[],Quantities!$AD$2))/ (VLOOKUP(A48,Quantities[],Quantities!$V$2)+VLOOKUP(A48,Quantities[],Quantities!$Z$2)+VLOOKUP(A48,Quantities[],Quantities!$AD$2)), IF($B48="Q", (SUM(VLOOKUP($A48,Quantities[],Quantities!$W$2)*VLOOKUP($A48,Quantities[],Quantities!$V$2),VLOOKUP($A48,Quantities[],Quantities!$AA$2)*VLOOKUP($A48,Quantities[],Quantities!$Z$2),VLOOKUP($A48,Quantities[],Quantities!$AE$2)*VLOOKUP($A48,Quantities[],Quantities!$AD$2)))/SUM(VLOOKUP($A48,Quantities[],Quantities!$V$2),VLOOKUP($A48,Quantities[],Quantities!$Z$2),VLOOKUP($A48,Quantities[],Quantities!$AD$2)), VLOOKUP(A48,Quantities[],Quantities!$I$2) )))))) -> 0.07 | K48: =IF(LEFT(D48,1)="U","-",VLOOKUP(D48,Equipment[],Equipment!$B$2)) -> Cat 725
A49: =Quantities!A5 -> 1001 | B49: E | C49: c | D49: Rp1 | E49: 1001-E-c-Rp1 | F49: =IF(D49="Comb1",VLOOKUP(B49,'Activity-Material_Codes'!$A$2:$B$22,Quantities!$B$2), CONCATENATE( VLOOKUP(B49,'Activity-Material_Codes'!$A$2:$B$22,Quantities!$B$2), IF(AND(B49="B",C49="a"), " Grading",""), IF(C49="b","","-"), IF(C49="b","",VLOOKUP(A49,Quantities[],Quantities!$D$2)), IF(LEFT(TEXT(A49,"0"),1)="5","","-"), IF(LEFT(TEXT(A49,"0"),1)="5","",VLOOKUP(C49,'Activity-Material_Codes'!$A$25:$B$30,Quantities!$B$2)) )) -> Rip-Top-Rough Graded Material | G49: =CONCATENATE( IF(OR(RIGHT(TEXT($A49,"0"),Quantities!$B$2)="00",LEFT(TEXT($A49,"0"),1)="5",$C49="b"),"",VLOOKUP($A49,Quantities[],Quantities!$B$2)), IF(LEFT(TEXT($A49,"0"),1)="5",""," "), IF(OR(C49="a",C49="c",C49="d",C49="e"),IF(OR(RIGHT(TEXT($A49,"0"),Quantities!$B$2)="00",LEFT(TEXT($A49,"0"),1)="5"),VLOOKUP($A49,Quantities[],Quantities!$B$2),VLOOKUP($A49,Quantities[],Quantities!$C$2)), IF(LEFT(TEXT($A49,"0"),1)="5",VLOOKUP($A49,Quantities[],Quantities!$B$2), VLOOKUP(INDEX(Quantities!$A$56:$A$89,MATCH($A49,Quantities!$C$56:$C$89)),Quantities!$A$56:$B$89,Quantities!$B$2)))) -> South Waste Rock Disposal Facility SWRDF-1 | H49: =IF(LEFT(TEXT(A49,"0"),1)="5", VLOOKUP(VLOOKUP(A49,Quantities!$A$4:$D$89,Quantities!$C$2),Quantities!$A$4:$D$89,Quantities!$C$2), IF(OR(C49="a",C49="c",C49="d",C49="e"), "-", IF(RIGHT(TEXT(A49,"0"),2)="00",VLOOKUP(A49,Quantities[],Quantities!$B$2),VLOOKUP(A49,Quantities[],Quantities!$C$2)) )) -> - | I49: =IF(AND(LEFT(D49,2)="Sc",B49="A",C49="d"), SUM(VLOOKUP($A49,Quantities[],Quantities!$V$2),VLOOKUP($A49,Quantities[],Quantities!$Z$2), VLOOKUP($A49,Quantities[],Quantities!$AD$2)), IF(AND(LEFT(D49,2)="Sc",C49="a"), VLOOKUP(A49,Quantities[],Quantities!$J$2), IF(AND(B49="D",C49="b"), VLOOKUP(INDEX(Quantities!$A$56:$A$88,MATCH($A49,Quantities!$C$56:$C$89)),Quantities!$A$56:$AP$88,Quantities!$V$2)+ VLOOKUP(INDEX(Quantities!$A$56:$A$88,MATCH($A49,Quantities!$C$56:$C$89)),Quantities!$A$56:$AP$88,Quantities!$Z$2)+ VLOOKUP(INDEX(Quantities!$A$56:$A$88,MATCH($A49,Quantities!$C$56:$C$89)),Quantities!$A$56:$AP$88,Quantities!$AD$2), IF(B49="D", VLOOKUP(A49,Quantities[],Quantities!$V$2)+VLOOKUP(A49,Quantities[],Quantities!$Z$2)+VLOOKUP(A49,Quantities[],Quantities!$AD$2), IF($B49="Q", SUM(VLOOKUP($A49,Quantities[],Quantities!$V$2),VLOOKUP($A49,Quantities[],Quantities!$Z$2), VLOOKUP($A49,Quantities[],Quantities!$AD$2)), VLOOKUP(A49,Quantities[],Quantities!$G$2) ))))) -> 540 | J49: =IF(LEFT(D49,2)="Mg", VLOOKUP(A49,Quantities[],Quantities!$I$2), IF(AND(LEFT(D49,2)="Sc",B49="A",C49="d"), (SUM(VLOOKUP($A49,Quantities[],Quantities!$W$2)*VLOOKUP($A49,Quantities[],Quantities!$V$2),VLOOKUP($A49,Quantities[],Quantities!$AA$2)*VLOOKUP($A49,Quantities[],Quantities!$Z$2),VLOOKUP($A49,Quantities[],Quantities!$AE$2)*VLOOKUP($A49,Quantities[],Quantities!$AD$2)))/SUM(VLOOKUP($A49,Quantities[],Quantities!$V$2),VLOOKUP($A49,Quantities[],Quantities!$Z$2),VLOOKUP($A49,Quantities[],Quantities!$AD$2)), IF(AND(LEFT(D49,2)="Sc",C49="a"), VLOOKUP(A49,Quantities[],Quantities!$K$2), IF(AND(B49="D",C49="b", (VLOOKUP(INDEX(Quantities!$A$56:$A$88,MATCH($A49,Quantities!$C$56:$C$88)),Quantities[],Quantities!$V$2)+VLOOKUP(INDEX(Quantities!$A$56:$A$88,MATCH($A49,Quantities!$C$56:$C$88)),Quantities[],Quantities!$Z$2)+VLOOKUP(INDEX(Quantities!$A$56:$A$88,MATCH($A49,Quantities!$C$56:$C$88)),Quantities[],Quantities!$AD$2))>0), (VLOOKUP(INDEX(Quantities!$A$56:$A$88,MATCH($A49,Quantities!$C$56:$C$88)),Quantities[],Quantities!$W$2)*VLOOKUP(INDEX(Quantities!$A$56:$A$88,MATCH($A49,Quantities!$C$56:$C$88)),Quantities[],Quantities!$V$2) +VLOOKUP(INDEX(Quantities!$A$56:$A$88,MATCH($A49,Quantities!$C$56:$C$88)),Quantities[],Quantities!$AA$2)*VLOOKUP(INDEX(Quantities!$A$56:$A$88,MATCH($A49,Quantities!$C$56:$C$88)),Quantities[],Quantities!$Z$2) +VLOOKUP(INDEX(Quantities!$A$56:$A$88,MATCH($A49,Quantities!$C$56:$C$88)),Quantities[],Quantities!$AE$2)*VLOOKUP(INDEX(Quantities!$A$56:$A$88,MATCH($A49,Quantities!$C$56:$C$88)),Quantities[],Quantities!$AD$2))/ (VLOOKUP(INDEX(Quantities!$A$56:$A$88,MATCH($A49,Quantities!$C$56:$C$88)),Quantities[],Quantities!$V$2)+VLOOKUP(INDEX(Quantities!$A$56:$A$88,MATCH($A49,Quantities!$C$56:$C$88)),Quantities[],Quantities!$Z$2)+VLOOKUP(A49,Quantities[],Quantities!$AD$2)), IF(AND(B49="D", (VLOOKUP(A49,Quantities[],Quantities!$V$2)+VLOOKUP(A49,Quantities[],Quantities!$Z$2)+VLOOKUP(A49,Quantities[],Quantities!$AD$2))>0), (VLOOKUP(A49,Quantities[],Quantities!$W$2)*VLOOKUP(A49,Quantities[],Quantities!$V$2) +VLOOKUP(A49,Quantities[],Quantities!$AA$2)*VLOOKUP(A49,Quantities[],Quantities!$Z$2) +VLOOKUP(A49,Quantities[],Quantities!$AE$2)*VLOOKUP(A49,Quantities[],Quantities!$AD$2))/ (VLOOKUP(A49,Quantities[],Quantities!$V$2)+VLOOKUP(A49,Quantities[],Quantities!$Z$2)+VLOOKUP(A49,Quantities[],Quantities!$AD$2)), IF($B49="Q", (SUM(VLOOKUP($A49,Quantities[],Quantities!$W$2)*VLOOKUP($A49,Quantities[],Quantities!$V$2),VLOOKUP($A49,Quantities[],Quantities!$AA$2)*VLOOKUP($A49,Quantities[],Quantities!$Z$2),VLOOKUP($A49,Quantities[],Quantities!$AE$2)*VLOOKUP($A49,Quantities[],Quantities!$AD$2)))/SUM(VLOOKUP($A49,Quantities[],Quantities!$V$2),VLOOKUP($A49,Quantities[],Quantities!$Z$2),VLOOKUP($A49,Quantities[],Quantities!$AD$2)), VLOOKUP(A49,Quantities[],Quantities!$I$2) )))))) -> -0.01 | K49: =IF(LEFT(D49,1)="U","-",VLOOKUP(D49,Equipment[],Equipment!$B$2)) -> Cat D11T CD Multi-shank (w/ MSR-359H)
A50: =Quantities!A10 -> 1101 | B50: E | C50: c | D50: Rp1 | E50: 1101-E-c-Rp1 | F50: =IF(D50="Comb1",VLOOKUP(B50,'Activity-Material_Codes'!$A$2:$B$22,Quantities!$B$2), CONCATENATE( VLOOKUP(B50,'Activity-Material_Codes'!$A$2:$B$22,Quantities!$B$2), IF(AND(B50="B",C50="a"), " Grading",""), IF(C50="b","","-"), IF(C50="b","",VLOOKUP(A50,Quantities[],Quantities!$D$2)), IF(LEFT(TEXT(A50,"0"),1)="5","","-"), IF(LEFT(TEXT(A50,"0"),1)="5","",VLOOKUP(C50,'Activity-Material_Codes'!$A$25:$B$30,Quantities!$B$2)) )) -> Rip-Top-Rough Graded Material | G50: =CONCATENATE( IF(OR(RIGHT(TEXT($A50,"0"),Quantities!$B$2)="00",LEFT(TEXT($A50,"0"),1)="5",$C50="b"),"",VLOOKUP($A50,Quantities[],Quantities!$B$2)), IF(LEFT(TEXT($A50,"0"),1)="5",""," "), IF(OR(C50="a",C50="c",C50="d",C50="e"),IF(OR(RIGHT(TEXT($A50,"0"),Quantities!$B$2)="00",LEFT(TEXT($A50,"0"),1)="5"),VLOOKUP($A50,Quantities[],Quantities!$B$2),VLOOKUP($A50,Quantities[],Quantities!$C$2)), IF(LEFT(TEXT($A50,"0"),1)="5",VLOOKUP($A50,Quantities[],Quantities!$B$2), VLOOKUP(INDEX(Quantities!$A$56:$A$89,MATCH($A50,Quantities!$C$56:$C$89)),Quantities!$A$56:$B$89,Quantities!$B$2)))) -> No. 3 Shaft Stockpile N3SS-1 | H50: =IF(LEFT(TEXT(A50,"0"),1)="5", VLOOKUP(VLOOKUP(A50,Quantities!$A$4:$D$89,Quantities!$C$2),Quantities!$A$4:$D$89,Quantities!$C$2), IF(OR(C50="a",C50="c",C50="d",C50="e"), "-", IF(RIGHT(TEXT(A50,"0"),2)="00",VLOOKUP(A50,Quantities[],Quantities!$B$2),VLOOKUP(A50,Quantities[],Quantities!$C$2)) )) -> - | I50: =IF(AND(LEFT(D50,2)="Sc",B50="A",C50="d"), SUM(VLOOKUP($A50,Quantities[],Quantities!$V$2),VLOOKUP($A50,Quantities[],Quantities!$Z$2), VLOOKUP($A50,Quantities[],Quantities!$AD$2)), IF(AND(LEFT(D50,2)="Sc",C50="a"), VLOOKUP(A50,Quantities[],Quantities!$J$2), IF(AND(B50="D",C50="b"), VLOOKUP(INDEX(Quantities!$A$56:$A$88,MATCH($A50,Quantities!$C$56:$C$89)),Quantities!$A$56:$AP$88,Quantities!$V$2)+ VLOOKUP(INDEX(Quantities!$A$56:$A$88,MATCH($A50,Quantities!$C$56:$C$89)),Quantities!$A$56:$AP$88,Quantities!$Z$2)+ VLOOKUP(INDEX(Quantities!$A$56:$A$88,MATCH($A50,Quantities!$C$56:$C$89)),Quantities!$A$56:$AP$88,Quantities!$AD$2), IF(B50="D", VLOOKUP(A50,Quantities[],Quantities!$V$2)+VLOOKUP(A50,Quantities[],Quantities!$Z$2)+VLOOKUP(A50,Quantities[],Quantities!$AD$2), IF($B50="Q", SUM(VLOOKUP($A50,Quantities[],Quantities!$V$2),VLOOKUP($A50,Quantities[],Quantities!$Z$2), VLOOKUP($A50,Quantities[],Quantities!$AD$2)), VLOOKUP(A50,Quantities[],Quantities!$G$2) ))))) -> 60 | J50: =IF(LEFT(D50,2)="Mg", VLOOKUP(A50,Quantities[],Quantities!$I$2), IF(AND(LEFT(D50,2)="Sc",B50="A",C50="d"), (SUM(VLOOKUP($A50,Quantities[],Quantities!$W$2)*VLOOKUP($A50,Quantities[],Quantities!$V$2),VLOOKUP($A50,Quantities[],Quantities!$AA$2)*VLOOKUP($A50,Quantities[],Quantities!$Z$2),VLOOKUP($A50,Quantities[],Quantities!$AE$2)*VLOOKUP($A50,Quantities[],Quantities!$AD$2)))/SUM(VLOOKUP($A50,Quantities[],Quantities!$V$2),VLOOKUP($A50,Quantities[],Quantities!$Z$2),VLOOKUP($A50,Quantities[],Quantities!$AD$2)), IF(AND(LEFT(D50,2)="Sc",C50="a"), VLOOKUP(A50,Quantities[],Quantities!$K$2), IF(AND(B50="D",C50="b", (VLOOKUP(INDEX(Quantities!$A$56:$A$88,MATCH($A50,Quantities!$C$56:$C$88)),Quantities[],Quantities!$V$2)+VLOOKUP(INDEX(Quantities!$A$56:$A$88,MATCH($A50,Quantities!$C$56:$C$88)),Quantities[],Quantities!$Z$2)+VLOOKUP(INDEX(Quantities!$A$56:$A$88,MATCH($A50,Quantities!$C$56:$C$88)),Quantities[],Quantities!$AD$2))>0), (VLOOKUP(INDEX(Quantities!$A$56:$A$88,MATCH($A50,Quantities!$C$56:$C$88)),Quantities[],Quantities!$W$2)*VLOOKUP(INDEX(Quantities!$A$56:$A$88,MATCH($A50,Quantities!$C$56:$C$88)),Quantities[],Quantities!$V$2) +VLOOKUP(INDEX(Quantities!$A$56:$A$88,MATCH($A50,Quantities!$C$56:$C$88)),Quantities[],Quantities!$AA$2)*VLOOKUP(INDEX(Quantities!$A$56:$A$88,MATCH($A50,Quantities!$C$56:$C$88)),Quantities[],Quantities!$Z$2) +VLOOKUP(INDEX(Quantities!$A$56:$A$88,MATCH($A50,Quantities!$C$56:$C$88)),Quantities[],Quantities!$AE$2)*VLOOKUP(INDEX(Quantities!$A$56:$A$88,MATCH($A50,Quantities!$C$56:$C$88)),Quantities[],Quantities!$AD$2))/ (VLOOKUP(INDEX(Quantities!$A$56:$A$88,MATCH($A50,Quantities!$C$56:$C$88)),Quantities[],Quantities!$V$2)+VLOOKUP(INDEX(Quantities!$A$56:$A$88,MATCH($A50,Quantities!$C$56:$C$88)),Quantities[],Quantities!$Z$2)+VLOOKUP(A50,Quantities[],Quantities!$AD$2)), IF(AND(B50="D", (VLOOKUP(A50,Quantities[],Quantities!$V$2)+VLOOKUP(A50,Quantities[],Quantities!$Z$2)+VLOOKUP(A50,Quantities[],Quantities!$AD$2))>0), (VLOOKUP(A50,Quantities[],Quantities!$W$2)*VLOOKUP(A50,Quantities[],Quantities!$V$2) +VLOOKUP(A50,Quantities[],Quantities!$AA$2)*VLOOKUP(A50,Quantities[],Quantities!$Z$2) +VLOOKUP(A50,Quantities[],Quantities!$AE$2)*VLOOKUP(A50,Quantities[],Quantities!$AD$2))/ (VLOOKUP(A50,Quantities[],Quantities!$V$2)+VLOOKUP(A50,Quantities[],Quantities!$Z$2)+VLOOKUP(A50,Quantities[],Quantities!$AD$2)), IF($B50="Q", (SUM(VLOOKUP($A50,Quantities[],Quantities!$W$2)*VLOOKUP($A50,Quantities[],Quantities!$V$2),VLOOKUP($A50,Quantities[],Quantities!$AA$2)*VLOOKUP($A50,Quantities[],Quantities!$Z$2),VLOOKUP($A50,Quantities[],Quantities!$AE$2)*VLOOKUP($A50,Quantities[],Quantities!$AD$2)))/SUM(VLOOKUP($A50,Quantities[],Quantities!$V$2),VLOOKUP($A50,Quantities[],Quantities!$Z$2),VLOOKUP($A50,Quantities[],Quantities!$AD$2)), VLOOKUP(A50,Quantities[],Quantities!$I$2) )))))) -> -0.01 | K50: =IF(LEFT(D50,1)="U","-",VLOOKUP(D50,Equipment[],Equipment!$B$2)) -> Cat D11T CD Multi-shank (w/ MSR-359H)
A51: =Quantities!A13 -> 1201 | B51: E | C51: c | D51: Rp1 | E51: 1201-E-c-Rp1 | F51: =IF(D51="Comb1",VLOOKUP(B51,'Activity-Material_Codes'!$A$2:$B$22,Quantities!$B$2), CONCATENATE( VLOOKUP(B51,'Activity-Material_Codes'!$A$2:$B$22,Quantities!$B$2), IF(AND(B51="B",C51="a"), " Grading",""), IF(C51="b","","-"), IF(C51="b","",VLOOKUP(A51,Quantities[],Quantities!$D$2)), IF(LEFT(TEXT(A51,"0"),1)="5","","-"), IF(LEFT(TEXT(A51,"0"),1)="5","",VLOOKUP(C51,'Activity-Material_Codes'!$A$25:$B$30,Quantities!$B$2)) )) -> Rip-Top-Rough Graded Material | G51: =CONCATENATE( IF(OR(RIGHT(TEXT($A51,"0"),Quantities!$B$2)="00",LEFT(TEXT($A51,"0"),1)="5",$C51="b"),"",VLOOKUP($A51,Quantities[],Quantities!$B$2)), IF(LEFT(TEXT($A51,"0"),1)="5",""," "), IF(OR(C51="a",C51="c",C51="d",C51="e"),IF(OR(RIGHT(TEXT($A51,"0"),Quantities!$B$2)="00",LEFT(TEXT($A51,"0"),1)="5"),VLOOKUP($A51,Quantities[],Quantities!$B$2),VLOOKUP($A51,Quantities[],Quantities!$C$2)), IF(LEFT(TEXT($A51,"0"),1)="5",VLOOKUP($A51,Quantities[],Quantities!$B$2), VLOOKUP(INDEX(Quantities!$A$56:$A$89,MATCH($A51,Quantities!$C$56:$C$89)),Quantities!$A$56:$B$89,Quantities!$B$2)))) -> Low Grade Ore Waste Rock Facility LGWRF-1 | H51: =IF(LEFT(TEXT(A51,"0"),1)="5", VLOOKUP(VLOOKUP(A51,Quantities!$A$4:$D$89,Quantities!$C$2),Quantities!$A$4:$D$89,Quantities!$C$2), IF(OR(C51="a",C51="c",C51="d",C51="e"), "-", IF(RIGHT(TEXT(A51,"0"),2)="00",VLOOKUP(A51,Quantities[],Quantities!$B$2),VLOOKUP(A51,Quantities[],Quantities!$C$2)) )) -> - | I51: =IF(AND(LEFT(D51,2)="Sc",B51="A",C51="d"), SUM(VLOOKUP($A51,Quantities[],Quantities!$V$2),VLOOKUP($A51,Quantities[],Quantities!$Z$2), VLOOKUP($A51,Quantities[],Quantities!$AD$2)), IF(AND(LEFT(D51,2)="Sc",C51="a"), VLOOKUP(A51,Quantities[],Quantities!$J$2), IF(AND(B51="D",C51="b"), VLOOKUP(INDEX(Quantities!$A$56:$A$88,MATCH($A51,Quantities!$C$56:$C$89)),Quantities!$A$56:$AP$88,Quantities!$V$2)+ VLOOKUP(INDEX(Quantities!$A$56:$A$88,MATCH($A51,Quantities!$C$56:$C$89)),Quantities!$A$56:$AP$88,Quantities!$Z$2)+ VLOOKUP(INDEX(Quantities!$A$56:$A$88,MATCH($A51,Quantities!$C$56:$C$89)),Quantities!$A$56:$AP$88,Quantities!$AD$2), IF(B51="D", VLOOKUP(A51,Quantities[],Quantities!$V$2)+VLOOKUP(A51,Quantities[],Quantities!$Z$2)+VLOOKUP(A51,Quantities[],Quantities!$AD$2), IF($B51="Q", SUM(VLOOKUP($A51,Quantities[],Quantities!$V$2),VLOOKUP($A51,Quantities[],Quantities!$Z$2), VLOOKUP($A51,Quantities[],Quantities!$AD$2)), VLOOKUP(A51,Quantities[],Quantities!$G$2) ))))) -> 92 | J51: =IF(LEFT(D51,2)="Mg", VLOOKUP(A51,Quantities[],Quantities!$I$2), IF(AND(LEFT(D51,2)="Sc",B51="A",C51="d"), (SUM(VLOOKUP($A51,Quantities[],Quantities!$W$2)*VLOOKUP($A51,Quantities[],Quantities!$V$2),VLOOKUP($A51,Quantities[],Quantities!$AA$2)*VLOOKUP($A51,Quantities[],Quantities!$Z$2),VLOOKUP($A51,Quantities[],Quantities!$AE$2)*VLOOKUP($A51,Quantities[],Quantities!$AD$2)))/SUM(VLOOKUP($A51,Quantities[],Quantities!$V$2),VLOOKUP($A51,Quantities[],Quantities!$Z$2),VLOOKUP($A51,Quantities[],Quantities!$AD$2)), IF(AND(LEFT(D51,2)="Sc",C51="a"), VLOOKUP(A51,Quantities[],Quantities!$K$2), IF(AND(B51="D",C51="b", (VLOOKUP(INDEX(Quantities!$A$56:$A$88,MATCH($A51,Quantities!$C$56:$C$88)),Quantities[],Quantities!$V$2)+VLOOKUP(INDEX(Quantities!$A$56:$A$88,MATCH($A51,Quantities!$C$56:$C$88)),Quantities[],Quantities!$Z$2)+VLOOKUP(INDEX(Quantities!$A$56:$A$88,MATCH($A51,Quantities!$C$56:$C$88)),Quantities[],Quantities!$AD$2))>0), (VLOOKUP(INDEX(Quantities!$A$56:$A$88,MATCH($A51,Quantities!$C$56:$C$88)),Quantities[],Quantities!$W$2)*VLOOKUP(INDEX(Quantities!$A$56:$A$88,MATCH($A51,Quantities!$C$56:$C$88)),Quantities[],Quantities!$V$2) +VLOOKUP(INDEX(Quantities!$A$56:$A$88,MATCH($A51,Quantities!$C$56:$C$88)),Quantities[],Quantities!$AA$2)*VLOOKUP(INDEX(Quantities!$A$56:$A$88,MATCH($A51,Quantities!$C$56:$C$88)),Quantities[],Quantities!$Z$2) +VLOOKUP(INDEX(Quantities!$A$56:$A$88,MATCH($A51,Quantities!$C$56:$C$88)),Quantities[],Quantities!$AE$2)*VLOOKUP(INDEX(Quantities!$A$56:$A$88,MATCH($A51,Quantities!$C$56:$C$88)),Quantities[],Quantities!$AD$2))/ (VLOOKUP(INDEX(Quantities!$A$56:$A$88,MATCH($A51,Quantities!$C$56:$C$88)),Quantities[],Quantities!$V$2)+VLOOKUP(INDEX(Quantities!$A$56:$A$88,MATCH($A51,Quantities!$C$56:$C$88)),Quantities[],Quantities!$Z$2)+VLOOKUP(A51,Quantities[],Quantities!$AD$2)), IF(AND(B51="D", (VLOOKUP(A51,Quantities[],Quantities!$V$2)+VLOOKUP(A51,Quantities[],Quantities!$Z$2)+VLOOKUP(A51,Quantities[],Quantities!$AD$2))>0), (VLOOKUP(A51,Quantities[],Quantities!$W$2)*VLOOKUP(A51,Quantities[],Quantities!$V$2) +VLOOKUP(A51,Quantities[],Quantities!$AA$2)*VLOOKUP(A51,Quantities[],Quantities!$Z$2) +VLOOKUP(A51,Quantities[],Quantities!$AE$2)*VLOOKUP(A51,Quantities[],Quantities!$AD$2))/ (VLOOKUP(A51,Quantities[],Quantities!$V$2)+VLOOKUP(A51,Quantities[],Quantities!$Z$2)+VLOOKUP(A51,Quantities[],Quantities!$AD$2)), IF($B51="Q", (SUM(VLOOKUP($A51,Quantities[],Quantities!$W$2)*VLOOKUP($A51,Quantities[],Quantities!$V$2),VLOOKUP($A51,Quantities[],Quantities!$AA$2)*VLOOKUP($A51,Quantities[],Quantities!$Z$2),VLOOKUP($A51,Quantities[],Quantities!$AE$2)*VLOOKUP($A51,Quantities[],Quantities!$AD$2)))/SUM(VLOOKUP($A51,Quantities[],Quantities!$V$2),VLOOKUP($A51,Quantities[],Quantities!$Z$2),VLOOKUP($A51,Quantities[],Quantities!$AD$2)), VLOOKUP(A51,Quantities[],Quantities!$I$2) )))))) -> -0.01 | K51: =IF(LEFT(D51,1)="U","-",VLOOKUP(D51,Equipment[],Equipment!$B$2)) -> Cat D11T CD Multi-shank (w/ MSR-359H)
A52: =Quantities!A16 -> 1301 | B52: E | C52: c | D52: Rp1 | E52: 1301-E-c-Rp1 | F52: =IF(D52="Comb1",VLOOKUP(B52,'Activity-Material_Codes'!$A$2:$B$22,Quantities!$B$2), CONCATENATE( VLOOKUP(B52,'Activity-Material_Codes'!$A$2:$B$22,Quantities!$B$2), IF(AND(B52="B",C52="a"), " Grading",""), IF(C52="b","","-"), IF(C52="b","",VLOOKUP(A52,Quantities[],Quantities!$D$2)), IF(LEFT(TEXT(A52,"0"),1)="5","","-"), IF(LEFT(TEXT(A52,"0"),1)="5","",VLOOKUP(C52,'Activity-Material_Codes'!$A$25:$B$30,Quantities!$B$2)) )) -> Rip-Top-Rough Graded Material | G52: =CONCATENATE( IF(OR(RIGHT(TEXT($A52,"0"),Quantities!$B$2)="00",LEFT(TEXT($A52,"0"),1)="5",$C52="b"),"",VLOOKUP($A52,Quantities[],Quantities!$B$2)), IF(LEFT(TEXT($A52,"0"),1)="5",""," "), IF(OR(C52="a",C52="c",C52="d",C52="e"),IF(OR(RIGHT(TEXT($A52,"0"),Quantities!$B$2)="00",LEFT(TEXT($A52,"0"),1)="5"),VLOOKUP($A52,Quantities[],Quantities!$B$2),VLOOKUP($A52,Quantities[],Quantities!$C$2)), IF(LEFT(TEXT($A52,"0"),1)="5",VLOOKUP($A52,Quantities[],Quantities!$B$2), VLOOKUP(INDEX(Quantities!$A$56:$A$89,MATCH($A52,Quantities!$C$56:$C$89)),Quantities!$A$56:$B$89,Quantities!$B$2)))) -> Main Tailings Impoundment MTI-1 | H52: =IF(LEFT(TEXT(A52,"0"),1)="5", VLOOKUP(VLOOKUP(A52,Quantities!$A$4:$D$89,Quantities!$C$2),Quantities!$A$4:$D$89,Quantities!$C$2), IF(OR(C52="a",C52="c",C52="d",C52="e"), "-", IF(RIGHT(TEXT(A52,"0"),2)="00",VLOOKUP(A52,Quantities[],Quantities!$B$2),VLOOKUP(A52,Quantities[],Quantities!$C$2)) )) -> - | I52: =IF(AND(LEFT(D52,2)="Sc",B52="A",C52="d"), SUM(VLOOKUP($A52,Quantities[],Quantities!$V$2),VLOOKUP($A52,Quantities[],Quantities!$Z$2), VLOOKUP($A52,Quantities[],Quantities!$AD$2)), IF(AND(LEFT(D52,2)="Sc",C52="a"), VLOOKUP(A52,Quantities[],Quantities!$J$2), IF(AND(B52="D",C52="b"), VLOOKUP(INDEX(Quantities!$A$56:$A$88,MATCH($A52,Quantities!$C$56:$C$89)),Quantities!$A$56:$AP$88,Quantities!$V$2)+ VLOOKUP(INDEX(Quantities!$A$56:$A$88,MATCH($A52,Quantities!$C$56:$C$89)),Quantities!$A$56:$AP$88,Quantities!$Z$2)+ VLOOKUP(INDEX(Quantities!$A$56:$A$88,MATCH($A52,Quantities!$C$56:$C$89)),Quantities!$A$56:$AP$88,Quantities!$AD$2), IF(B52="D", VLOOKUP(A52,Quantities[],Quantities!$V$2)+VLOOKUP(A52,Quantities[],Quantities!$Z$2)+VLOOKUP(A52,Quantities[],Quantities!$AD$2), IF($B52="Q", SUM(VLOOKUP($A52,Quantities[],Quantities!$V$2),VLOOKUP($A52,Quantities[],Quantities!$Z$2), VLOOKUP($A52,Quantities[],Quantities!$AD$2)), VLOOKUP(A52,Quantities[],Quantities!$G$2) ))))) -> 200 | J52: =IF(LEFT(D52,2)="Mg", VLOOKUP(A52,Quantities[],Quantities!$I$2), IF(AND(LEFT(D52,2)="Sc",B52="A",C52="d"), (SUM(VLOOKUP($A52,Quantities[],Quantities!$W$2)*VLOOKUP($A52,Quantities[],Quantities!$V$2),VLOOKUP($A52,Quantities[],Quantities!$AA$2)*VLOOKUP($A52,Quantities[],Quantities!$Z$2),VLOOKUP($A52,Quantities[],Quantities!$AE$2)*VLOOKUP($A52,Quantities[],Quantities!$AD$2)))/SUM(VLOOKUP($A52,Quantities[],Quantities!$V$2),VLOOKUP($A52,Quantities[],Quantities!$Z$2),VLOOKUP($A52,Quantities[],Quantities!$AD$2)), IF(AND(LEFT(D52,2)="Sc",C52="a"), VLOOKUP(A52,Quantities[],Quantities!$K$2), IF(AND(B52="D",C52="b", (VLOOKUP(INDEX(Quantities!$A$56:$A$88,MATCH($A52,Quantities!$C$56:$C$88)),Quantities[],Quantities!$V$2)+VLOOKUP(INDEX(Quantities!$A$56:$A$88,MATCH($A52,Quantities!$C$56:$C$88)),Quantities[],Quantities!$Z$2)+VLOOKUP(INDEX(Quantities!$A$56:$A$88,MATCH($A52,Quantities!$C$56:$C$88)),Quantities[],Quantities!$AD$2))>0), (VLOOKUP(INDEX(Quantities!$A$56:$A$88,MATCH($A52,Quantities!$C$56:$C$88)),Quantities[],Quantities!$W$2)*VLOOKUP(INDEX(Quantities!$A$56:$A$88,MATCH($A52,Quantities!$C$56:$C$88)),Quantities[],Quantities!$V$2) +VLOOKUP(INDEX(Quantities!$A$56:$A$88,MATCH($A52,Quantities!$C$56:$C$88)),Quantities[],Quantities!$AA$2)*VLOOKUP(INDEX(Quantities!$A$56:$A$88,MATCH($A52,Quantities!$C$56:$C$88)),Quantities[],Quantities!$Z$2) +VLOOKUP(INDEX(Quantities!$A$56:$A$88,MATCH($A52,Quantities!$C$56:$C$88)),Quantities[],Quantities!$AE$2)*VLOOKUP(INDEX(Quantities!$A$56:$A$88,MATCH($A52,Quantities!$C$56:$C$88)),Quantities[],Quantities!$AD$2))/ (VLOOKUP(INDEX(Quantities!$A$56:$A$88,MATCH($A52,Quantities!$C$56:$C$88)),Quantities[],Quantities!$V$2)+VLOOKUP(INDEX(Quantities!$A$56:$A$88,MATCH($A52,Quantities!$C$56:$C$88)),Quantities[],Quantities!$Z$2)+VLOOKUP(A52,Quantities[],Quantities!$AD$2)), IF(AND(B52="D", (VLOOKUP(A52,Quantities[],Quantities!$V$2)+VLOOKUP(A52,Quantities[],Quantities!$Z$2)+VLOOKUP(A52,Quantities[],Quantities!$AD$2))>0), (VLOOKUP(A52,Quantities[],Quantities!$W$2)*VLOOKUP(A52,Quantities[],Quantities!$V$2) +VLOOKUP(A52,Quantities[],Quantities!$AA$2)*VLOOKUP(A52,Quantities[],Quantities!$Z$2) +VLOOKUP(A52,Quantities[],Quantities!$AE$2)*VLOOKUP(A52,Quantities[],Quantities!$AD$2))/ (VLOOKUP(A52,Quantities[],Quantities!$V$2)+VLOOKUP(A52,Quantities[],Quantities!$Z$2)+VLOOKUP(A52,Quantities[],Quantities!$AD$2)), IF($B52="Q", (SUM(VLOOKUP($A52,Quantities[],Quantities!$W$2)*VLOOKUP($A52,Quantities[],Quantities!$V$2),VLOOKUP($A52,Quantities[],Quantities!$AA$2)*VLOOKUP($A52,Quantities[],Quantities!$Z$2),VLOOKUP($A52,Quantities[],Quantities!$AE$2)*VLOOKUP($A52,Quantities[],Quantities!$AD$2)))/SUM(VLOOKUP($A52,Quantities[],Quantities!$V$2),VLOOKUP($A52,Quantities[],Quantities!$Z$2),VLOOKUP($A52,Quantities[],Quantities!$AD$2)), VLOOKUP(A52,Quantities[],Quantities!$I$2) )))))) -> -0.008 | K52: =IF(LEFT(D52,1)="U","-",VLOOKUP(D52,Equipment[],Equipment!$B$2)) -> Cat D11T CD Multi-shank (w/ MSR-359H)
A53: 1401 | B53: E | C53: c | D53: Rp1 | E53: 1401-E-c-Rp1 | F53: =IF(D53="Comb1",VLOOKUP(B53,'Activity-Material_Codes'!$A$2:$B$22,Quantities!$B$2), CONCATENATE( VLOOKUP(B53,'Activity-Material_Codes'!$A$2:$B$22,Quantities!$B$2), IF(AND(B53="B",C53="a"), " Grading",""), IF(C53="b","","-"), IF(C53="b","",VLOOKUP(A53,Quantities[],Quantities!$D$2)), IF(LEFT(TEXT(A53,"0"),1)="5","","-"), IF(LEFT(TEXT(A53,"0"),1)="5","",VLOOKUP(C53,'Activity-Material_Codes'!$A$25:$B$30,Quantities!$B$2)) )) -> Rip-Top-Rough Graded Material | G53: =CONCATENATE( IF(OR(RIGHT(TEXT($A53,"0"),Quantities!$B$2)="00",LEFT(TEXT($A53,"0"),1)="5",$C53="b"),"",VLOOKUP($A53,Quantities[],Quantities!$B$2)), IF(LEFT(TEXT($A53,"0"),1)="5",""," "), IF(OR(C53="a",C53="c",C53="d",C53="e"),IF(OR(RIGHT(TEXT($A53,"0"),Quantities!$B$2)="00",LEFT(TEXT($A53,"0"),1)="5"),VLOOKUP($A53,Quantities[],Quantities!$B$2),VLOOKUP($A53,Quantities[],Quantities!$C$2)), IF(LEFT(TEXT($A53,"0"),1)="5",VLOOKUP($A53,Quantities[],Quantities!$B$2), VLOOKUP(INDEX(Quantities!$A$56:$A$89,MATCH($A53,Quantities!$C$56:$C$89)),Quantities!$A$56:$B$89,Quantities!$B$2)))) -> Magnetite Tailings Impoundment MGTI-1 | H53: =IF(LEFT(TEXT(A53,"0"),1)="5", VLOOKUP(VLOOKUP(A53,Quantities!$A$4:$D$89,Quantities!$C$2),Quantities!$A$4:$D$89,Quantities!$C$2), IF(OR(C53="a",C53="c",C53="d",C53="e"), "-", IF(RIGHT(TEXT(A53,"0"),2)="00",VLOOKUP(A53,Quantities[],Quantities!$B$2),VLOOKUP(A53,Quantities[],Quantities!$C$2)) )) -> - | I53: =IF(AND(LEFT(D53,2)="Sc",B53="A",C53="d"), SUM(VLOOKUP($A53,Quantities[],Quantities!$V$2),VLOOKUP($A53,Quantities[],Quantities!$Z$2), VLOOKUP($A53,Quantities[],Quantities!$AD$2)), IF(AND(LEFT(D53,2)="Sc",C53="a"), VLOOKUP(A53,Quantities[],Quantities!$J$2), IF(AND(B53="D",C53="b"), VLOOKUP(INDEX(Quantities!$A$56:$A$88,MATCH($A53,Quantities!$C$56:$C$89)),Quantities!$A$56:$AP$88,Quantities!$V$2)+ VLOOKUP(INDEX(Quantities!$A$56:$A$88,MATCH($A53,Quantities!$C$56:$C$89)),Quantities!$A$56:$AP$88,Quantities!$Z$2)+ VLOOKUP(INDEX(Quantities!$A$56:$A$88,MATCH($A53,Quantities!$C$56:$C$89)),Quantities!$A$56:$AP$88,Quantities!$AD$2), IF(B53="D", VLOOKUP(A53,Quantities[],Quantities!$V$2)+VLOOKUP(A53,Quantities[],Quantities!$Z$2)+VLOOKUP(A53,Quantities[],Quantities!$AD$2), IF($B53="Q", SUM(VLOOKUP($A53,Quantities[],Quantities!$V$2),VLOOKUP($A53,Quantities[],Quantities!$Z$2), VLOOKUP($A53,Quantities[],Quantities!$AD$2)), VLOOKUP(A53,Quantities[],Quantities!$G$2) ))))) -> 300 | J53: =IF(LEFT(D53,2)="Mg", VLOOKUP(A53,Quantities[],Quantities!$I$2), IF(AND(LEFT(D53,2)="Sc",B53="A",C53="d"), (SUM(VLOOKUP($A53,Quantities[],Quantities!$W$2)*VLOOKUP($A53,Quantities[],Quantities!$V$2),VLOOKUP($A53,Quantities[],Quantities!$AA$2)*VLOOKUP($A53,Quantities[],Quantities!$Z$2),VLOOKUP($A53,Quantities[],Quantities!$AE$2)*VLOOKUP($A53,Quantities[],Quantities!$AD$2)))/SUM(VLOOKUP($A53,Quantities[],Quantities!$V$2),VLOOKUP($A53,Quantities[],Quantities!$Z$2),VLOOKUP($A53,Quantities[],Quantities!$AD$2)), IF(AND(LEFT(D53,2)="Sc",C53="a"), VLOOKUP(A53,Quantities[],Quantities!$K$2), IF(AND(B53="D",C53="b", (VLOOKUP(INDEX(Quantities!$A$56:$A$88,MATCH($A53,Quantities!$C$56:$C$88)),Quantities[],Quantities!$V$2)+VLOOKUP(INDEX(Quantities!$A$56:$A$88,MATCH($A53,Quantities!$C$56:$C$88)),Quantities[],Quantities!$Z$2)+VLOOKUP(INDEX(Quantities!$A$56:$A$88,MATCH($A53,Quantities!$C$56:$C$88)),Quantities[],Quantities!$AD$2))>0), (VLOOKUP(INDEX(Quantities!$A$56:$A$88,MATCH($A53,Quantities!$C$56:$C$88)),Quantities[],Quantities!$W$2)*VLOOKUP(INDEX(Quantities!$A$56:$A$88,MATCH($A53,Quantities!$C$56:$C$88)),Quantities[],Quantities!$V$2) +VLOOKUP(INDEX(Quantities!$A$56:$A$88,MATCH($A53,Quantities!$C$56:$C$88)),Quantities[],Quantities!$AA$2)*VLOOKUP(INDEX(Quantities!$A$56:$A$88,MATCH($A53,Quantities!$C$56:$C$88)),Quantities[],Quantities!$Z$2) +VLOOKUP(INDEX(Quantities!$A$56:$A$88,MATCH($A53,Quantities!$C$56:$C$88)),Quantities[],Quantities!$AE$2)*VLOOKUP(INDEX(Quantities!$A$56:$A$88,MATCH($A53,Quantities!$C$56:$C$88)),Quantities[],Quantities!$AD$2))/ (VLOOKUP(INDEX(Quantities!$A$56:$A$88,MATCH($A53,Quantities!$C$56:$C$88)),Quantities[],Quantities!$V$2)+VLOOKUP(INDEX(Quantities!$A$56:$A$88,MATCH($A53,Quantities!$C$56:$C$88)),Quantities[],Quantities!$Z$2)+VLOOKUP(A53,Quantities[],Quantities!$AD$2)), IF(AND(B53="D", (VLOOKUP(A53,Quantities[],Quantities!$V$2)+VLOOKUP(A53,Quantities[],Quantities!$Z$2)+VLOOKUP(A53,Quantities[],Quantities!$AD$2))>0), (VLOOKUP(A53,Quantities[],Quantities!$W$2)*VLOOKUP(A53,Quantities[],Quantities!$V$2) +VLOOKUP(A53,Quantities[],Quantities!$AA$2)*VLOOKUP(A53,Quantities[],Quantities!$Z$2) +VLOOKUP(A53,Quantities[],Quantities!$AE$2)*VLOOKUP(A53,Quantities[],Quantities!$AD$2))/ (VLOOKUP(A53,Quantities[],Quantities!$V$2)+VLOOKUP(A53,Quantities[],Quantities!$Z$2)+VLOOKUP(A53,Quantities[],Quantities!$AD$2)), IF($B53="Q", (SUM(VLOOKUP($A53,Quantities[],Quantities!$W$2)*VLOOKUP($A53,Quantities[],Quantities!$V$2),VLOOKUP($A53,Quantities[],Quantities!$AA$2)*VLOOKUP($A53,Quantities[],Quantities!$Z$2),VLOOKUP($A53,Quantities[],Quantities!$AE$2)*VLOOKUP($A53,Quantities[],Quantities!$AD$2)))/SUM(VLOOKUP($A53,Quantities[],Quantities!$V$2),VLOOKUP($A53,Quantities[],Quantities!$Z$2),VLOOKUP($A53,Quantities[],Quantities!$AD$2)), VLOOKUP(A53,Quantities[],Quantities!$I$2) )))))) -> -0.035 | K53: =IF(LEFT(D53,1)="U","-",VLOOKUP(D53,Equipment[],Equipment!$B$2)) -> Cat D11T CD Multi-shank (w/ MSR-359H)
A54: =Quantities!A5 -> 1001 | B54: B | C54: b | D54: Dz1 | E54: 1001-B-b-Dz1 | F54: =IF(D54="Comb1",VLOOKUP(B54,'Activity-Material_Codes'!$A$2:$B$22,Quantities!$B$2), CONCATENATE( VLOOKUP(B54,'Activity-Material_Codes'!$A$2:$B$22,Quantities!$B$2), IF(AND(B54="B",C54="a"), " Grading",""), IF(C54="b","","-"), IF(C54="b","",VLOOKUP(A54,Quantities[],Quantities!$D$2)), IF(LEFT(TEXT(A54,"0"),1)="5","","-"), IF(LEFT(TEXT(A54,"0"),1)="5","",VLOOKUP(C54,'Activity-Material_Codes'!$A$25:$B$30,Quantities!$B$2)) )) -> Dozer Assist-Cover | G54: =CONCATENATE( IF(OR(RIGHT(TEXT($A54,"0"),Quantities!$B$2)="00",LEFT(TEXT($A54,"0"),1)="5",$C54="b"),"",VLOOKUP($A54,Quantities[],Quantities!$B$2)), IF(LEFT(TEXT($A54,"0"),1)="5",""," "), IF(OR(C54="a",C54="c",C54="d",C54="e"),IF(OR(RIGHT(TEXT($A54,"0"),Quantities!$B$2)="00",LEFT(TEXT($A54,"0"),1)="5"),VLOOKUP($A54,Quantities[],Quantities!$B$2),VLOOKUP($A54,Quantities[],Quantities!$C$2)), IF(LEFT(TEXT($A54,"0"),1)="5",VLOOKUP($A54,Quantities[],Quantities!$B$2), VLOOKUP(INDEX(Quantities!$A$56:$A$89,MATCH($A54,Quantities!$C$56:$C$89)),Quantities!$A$56:$B$89,Quantities!$B$2)))) -> North Overburden Stockpile | H54: =IF(LEFT(TEXT(A54,"0"),1)="5", VLOOKUP(VLOOKUP(A54,Quantities!$A$4:$D$89,Quantities!$C$2),Quantities!$A$4:$D$89,Quantities!$C$2), IF(OR(C54="a",C54="c",C54="d",C54="e"), "-", IF(RIGHT(TEXT(A54,"0"),2)="00",VLOOKUP(A54,Quantities[],Quantities!$B$2),VLOOKUP(A54,Quantities[],Quantities!$C$2)) )) -> SWRDF-1 | I54: =IF(AND(LEFT(D54,2)="Sc",B54="A",C54="d"), SUM(VLOOKUP($A54,Quantities[],Quantities!$V$2),VLOOKUP($A54,Quantities[],Quantities!$Z$2), VLOOKUP($A54,Quantities[],Quantities!$AD$2)), IF(AND(LEFT(D54,2)="Sc",C54="a"), VLOOKUP(A54,Quantities[],Quantities!$J$2), IF(AND(B54="D",C54="b"), VLOOKUP(INDEX(Quantities!$A$56:$A$88,MATCH($A54,Quantities!$C$56:$C$89)),Quantities!$A$56:$AP$88,Quantities!$V$2)+ VLOOKUP(INDEX(Quantities!$A$56:$A$88,MATCH($A54,Quantities!$C$56:$C$89)),Quantities!$A$56:$AP$88,Quantities!$Z$2)+ VLOOKUP(INDEX(Quantities!$A$56:$A$88,MATCH($A54,Quantities!$C$56:$C$89)),Quantities!$A$56:$AP$88,Quantities!$AD$2), IF(B54="D", VLOOKUP(A54,Quantities[],Quantities!$V$2)+VLOOKUP(A54,Quantities[],Quantities!$Z$2)+VLOOKUP(A54,Quantities[],Quantities!$AD$2), IF($B54="Q", SUM(VLOOKUP($A54,Quantities[],Quantities!$V$2),VLOOKUP($A54,Quantities[],Quantities!$Z$2), VLOOKUP($A54,Quantities[],Quantities!$AD$2)), VLOOKUP(A54,Quantities[],Quantities!$G$2) ))))) -> 540 | J54: =IF(LEFT(D54,2)="Mg", VLOOKUP(A54,Quantities[],Quantities!$I$2), IF(AND(LEFT(D54,2)="Sc",B54="A",C54="d"), (SUM(VLOOKUP($A54,Quantities[],Quantities!$W$2)*VLOOKUP($A54,Quantities[],Quantities!$V$2),VLOOKUP($A54,Quantities[],Quantities!$AA$2)*VLOOKUP($A54,Quantities[],Quantities!$Z$2),VLOOKUP($A54,Quantities[],Quantities!$AE$2)*VLOOKUP($A54,Quantities[],Quantities!$AD$2)))/SUM(VLOOKUP($A54,Quantities[],Quantities!$V$2),VLOOKUP($A54,Quantities[],Quantities!$Z$2),VLOOKUP($A54,Quantities[],Quantities!$AD$2)), IF(AND(LEFT(D54,2)="Sc",C54="a"), VLOOKUP(A54,Quantities[],Quantities!$K$2), IF(AND(B54="D",C54="b", (VLOOKUP(INDEX(Quantities!$A$56:$A$88,MATCH($A54,Quantities!$C$56:$C$88)),Quantities[],Quantities!$V$2)+VLOOKUP(INDEX(Quantities!$A$56:$A$88,MATCH($A54,Quantities!$C$56:$C$88)),Quantities[],Quantities!$Z$2)+VLOOKUP(INDEX(Quantities!$A$56:$A$88,MATCH($A54,Quantities!$C$56:$C$88)),Quantities[],Quantities!$AD$2))>0), (VLOOKUP(INDEX(Quantities!$A$56:$A$88,MATCH($A54,Quantities!$C$56:$C$88)),Quantities[],Quantities!$W$2)*VLOOKUP(INDEX(Quantities!$A$56:$A$88,MATCH($A54,Quantities!$C$56:$C$88)),Quantities[],Quantities!$V$2) +VLOOKUP(INDEX(Quantities!$A$56:$A$88,MATCH($A54,Quantities!$C$56:$C$88)),Quantities[],Quantities!$AA$2)*VLOOKUP(INDEX(Quantities!$A$56:$A$88,MATCH($A54,Quantities!$C$56:$C$88)),Quantities[],Quantities!$Z$2) +VLOOKUP(INDEX(Quantities!$A$56:$A$88,MATCH($A54,Quantities!$C$56:$C$88)),Quantities[],Quantities!$AE$2)*VLOOKUP(INDEX(Quantities!$A$56:$A$88,MATCH($A54,Quantities!$C$56:$C$88)),Quantities[],Quantities!$AD$2))/ (VLOOKUP(INDEX(Quantities!$A$56:$A$88,MATCH($A54,Quantities!$C$56:$C$88)),Quantities[],Quantities!$V$2)+VLOOKUP(INDEX(Quantities!$A$56:$A$88,MATCH($A54,Quantities!$C$56:$C$88)),Quantities[],Quantities!$Z$2)+VLOOKUP(A54,Quantities[],Quantities!$AD$2)), IF(AND(B54="D", (VLOOKUP(A54,Quantities[],Quantities!$V$2)+VLOOKUP(A54,Quantities[],Quantities!$Z$2)+VLOOKUP(A54,Quantities[],Quantities!$AD$2))>0), (VLOOKUP(A54,Quantities[],Quantities!$W$2)*VLOOKUP(A54,Quantities[],Quantities!$V$2) +VLOOKUP(A54,Quantities[],Quantities!$AA$2)*VLOOKUP(A54,Quantities[],Quantities!$Z$2) +VLOOKUP(A54,Quantities[],Quantities!$AE$2)*VLOOKUP(A54,Quantities[],Quantities!$AD$2))/ (VLOOKUP(A54,Quantities[],Quantities!$V$2)+VLOOKUP(A54,Quantities[],Quantities!$Z$2)+VLOOKUP(A54,Quantities[],Quantities!$AD$2)), IF($B54="Q", (SUM(VLOOKUP($A54,Quantities[],Quantities!$W$2)*VLOOKUP($A54,Quantities[],Quantities!$V$2),VLOOKUP($A54,Quantities[],Quantities!$AA$2)*VLOOKUP($A54,Quantities[],Quantities!$Z$2),VLOOKUP($A54,Quantities[],Quantities!$AE$2)*VLOOKUP($A54,Quantities[],Quantities!$AD$2)))/SUM(VLOOKUP($A54,Quantities[],Quantities!$V$2),VLOOKUP($A54,Quantities[],Quantities!$Z$2),VLOOKUP($A54,Quantities[],Quantities!$AD$2)), VLOOKUP(A54,Quantities[],Quantities!$I$2) )))))) -> -0.01 | K54: =IF(LEFT(D54,1)="U","-",VLOOKUP(D54,Equipment[],Equipment!$B$2)) -> Cat D11T, U Blade
A55: =Quantities!A6 -> 1002 | B55: B | C55: b | D55: Dz1 | E55: 1002-B-b-Dz1 | F55: =IF(D55="Comb1",VLOOKUP(B55,'Activity-Material_Codes'!$A$2:$B$22,Quantities!$B$2), CONCATENATE( VLOOKUP(B55,'Activity-Material_Codes'!$A$2:$B$22,Quantities!$B$2), IF(AND(B55="B",C55="a"), " Grading",""), IF(C55="b","","-"), IF(C55="b","",VLOOKUP(A55,Quantities[],Quantities!$D$2)), IF(LEFT(TEXT(A55,"0"),1)="5","","-"), IF(LEFT(TEXT(A55,"0"),1)="5","",VLOOKUP(C55,'Activity-Material_Codes'!$A$25:$B$30,Quantities!$B$2)) )) -> Dozer Assist-Cover | G55: =CONCATENATE( IF(OR(RIGHT(TEXT($A55,"0"),Quantities!$B$2)="00",LEFT(TEXT($A55,"0"),1)="5",$C55="b"),"",VLOOKUP($A55,Quantities[],Quantities!$B$2)), IF(LEFT(TEXT($A55,"0"),1)="5",""," "), IF(OR(C55="a",C55="c",C55="d",C55="e"),IF(OR(RIGHT(TEXT($A55,"0"),Quantities!$B$2)="00",LEFT(TEXT($A55,"0"),1)="5"),VLOOKUP($A55,Quantities[],Quantities!$B$2),VLOOKUP($A55,Quantities[],Quantities!$C$2)), IF(LEFT(TEXT($A55,"0"),1)="5",VLOOKUP($A55,Quantities[],Quantities!$B$2), VLOOKUP(INDEX(Quantities!$A$56:$A$89,MATCH($A55,Quantities!$C$56:$C$89)),Quantities!$A$56:$B$89,Quantities!$B$2)))) -> North Overburden Stockpile | H55: =IF(LEFT(TEXT(A55,"0"),1)="5", VLOOKUP(VLOOKUP(A55,Quantities!$A$4:$D$89,Quantities!$C$2),Quantities!$A$4:$D$89,Quantities!$C$2), IF(OR(C55="a",C55="c",C55="d",C55="e"), "-", IF(RIGHT(TEXT(A55,"0"),2)="00",VLOOKUP(A55,Quantities[],Quantities!$B$2),VLOOKUP(A55,Quantities[],Quantities!$C$2)) )) -> SWRDF-2 | I55: =IF(AND(LEFT(D55,2)="Sc",B55="A",C55="d"), SUM(VLOOKUP($A55,Quantities[],Quantities!$V$2),VLOOKUP($A55,Quantities[],Quantities!$Z$2), VLOOKUP($A55,Quantities[],Quantities!$AD$2)), IF(AND(LEFT(D55,2)="Sc",C55="a"), VLOOKUP(A55,Quantities[],Quantities!$J$2), IF(AND(B55="D",C55="b"), VLOOKUP(INDEX(Quantities!$A$56:$A$88,MATCH($A55,Quantities!$C$56:$C$89)),Quantities!$A$56:$AP$88,Quantities!$V$2)+ VLOOKUP(INDEX(Quantities!$A$56:$A$88,MATCH($A55,Quantities!$C$56:$C$89)),Quantities!$A$56:$AP$88,Quantities!$Z$2)+ VLOOKUP(INDEX(Quantities!$A$56:$A$88,MATCH($A55,Quantities!$C$56:$C$89)),Quantities!$A$56:$AP$88,Quantities!$AD$2), IF(B55="D", VLOOKUP(A55,Quantities[],Quantities!$V$2)+VLOOKUP(A55,Quantities[],Quantities!$Z$2)+VLOOKUP(A55,Quantities[],Quantities!$AD$2), IF($B55="Q", SUM(VLOOKUP($A55,Quantities[],Quantities!$V$2),VLOOKUP($A55,Quantities[],Quantities!$Z$2), VLOOKUP($A55,Quantities[],Quantities!$AD$2)), VLOOKUP(A55,Quantities[],Quantities!$G$2) ))))) -> 99 | J55: =IF(LEFT(D55,2)="Mg", VLOOKUP(A55,Quantities[],Quantities!$I$2), IF(AND(LEFT(D55,2)="Sc",B55="A",C55="d"), (SUM(VLOOKUP($A55,Quantities[],Quantities!$W$2)*VLOOKUP($A55,Quantities[],Quantities!$V$2),VLOOKUP($A55,Quantities[],Quantities!$AA$2)*VLOOKUP($A55,Quantities[],Quantities!$Z$2),VLOOKUP($A55,Quantities[],Quantities!$AE$2)*VLOOKUP($A55,Quantities[],Quantities!$AD$2)))/SUM(VLOOKUP($A55,Quantities[],Quantities!$V$2),VLOOKUP($A55,Quantities[],Quantities!$Z$2),VLOOKUP($A55,Quantities[],Quantities!$AD$2)), IF(AND(LEFT(D55,2)="Sc",C55="a"), VLOOKUP(A55,Quantities[],Quantities!$K$2), IF(AND(B55="D",C55="b", (VLOOKUP(INDEX(Quantities!$A$56:$A$88,MATCH($A55,Quantities!$C$56:$C$88)),Quantities[],Quantities!$V$2)+VLOOKUP(INDEX(Quantities!$A$56:$A$88,MATCH($A55,Quantities!$C$56:$C$88)),Quantities[],Quantities!$Z$2)+VLOOKUP(INDEX(Quantities!$A$56:$A$88,MATCH($A55,Quantities!$C$56:$C$88)),Quantities[],Quantities!$AD$2))>0), (VLOOKUP(INDEX(Quantities!$A$56:$A$88,MATCH($A55,Quantities!$C$56:$C$88)),Quantities[],Quantities!$W$2)*VLOOKUP(INDEX(Quantities!$A$56:$A$88,MATCH($A55,Quantities!$C$56:$C$88)),Quantities[],Quantities!$V$2) +VLOOKUP(INDEX(Quantities!$A$56:$A$88,MATCH($A55,Quantities!$C$56:$C$88)),Quantities[],Quantities!$AA$2)*VLOOKUP(INDEX(Quantities!$A$56:$A$88,MATCH($A55,Quantities!$C$56:$C$88)),Quantities[],Quantities!$Z$2) +VLOOKUP(INDEX(Quantities!$A$56:$A$88,MATCH($A55,Quantities!$C$56:$C$88)),Quantities[],Quantities!$AE$2)*VLOOKUP(INDEX(Quantities!$A$56:$A$88,MATCH($A55,Quantities!$C$56:$C$88)),Quantities[],Quantities!$AD$2))/ (VLOOKUP(INDEX(Quantities!$A$56:$A$88,MATCH($A55,Quantities!$C$56:$C$88)),Quantities[],Quantities!$V$2)+VLOOKUP(INDEX(Quantities!$A$56:$A$88,MATCH($A55,Quantities!$C$56:$C$88)),Quantities[],Quantities!$Z$2)+VLOOKUP(A55,Quantities[],Quantities!$AD$2)), IF(AND(B55="D", (VLOOKUP(A55,Quantities[],Quantities!$V$2)+VLOOKUP(A55,Quantities[],Quantities!$Z$2)+VLOOKUP(A55,Quantities[],Quantities!$AD$2))>0), (VLOOKUP(A55,Quantities[],Quantities!$W$2)*VLOOKUP(A55,Quantities[],Quantities!$V$2) +VLOOKUP(A55,Quantities[],Quantities!$AA$2)*VLOOKUP(A55,Quantities[],Quantities!$Z$2) +VLOOKUP(A55,Quantities[],Quantities!$AE$2)*VLOOKUP(A55,Quantities[],Quantities!$AD$2))/ (VLOOKUP(A55,Quantities[],Quantities!$V$2)+VLOOKUP(A55,Quantities[],Quantities!$Z$2)+VLOOKUP(A55,Quantities[],Quantities!$AD$2)), IF($B55="Q", (SUM(VLOOKUP($A55,Quantities[],Quantities!$W$2)*VLOOKUP($A55,Quantities[],Quantities!$V$2),VLOOKUP($A55,Quantities[],Quantities!$AA$2)*VLOOKUP($A55,Quantities[],Quantities!$Z$2),VLOOKUP($A55,Quantities[],Quantities!$AE$2)*VLOOKUP($A55,Quantities[],Quantities!$AD$2)))/SUM(VLOOKUP($A55,Quantities[],Quantities!$V$2),VLOOKUP($A55,Quantities[],Quantities!$Z$2),VLOOKUP($A55,Quantities[],Quantities!$AD$2)), VLOOKUP(A55,Quantities[],Quantities!$I$2) )))))) -> -0.27 | K55: =IF(LEFT(D55,1)="U","-",VLOOKUP(D55,Equipment[],Equipment!$B$2)) -> Cat D11T, U Blade
